Workbook

Sheet Country SP Profile (hidden)
B3: ="STRATEGIC PLAN EDUCATION COUNTRY PROFILE 2017 : " & UPPER($K$6) -> STRATEGIC PLAN EDUCATION COUNTRY PROFILE 2017 : BOLIVIA (PLURINATIONAL STATE OF) | V3: Please select a country here
B5: Region : | K5: =VLOOKUP(K6,Names!A2:D158,4,FALSE) -> LACR
B6: Country : | K6: Bolivia (Plurinational State of)
C10: OUTPUT INDICATORS 2016, Source: SMQs unless otherwise stated
C11: Output a : DEMAND
C13: =IFERROR(CONCATENATE("P5.a.1 School Management Committees, Baseline = ", TEXT('Data for country profile'!J39,"0.0")), ("P5.a.1 School Management Committees, Baseline = 999")) -> P5.a.1 School Management Committees, Baseline = 2.7 | L13: =IFERROR(CONCATENATE("P5.a.2 EMIS Feedback to SMCs, Baseline = ",TEXT('Data for country profile'!J40,"0.0")), "P5.a.2 EMIS Feedback to SMCs, Baseline = 999") -> P5.a.2 EMIS Feedback to SMCs, Baseline = 1.8
C17: =IF('Data for country profile'!$H$39=999,"Not applicable","") ->  | L17: =IF('Data for country profile'!$H$40=999,"Not applicable","") -> 
C29: Output b : SUPPLY
C31: =IFERROR(CONCATENATE("P5.b.1 Innovative approaches, Baseline = ", TEXT('Data for country profile'!J41,"0.0")), "P5.b.1 Innovative approaches, Baseline = 999") -> P5.b.1 Innovative approaches, Baseline = 2.7 | L31: =IFERROR(CONCATENATE("P5.b.2 Quality standards: Child-Friendly Ed., Baseline = ", TEXT('Data for country profile'!J42, "0.0")),"P5.b.2 Quality standards: Child-Friendly Ed., Baseline = 999") -> P5.b.2 Quality standards: Child-Friendly Ed., Baseline = 1.0
C35: =IF('Data for country profile'!$H$41=999,"Not applicable","") ->  | L35: =IF('Data for country profile'!$H$42=999,"Not applicable","") -> 
C45: Output c : Enabling Environment/Policies
C46: =IFERROR(CONCATENATE("P5.c.1 Learning Assessment Syst., Baseline = ", TEXT('Data for country profile'!J43, "0.0")),"P5.c.1 Learning Assessment Syst., Baseline = 999") -> P5.c.1 Learning Assessment Syst., Baseline = 1.3 | I46: =IFERROR(CONCATENATE("P5.c.2 Policies for Early Learning, Baseline = ", TEXT('Data for country profile'!J44, "0.0")), "P5.c.2 Policies for Early Learning, Baseline = 999") -> P5.c.2 Policies for Early Learning, Baseline = 1.0 | O46: =IFERROR(CONCATENATE("P5.c.3 Risk Assesst. & Mgt., Baseline = ",TEXT('Data for country profile'!J45,"0.0")),"P5.c.3 Risk Assesst. & Mgt., Baseline = 999") -> P5.c.3 Risk Assesst. & Mgt., Baseline = 1.0
C50: =IF('Data for country profile'!$H$43=999,"Not applicable","") ->  | I50: =IF('Data for country profile'!$H$44=999,"Not applicable","") ->  | O50: =IF('Data for country profile'!$H$45=999,"Not applicable","") -> 
C60: Output e: Human rights & gender equality
C61: =IFERROR(CONCATENATE("P5.e.1 - Gender Parity in Lower Secondary Education, Source: UIS, Baseline = ", TEXT('Data for country profile'!J28, "0.00")," (",'Data for country profile'!N28,")"), "P5.e.1 - Gender Parity in Lower Secondary Education, Baseline = No data") -> P5.e.1 - Gender Parity in Lower Secondary Education, Source: UIS, Baseline = 0.57 (2012) | L61: =IFERROR(CONCATENATE("P5.e.2 Well-functioning EMIS, Baseline = ",TEXT('Data for country profile'!J50,"0.0")),"P5.e.2 Well-functioning EMIS, Baseline = 999") -> P5.e.2 Well-functioning EMIS, Baseline = 3.0
L65: =IF('Data for country profile'!$H$50=999,"Not applicable","") -> 
C73: =IFERROR(CONCATENATE("P5.e.3 Policies on Inclusive Education, Baseline = ", TEXT('Data for country profile'!J51, "0.0")), "P5.e.3 Policies on Inclusive Education, Baseline = 999") -> P5.e.3 Policies on Inclusive Education, Baseline = 2.3 | L73: =IFERROR(CONCATENATE("P5.e.4 Policy on gender-based violence, Baseline = ", TEXT('Data for country profile'!J52,"0.0")), "P5.e.4 Policy on gender-based violence, Baseline = 999") -> P5.e.4 Policy on gender-based violence, Baseline = 1.5
C78: =IF('Data for country profile'!$H$51=999,"Not applicable","") ->  | L78: =IF('Data for country profile'!$H$52=999,"Not applicable","") -> 
C92: OUTPUT INDICATORS 2016 (Cont'd), Source: SMQs unless otherwise stated
C93: Output e: Human rights & gender equality (Cont'd)
C94: =IFERROR(CONCATENATE("P5.e.5 Girls' Secondary Education, Baseline (2014) = ",TEXT('Data for country profile'!J53,"0.0")),"P5.e.5 Girls' Secondary Education, Baseline = 999") -> P5.e.5 Girls' Secondary Education, Baseline (2014) = 2.0 | L94: =IFERROR(CONCATENATE("P5.e.6 Multilingual Education, Baseline = ",TEXT('Data for country profile'!J54,"0.0")), "P5.e.6 Multilingual Education, Baseline = 999") -> P5.e.6 Multilingual Education, Baseline = 2.5
C98: =IF('Data for country profile'!$H$53=999,"Not applicable","") ->  | L98: =IF('Data for country profile'!$H$54=999,"Not applicable","") -> Not applicable
B106: OUTCOME INDICATORS (MOST RECENT YEAR AVAILABLE)
C108: =IFERROR(CONCATENATE("P5.1a - Out Of School Rate (Primary), in %, Source: UIS, Baseline = ",TEXT('Data for country profile'!J12,0)," (",'Data for country profile'!N12,")"), "P5.1a - Out Of School Rate (Primary Education), in %, Source: UIS, Baseline = No data") -> P5.1a - Out Of School Rate (Primary Education), in %, Source: UIS, Baseline = No data | L108: =IFERROR(CONCATENATE("P5.1b - Out Of School Rate (Lower Secondary), in %, Source: UIS, Baseline= ", TEXT('Data for country profile'!J27,0), " (", 'Data for country profile'!N27, ")"), "P5.1b - Out Of School Rate (Lower Sec. Education), in %, Source: UIS, Baseline = No data") -> P5.1b - Out Of School Rate (Lower Sec. Education), in %, Source: UIS, Baseline = No data
W110: .
C116: =IF(OR('Data for country profile'!P6 = "ASER",'Data for country profile'!P6 = "UWEZO"),CONCATENATE("P5.2 Learning Outcomes",IF('Data for country profile'!P6="","",CONCATENATE(" ",'Data for country profile'!P6,": ",'Data for country profile'!W6,"-",'Data for country profile'!V6, " ( % of children reaching minimum standards )"))),CONCATENATE("P5.2 Learning Outcomes",IF('Data for country profile'!P6="","",CONCATENATE(" ",'Data for country profile'!P6,": ",IF(OR('Data for country profile'!W6=0,'Data for country profile'!W6=""),"",'Data for country profile'!W6),"-",'Data for country profile'!V6)))) -> P5.2 Learning Outcomes | L116: =IFERROR(CONCATENATE("P5.3 Percentage of Government Expenditure on Education, Source: UIS, Baseline = ", TEXT('Data for country profile'!J31,0), " (", 'Data for country profile'!N31,")"), "P5.3 Percentage of Government Expenditure on Education, Baseline = No data") -> P5.3 Percentage of Government Expenditure on Education, Baseline = No data
C117: =IF('Data for country profile'!P6="","No country data","") -> No country data
E122: =IF($C$117="No country data"," ",IF(OR('Data for country profile'!W6=0,'Data for country profile'!W6="")," ","n")) ->  | F122: =IF($C$117="No country data"," ",IF(OR('Data for country profile'!W6=0,'Data for country profile'!W6=""),"",'Data for country profile'!W6)) ->  | G122: =IF($C$117="No country data"," ","n") ->  | H122: =IF($C$117="No country data"," ",'Data for country profile'!V6) -> 
C125: =IFERROR(CONCATENATE("P5.4.a - Primary Education Net Attendance Rate of Poorest Quintile, in %, Source: data.unicef.org, Baseline = ",TEXT('Data for country profile'!J21,0)," (",'Data for country profile'!N21,")" ),"P5.4.a - Primary Education Net Attendance Rate of Poorest Quintile, in %, Baseline = No data") -> P5.4.a - Primary Education Net Attendance Rate of Poorest Quintile, in %, Source: data.unicef.org, Baseline = 40 (2011) | L125: =IFERROR(CONCATENATE("P5.4.b - % of children aged 36‒59 months from Poorest Quintile attending ECE programme, Source: data.unicef.org, Baseline = ", TEXT('Data for country profile'!J9,0), " (", 'Data for country profile'!N9, ")"), "P5.4.b - % of children aged 36‒59 months from Poorest Quintile attending ECE programme, Source: data.unicef.org, Baseline = No data") -> P5.4.b - % of children aged 36‒59 months from Poorest Quintile attending ECE programme, Source: data.unicef.org, Baseline = 0 (2011)
C133: =IFERROR(CONCATENATE("P5.5 - % of children aged 36-59 months engaged in activities with adults to promote learning and school readiness, Source: data.unicef.org, Baseline = ",'Data for country profile'!J22," (",'Data for country profile'!N22,")"),"P5.5 - % of children aged 36-59 months engaged in activities with adults to promote learning and school readiness, Source: data.unicef.org , Baseline = No data") -> P5.5 - % of children aged 36-59 months engaged in activities with adults to promote learning and school readiness, Source: data.unicef.org, Baseline = 73.1 (2011) | L133: =IF(AND('Data for country profile'!H80>0,'Data for country profile'!H81>0),CONCATENATE("P5.6 - Number and percentage of children in humanitarian situations accessing formal or non-formal basic education. TARGETED: ",TEXT('Data for country profile'!H80,"###,###,###")," - REACHED: ",TEXT('Data for country profile'!H81,"###,###,###")),"P5.6 - Number and percentage of children in humanitarian situations accessing formal or non-formal basic education. TARGETED : NA - REACHED : NA") -> P5.6 - Number and percentage of children in humanitarian situations accessing formal or non-formal basic education. TARGETED: 375,000 - REACHED: 110,000
B141: IMPACT INDICATORS (MOST RECENT YEAR AVAILABLE)
C143: =IFERROR(CONCATENATE("P5a - Number of primary school-age children out-of-school, Source: UIS, Baseline = ",TEXT('Data for country profile'!J15,"#,###"), " (",'Data for country profile'!N12,")", ", Girls = ",TEXT('Data for country profile'!J14,"#,###"), ", Boys = ",TEXT('Data for country profile'!J13,"#,###") ), "P5a - Number of primary school-age children out-of-school, Baseline = No data") -> P5a - Number of primary school-age children out-of-school, Baseline = No data | L143: =IFERROR(CONCATENATE("P5b - Primary Completion Rate, in %, Source: UIS, Baseline = ",TEXT('Data for country profile'!J18, 0)," (",'Data for country profile'!N18,")"), "P5b - Primary Completion Rate, in %, Source: UIS, Baseline = No data") -> P5b - Primary Completion Rate, in %, Source: UIS, Baseline = No data
L149: =IFERROR(CONCATENATE("P5b bis - Gender Parity Index on Primary Completion Rate, Source: UIS, Baseline = ",TEXT('Data for country profile'!J20,"0.00")," (",'Data for country profile'!N20,")"),"P5b bis - Gender Parity Index on Primary Completion Rate, Source: UIS, Baseline = No Data") -> P5b bis - Gender Parity Index on Primary Completion Rate, Source: UIS, Baseline = No Data
L150: =IFERROR(IF('Data for country profile'!H20<0.7, CONCATENATE(TEXT('Data for country profile'!H20,"0.00"),"…"),""), "") ->  | S150: =IFERROR(IF('Data for country profile'!H20>1.3, CONCATENATE("...",TEXT('Data for country profile'!H20,"0.00")),""), "") -> 
L153: =IFERROR(IF('Data for country profile'!G20<0.7, CONCATENATE(TEXT('Data for country profile'!G20,"0.00"),"…"),""), "") ->  | S153: =IFERROR(IF('Data for country profile'!G20>1.3, CONCATENATE("...",TEXT('Data for country profile'!G20,"0.00")),""), "") -> 
D157: Legend for all diamond charts:

Sheet Country Profile
B3: ="STRATEGIC PLAN EDUCATION COUNTRY PROFILE 2017 : " & UPPER($K$6) -> STRATEGIC PLAN EDUCATION COUNTRY PROFILE 2017 : AFGHANISTAN | V3: Please select a country here
B5: Region : | K5: =VLOOKUP(K6,Names!A2:D158,4,FALSE) -> SA
B6: Country : | K6: Afghanistan
C10: OUTPUT INDICATORS 2017, Source: SMQs
C11: Output a : DEMAND
C13: =IFERROR(CONCATENATE("P5.a.1 School Management Committees, Baseline = ", TEXT('Data for country profile'!J39,"0.0")), ("P5.a.1 School Management Committees, Baseline = Not applicable")) -> P5.a.1 School Management Committees, Baseline = 2.7 | L13: =IFERROR(CONCATENATE("P5.a.2 EMIS Feedback to SMCs, Baseline = ",TEXT('Data for country profile'!J40,"0.0")), "P5.a.2 EMIS Feedback to SMCs, Baseline = Not applicable") -> P5.a.2 EMIS Feedback to SMCs, Baseline = 1.8
C17: =IF('Data for country profile'!$H$39=999,"Not applicable","") ->  | L17: =IF('Data for country profile'!$H$40=999,"Not applicable","") -> 
C29: Output b : SUPPLY
C31: =IFERROR(CONCATENATE("P5.b.1 Innovative approaches, Baseline = ", TEXT('Data for country profile'!J41,"0.0")), "P5.b.1 Innovative approaches, Baseline = Not applicable") -> P5.b.1 Innovative approaches, Baseline = 2.7 | L31: =IFERROR(CONCATENATE("P5.b.2 Quality standards: Child-Friendly Ed., Baseline = ", TEXT('Data for country profile'!J42, "0.0")),"P5.b.2 Quality standards: Child-Friendly Ed., Baseline = Not applicable") -> P5.b.2 Quality standards: Child-Friendly Ed., Baseline = 1.0
C35: =IF('Data for country profile'!$H$41=999,"Not applicable","") ->  | L35: =IF('Data for country profile'!$H$42=999,"Not applicable","") -> 
C45: Output c : Enabling Environment/Policies
C46: =IFERROR(CONCATENATE("P5.c.1 Learning Assessment Syst., Baseline = ", TEXT('Data for country profile'!J43, "0.0")),"P5.c.1 Learning Assessment Syst., Baseline = Not applicable") -> P5.c.1 Learning Assessment Syst., Baseline = 1.3 | I46: =IFERROR(CONCATENATE("P5.c.2 Policies for Early Learning, Baseline = ", TEXT('Data for country profile'!J44, "0.0")), "P5.c.2 Policies for Early Learning, Baseline = Not applicable") -> P5.c.2 Policies for Early Learning, Baseline = 1.0 | O46: =IFERROR(CONCATENATE("P5.c.3 Risk Assesst. & Mgt., Baseline = ",TEXT('Data for country profile'!J45,"0.0")),"P5.c.3 Risk Assesst. & Mgt., Baseline = Not applicable") -> P5.c.3 Risk Assesst. & Mgt., Baseline = 1.0
C50: =IF('Data for country profile'!$H$43=999,"Not applicable","") ->  | I50: =IF('Data for country profile'!$H$44=999,"Not applicable","") ->  | O50: =IF('Data for country profile'!$H$45=999,"Not applicable","") -> 
C65: OUTPUT INDICATORS 2017 (Cont'd), Source: SMQs
C66: Output e: Human rights & gender equality
C67: =IFERROR(CONCATENATE("P5.e.1 - Gender Parity in Lower Secondary Education, Source: UIS, Baseline = ", TEXT('Data for country profile'!J28, "0.00")," (",'Data for country profile'!N28,")"), "P5.e.1 - Gender Parity in Lower Secondary Education, Baseline = No data") -> P5.e.1 - Gender Parity in Lower Secondary Education, Source: UIS, Baseline = 0.57 (2012) | L67: =IFERROR(CONCATENATE("P5.e.2 Well-functioning EMIS, Baseline = ",TEXT('Data for country profile'!J50,"0.0")),"P5.e.2 Well-functioning EMIS, Baseline = Not applicable") -> P5.e.2 Well-functioning EMIS, Baseline = 3.0
L71: =IF('Data for country profile'!$H$50=999,"Not applicable","") -> 
C81: =IFERROR(CONCATENATE("P5.e.3 Policies on Inclusive Education, Baseline = ", TEXT('Data for country profile'!J51, "0.0")), "P5.e.3 Policies on Inclusive Education, Baseline = Not applicable") -> P5.e.3 Policies on Inclusive Education, Baseline = 2.3 | L81: =IFERROR(CONCATENATE("P5.e.4 Policy on gender-based violence, Baseline = ", TEXT('Data for country profile'!J52,"0.0")), "P5.e.4 Policy on gender-based violence, Baseline = Not applicable") -> P5.e.4 Policy on gender-based violence, Baseline = 1.5
C85: =IF('Data for country profile'!$H$51=999,"Not applicable","") ->  | L85: =IF('Data for country profile'!$H$52=999,"Not applicable","") -> 
C99: OUTPUT INDICATORS 2016 (Cont'd), Source: SMQs
C100: Output e: Human rights & gender equality (Cont'd)
C101: =IFERROR(CONCATENATE("P5.e.5 Girls' Secondary Education, Baseline (2014) = ",TEXT('Data for country profile'!J53,"0.0")),"P5.e.5 Girls' Secondary Education, Baseline = Not applicable") -> P5.e.5 Girls' Secondary Education, Baseline (2014) = 2.0 | L101: =IFERROR(CONCATENATE("P5.e.6 Multilingual Education, Baseline = ",TEXT('Data for country profile'!J54,"0.0")), "P5.e.6 Multilingual Education, Baseline = Not applicable") -> P5.e.6 Multilingual Education, Baseline = 2.5
C105: =IF('Data for country profile'!$H$53=999,"Not applicable","") ->  | L105: =IF('Data for country profile'!$H$54=999,"Not applicable","") -> Not applicable
B113: How to read SP Ouput indicators
C114: Qualitative indicators: Each qualitative indicator takes a value from 1 (Weak) to 4 (Championing). In the example to the right the country has a score of 3.3 (UNICEF blue circle), for P5.a.1 School Management Committees. An indicator’s overall score is based on 2 to 6 subscores, in the case of P5.a.1 School Management Committees there are 3 subscores: Community participation, Monitoring and Accountability. Like the overall score these also range in value from 1 to 4. The large green triangle represents the ideal situation i.e. a score of 4 in each subscore.
C124: In Figure 1 below the best case scenario is presented, the country has a score of 4 for each subscore and thus matches the green target triangle. In Figure 2 the worst case scenario is presented, the country has a score of 1 for each subscore with each blue (country) corner as far away as possible from the target green. In Figure 3 a less extreme example is presented, the country scores 3 for Community Participation and Monitoring and the maximum 4 for Accountability. This is represented visually by the blue Accountability corner matching the green ideal. In short, the closer to the green corners the higher the performance in each of the subscores. A regional comparison is provided by the dotted grey triangle.
D129: Legend for all diamond charts:

Sheet Data for country profile (hidden)
E2: Afghanistan | F2: =VLOOKUP(E2,Names!$A$2:$D$158,4,FALSE) -> SA | J2: Baseline / | L2: Current Year | M2: 2016
D3: Abbreviated name for charts | E3: =VLOOKUP(E2,Names!A2:C158,3,FALSE) -> Afghanistan | G3: =CONCATENATE(G8," /") -> SA / | H3: =CONCATENATE(H6," (Baseline") -> Afghanistan (Baseline
B4: QUANTITATIVE DATA | E4: LEARNING ASSESMMENT DATA --> | J4: Baseline | O4: LEARNING ASSESSMENT
F5: 1 | G5: 2 | H5: 3 | I5: -1 | J5: 3 | P5: Survey to display | V5: Last years conducted
F6: World | G6: =$F$2 -> SA | H6: =VLOOKUP(E2,Names!A2:B158,2,FALSE) -> Afghanistan | I6: Benchmark | J6: =$E$2 -> Afghanistan | K6: Zimbabwe | L6: UIS country name | P6: =IFERROR(VLOOKUP($E$2,#REF!,306,FALSE),"") ->  | V6: =MAX(Y9:Y51) -> 0 | W6: =IF(OFFSET(Z8,(MATCH(V6,Y9:Y49,0)),0)<>"",OFFSET(Z8,(MATCH(V6,Y9:Y49,0)),0),OFFSET(Z8,(MATCH(V6,Y9:Y49,0)+2),0)) -> 
D8: PRE PRIMARY EDUCATION | F8: World | G8: =$F$2 -> SA | H8: =VLOOKUP(E2,Names!A2:B158,2,FALSE) -> Afghanistan | I8: Benchmark | L8: Check | M8: Data Year | N8: Baseline Data Year | P8: TIMSS | Q8: Chart categories | R8: Increase in results | S8: Decrease in results | T8: 2011- | U8: 2007+ | W8: =W6 ->  | X8: =V6 -> 0 | AB8: Data columns | AG8: New Benchmark Labels
C9: P54b | D9: ECD NAR Poorest Quint | E9: NAR_PQ | F9: 20.05714286 | G9: =VLOOKUP(G$6,Master!$A$3:$BP$246,$K9,FALSE) -> 13.95 | H9: =IF(OR(VLOOKUP(E$2,Master!$A$3:$BP$246,$K9,FALSE)=0,VLOOKUP(E$2,Master!$A$3:$BP$246,$K9,FALSE)=""),NA(),VLOOKUP(E$2,Master!$A$3:$BP$246,$K9,FALSE)) -> 0.2 | I9: 25 | J9: =IF(OR(VLOOKUP(J$6,'BL Master'!$A$3:$BN$246,$K9,FALSE)=0,VLOOKUP(J$6,'BL Master'!$A$3:$BN$246,$K9,FALSE)=""),NA(),VLOOKUP(J$6,'BL Master'!$A$3:$BN$246,$K9,FALSE)) -> 0.2 | K9: 29 | L9: =VLOOKUP(L$6,Master!$A$3:$BP$246,$K9,FALSE) -> ECD NAR-PQ | M9: =CONCATENATE($E3," (",IF(ISERROR(H9),"no data",VLOOKUP(E$2,Master!$A$3:$BP$246,$K9+1,FALSE)),")") -> Afghanistan (2011) | N9: =IF(ISERROR(J9),"No country data",VLOOKUP(H$6,'BL Master'!$A$3:$BN$246,$K9+1,FALSE)) -> 2011 | O9: =MAXiR(F9:I9) -> 25 | P9: Mathematics G4 | Q9: =IF($P$6=$P$8,P9," ") ->  | R9: =IF(ISERROR(IF(X9>=W9,X9,"")),"",IF(X9>=W9,X9,"")) ->  | S9: =IF(ISERROR(IF(X9<W9,W9,"")),"",IF(X9<W9,W9,"")) ->  | T9: =IF(ISERROR(IF(X9<W9,X9,"")),"",IF(X9<W9,X9,"")) ->  | U9: =IF(ISERROR(IF(X9>=W9,W9,"")),"",IF(X9>=W9,W9,"")) ->  | V9: =Q9 ->  | W9: =IF(ISERROR(VLOOKUP($E$2,#REF!,AC9,FALSE)),"",VLOOKUP($E$2,#REF!,AC9,FALSE)) ->  | X9: =IF(ISERROR(VLOOKUP($E$2,#REF!,AB9,FALSE)),"",VLOOKUP($E$2,#REF!,AB9,FALSE)) ->  | Y9: =IF(ISERROR(VLOOKUP($E$2,#REF!,AD9,FALSE)),"",VLOOKUP($E$2,#REF!,AD9,FALSE)) ->  | Z9: =IF(ISERROR(VLOOKUP($E$2,#REF!,AE9,FALSE)),"",VLOOKUP($E$2,#REF!,AE9,FALSE)) ->  | AB9: 3 | AC9: =AB9+1 -> 4 | AD9: 5 | AE9: 6 | AF9: =E9 -> NAR_PQ | AG9: =$I$11 -> SP Benchmark
P10: Science G4 | Q10: =IF($P$6=$P$8,P10," ") ->  | R10: =IF(ISERROR(IF(X10>=W10,X10,"")),"",IF(X10>=W10,X10,"")) ->  | S10: =IF(ISERROR(IF(X10<W10,W10,"")),"",IF(X10<W10,W10,"")) ->  | T10: =IF(ISERROR(IF(X10<W10,X10,"")),"",IF(X10<W10,X10,"")) ->  | U10: =IF(ISERROR(IF(X10>=W10,W10,"")),"",IF(X10>=W10,W10,"")) ->  | W10: =IF(ISERROR(VLOOKUP($E$2,#REF!,AC10,FALSE)),"",VLOOKUP($E$2,#REF!,AC10,FALSE)) ->  | X10: =IF(ISERROR(VLOOKUP($E$2,#REF!,AB10,FALSE)),"",VLOOKUP($E$2,#REF!,AB10,FALSE)) ->  | Y10: =IF(ISERROR(VLOOKUP($E$2,#REF!,AD10,FALSE)),"",VLOOKUP($E$2,#REF!,AD10,FALSE)) ->  | Z10: =IF(ISERROR(VLOOKUP($E$2,#REF!,AE10,FALSE)),"",VLOOKUP($E$2,#REF!,AE10,FALSE)) ->  | AB10: =AB9+5 -> 8 | AC10: 9 | AD10: 10 | AE10: 11
D11: PRIMARY EDUCATION | F11: World | G11: =$F$2 -> SA | H11: =E2 -> Afghanistan | I11: SP Benchmark | J11: =H11 -> Afghanistan | L11: UIS country name | P11: Mathematics G8 | Q11: =IF($P$6=$P$8,P11," ") ->  | R11: =IF(ISERROR(IF(X11>=W11,X11,"")),"",IF(X11>=W11,X11,"")) ->  | S11: =IF(ISERROR(IF(X11<W11,W11,"")),"",IF(X11<W11,W11,"")) ->  | T11: =IF(ISERROR(IF(X11<W11,X11,"")),"",IF(X11<W11,X11,"")) ->  | U11: =IF(ISERROR(IF(X11>=W11,W11,"")),"",IF(X11>=W11,W11,"")) ->  | W11: =IF(ISERROR(VLOOKUP($E$2,#REF!,AC11,FALSE)),"",VLOOKUP($E$2,#REF!,AC11,FALSE)) ->  | X11: =IF(ISERROR(VLOOKUP($E$2,#REF!,AB11,FALSE)),"",VLOOKUP($E$2,#REF!,AB11,FALSE)) ->  | Y11: =IF(ISERROR(VLOOKUP($E$2,#REF!,AD11,FALSE)),"",VLOOKUP($E$2,#REF!,AD11,FALSE)) ->  | Z11: =IF(ISERROR(VLOOKUP($E$2,#REF!,AE11,FALSE)),"",VLOOKUP($E$2,#REF!,AE11,FALSE)) ->  | AB11: =AB10+5 -> 13 | AC11: 14 | AD11: 15 | AE11: 16
C12: P51 | E12: OOSCR (%) MF | F12: 8.86545 | G12: =VLOOKUP(G$6,Master!$A$3:$BP$246,$K12,FALSE) -> 7.639427143 | H12: =IF(VLOOKUP(H11,Master!$A$3:$BP$246,$K12,FALSE)="",NA(),VLOOKUP(H11,Master!$A$3:$BP$246,$K12,FALSE)) ->  | I12: 5 | J12: =IF(VLOOKUP(J$11,'BL Master'!$A$3:$BN$246,$K12,FALSE)="",NA(),VLOOKUP(J$11,'BL Master'!$A$3:$BN$246,$K12,FALSE)) ->  | K12: 21 | L12: =VLOOKUP(L$6,Master!$A$3:$BP$246,$K12,FALSE) -> P-OOSCR MF | M12: =CONCATENATE($E3," (",IF(ISERROR(H12),"no data",VLOOKUP(H$11,Master!$A$3:$BP$246,$K12+1,FALSE)),")") -> Afghanistan (no data) | N12: =IF(ISERROR(J12),"No country data",VLOOKUP(J$11,'BL Master'!$A$3:$BN$246,$K12+1,FALSE)) -> No country data | O12: =MAXiR(F12:I12) -> 8.86545 | P12: Science G8 | Q12: =IF($P$6=$P$8,P12," ") ->  | R12: =IF(ISERROR(IF(X12>=W12,X12,"")),"",IF(X12>=W12,X12,"")) ->  | S12: =IF(ISERROR(IF(X12<W12,W12,"")),"",IF(X12<W12,W12,"")) ->  | T12: =IF(ISERROR(IF(X12<W12,X12,"")),"",IF(X12<W12,X12,"")) ->  | U12: =IF(ISERROR(IF(X12>=W12,W12,"")),"",IF(X12>=W12,W12,"")) ->  | W12: =IF(ISERROR(VLOOKUP($E$2,#REF!,AC12,FALSE)),"",VLOOKUP($E$2,#REF!,AC12,FALSE)) ->  | X12: =IF(ISERROR(VLOOKUP($E$2,#REF!,AB12,FALSE)),"",VLOOKUP($E$2,#REF!,AB12,FALSE)) ->  | Y12: =IF(ISERROR(VLOOKUP($E$2,#REF!,AD12,FALSE)),"",VLOOKUP($E$2,#REF!,AD12,FALSE)) ->  | Z12: =IF(ISERROR(VLOOKUP($E$2,#REF!,AE12,FALSE)),"",VLOOKUP($E$2,#REF!,AE12,FALSE)) ->  | AB12: =AB11+5 -> 18 | AC12: 19 | AD12: 20 | AE12: 21 | AF12: =E12 -> OOSCR (%) MF | AG12: =$I$11 -> SP Benchmark | AH12: =CONCATENATE(AG12," / ",H6,": ") -> SP Benchmark / Afghanistan:
C13: P5a | D13: Number of OSC - M | E13: Boys | F13: 29052401 | G13: =VLOOKUP(G$6,Master!$A$3:$BP$246,$K13,FALSE) -> 5129880 | H13: =IF(VLOOKUP(H11,Master!$A$3:$BP$246,$K13,FALSE)="",0,VLOOKUP(H11,Master!$A$3:$BP$246,$K13,FALSE)) -> 0 | J13: =IF(VLOOKUP(J$11,'BL Master'!$A$3:$BN$246,$K13,FALSE)="",NA(),VLOOKUP(J$11,'BL Master'!$A$3:$BN$246,$K13,FALSE)) ->  | K13: 12 | L13: =VLOOKUP(L$6,Master!$A$3:$BP$246,$K13,FALSE) -> P-NB-OOSCR M | M13: =CONCATENATE($E3," (",IF(H13=0,"no data",VLOOKUP(H$11,Master!$A$3:$BP$246,$K13+1,FALSE)),")") -> Afghanistan (no data) | N13: =IF(ISERROR(J13),"No country data",VLOOKUP(J$11,'BL Master'!$A$3:$BN$246,$K13+1,FALSE)) -> No country data | O13: =MAXiR(F13:H13) -> 29052401 | V13: 0
D14: Number of OSC - F | E14: Girls | F14: 34291025 | G14: =VLOOKUP(G$6,Master!$A$3:$BP$246,$K14,FALSE) -> 4298081 | H14: =IF(VLOOKUP(H11,Master!$A$3:$BP$246,$K14,FALSE)="",0,VLOOKUP(H11,Master!$A$3:$BP$246,$K14,FALSE)) -> 0 | J14: =IF(VLOOKUP(J$11,'BL Master'!$A$3:$BN$246,$K14,FALSE)="",NA(),VLOOKUP(J$11,'BL Master'!$A$3:$BN$246,$K14,FALSE)) ->  | K14: 10 | L14: =VLOOKUP(L$6,Master!$A$3:$BP$246,$K14,FALSE) -> P-NB-OOSC F | M14: =CONCATENATE($E3," (",IF(H14=0,"no data",VLOOKUP(H$11,Master!$A$3:$BP$246,$K14+1,FALSE)),")") -> Afghanistan (no data) | N14: =IF(ISERROR(J14),"No country data",VLOOKUP(J$11,'BL Master'!$A$3:$BN$246,$K14+1,FALSE)) -> No country data | O14: 34291025 | P14: PISA | V14: 0
D15: Number of OSC - MF | E15: =CONCATENATE("All children: ",M15) -> All children: Afghanistan (no data) | F15: 63343426 | G15: =VLOOKUP(G$6,Master!$A$3:$BP$246,$K15,FALSE) -> 9444028 | H15: =IF(VLOOKUP(H11,Master!$A$3:$BP$246,$K15,FALSE)="",0,VLOOKUP(H11,Master!$A$3:$BP$246,$K15,FALSE)) -> 0 | J15: =IF(VLOOKUP(J$11,'BL Master'!$A$3:$BN$246,$K15,FALSE)="",NA(),VLOOKUP(J$11,'BL Master'!$A$3:$BN$246,$K15,FALSE)) ->  | K15: 8 | L15: =VLOOKUP(L$6,Master!$A$3:$BP$246,$K15,FALSE) -> P-NB-OOSC MF | M15: =CONCATENATE($E3," (",IF(H15=0,"no data",VLOOKUP(H$11,Master!$A$3:$BP$246,$K15+1,FALSE)),")") -> Afghanistan (no data) | N15: =IF(ISERROR(J15),"No country data",VLOOKUP(J$11,'BL Master'!$A$3:$BN$246,$K15+1,FALSE)) -> No country data | O15: 63343426 | P15: Reading | Q15: =IF($P$6=$P$14,P15," ") ->  | R15: =IF(ISERROR(IF(X15>=W15,X15,"")),"",IF(X15>=W15,X15,"")) ->  | S15: =IF(ISERROR(IF(X15<W15,W15,"")),"",IF(X15<W15,W15,"")) ->  | T15: =IF(ISERROR(IF(X15<W15,X15,"")),"",IF(X15<W15,X15,"")) ->  | U15: =IF(ISERROR(IF(X15>=W15,W15,"")),"",IF(X15>=W15,W15,"")) ->  | W15: =IF(ISERROR(VLOOKUP($E$2,#REF!,AC15,FALSE)),"",VLOOKUP($E$2,#REF!,AC15,FALSE)) ->  | X15: =IF(ISERROR(VLOOKUP($E$2,#REF!,AB15,FALSE)),"",VLOOKUP($E$2,#REF!,AB15,FALSE)) ->  | Y15: =IF(ISERROR(VLOOKUP($E$2,#REF!,AD15,FALSE)),"",VLOOKUP($E$2,#REF!,AD15,FALSE)) ->  | Z15: =IF(ISERROR(VLOOKUP($E$2,#REF!,AE15,FALSE)),"",VLOOKUP($E$2,#REF!,AE15,FALSE)) ->  | AB15: 23 | AC15: =AB15+1 -> 24 | AD15: 25 | AE15: 26
C16: P5b | D16: PCR - M | E16: GIR LG (%) M | F16: 89.91 | G16: =VLOOKUP(G$6,Master!$A$3:$BP$246,$K16,FALSE) -> 93.89704286 | H16: =IF(VLOOKUP(H11,Master!$A$3:$BP$246,$K16,FALSE)="",NA(),VLOOKUP(H11,Master!$A$3:$BP$246,$K16,FALSE)) ->  | J16: =IF(VLOOKUP(J$11,'BL Master'!$A$3:$BN$246,$K16,FALSE)="",NA(),VLOOKUP(J$11,'BL Master'!$A$3:$BN$246,$K16,FALSE)) ->  | K16: 18 | L16: =VLOOKUP(L$6,Master!$A$3:$BP$246,$K16,FALSE) -> P-GIR LG M | M16: =CONCATENATE($E3," (",IF(ISERROR(H16),"no data",VLOOKUP(H$11,Master!$A$3:$BP$246,$K16+1,FALSE)),")") -> Afghanistan (no data) | N16: =IF(ISERROR(J16),"No country data",VLOOKUP(J$11,'BL Master'!$A$3:$BN$246,$K16+1,FALSE)) -> No country data | O16: =MAXiR(F16:I16) -> 93.89704286 | P16: Mathematics | Q16: =IF($P$6=$P$14,P16," ") ->  | R16: =IF(ISERROR(IF(X16>=W16,X16,"")),"",IF(X16>=W16,X16,"")) ->  | S16: =IF(ISERROR(IF(X16<W16,W16,"")),"",IF(X16<W16,W16,"")) ->  | T16: =IF(ISERROR(IF(X16<W16,X16,"")),"",IF(X16<W16,X16,"")) ->  | U16: =IF(ISERROR(IF(X16>=W16,W16,"")),"",IF(X16>=W16,W16,"")) ->  | W16: =IF(ISERROR(VLOOKUP($E$2,#REF!,AC16,FALSE)),"",VLOOKUP($E$2,#REF!,AC16,FALSE)) ->  | X16: =IF(ISERROR(VLOOKUP($E$2,#REF!,AB16,FALSE)),"",VLOOKUP($E$2,#REF!,AB16,FALSE)) ->  | Y16: =IF(ISERROR(VLOOKUP($E$2,#REF!,AD16,FALSE)),"",VLOOKUP($E$2,#REF!,AD16,FALSE)) ->  | Z16: =IF(ISERROR(VLOOKUP($E$2,#REF!,AE16,FALSE)),"",VLOOKUP($E$2,#REF!,AE16,FALSE)) ->  | AB16: =AB15+5 -> 28 | AC16: 29 | AD16: 30 | AE16: 31
D17: PCR - F | E17: GIR LG (%) F | F17: 89.32 | G17: =VLOOKUP(G$6,Master!$A$3:$BP$246,$K17,FALSE) -> 98.94319 | H17: =IF(VLOOKUP(H11,Master!$A$3:$BP$246,$K17,FALSE)="",NA(),VLOOKUP(H11,Master!$A$3:$BP$246,$K17,FALSE)) ->  | J17: =IF(VLOOKUP(J$11,'BL Master'!$A$3:$BN$246,$K17,FALSE)="",NA(),VLOOKUP(J$11,'BL Master'!$A$3:$BN$246,$K17,FALSE)) ->  | K17: 16 | L17: =VLOOKUP(L$6,Master!$A$3:$BP$246,$K17,FALSE) -> P-GIR LG F | M17: =CONCATENATE($E3," (",IF(ISERROR(H17),"no data",VLOOKUP(H$11,Master!$A$3:$BP$246,$K17+1,FALSE)),")") -> Afghanistan (no data) | N17: =IF(ISERROR(J17),"No country data",VLOOKUP(J$11,'BL Master'!$A$3:$BN$246,$K17+1,FALSE)) -> No country data | O17: =MAXiR(F17:I17) -> 98.94319 | P17: Science | Q17: =IF($P$6=$P$14,P17," ") ->  | R17: =IF(ISERROR(IF(X17>=W17,X17,"")),"",IF(X17>=W17,X17,"")) ->  | S17: =IF(ISERROR(IF(X17<W17,W17,"")),"",IF(X17<W17,W17,"")) ->  | T17: =IF(ISERROR(IF(X17<W17,X17,"")),"",IF(X17<W17,X17,"")) ->  | U17: =IF(ISERROR(IF(X17>=W17,W17,"")),"",IF(X17>=W17,W17,"")) ->  | W17: =IF(ISERROR(VLOOKUP($E$2,#REF!,AC17,FALSE)),"",VLOOKUP($E$2,#REF!,AC17,FALSE)) ->  | X17: =IF(ISERROR(VLOOKUP($E$2,#REF!,AB17,FALSE)),"",VLOOKUP($E$2,#REF!,AB17,FALSE)) ->  | Y17: =IF(ISERROR(VLOOKUP($E$2,#REF!,AD17,FALSE)),"",VLOOKUP($E$2,#REF!,AD17,FALSE)) ->  | Z17: =IF(ISERROR(VLOOKUP($E$2,#REF!,AE17,FALSE)),"",VLOOKUP($E$2,#REF!,AE17,FALSE)) ->  | AB17: =AB16+5 -> 33 | AC17: 34 | AD17: 35 | AE17: 36
D18: PCR - MF | E18: GIR LG (%) MF | F18: 89.62 | G18: =VLOOKUP(G$6,Master!$A$3:$BP$246,$K18,FALSE) -> 95.43549 | H18: =IF(VLOOKUP(H11,Master!$A$3:$BP$246,$K18,FALSE)="",NA(),VLOOKUP(H11,Master!$A$3:$BP$246,$K18,FALSE)) ->  | I18: 98 | J18: =IF(VLOOKUP(J$11,'BL Master'!$A$3:$BN$246,$K18,FALSE)="",NA(),VLOOKUP(J$11,'BL Master'!$A$3:$BN$246,$K18,FALSE)) ->  | K18: 14 | L18: =VLOOKUP(L$6,Master!$A$3:$BP$246,$K18,FALSE) -> P-GIR LG MF | M18: =CONCATENATE($E3," (",IF(ISERROR(H18),"no data",VLOOKUP(H$11,Master!$A$3:$BP$246,$K18+1,FALSE)),")") -> Afghanistan (no data) | N18: =IF(ISERROR(J18),"No country data",VLOOKUP(J$11,'BL Master'!$A$3:$BN$246,$K18+1,FALSE)) -> No country data | O18: =MAXiR(F18:I18) -> 98 | V18: 0 | AF18: =E18 -> GIR LG (%) MF | AG18: SP Global Target
C19: P5abis | E19: NB-OOSC GPI | F19: 1.180316388 | G19: =G14/G13 -> 0.8378521525 | H19: =IFERROR(H14/H13,NA()) ->  | J19: =IFERROR(J14/J13,NA()) ->  | M19: =M13 -> Afghanistan (no data) | O19: 1.180316388 | P19: PIRLS | V19: 0
C20: P5bbis | E20: GPI-GIRLG | F20: 0.9934378823 | G20: =G17/G16 -> 1.053741279 | H20: =IFERROR(H17/H16,NA()) ->  | J20: =IFERROR(J17/J16,NA()) ->  | M20: =M16 -> Afghanistan (no data) | N20: =N16 -> No country data | O20: 1.053741279 | P20: Score | Q20: =IF($P$6=$P$19,P20," ") ->  | R20: =IF(ISERROR(IF(X20>=W20,X20,"")),"",IF(X20>=W20,X20,"")) ->  | S20: =IF(ISERROR(IF(X20<W20,W20,"")),"",IF(X20<W20,W20,"")) ->  | T20: =IF(ISERROR(IF(X20<W20,X20,"")),"",IF(X20<W20,X20,"")) ->  | U20: =IF(ISERROR(IF(X20>=W20,W20,"")),"",IF(X20>=W20,W20,"")) ->  | W20: =IF(ISERROR(VLOOKUP($E$2,#REF!,AC20,FALSE)),"",VLOOKUP($E$2,#REF!,AC20,FALSE)) ->  | X20: =IF(ISERROR(VLOOKUP($E$2,#REF!,AB20,FALSE)),"",VLOOKUP($E$2,#REF!,AB20,FALSE)) ->  | Y20: =IF(ISERROR(VLOOKUP($E$2,#REF!,AD20,FALSE)),"",VLOOKUP($E$2,#REF!,AD20,FALSE)) ->  | Z20: =IF(ISERROR(VLOOKUP($E$2,#REF!,AE20,FALSE)),"",VLOOKUP($E$2,#REF!,AE20,FALSE)) ->  | AB20: 38 | AC20: =AB20+1 -> 39 | AD20: =AC20+1 -> 40 | AE20: =AD20+1 -> 41
C21: P54a | D21: Primary NAR Poorest Quint | E21: NAR_PQ | F21: 79.39915531 | G21: =VLOOKUP(G$6,Master!$A$3:$BP$246,$K21,FALSE) -> 66.62299165 | H21: =IF(VLOOKUP(H11,Master!$A$3:$BP$246,$K21,FALSE)="",NA(),VLOOKUP(H11,Master!$A$3:$BP$246,$K21,FALSE)) -> 59.4 | I21: 80 | J21: =IF(VLOOKUP(J$11,'BL Master'!$A$3:$BN$246,$K21,FALSE)="",NA(),VLOOKUP(J$11,'BL Master'!$A$3:$BN$246,$K21,FALSE)) -> 40 | K21: 27 | L21: =VLOOKUP(L$6,Master!$A$3:$BP$246,$K21,FALSE) -> NAR-PQ | M21: =CONCATENATE($E3," (",IF(ISERROR(H21),"no data",VLOOKUP(H$11,Master!$A$3:$BP$246,$K21+1,FALSE)),")") -> Afghanistan (2015) | N21: =IF(ISERROR(J21),"No country data",VLOOKUP(J$11,'BL Master'!$A$3:$BN$246,$K21+1,FALSE)) -> 2011 | O21: =MAXiR(F21:I21) -> 80 | V21: 0 | AF21: =E21 -> NAR_PQ | AG21: =$I$11 -> SP Benchmark
C22: P55 | E22: % 36-59mths involved in learning activities | F22: 65.65209877 | G22: =VLOOKUP(G$6,Master!$A$3:$BP$246,$K22,FALSE) -> 68.125 | H22: =IF(VLOOKUP(H11,Master!$A$3:$BP$246,$K22,FALSE)="",NA(),VLOOKUP(H11,Master!$A$3:$BP$246,$K22,FALSE)) -> 73.1 | I22: 80 | J22: =IF(VLOOKUP(J$11,'BL Master'!$A$3:$BN$246,$K22,FALSE)="",NA(),VLOOKUP(J$11,'BL Master'!$A$3:$BN$246,$K22,FALSE)) -> 73.1 | K22: 31 | L22: =VLOOKUP(L$6,Master!$A$3:$BP$246,$K22,FALSE) -> Adult Support | M22: =CONCATENATE($E3," (",IF(ISERROR(H22),"no data",VLOOKUP(H$11,Master!$A$3:$BP$246,$K22+1,FALSE)),")") -> Afghanistan (2011) | N22: =IF(ISERROR(J22),"No country data",VLOOKUP(J$11,'BL Master'!$A$3:$BN$246,$K22+1,FALSE)) -> 2011 | O22: =MAXiR(F22:I22) -> 80 | P22: SACMEQ | V22: 0 | AF22: =E22 -> % 36-59mths involved in learning activities | AG22: SP Benchmark
C23: P5d1 | E23: UNICEF only % of children in humanitarian situations accessing formal or non-formal basic education | F23: 73.22689522 | G23: =G79/G78*100 -> 78.5472274 | H23: =IFERROR(H79/H78*100,NA()) -> 37 | I23: 80 | J23: =IFERROR(J79/J78,NA()) -> 0.4721 | M23: =CONCATENATE($E3," (",IF(ISERROR(H23),"no data",M2),")") -> Afghanistan (2016) | O23: =MAXiR(F23:I23) -> 80 | P23: Reading | Q23: =IF($P$6=$P$22,P23," ") ->  | R23: =IF(ISERROR(IF(X23>=W23,X23,"")),"",IF(X23>=W23,X23,"")) ->  | S23: =IF(ISERROR(IF(X23<W23,W23,"")),"",IF(X23<W23,W23,"")) ->  | T23: =IF(ISERROR(IF(X23<W23,X23,"")),"",IF(X23<W23,X23,"")) ->  | U23: =IF(ISERROR(IF(X23>=W23,W23,"")),"",IF(X23>=W23,W23,"")) ->  | W23: =IF(ISERROR(VLOOKUP($E$2,#REF!,AC23,FALSE)),"",VLOOKUP($E$2,#REF!,AC23,FALSE)) ->  | X23: =IF(ISERROR(VLOOKUP($E$2,#REF!,AB23,FALSE)),"",VLOOKUP($E$2,#REF!,AB23,FALSE)) ->  | Y23: =IF(ISERROR(VLOOKUP($E$2,#REF!,AD23,FALSE)),"",VLOOKUP($E$2,#REF!,AD23,FALSE)) ->  | Z23: =IF(ISERROR(VLOOKUP($E$2,#REF!,AE23,FALSE)),"",VLOOKUP($E$2,#REF!,AE23,FALSE)) ->  | AB23: 43 | AC23: =AB23+1 -> 44 | AD23: 45 | AE23: 46 | AF23: =E23 -> UNICEF only % of children in humanitarian situations accessing formal or non-formal basic education | AG23: SP Global Target
C24: P56 | E24: All % of children in humanitarian situations | F24: 64.11866027 | G24: =G81/G80*100 -> 48.74180973 | H24: =IFERROR(H81/H80*100,NA()) -> 29.33333333 | I24: 80 | J24: =IFERROR(J81/J80*100,NA()) ->  | M24: =CONCATENATE($E3," (",IF(ISERROR(H24),"no data",M2),")") -> Afghanistan (2016) | O24: =MAXiR(F24:I24) -> 80 | P24: Mathematics | Q24: =IF($P$6=$P$22,P24," ") ->  | R24: =IF(ISERROR(IF(X24>=W24,X24,"")),"",IF(X24>=W24,X24,"")) ->  | S24: =IF(ISERROR(IF(X24<W24,W24,"")),"",IF(X24<W24,W24,"")) ->  | T24: =IF(ISERROR(IF(X24<W24,X24,"")),"",IF(X24<W24,X24,"")) ->  | U24: =IF(ISERROR(IF(X24>=W24,W24,"")),"",IF(X24>=W24,W24,"")) ->  | W24: =IF(ISERROR(VLOOKUP($E$2,#REF!,AC24,FALSE)),"",VLOOKUP($E$2,#REF!,AC24,FALSE)) ->  | X24: =IF(ISERROR(VLOOKUP($E$2,#REF!,AB24,FALSE)),"",VLOOKUP($E$2,#REF!,AB24,FALSE)) ->  | Y24: =IF(ISERROR(VLOOKUP($E$2,#REF!,AD24,FALSE)),"",VLOOKUP($E$2,#REF!,AD24,FALSE)) ->  | Z24: =IF(ISERROR(VLOOKUP($E$2,#REF!,AE24,FALSE)),"",VLOOKUP($E$2,#REF!,AE24,FALSE)) ->  | AB24: =AB23+5 -> 48 | AC24: 49 | AD24: 50 | AE24: 51 | AF24: =E24 -> All % of children in humanitarian situations | AG24: SP Benchmark
V25: 0
D26: LOWER SECONDARY EDUCATION | F26: World | G26: =$F$2 -> SA | H26: =$E$2 -> Afghanistan | I26: Benchmark | J26: =$E$2 -> Afghanistan | P26: PASEC | V26: 0 | AF26: =E26 -> 0 | AG26: SP Benchmark
C27: P51 | E27: OOSCR (%) MF | F27: 13.28386927 | G27: =VLOOKUP(G$6,Master!$A$3:$BP$246,$K27,FALSE) -> 19.807715 | H27: =IF(VLOOKUP(H11,Master!$A$3:$BP$246,$K27,FALSE)="",NA(),VLOOKUP(H11,Master!$A$3:$BP$246,$K27,FALSE)) -> 34.03153 | I27: 5 | J27: =IF(VLOOKUP(J$11,'BL Master'!$A$3:$BN$246,$K27,FALSE)="",NA(),VLOOKUP(J$11,'BL Master'!$A$3:$BN$246,$K27,FALSE)) ->  | K27: 23 | L27: =VLOOKUP(L$6,Master!$A$3:$BP$246,$K27,FALSE) -> LS-OOSCR MF | M27: =CONCATENATE($E3," (",IF(ISERROR(H27),"no data",VLOOKUP(H$11,Master!$A$3:$BP$246,$K27+1,FALSE)),")") -> Afghanistan (2015) | N27: =IF(ISERROR(J27),"no data",VLOOKUP(J$11,'BL Master'!$A$3:$BN$246,$K27+1,FALSE)) -> no data | O27: =MAXiR(F27:I27) -> 34.03153 | P27: French G2 | Q27: =IF($P$6=$P$26,P27," ") ->  | R27: =IF(ISERROR(IF(X27>=W27,X27,"")),"",IF(X27>=W27,X27,"")) ->  | S27: =IF(ISERROR(IF(X27<W27,W27,"")),"",IF(X27<W27,W27,"")) ->  | T27: =IF(ISERROR(IF(X27<W27,X27,"")),"",IF(X27<W27,X27,"")) ->  | U27: =IF(ISERROR(IF(X27>=W27,W27,"")),"",IF(X27>=W27,W27,"")) ->  | W27: =IF(ISERROR(VLOOKUP($E$2,#REF!,AC27,FALSE)),"",VLOOKUP($E$2,#REF!,AC27,FALSE)) ->  | X27: =IF(ISERROR(VLOOKUP($E$2,#REF!,AB27,FALSE)),"",VLOOKUP($E$2,#REF!,AB27,FALSE)) ->  | Y27: =IF(ISERROR(VLOOKUP($E$2,#REF!,AD27,FALSE)),"",VLOOKUP($E$2,#REF!,AD27,FALSE)) ->  | Z27: =IF(ISERROR(VLOOKUP($E$2,#REF!,AE27,FALSE)),"",VLOOKUP($E$2,#REF!,AE27,FALSE)) ->  | AB27: 53 | AC27: =AB27+1 -> 54 | AD27: 55 | AE27: 56 | AF27: =E27 -> OOSCR (%) MF | AG27: SP Benchmark
C28: P5e1 | E28: GPI | F28: 0.97 | G28: =VLOOKUP(G$6,Master!$A$3:$BP$246,$K28,FALSE) -> 0.9857949938 | H28: =IF(VLOOKUP(H11,Master!$A$3:$BP$246,$K28,FALSE)="",NA(),VLOOKUP(H11,Master!$A$3:$BP$246,$K28,FALSE)) -> 0.5879366618 | I28: 80 | J28: =IF(VLOOKUP(J$11,'BL Master'!$A$3:$BN$246,$K28,FALSE)="",NA(),VLOOKUP(J$11,'BL Master'!$A$3:$BN$246,$K28,FALSE)) -> 0.5692 | K28: 33 | L28: =VLOOKUP(L$6,Master!$A$3:$BP$246,$K28,FALSE) -> LS-GPI GER | M28: =CONCATENATE($E3," (",IF(ISERROR(H28),"no data",VLOOKUP(H$11,Master!$A$3:$BP$246,$K28+1,FALSE)),")") -> Afghanistan (2015) | N28: =IF(ISERROR(J28),"no data",VLOOKUP(J$11,'BL Master'!$A$3:$BN$246,$K28+1,FALSE)) -> 2012 | O28: =MAXiR(F28:I28) -> 80 | P28: Mathematics G2 | Q28: =IF($P$6=$P$26,P28," ") ->  | R28: =IF(ISERROR(IF(X28>=W28,X28,"")),"",IF(X28>=W28,X28,"")) ->  | S28: =IF(ISERROR(IF(X28<W28,W28,"")),"",IF(X28<W28,W28,"")) ->  | T28: =IF(ISERROR(IF(X28<W28,X28,"")),"",IF(X28<W28,X28,"")) ->  | U28: =IF(ISERROR(IF(X28>=W28,W28,"")),"",IF(X28>=W28,W28,"")) ->  | W28: =IF(ISERROR(VLOOKUP($E$2,#REF!,AC28,FALSE)),"",VLOOKUP($E$2,#REF!,AC28,FALSE)) ->  | X28: =IF(ISERROR(VLOOKUP($E$2,#REF!,AB28,FALSE)),"",VLOOKUP($E$2,#REF!,AB28,FALSE)) ->  | Y28: =IF(ISERROR(VLOOKUP($E$2,#REF!,AD28,FALSE)),"",VLOOKUP($E$2,#REF!,AD28,FALSE)) ->  | Z28: =IF(ISERROR(VLOOKUP($E$2,#REF!,AE28,FALSE)),"",VLOOKUP($E$2,#REF!,AE28,FALSE)) ->  | AB28: =AB27+5 -> 58 | AC28: 59 | AD28: 60 | AE28: 61 | AF28: =E28 -> GPI | AG28: SP Benchmark
P29: French G5 | Q29: =IF($P$6=$P$26,P29," ") ->  | R29: =IF(ISERROR(IF(X29>=W29,X29,"")),"",IF(X29>=W29,X29,"")) ->  | S29: =IF(ISERROR(IF(X29<W29,W29,"")),"",IF(X29<W29,W29,"")) ->  | T29: =IF(ISERROR(IF(X29<W29,X29,"")),"",IF(X29<W29,X29,"")) ->  | U29: =IF(ISERROR(IF(X29>=W29,W29,"")),"",IF(X29>=W29,W29,"")) ->  | W29: =IF(ISERROR(VLOOKUP($E$2,#REF!,AC29,FALSE)),"",VLOOKUP($E$2,#REF!,AC29,FALSE)) ->  | X29: =IF(ISERROR(VLOOKUP($E$2,#REF!,AB29,FALSE)),"",VLOOKUP($E$2,#REF!,AB29,FALSE)) ->  | Y29: =IF(ISERROR(VLOOKUP($E$2,#REF!,AD29,FALSE)),"",VLOOKUP($E$2,#REF!,AD29,FALSE)) ->  | Z29: =IF(ISERROR(VLOOKUP($E$2,#REF!,AE29,FALSE)),"",VLOOKUP($E$2,#REF!,AE29,FALSE)) ->  | AB29: =AB28+5 -> 63 | AC29: 64 | AD29: 65 | AE29: 66
D30: BUDGET FOR EDUCATION | F30: World | G30: =$F$2 -> SA | H30: =$E$2 -> Afghanistan | I30: =I26 -> Benchmark | J30: =$E$2 -> Afghanistan | P30: Mathematics G5 | Q30: =IF($P$6=$P$26,P30," ") ->  | R30: =IF(ISERROR(IF(X30>=W30,X30,"")),"",IF(X30>=W30,X30,"")) ->  | S30: =IF(ISERROR(IF(X30<W30,W30,"")),"",IF(X30<W30,W30,"")) ->  | T30: =IF(ISERROR(IF(X30<W30,X30,"")),"",IF(X30<W30,X30,"")) ->  | U30: =IF(ISERROR(IF(X30>=W30,W30,"")),"",IF(X30>=W30,W30,"")) ->  | W30: =IF(ISERROR(VLOOKUP($E$2,#REF!,AC30,FALSE)),"",VLOOKUP($E$2,#REF!,AC30,FALSE)) ->  | X30: =IF(ISERROR(VLOOKUP($E$2,#REF!,AB30,FALSE)),"",VLOOKUP($E$2,#REF!,AB30,FALSE)) ->  | Y30: =IF(ISERROR(VLOOKUP($E$2,#REF!,AD30,FALSE)),"",VLOOKUP($E$2,#REF!,AD30,FALSE)) ->  | Z30: =IF(ISERROR(VLOOKUP($E$2,#REF!,AE30,FALSE)),"",VLOOKUP($E$2,#REF!,AE30,FALSE)) ->  | AB30: =AB29+5 -> 68 | AC30: 69 | AD30: 70 | AE30: 71 | AF30: =E30 -> 0 | AG30: SP Benchmark
C31: P53 | D31: Public expenditure on education as % of total government expenditure | E31: Public expenditure on education as % of total government expenditure | F31: 14.75230925 | G31: =VLOOKUP(G$6,Master!$A$3:$BP$246,$K31,FALSE) -> 15.0086275 | H31: =IF(VLOOKUP(H11,Master!$A$3:$BP$246,$K31,FALSE)="",NA(),VLOOKUP(H11,Master!$A$3:$BP$246,$K31,FALSE)) -> 12.509 | I31: 20 | J31: =IF(VLOOKUP(J$11,'BL Master'!$A$3:$BN$246,$K31,FALSE)="",NA(),VLOOKUP(J$11,'BL Master'!$A$3:$BN$246,$K31,FALSE)) ->  | K31: 25 | L31: =VLOOKUP(L$6,Master!$A$3:$BP$246,$K31,FALSE) -> % EDU IN BUDGET | M31: =CONCATENATE($E3," (",IF(ISERROR(H31),"no data",VLOOKUP(H$11,Master!$A$3:$BP$246,$K31+1,FALSE)),")") -> Afghanistan (2015) | N31: =IF(ISERROR(J31),"no data",VLOOKUP(J$11,'BL Master'!$A$3:$BN$246,$K31+1,FALSE)) -> no data | O31: =MAXiR(F31:I31) -> 20 | V31: 0 | AF31: =E31 -> Public expenditure on education as % of total government expenditure | AG31: SP Benchmark
P32: LLECE | V32: 0
D33: LEARNING ASSESSMENTS: See to right | P33: Reading G3 | Q33: =IF($P$6=$P$32,P33," ") ->  | R33: =IF(ISERROR(IF(X33>=W33,X33,"")),"",IF(X33>=W33,X33,"")) ->  | S33: =IF(ISERROR(IF(X33<W33,W33,"")),"",IF(X33<W33,W33,"")) ->  | T33: =IF(ISERROR(IF(X33<W33,X33,"")),"",IF(X33<W33,X33,"")) ->  | U33: =IF(ISERROR(IF(X33>=W33,W33,"")),"",IF(X33>=W33,W33,"")) ->  | W33: =IF(ISERROR(VLOOKUP($E$2,#REF!,AC33,FALSE)),"",VLOOKUP($E$2,#REF!,AC33,FALSE)) ->  | X33: =IF(ISERROR(VLOOKUP($E$2,#REF!,AB33,FALSE)),"",VLOOKUP($E$2,#REF!,AB33,FALSE)) ->  | Y33: =IF(ISERROR(VLOOKUP($E$2,#REF!,AD33,FALSE)),"",VLOOKUP($E$2,#REF!,AD33,FALSE)) ->  | Z33: =IF(ISERROR(VLOOKUP($E$2,#REF!,AE33,FALSE)),"",VLOOKUP($E$2,#REF!,AE33,FALSE)) ->  | AB33: 73 | AC33: =AB33+1 -> 74 | AD33: 75 | AE33: 76
P34: Mathematics G3 | W34: =IF(ISERROR(VLOOKUP($E$2,#REF!,AC34,FALSE)),"",VLOOKUP($E$2,#REF!,AC34,FALSE)) ->  | X34: =IF(ISERROR(VLOOKUP($E$2,#REF!,AB34,FALSE)),"",VLOOKUP($E$2,#REF!,AB34,FALSE)) ->  | Y34: =IF(ISERROR(VLOOKUP($E$2,#REF!,AD34,FALSE)),"",VLOOKUP($E$2,#REF!,AD34,FALSE)) ->  | Z34: =IF(ISERROR(VLOOKUP($E$2,#REF!,AE34,FALSE)),"",VLOOKUP($E$2,#REF!,AE34,FALSE)) ->  | AB34: =AB33+5 -> 78 | AC34: 79 | AD34: 80 | AE34: 81
J35: =VLOOKUP(H38,'BL Quali 2'!A67:CJ81,K39,FALSE) ->  | P35: Reading G4 | W35: =IF(ISERROR(VLOOKUP($E$2,#REF!,AC35,FALSE)),"",VLOOKUP($E$2,#REF!,AC35,FALSE)) ->  | X35: =IF(ISERROR(VLOOKUP($E$2,#REF!,AB35,FALSE)),"",VLOOKUP($E$2,#REF!,AB35,FALSE)) ->  | Y35: =IF(ISERROR(VLOOKUP($E$2,#REF!,AD35,FALSE)),"",VLOOKUP($E$2,#REF!,AD35,FALSE)) ->  | Z35: =IF(ISERROR(VLOOKUP($E$2,#REF!,AE35,FALSE)),"",VLOOKUP($E$2,#REF!,AE35,FALSE)) ->  | AB35: 83 | AC35: 84 | AD35: 85 | AE35: 86
B36: QUALITATIVE DATA | P36: Mathematics G4 | W36: =IF(ISERROR(VLOOKUP($E$2,#REF!,AC36,FALSE)),"",VLOOKUP($E$2,#REF!,AC36,FALSE)) ->  | X36: =IF(ISERROR(VLOOKUP($E$2,#REF!,AB36,FALSE)),"",VLOOKUP($E$2,#REF!,AB36,FALSE)) ->  | Y36: =IF(ISERROR(VLOOKUP($E$2,#REF!,AD36,FALSE)),"",VLOOKUP($E$2,#REF!,AD36,FALSE)) ->  | Z36: =IF(ISERROR(VLOOKUP($E$2,#REF!,AE36,FALSE)),"",VLOOKUP($E$2,#REF!,AE36,FALSE)) ->  | AB36: 88 | AC36: 89 | AD36: 90 | AE36: 91
P37: Reading G6 | W37: =IF(ISERROR(VLOOKUP($E$2,#REF!,AC37,FALSE)),"",VLOOKUP($E$2,#REF!,AC37,FALSE)) ->  | X37: =IF(ISERROR(VLOOKUP($E$2,#REF!,AB37,FALSE)),"",VLOOKUP($E$2,#REF!,AB37,FALSE)) ->  | Y37: =IF(ISERROR(VLOOKUP($E$2,#REF!,AD37,FALSE)),"",VLOOKUP($E$2,#REF!,AD37,FALSE)) ->  | Z37: =IF(ISERROR(VLOOKUP($E$2,#REF!,AE37,FALSE)),"",VLOOKUP($E$2,#REF!,AE37,FALSE)) ->  | AB37: =AB36+5 -> 93 | AC37: 94 | AD37: 95 | AE37: 96
D38: Country | F38: World | G38: =$F$2 -> SA | H38: =H8 -> Afghanistan | I38: Max Score | J38: =H8 -> Afghanistan | K38: BL | M38: Current | P38: Mathematics G6 | W38: =IF(ISERROR(VLOOKUP($E$2,#REF!,AC38,FALSE)),"",VLOOKUP($E$2,#REF!,AC38,FALSE)) ->  | X38: =IF(ISERROR(VLOOKUP($E$2,#REF!,AB38,FALSE)),"",VLOOKUP($E$2,#REF!,AB38,FALSE)) ->  | Y38: =IF(ISERROR(VLOOKUP($E$2,#REF!,AD38,FALSE)),"",VLOOKUP($E$2,#REF!,AD38,FALSE)) ->  | Z38: =IF(ISERROR(VLOOKUP($E$2,#REF!,AE38,FALSE)),"",VLOOKUP($E$2,#REF!,AE38,FALSE)) ->  | AB38: 98 | AC38: 99 | AD38: 100 | AE38: 101 | AF38: =E38 -> 0 | AG38: =$I$11 -> SP Benchmark
D39: School Management Committees | E39: =D39 -> School Management Committees | F39: 2.467881944 | G39: =VLOOKUP(G$38,'Quali 2'!$A$1:$BN$172,$M39,FALSE) -> 2.583333333 | H39: =ROUND(VLOOKUP(H$38,'Quali 2'!$A$1:$BN$172,$M39,FALSE),1) -> 2.3 | I39: 4 | J39: =IF(VLOOKUP($H$38,'BL Quali 2'!$A$1:$CK$158,K39,FALSE)=999, NA(), VLOOKUP($H$38,'BL Quali 2'!$A$1:$CK$158,K39,FALSE)) -> 2.666666667 | K39: 79 | L39: =VLOOKUP("Country",'Quali 2'!$A$1:$BN$172,$M39,FALSE) -> P5.a.1 (SMC) | M39: 50 | P39: Science G6 | W39: =IF(ISERROR(VLOOKUP($E$2,#REF!,AC39,FALSE)),"",VLOOKUP($E$2,#REF!,AC39,FALSE)) ->  | X39: =IF(ISERROR(VLOOKUP($E$2,#REF!,AB39,FALSE)),"",VLOOKUP($E$2,#REF!,AB39,FALSE)) ->  | Y39: =IF(ISERROR(VLOOKUP($E$2,#REF!,AD39,FALSE)),"",VLOOKUP($E$2,#REF!,AD39,FALSE)) ->  | Z39: =IF(ISERROR(VLOOKUP($E$2,#REF!,AE39,FALSE)),"",VLOOKUP($E$2,#REF!,AE39,FALSE)) ->  | AB39: 103 | AC39: 104 | AD39: 105 | AE39: 106 | AF39: =E39 -> School Management Committees | AG39: =$I$11 -> SP Benchmark
D40: EMIS Feedback to CMCs | E40: EMIS Feedback to SMCs | F40: 2.225274725 | G40: =VLOOKUP(G$38,'Quali 2'!$A$1:$BN$172,$M40,FALSE) -> 2.571428571 | H40: =ROUND(VLOOKUP(H$38,'Quali 2'!$A$1:$BN$172,$M40,FALSE),1) -> 2 | J40: =IF(VLOOKUP($H$38,'BL Quali 2'!$A$1:$CK$158,K40,FALSE)=999, NA(), VLOOKUP($H$38,'BL Quali 2'!$A$1:$CK$158,K40,FALSE)) -> 1.75 | K40: 80 | L40: =VLOOKUP("Country",'Quali 2'!$A$1:$BN$172,$M40,FALSE) -> P5.a.2 (EMIS) | M40: 51
D41: P5.b.1 Countries with innovative approaches at scale to improve access to education and learning outcomes for the most disadvantaged and excluded children | E41: Innovative approaches | F41: 2.414285714 | G41: =VLOOKUP(G$38,'Quali 2'!$A$1:$BN$172,$M41,FALSE) -> 2.708333333 | H41: =ROUND(VLOOKUP(H$38,'Quali 2'!$A$1:$BN$172,$M41,FALSE),1) -> 2.3 | J41: =IF(VLOOKUP($H$38,'BL Quali 2'!$A$1:$CK$158,K41,FALSE)=999, NA(), VLOOKUP($H$38,'BL Quali 2'!$A$1:$CK$158,K41,FALSE)) -> 2.666666667 | K41: 81 | L41: =VLOOKUP("Country",'Quali 2'!$A$1:$BN$172,$M41,FALSE) -> P5.b.1 (Innovation) | M41: 52 | P41: ASER
D42: P5.b.2 Countries with quality standards consistent with child-friendly schools/education or similar models developed or revised | E42: Quality standards: child-friendly ed. | F42: 2.695833333 | G42: =VLOOKUP(G$38,'Quali 2'!$A$1:$BN$172,$M42,FALSE) -> 2.65625 | H42: =ROUND(VLOOKUP(H$38,'Quali 2'!$A$1:$BN$172,$M42,FALSE),1) -> 2 | J42: =IF(VLOOKUP($H$38,'BL Quali 2'!$A$1:$CK$158,K42,FALSE)=999, NA(), VLOOKUP($H$38,'BL Quali 2'!$A$1:$CK$158,K42,FALSE)) -> 1 | K42: 82 | L42: =VLOOKUP("Country",'Quali 2'!$A$1:$BN$172,$M42,FALSE) -> P5.b.2 (CFS) | M42: 53 | P42: Reading Urdu | Q42: =IF($P$6=$P$41,P42," ") ->  | R42: =IF(ISERROR(IF(X42>=W42,X42,"")),"",IF(X42>=W42,X42,"")) ->  | S42: =IF(ISERROR(IF(X42<W42,W42,"")),"",IF(X42<W42,W42,"")) ->  | T42: =IF(ISERROR(IF(X42<W42,X42,"")),"",IF(X42<W42,X42,"")) ->  | U42: =IF(ISERROR(IF(X42>=W42,W42,"")),"",IF(X42>=W42,W42,"")) ->  | V42: =Q42 ->  | W42: =IF(ISERROR(VLOOKUP($E$2,#REF!,AC42,FALSE)),"",VLOOKUP($E$2,#REF!,AC42,FALSE)) ->  | X42: =IF(ISERROR(VLOOKUP($E$2,#REF!,AB42,FALSE)),"",VLOOKUP($E$2,#REF!,AB42,FALSE)) ->  | Z42: =IF(ISERROR(VLOOKUP($E$2,#REF!,AE42,FALSE)),"",VLOOKUP($E$2,#REF!,AE42,FALSE)) ->  | AB42: =AB39+5 -> 108 | AC42: =AB42+1 -> 109 | AD42: 110 | AE42: 111
D43: P5.c.1 Countries with well-functioning student learning assessment system, especially for early grades | E43: Learning Assessment Syst. | F43: 2.50093633 | G43: =VLOOKUP(G$38,'Quali 2'!$A$1:$BN$172,$M43,FALSE) -> 2.678571429 | H43: =ROUND(VLOOKUP(H$38,'Quali 2'!$A$1:$BN$172,$M43,FALSE),1) -> 2 | J43: =IF(VLOOKUP($H$38,'BL Quali 2'!$A$1:$CK$158,K43,FALSE)=999, NA(), VLOOKUP($H$38,'BL Quali 2'!$A$1:$CK$158,K43,FALSE)) -> 1.333333333 | K43: 83 | L43: =VLOOKUP("Country",'Quali 2'!$A$1:$BN$172,$M43,FALSE) -> P5.c.1 (Assessment) | M43: 54 | P43: Reading English | Q43: =IF($P$6=$P$41,P43," ") ->  | R43: =IF(ISERROR(IF(X43>=W43,X43,"")),"",IF(X43>=W43,X43,"")) ->  | S43: =IF(ISERROR(IF(X43<W43,W43,"")),"",IF(X43<W43,W43,"")) ->  | T43: =IF(ISERROR(IF(X43<W43,X43,"")),"",IF(X43<W43,X43,"")) ->  | U43: =IF(ISERROR(IF(X43>=W43,W43,"")),"",IF(X43>=W43,W43,"")) ->  | V43: =Q43 ->  | W43: =IF(ISERROR(VLOOKUP($E$2,#REF!,AC43,FALSE)),"",VLOOKUP($E$2,#REF!,AC43,FALSE)) ->  | X43: =IF(ISERROR(VLOOKUP($E$2,#REF!,AB43,FALSE)),"",VLOOKUP($E$2,#REF!,AB43,FALSE)) ->  | Z43: =IF(ISERROR(VLOOKUP($E$2,#REF!,AE43,FALSE)),"",VLOOKUP($E$2,#REF!,AE43,FALSE)) ->  | AB43: =AB42+5 -> 113 | AC43: 114 | AD43: 115 | AE43: 116
D44: P5.c.2 Countries with effective early learning policies and quality early learning programmes | E44: Policies for Early Learning | F44: 2.498727735 | G44: =VLOOKUP(G$38,'Quali 2'!$A$1:$BN$172,$M44,FALSE) -> 2.416666667 | H44: =ROUND(VLOOKUP(H$38,'Quali 2'!$A$1:$BN$172,$M44,FALSE),1) -> 1 | J44: =IF(VLOOKUP($H$38,'BL Quali 2'!$A$1:$CK$158,K44,FALSE)=999, NA(), VLOOKUP($H$38,'BL Quali 2'!$A$1:$CK$158,K44,FALSE)) -> 1 | K44: 84 | L44: =VLOOKUP("Country",'Quali 2'!$A$1:$BN$172,$M44,FALSE) -> P5.c.2 (Early Learning) | M44: 55 | P44: Arithmetic | Q44: =IF($P$6=$P$41,P44," ") ->  | R44: =IF(ISERROR(IF(X44>=W44,X44,"")),"",IF(X44>=W44,X44,"")) ->  | S44: =IF(ISERROR(IF(X44<W44,W44,"")),"",IF(X44<W44,W44,"")) ->  | T44: =IF(ISERROR(IF(X44<W44,X44,"")),"",IF(X44<W44,X44,"")) ->  | U44: =IF(ISERROR(IF(X44>=W44,W44,"")),"",IF(X44>=W44,W44,"")) ->  | V44: =Q44 ->  | W44: =IF(ISERROR(VLOOKUP($E$2,#REF!,AC44,FALSE)),"",VLOOKUP($E$2,#REF!,AC44,FALSE)) ->  | X44: =IF(ISERROR(VLOOKUP($E$2,#REF!,AB44,FALSE)),"",VLOOKUP($E$2,#REF!,AB44,FALSE)) ->  | Y44: =IF(ISERROR(VLOOKUP($E$2,#REF!,AD44,FALSE)),"",VLOOKUP($E$2,#REF!,AD44,FALSE)) ->  | Z44: =IF(ISERROR(VLOOKUP($E$2,#REF!,AE44,FALSE)),"",VLOOKUP($E$2,#REF!,AE44,FALSE)) ->  | AB44: =AB43+5 -> 118 | AC44: 119 | AD44: 120 | AE44: 121
D45: P5.c.3 Countries with an education sector plan/policy that includes risk assessment and risk management | E45: Risk Assesst & Mgt | F45: 2.283482143 | G45: =VLOOKUP(G$38,'Quali 2'!$A$1:$BN$172,$M45,FALSE) -> 2.285714286 | H45: =ROUND(VLOOKUP(H$38,'Quali 2'!$A$1:$BN$172,$M45,FALSE),1) -> 1.7 | J45: =IF(VLOOKUP($H$38,'BL Quali 2'!$A$1:$CK$158,K45,FALSE)=999, NA(), VLOOKUP($H$38,'BL Quali 2'!$A$1:$CK$158,K45,FALSE)) -> 1 | K45: 85 | L45: =VLOOKUP("Country",'Quali 2'!$A$1:$BN$172,$M45,FALSE) -> P5.c.3 (Risk) | M45: 56
P46: UWEZO
P47: Reading Kiswahili | Q47: =IF($P$6=$P$46,P47," ") ->  | R47: =IF(ISERROR(IF(X47>=W47,X47,"")),"",IF(X47>=W47,X47,"")) ->  | S47: =IF(ISERROR(IF(X47<W47,W47,"")),"",IF(X47<W47,W47,"")) ->  | T47: =IF(ISERROR(IF(X47<W47,X47,"")),"",IF(X47<W47,X47,"")) ->  | U47: =IF(ISERROR(IF(X47>=W47,W47,"")),"",IF(X47>=W47,W47,"")) ->  | V47: =Q47 ->  | W47: =IF(ISERROR(VLOOKUP($E$2,#REF!,AC47,FALSE)),"",VLOOKUP($E$2,#REF!,AC47,FALSE)) ->  | X47: =IF(ISERROR(VLOOKUP($E$2,#REF!,AB47,FALSE)),"",VLOOKUP($E$2,#REF!,AB47,FALSE)) ->  | Y47: =IF(ISERROR(VLOOKUP($E$2,#REF!,AD47,FALSE)),"",VLOOKUP($E$2,#REF!,AD47,FALSE)) ->  | Z47: =IF(ISERROR(VLOOKUP($E$2,#REF!,AE47,FALSE)),"",VLOOKUP($E$2,#REF!,AE47,FALSE)) ->  | AB47: =AB44+5 -> 123 | AC47: =AB47+1 -> 124 | AD47: 125 | AE47: 126
P48: Reading English | Q48: =IF($P$6=$P$46,P48," ") ->  | R48: =IF(ISERROR(IF(X48>=W48,X48,"")),"",IF(X48>=W48,X48,"")) ->  | S48: =IF(ISERROR(IF(X48<W48,W48,"")),"",IF(X48<W48,W48,"")) ->  | T48: =IF(ISERROR(IF(X48<W48,X48,"")),"",IF(X48<W48,X48,"")) ->  | U48: =IF(ISERROR(IF(X48>=W48,W48,"")),"",IF(X48>=W48,W48,"")) ->  | V48: =Q48 ->  | W48: =IF(ISERROR(VLOOKUP($E$2,#REF!,AC48,FALSE)),"",VLOOKUP($E$2,#REF!,AC48,FALSE)) ->  | X48: =IF(ISERROR(VLOOKUP($E$2,#REF!,AB48,FALSE)),"",VLOOKUP($E$2,#REF!,AB48,FALSE)) ->  | Y48: =IF(ISERROR(VLOOKUP($E$2,#REF!,AD48,FALSE)),"",VLOOKUP($E$2,#REF!,AD48,FALSE)) ->  | Z48: =IF(ISERROR(VLOOKUP($E$2,#REF!,AE48,FALSE)),"",VLOOKUP($E$2,#REF!,AE48,FALSE)) ->  | AB48: =AB47+5 -> 128 | AC48: 129 | AD48: 130 | AE48: 131
P49: Arithmetic | Q49: =IF($P$6=$P$46,P49," ") ->  | R49: =IF(ISERROR(IF(X49>=W49,X49,"")),"",IF(X49>=W49,X49,"")) ->  | S49: =IF(ISERROR(IF(X49<W49,W49,"")),"",IF(X49<W49,W49,"")) ->  | T49: =IF(ISERROR(IF(X49<W49,X49,"")),"",IF(X49<W49,X49,"")) ->  | U49: =IF(ISERROR(IF(X49>=W49,W49,"")),"",IF(X49>=W49,W49,"")) ->  | V49: =Q49 ->  | W49: =IF(ISERROR(VLOOKUP($E$2,#REF!,AC49,FALSE)),"",VLOOKUP($E$2,#REF!,AC49,FALSE)) ->  | X49: =IF(ISERROR(VLOOKUP($E$2,#REF!,AB49,FALSE)),"",VLOOKUP($E$2,#REF!,AB49,FALSE)) ->  | Y49: =IF(ISERROR(VLOOKUP($E$2,#REF!,AD49,FALSE)),"",VLOOKUP($E$2,#REF!,AD49,FALSE)) ->  | Z49: =IF(ISERROR(VLOOKUP($E$2,#REF!,AE49,FALSE)),"",VLOOKUP($E$2,#REF!,AE49,FALSE)) ->  | AB49: =AB48+5 -> 133 | AC49: 134 | AD49: 135 | AE49: 136
D50: P5.e.2 Countries with EMIS providing disaggregated data that allow identification of barriers and bottlenecks that inhibit realization of the rights of disadvantaged children | E50: Data on disadvantaged children | F50: 2.595703125 | G50: =VLOOKUP(G$38,'Quali 2'!$A$1:$BN$172,$M50,FALSE) -> 2.797619048 | H50: =ROUND(VLOOKUP(H$38,'Quali 2'!$A$1:$BN$172,$M50,FALSE),1) -> 2.3 | J50: =IF(VLOOKUP($H$38,'BL Quali 2'!$A$1:$CK$158,K50,FALSE)=999, NA(), VLOOKUP($H$38,'BL Quali 2'!$A$1:$CK$158,K50,FALSE)) -> 3 | K50: 86 | L50: =VLOOKUP("Country",'Quali 2'!$A$1:$BN$172,$M50,FALSE) -> P5.e.2 (EMIS BNA) | M50: 61
D51: P5.e.3 Countries with policies on inclusive education covering children with disabilities | E51: Policies on inclusive education | F51: 2.398743386 | G51: =VLOOKUP(G$38,'Quali 2'!$A$1:$BN$172,$M51,FALSE) -> 2.642857143 | H51: =ROUND(VLOOKUP(H$38,'Quali 2'!$A$1:$BN$172,$M51,FALSE),1) -> 3 | J51: =IF(VLOOKUP($H$38,'BL Quali 2'!$A$1:$CK$158,K51,FALSE)=999, NA(), VLOOKUP($H$38,'BL Quali 2'!$A$1:$CK$158,K51,FALSE)) -> 2.333333333 | K51: 88 | L51: =VLOOKUP("Country",'Quali 2'!$A$1:$BN$172,$M51,FALSE) -> P5.e.3 (Inclusive) | M51: 57 | T51: =IF(X47<W47,X47,"") -> 
D52: P5.e.4 Countries with an education sector policy or plan that specify prevention and response mechanisms to address gender-based violence in around schools | E52: Policy on gender-based violence | F52: 2.246453901 | G52: =VLOOKUP(G$38,'Quali 2'!$A$1:$BN$172,$M52,FALSE) -> 2.141666667 | H52: =ROUND(VLOOKUP(H$38,'Quali 2'!$A$1:$BN$172,$M52,FALSE),1) -> 1 | J52: =IF(VLOOKUP($H$38,'BL Quali 2'!$A$1:$CK$158,K52,FALSE)=999, NA(), VLOOKUP($H$38,'BL Quali 2'!$A$1:$CK$158,K52,FALSE)) -> 1.5 | K52: 89 | L52: =VLOOKUP("Country",'Quali 2'!$A$1:$BN$172,$M52,FALSE) -> P5.e.4 (SRGBV) | M52: 58
D53: P5.s.1 Countries where girls’ secondary education, in terms of enrolment, retention, and completion is a recognised, targeted and budgeted education priority | E53: Girls' Secondary Education | F53: 2.327309237 | G53: =VLOOKUP(G$38,'Quali 2'!$A$1:$BN$172,$M53,FALSE) -> 2.566666667 | H53: =ROUND(VLOOKUP(H$38,'Quali 2'!$A$1:$BN$172,$M53,FALSE),1) -> 2 | J53: =IF(VLOOKUP($H$38,'BL Quali 2'!$A$1:$CL$158,K53,FALSE)=999, NA(), VLOOKUP($H$38,'BL Quali 2'!$A$1:$CL$158,K53,FALSE)) -> 2 | K53: 90 | L53: =VLOOKUP("Country",'Quali 2'!$A$1:$BN$172,$M53,FALSE) -> P5.S1 (Girls) | M53: 59
D54: P5.S2 Countries with an education policy/sector plan that includes multilingual education to allow children to learn in their mother tongue during the early grades | E54: Multilingual Education | F54: 2.568452381 | G54: =VLOOKUP(G$38,'Quali 2'!$A$1:$BN$172,$M54,FALSE) -> 2.46875 | H54: =ROUND(VLOOKUP(H$38,'Quali 2'!$A$1:$BN$172,$M54,FALSE),1) -> 999 | J54: =IF(VLOOKUP($H$38,'BL Quali 2'!$A$1:$CK$158,K54,FALSE)=999, NA(), VLOOKUP($H$38,'BL Quali 2'!$A$1:$CK$158,K54,FALSE)) -> 2.5 | K54: 87 | L54: =VLOOKUP("Country",'Quali 2'!$A$1:$BN$172,$M54,FALSE) -> P5.S2 (Multilingual) | M54: 60
D56: 1.a Community participation [Footnote 1] | E56: =LEFT(RIGHT(D56,LEN(D56)-4),SEARCH("[",D56)-6) -> Community participation | F56: 2.620879121 | G56: =VLOOKUP(G$38,'Quali 2'!$A$1:$BN$172,$M56,FALSE) -> 2.75 | H56: =IF(VLOOKUP(H$38,'Quali 2'!$A$1:$BN$172,$M56,FALSE)=999,NA(),ROUND(VLOOKUP(H$38,'Quali 2'!$A$1:$BN$172,$M56,FALSE),1)) -> 3 | I56: 4 | J56: =IF(VLOOKUP($H$38,'BL Quali 2'!$A$1:$CK$158,K56,FALSE)=999, "No data", VLOOKUP($H$38,'BL Quali 2'!$A$1:$CK$158,K56,FALSE)) -> 4 | K56: 4 | L56: =VLOOKUP("Country",'Quali 2'!$A$1:$BN$172,$M56,FALSE) -> 1. Based on best fit as described in the Guidance Notes, please rate Community Participation in relation to functional school management committees in primary and secondary schools. [Score 1=Weak to Score 4=Championing] | M56: 3
D57: 1.b Accountability [Footnote 2] | E57: =LEFT(RIGHT(D57,LEN(D57)-4),SEARCH("[",D57)-6) -> Accountability | F57: 2.469135802 | G57: =VLOOKUP(G$38,'Quali 2'!$A$1:$BN$172,$M57,FALSE) -> 2.5625 | H57: =IF(VLOOKUP(H$38,'Quali 2'!$A$1:$BN$172,$M57,FALSE)=999,NA(),ROUND(VLOOKUP(H$38,'Quali 2'!$A$1:$BN$172,$M57,FALSE),1)) -> 2 | I57: 4 | J57: =IF(VLOOKUP($H$38,'BL Quali 2'!$A$1:$CK$158,K57,FALSE)=999, "No data", VLOOKUP($H$38,'BL Quali 2'!$A$1:$CK$158,K57,FALSE)) -> Zimbabwe | K57: 5 | L57: =VLOOKUP("Country",'Quali 2'!$A$1:$BN$172,$M57,FALSE) -> 2. Based on best fit as described in the Guidance Notes, please rate Accountability in relation to functional school management committees in primary and secondary schools. [Score 1=Weak to Score 4=Championing] | M57: 4
D58: 1.c Monitoring [Footnote 3] | E58: =LEFT(RIGHT(D58,LEN(D58)-4),SEARCH("[",D58)-6) -> Monitoring | F58: 2.3625 | G58: =VLOOKUP(G$38,'Quali 2'!$A$1:$BN$172,$M58,FALSE) -> 2.5 | H58: =IF(VLOOKUP(H$38,'Quali 2'!$A$1:$BN$172,$M58,FALSE)=999,NA(),ROUND(VLOOKUP(H$38,'Quali 2'!$A$1:$BN$172,$M58,FALSE),1)) -> 2 | I58: 4 | J58: =IF(VLOOKUP($H$38,'BL Quali 2'!$A$1:$CK$158,K58,FALSE)=999, "No data", VLOOKUP($H$38,'BL Quali 2'!$A$1:$CK$158,K58,FALSE)) -> 2 | K58: 6 | L58: =VLOOKUP("Country",'Quali 2'!$A$1:$BN$172,$M58,FALSE) -> 3. Based on best fit as described in the Guidance Notes, please rate Monitoring in relation to functional school management committees in primary and secondary schools. [Score 1=Weak to Score 4=Championing] | M58: 5
D60: 2.a Information feedback and transparency | E60: Information Feedback and Transparency | F60: 2.172619048 | G60: =VLOOKUP(G$38,'Quali 2'!$A$1:$BN$172,$M60,FALSE) -> 2.5 | H60: =IF(VLOOKUP(H$38,'Quali 2'!$A$1:$BN$172,$M60,FALSE)=999,NA(),ROUND(VLOOKUP(H$38,'Quali 2'!$A$1:$BN$172,$M60,FALSE),1)) -> 2 | I60: 4 | J60: =IF(VLOOKUP($H$38,'BL Quali 2'!$A$1:$CK$158,K60,FALSE)=999, "No data", VLOOKUP($H$38,'BL Quali 2'!$A$1:$CK$158,K60,FALSE)) -> 1.5 | K60: 10 | L60: =VLOOKUP("Country",'Quali 2'!$A$1:$BN$172,$M60,FALSE) -> 4. Based on best fit as described in the Guidance Notes, please rate Information Feedback and Transparency in relation to Education Management Information System feeding findings back to communities. [Score 1=Weak to Score 4=Championing] | M60: 6
D61: 2.b Training and community participation [Footnote 6] | E61: =LEFT(RIGHT(D61,LEN(D61)-4),SEARCH("[",D61)-6) -> Training and community participation | F61: 2.283783784 | G61: =VLOOKUP(G$38,'Quali 2'!$A$1:$BN$172,$M61,FALSE) -> 2.571428571 | H61: =IF(VLOOKUP(H$38,'Quali 2'!$A$1:$BN$172,$M61,FALSE)=999,NA(),ROUND(VLOOKUP(H$38,'Quali 2'!$A$1:$BN$172,$M61,FALSE),1)) -> 2 | I61: 4 | J61: =IF(VLOOKUP($H$38,'BL Quali 2'!$A$1:$CK$158,K61,FALSE)=999, "No data", VLOOKUP($H$38,'BL Quali 2'!$A$1:$CK$158,K61,FALSE)) -> 2 | K61: 11 | L61: =VLOOKUP("Country",'Quali 2'!$A$1:$BN$172,$M61,FALSE) -> 5. Based on best fit as described in the Guidance Notes, please rate Training and Community Participation in relation to Education Management Information System feeding findings back to communities. [Score 1=Weak to Score 4=Championing] | M61: 7
D63: 3.a Evidence [Footnote 7] | E63: =LEFT(RIGHT(D63,LEN(D63)-4),SEARCH("[",D63)-6) -> Evidence | F63: 2.396428571 | G63: =VLOOKUP(G$38,'Quali 2'!$A$1:$BN$172,$M63,FALSE) -> 2.625 | H63: =IF(VLOOKUP(H$38,'Quali 2'!$A$1:$BN$172,$M63,FALSE)=999,NA(),ROUND(VLOOKUP(H$38,'Quali 2'!$A$1:$BN$172,$M63,FALSE),1)) -> 2 | I63: 4 | J63: =IF(VLOOKUP($H$38,'BL Quali 2'!$A$1:$CK$158,K63,FALSE)=999, "No data", VLOOKUP($H$38,'BL Quali 2'!$A$1:$CK$158,K63,FALSE)) -> 2 | K63: 13 | L63: =VLOOKUP("Country",'Quali 2'!$A$1:$BN$172,$M63,FALSE) -> 6. Based on best fit as described in the Guidance Notes, please rate Evidence in relation to Innovative approaches at scale to improve access to education and learning outcomes for the most disadvantaged and excluded children. [Score 1=Weak to Score 4=Championing] | M63: 8
D64: 3.b Strategy / Traction [Footnote 8] | E64: =LEFT(RIGHT(D64,LEN(D64)-4),SEARCH("[",D64)-6) -> Strategy / Traction | F64: 2.390510949 | G64: =VLOOKUP(G$38,'Quali 2'!$A$1:$BN$172,$M64,FALSE) -> 2.5625 | H64: =IF(VLOOKUP(H$38,'Quali 2'!$A$1:$BN$172,$M64,FALSE)=999,NA(),ROUND(VLOOKUP(H$38,'Quali 2'!$A$1:$BN$172,$M64,FALSE),1)) -> 2 | I64: 4 | J64: =IF(VLOOKUP($H$38,'BL Quali 2'!$A$1:$CK$158,K64,FALSE)=999, "No data", VLOOKUP($H$38,'BL Quali 2'!$A$1:$CK$158,K64,FALSE)) -> 3 | K64: 14 | L64: =VLOOKUP("Country",'Quali 2'!$A$1:$BN$172,$M64,FALSE) -> 7. Based on best fit as described in the Guidance Notes, please rate Strategy/Traction in relation to Innovative approaches at scale to improve access to education and learning outcomes for the most disadvantaged and excluded children. [Score 1=Weak to Score 4=Championing] | M64: 9
D65: 3.c Scalability [Footnote 9] | E65: =LEFT(RIGHT(D65,LEN(D65)-4),SEARCH("[",D65)-6) -> Scalability | F65: 2.464028777 | G65: =VLOOKUP(G$38,'Quali 2'!$A$1:$BN$172,$M65,FALSE) -> 2.9375 | H65: =IF(VLOOKUP(H$38,'Quali 2'!$A$1:$BN$172,$M65,FALSE)=999,NA(),ROUND(VLOOKUP(H$38,'Quali 2'!$A$1:$BN$172,$M65,FALSE),1)) -> 3 | I65: 4 | J65: =IF(VLOOKUP($H$38,'BL Quali 2'!$A$1:$CK$158,K65,FALSE)=999, "No data", VLOOKUP($H$38,'BL Quali 2'!$A$1:$CK$158,K65,FALSE)) -> 3 | K65: 15 | L65: =VLOOKUP("Country",'Quali 2'!$A$1:$BN$172,$M65,FALSE) -> 8. Based on best fit as described in the Guidance Notes, please rate Scalability in relation to Innovative approaches at scale to improve access to education and learning outcomes for the most disadvantaged and excluded children. [Score 1=Weak to Score 4=Championing] | M65: 10
D67: 4.a CFS / CFE standards | E67: CFS / CFE standards | F67: 2.597457627 | G67: =VLOOKUP(G$38,'Quali 2'!$A$1:$BN$172,$M67,FALSE) -> 2.625 | H67: =IF(VLOOKUP(H$38,'Quali 2'!$A$1:$BN$172,$M67,FALSE)=999,NA(),ROUND(VLOOKUP(H$38,'Quali 2'!$A$1:$BN$172,$M67,FALSE),1)) -> 2 | I67: 4 | J67: =IF(VLOOKUP($H$38,'BL Quali 2'!$A$1:$CK$158,K67,FALSE)=999, "No data", VLOOKUP($H$38,'BL Quali 2'!$A$1:$CK$158,K67,FALSE)) -> 1 | K67: 21 | L67: =VLOOKUP("Country",'Quali 2'!$A$1:$BN$172,$M67,FALSE) -> 9. Based on best fit as described in the Guidance Notes, please rate CFS/CFE Standards in relation to Quality standards consistent with child-friendly schools (CFS)/education (CFE) or similar models developed or revised. [Score 1=Weak to Score 4=Championing] | M67: 11
D68: 4.b Measuring learning outcomes [Footnote 15] | E68: =LEFT(RIGHT(D68,LEN(D68)-4),SEARCH("[",D68)-6) -> Measuring learning outcomes | F68: 2.801886792 | G68: =VLOOKUP(G$38,'Quali 2'!$A$1:$BN$172,$M68,FALSE) -> 2.6875 | H68: =IF(VLOOKUP(H$38,'Quali 2'!$A$1:$BN$172,$M68,FALSE)=999,NA(),ROUND(VLOOKUP(H$38,'Quali 2'!$A$1:$BN$172,$M68,FALSE),1)) -> 2 | I68: 4 | J68: =IF(VLOOKUP($H$38,'BL Quali 2'!$A$1:$CK$158,K68,FALSE)=999, "No data", VLOOKUP($H$38,'BL Quali 2'!$A$1:$CK$158,K68,FALSE)) -> 1 | K68: 22 | L68: =VLOOKUP("Country",'Quali 2'!$A$1:$BN$172,$M68,FALSE) -> 10. Based on best fit as described in the Guidance Notes, please rate Measuring Learning Outcomes in relation to Quality standards consistent with child-friendly schools (CFS)/education (CFE) or similar models developed or revised. [Score 1=Weak to Score 4=Championing] | M68: 12
D70: 5.a Classroom assessment [Footnote 16] | E70: Classroom | F70: 2.393333333 | G70: =VLOOKUP(G$38,'Quali 2'!$A$1:$BN$172,$M70,FALSE) -> 2.5 | H70: =IF(VLOOKUP(H$38,'Quali 2'!$A$1:$BN$172,$M70,FALSE)=999,NA(),ROUND(VLOOKUP(H$38,'Quali 2'!$A$1:$BN$172,$M70,FALSE),1)) -> 2 | I70: 4 | J70: =IF(VLOOKUP($H$38,'BL Quali 2'!$A$1:$CK$158,K70,FALSE)=999, "No data", VLOOKUP($H$38,'BL Quali 2'!$A$1:$CK$158,K70,FALSE)) -> 2 | K70: 24 | L70: =VLOOKUP("Country",'Quali 2'!$A$1:$BN$172,$M70,FALSE) -> 11. Based on best fit as described in the Guidance Notes, please rate Classroom Assessment in relation to Well-functioning student learning assessment system, especially for early grades. [Score 1=Weak to Score 4=Championing] | M70: 13
D71: 5.b Examinations [Footnote 17] | E71: Exams | F71: 2.743421053 | G71: =VLOOKUP(G$38,'Quali 2'!$A$1:$BN$172,$M71,FALSE) -> 2.583333333 | H71: =IF(VLOOKUP(H$38,'Quali 2'!$A$1:$BN$172,$M71,FALSE)=999,NA(),ROUND(VLOOKUP(H$38,'Quali 2'!$A$1:$BN$172,$M71,FALSE),1)) -> 2 | I71: 4 | J71: =IF(VLOOKUP($H$38,'BL Quali 2'!$A$1:$CK$158,K71,FALSE)=999, "No data", VLOOKUP($H$38,'BL Quali 2'!$A$1:$CK$158,K71,FALSE)) -> 1 | K71: 25 | L71: =VLOOKUP("Country",'Quali 2'!$A$1:$BN$172,$M71,FALSE) -> 12. Based on best fit as described in the Guidance Notes, please rate Examinations in relation to Well-functioning student learning assessment system, especially for early grades. [Score 1=Weak to Score 4=Championing] | M71: 14
D72: 5.c National Large-Scale Assessment [Footnote 18] | E72: National assessments | F72: 2.328947368 | G72: =VLOOKUP(G$38,'Quali 2'!$A$1:$BN$172,$M72,FALSE) -> 2.857142857 | H72: =IF(VLOOKUP(H$38,'Quali 2'!$A$1:$BN$172,$M72,FALSE)=999,NA(),ROUND(VLOOKUP(H$38,'Quali 2'!$A$1:$BN$172,$M72,FALSE),1)) -> 2 | I72: 4 | J72: =IF(VLOOKUP($H$38,'BL Quali 2'!$A$1:$CK$158,K72,FALSE)=999, "No data", VLOOKUP($H$38,'BL Quali 2'!$A$1:$CK$158,K72,FALSE)) -> 1 | K72: 26 | L72: =VLOOKUP("Country",'Quali 2'!$A$1:$BN$172,$M72,FALSE) -> 13. Based on best fit as described in the Guidance Notes, please rate National (or system-level) Large-Scale Assessment in relation to Well-functioning student learning assessment system, especially for early grades. [Score 1=Weak to Score 4=Championing] | M72: 15
D74: 6.a Early learning curriculum and standards [Footnote 21] | E74: Curriculum & standards | F74: 2.75 | G74: =VLOOKUP(G$38,'Quali 2'!$A$1:$BN$172,$M74,FALSE) -> 2.625 | H74: =IF(VLOOKUP(H$38,'Quali 2'!$A$1:$BN$172,$M74,FALSE)=999,NA(),ROUND(VLOOKUP(H$38,'Quali 2'!$A$1:$BN$172,$M74,FALSE),1)) -> 1 | I74: 4 | J74: =IF(VLOOKUP($H$38,'BL Quali 2'!$A$1:$CK$158,K74,FALSE)=999, "No data", VLOOKUP($H$38,'BL Quali 2'!$A$1:$CK$158,K74,FALSE)) -> 1 | K74: 30 | L74: =VLOOKUP("Country",'Quali 2'!$A$1:$BN$172,$M74,FALSE) -> 14. Based on best fit as described in the Guidance Notes, please rate Early Learning Curriculum and Standards in relation to Effective learning policies and quality early learning programmes. [Score 1=Weak to Score 4=Championing] | M74: 16
D75: 6.b ECCE facility [Footnote 22] | E75: Facilities | F75: 2.292682927 | G75: =VLOOKUP(G$38,'Quali 2'!$A$1:$BN$172,$M75,FALSE) -> 2 | H75: =IF(VLOOKUP(H$38,'Quali 2'!$A$1:$BN$172,$M75,FALSE)=999,NA(),ROUND(VLOOKUP(H$38,'Quali 2'!$A$1:$BN$172,$M75,FALSE),1)) -> 1 | I75: 4 | J75: =IF(VLOOKUP($H$38,'BL Quali 2'!$A$1:$CK$158,K75,FALSE)=999, "No data", VLOOKUP($H$38,'BL Quali 2'!$A$1:$CK$158,K75,FALSE)) -> 1 | K75: 31 | L75: =VLOOKUP("Country",'Quali 2'!$A$1:$BN$172,$M75,FALSE) -> 15. Based on best fit as described in the Guidance Notes, please rate ECCE Facility in relation to Effective learning policies and quality early learning programmes. [Score 1=Weak to Score 4=Championing] | M75: 17
D76: 6.c Community participation [Footnote 23] | E76: Community participation | F76: 2.397540984 | G76: =VLOOKUP(G$38,'Quali 2'!$A$1:$BN$172,$M76,FALSE) -> 2.428571429 | H76: =IF(VLOOKUP(H$38,'Quali 2'!$A$1:$BN$172,$M76,FALSE)=999,NA(),ROUND(VLOOKUP(H$38,'Quali 2'!$A$1:$BN$172,$M76,FALSE),1)) -> 1 | I76: 4 | J76: =IF(VLOOKUP($H$38,'BL Quali 2'!$A$1:$CK$158,K76,FALSE)=999, "No data", VLOOKUP($H$38,'BL Quali 2'!$A$1:$CK$158,K76,FALSE)) -> No data | K76: 32 | L76: =VLOOKUP("Country",'Quali 2'!$A$1:$BN$172,$M76,FALSE) -> 16. Based on best fit as described in the Guidance Notes, please rate Community Participation in relation to Effective learning policies and quality early learning programmes. [Score 1=Weak to Score 4=Championing] | M76: 18
D78: 7.a UNICEF Targetted | E78: =RIGHT(D78,LEN(D78)-4) -> UNICEF Targetted | F78: 11985431 | G78: =VLOOKUP(G$38,'Quali 2'!$A$1:$BN$172,$M78,FALSE) -> 553397 | H78: =IF(VLOOKUP(H$38,'Quali 2'!$A$1:$BN$172,$M78,FALSE)>0,VLOOKUP(H$38,'Quali 2'!$A$1:$BN$172,$M78,FALSE),0) -> 100000 | I78: 4 | J78: =IF(VLOOKUP($H$38,'BL Quali 2'!$A$1:$CK$158,K78,FALSE)=999, "No data", VLOOKUP($H$38,'BL Quali 2'!$A$1:$CK$158,K78,FALSE)) -> 10000 | K78: 34 | L78: =VLOOKUP("Country",'Quali 2'!$A$1:$BN$172,$M78,FALSE) -> 46.a What is the number of children (3-18 years old) in humanitarian situations UNICEF-targeted (or planned to be reached) for formal or non-formal basic education (including pre-primary schools/early childhood learning spaces)? (Provide disaggregated data for girls in the remarks column.) | M78: 46
D79: 7.b UNICEF Reached | E79: =RIGHT(D79,LEN(D79)-4) -> UNICEF Reached | F79: 8776559 | G79: =VLOOKUP(G$38,'Quali 2'!$A$1:$BN$172,$M79,FALSE) -> 434678 | H79: =IF(VLOOKUP(H$38,'Quali 2'!$A$1:$BN$172,$M79,FALSE)>0,VLOOKUP(H$38,'Quali 2'!$A$1:$BN$172,$M79,FALSE),0) -> 37000 | I79: 4 | J79: =IF(VLOOKUP($H$38,'BL Quali 2'!$A$1:$CK$158,K79,FALSE)=999, "No data", VLOOKUP($H$38,'BL Quali 2'!$A$1:$CK$158,K79,FALSE)) -> 4721 | K79: 35 | L79: =VLOOKUP("Country",'Quali 2'!$A$1:$BN$172,$M79,FALSE) -> 46.b1 Out of the UNICEF-targeted children, how many accessed formal or non-formal basic education ("reached")? (Provide disaggregated data for girls in the remarks column.) | M79: 47
D80: 7.c All partners Targetted | E80: =RIGHT(D80,LEN(D80)-4) -> All partners Targetted | F80: 17435592 | G80: =VLOOKUP(G$38,'Quali 2'!$A$1:$BN$172,$M80,FALSE) -> 1053537 | H80: =IF(VLOOKUP(H$38,'Quali 2'!$A$1:$BN$172,$M80,FALSE)>0,VLOOKUP(H$38,'Quali 2'!$A$1:$BN$172,$M80,FALSE),0) -> 375000 | I80: 4 | L80: =VLOOKUP("Country",'Quali 2'!$A$1:$BN$172,$M80,FALSE) -> 46.c What is the number of children (3-18 years old) in humanitarian situations targeted (or planned to be reached) by all partners for formal or non-formal basic education (including pre-primary schools/early childhood learning spaces, primary and lower secondary education)? (Provide disaggregated data for girls in the remarks column.) | M80: 48
D81: 7.d All partners Reached | E81: =RIGHT(D81,LEN(D81)-4) -> All partners Reached | F81: 11179468 | G81: =VLOOKUP(G$38,'Quali 2'!$A$1:$BN$172,$M81,FALSE) -> 513513 | H81: =IF(VLOOKUP(H$38,'Quali 2'!$A$1:$BN$172,$M81,FALSE)>0,VLOOKUP(H$38,'Quali 2'!$A$1:$BN$172,$M81,FALSE),0) -> 110000 | I81: 4 | L81: =VLOOKUP("Country",'Quali 2'!$A$1:$BN$172,$M81,FALSE) -> 46.d Out of the children targeted by all partners, how many accessed formal or non-formal basic education ("reached")? (Provide disaggregated data for girls in the remarks column.) | M81: 49
D92: 9.a Risk Assessment [Footnote 24] | E92: Assessment | F92: 2.395454545 | G92: =VLOOKUP(G$38,'Quali 2'!$A$1:$BN$172,$M92,FALSE) -> 2.428571429 | H92: =IF(VLOOKUP(H$38,'Quali 2'!$A$1:$BN$172,$M92,FALSE)=999,NA(),VLOOKUP(H$38,'Quali 2'!$A$1:$BN$172,$M92,FALSE)) -> 2 | I92: 4 | J92: =IF(VLOOKUP($H$38,'BL Quali 2'!$A$1:$CK$158,K92,FALSE)=999, "No data", VLOOKUP($H$38,'BL Quali 2'!$A$1:$CK$158,K92,FALSE)) -> 1 | K92: 48 | L92: =VLOOKUP("Country",'Quali 2'!$A$1:$BN$172,$M92,FALSE) -> 17. Based on best fit as described in the Guidance Notes, please rate Risk Assessment in relation to Education sector plan/policy that includes risk assessment and risk management. [Score 1=Weak to Score 4=Championing] | M92: 19
D93: 9.b Risk reduction strategy [Footnote 25] | E93: Strategy | F93: 2.38317757 | G93: =VLOOKUP(G$38,'Quali 2'!$A$1:$BN$172,$M93,FALSE) -> 2.333333333 | H93: =IF(VLOOKUP(H$38,'Quali 2'!$A$1:$BN$172,$M93,FALSE)=999,NA(),VLOOKUP(H$38,'Quali 2'!$A$1:$BN$172,$M93,FALSE)) -> 2 | I93: 4 | J93: =IF(VLOOKUP($H$38,'BL Quali 2'!$A$1:$CK$158,K93,FALSE)=999, "No data", VLOOKUP($H$38,'BL Quali 2'!$A$1:$CK$158,K93,FALSE)) -> 1 | K93: 49 | L93: =VLOOKUP("Country",'Quali 2'!$A$1:$BN$172,$M93,FALSE) -> 18. Based on best fit as described in the Guidance Notes, please rate Risk Reduction Strategy in relation to Education sector plan/policy that includes risk assessment and risk management. [Score 1=Weak to Score 4=Championing] | M93: 20
D94: 9.c Human and financial resources [Footnote 26] | E94: Resources | F94: 2.106796117 | G94: =VLOOKUP(G$38,'Quali 2'!$A$1:$BN$172,$M94,FALSE) -> 2.071428571 | H94: =IF(VLOOKUP(H$38,'Quali 2'!$A$1:$BN$172,$M94,FALSE)=999,NA(),VLOOKUP(H$38,'Quali 2'!$A$1:$BN$172,$M94,FALSE)) -> 1 | I94: 4 | J94: =IF(VLOOKUP($H$38,'BL Quali 2'!$A$1:$CK$158,K94,FALSE)=999, "No data", VLOOKUP($H$38,'BL Quali 2'!$A$1:$CK$158,K94,FALSE)) -> 1 | K94: 50 | L94: =VLOOKUP("Country",'Quali 2'!$A$1:$BN$172,$M94,FALSE) -> 19. Based on best fit as described in the Guidance Notes, please rate Human and Financial Resources in relation to Education sector plan/policy that includes risk assessment and risk management. [Score 1=Weak to Score 4=Championing] | M94: 21
D97: 11.a Data quality and timeliness (teaching and learning) [Footnote 28] | E97: Data quality and timeliness | F97: 2.55078125 | G97: =VLOOKUP(G$38,'Quali 2'!$A$1:$BN$172,$M97,FALSE) -> 2.785714286 | H97: =IF(VLOOKUP(H$38,'Quali 2'!$A$1:$BN$172,$M97,FALSE)=999,NA(),VLOOKUP(H$38,'Quali 2'!$A$1:$BN$172,$M97,FALSE)) -> 2.5 | I97: 4 | J97: =IF(VLOOKUP($H$38,'BL Quali 2'!$A$1:$CK$158,K97,FALSE)=999, "No data", VLOOKUP($H$38,'BL Quali 2'!$A$1:$CK$158,K97,FALSE)) -> 3 | K97: 53 | L97: =VLOOKUP("Country",'Quali 2'!$A$1:$BN$172,$M97,FALSE) -> 37. Based on best fit as described in the Guidance Notes, please rate Data quality and timeliness in relation to well-functioning education management information systems . [Score 1=Weak to Score 4=Championing] | M97: 39
D98: 11.b Comprehensiveness [Footnote 29] | E98: =LEFT(RIGHT(D98,LEN(D98)-4),SEARCH("[",D98)-6) -> Comprehensiveness | F98: 2.748 | G98: =VLOOKUP(G$38,'Quali 2'!$A$1:$BN$172,$M98,FALSE) -> 2.857142857 | H98: =IF(VLOOKUP(H$38,'Quali 2'!$A$1:$BN$172,$M98,FALSE)=999,NA(),VLOOKUP(H$38,'Quali 2'!$A$1:$BN$172,$M98,FALSE)) -> 2 | I98: 4 | J98: =IF(VLOOKUP($H$38,'BL Quali 2'!$A$1:$CK$158,K98,FALSE)=999, "No data", VLOOKUP($H$38,'BL Quali 2'!$A$1:$CK$158,K98,FALSE)) -> 3 | K98: 54 | L98: =VLOOKUP("Country",'Quali 2'!$A$1:$BN$172,$M98,FALSE) -> 38. Based on best fit as described in the Guidance Notes, please rate Comprehensiveness in relation to well-functioning education management information systems . [Score 1=Weak to Score 4=Championing] | M98: 40
D99: 11.c Disaggregation [Footnote 30] | E99: =LEFT(RIGHT(D99,LEN(D99)-4),SEARCH("[",D99)-6) -> Disaggregation | F99: 2.508 | G99: =VLOOKUP(G$38,'Quali 2'!$A$1:$BN$172,$M99,FALSE) -> 2.833333333 | H99: =IF(VLOOKUP(H$38,'Quali 2'!$A$1:$BN$172,$M99,FALSE)=999,NA(),VLOOKUP(H$38,'Quali 2'!$A$1:$BN$172,$M99,FALSE)) ->  | I99: 4 | J99: =IF(VLOOKUP($H$38,'BL Quali 2'!$A$1:$CK$158,K99,FALSE)=999, "No data", VLOOKUP($H$38,'BL Quali 2'!$A$1:$CK$158,K99,FALSE)) -> 3 | K99: 55 | L99: =VLOOKUP("Country",'Quali 2'!$A$1:$BN$172,$M99,FALSE) -> 39. Based on best fit as described in the Guidance Notes, please rate Disaggregation in relation to well-functioning education management information systems . [Score 1=Weak to Score 4=Championing] | M99: 41
D101: 12.a Policy environment [Footnote 31] | E101: =LEFT(RIGHT(D101,LEN(D101)-4),SEARCH("[",D101)-6) -> Policy environment | F101: 2.909836066 | G101: =VLOOKUP(G$38,'Quali 2'!$A$1:$BN$172,$M101,FALSE) -> 3.125 | H101: =IF(VLOOKUP(H$38,'Quali 2'!$A$1:$BN$172,$M101,FALSE)=999,NA(),VLOOKUP(H$38,'Quali 2'!$A$1:$BN$172,$M101,FALSE)) ->  | I101: 4 | J101: =IF(VLOOKUP($H$38,'BL Quali 2'!$A$1:$CK$158,K101,FALSE)=999, "No data", VLOOKUP($H$38,'BL Quali 2'!$A$1:$CK$158,K101,FALSE)) -> 3 | K101: 57 | L101: =VLOOKUP("Country",'Quali 2'!$A$1:$BN$172,$M101,FALSE) -> 33. Based on best fit as described in the Guidance Notes, please rate Policy Environment in relation to Education policy or sector plan that includes multilingual education to allow children to learn in their mother tongue during the early grades. [Score 1=Weak to Score 4=Championing] | M101: 35
D102: 12.b Alignment [Footnote 32] | E102: =LEFT(RIGHT(D102,LEN(D102)-4),SEARCH("[",D102)-6) -> Alignment | F102: 2.59375 | G102: =VLOOKUP(G$38,'Quali 2'!$A$1:$BN$172,$M102,FALSE) -> 2.5 | H102: =IF(VLOOKUP(H$38,'Quali 2'!$A$1:$BN$172,$M102,FALSE)=999,NA(),VLOOKUP(H$38,'Quali 2'!$A$1:$BN$172,$M102,FALSE)) ->  | I102: 4 | J102: =IF(VLOOKUP($H$38,'BL Quali 2'!$A$1:$CK$158,K102,FALSE)=999, "No data", VLOOKUP($H$38,'BL Quali 2'!$A$1:$CK$158,K102,FALSE)) -> 3 | K102: 58 | L102: =VLOOKUP("Country",'Quali 2'!$A$1:$BN$172,$M102,FALSE) -> 34. Based on best fit as described in the Guidance Notes, please rate Alignment in relation to Education policy or sector plan that includes multilingual education to allow children to learn in their mother tongue during the early grades. [Score 1=Weak to Score 4=Championing] | M102: 36
D103: 12.c Resource allocation [Footnote 33] | E103: =LEFT(RIGHT(D103,LEN(D103)-4),SEARCH("[",D103)-6) -> Resource allocation | F103: 2.301724138 | G103: =VLOOKUP(G$38,'Quali 2'!$A$1:$BN$172,$M103,FALSE) -> 2 | H103: =IF(VLOOKUP(H$38,'Quali 2'!$A$1:$BN$172,$M103,FALSE)=999,NA(),VLOOKUP(H$38,'Quali 2'!$A$1:$BN$172,$M103,FALSE)) ->  | I103: 4 | J103: =IF(VLOOKUP($H$38,'BL Quali 2'!$A$1:$CK$158,K103,FALSE)=999, "No data", VLOOKUP($H$38,'BL Quali 2'!$A$1:$CK$158,K103,FALSE)) -> 1 | K103: 59 | L103: =VLOOKUP("Country",'Quali 2'!$A$1:$BN$172,$M103,FALSE) -> 35. Based on best fit as described in the Guidance Notes, please rate Resource Allocation in relation to Education policy or sector plan that includes multilingual education to allow children to learn in their mother tongue during the early grades. [Score 1=Weak to Score 4=Championing] | M103: 37
D104: 12.d Community engagement [Footnote 34] | E104: =LEFT(RIGHT(D104,LEN(D104)-4),SEARCH("[",D104)-6) -> Community engagement | F104: 2.465517241 | G104: =VLOOKUP(G$38,'Quali 2'!$A$1:$BN$172,$M104,FALSE) -> 1.666666667 | H104: =IF(VLOOKUP(H$38,'Quali 2'!$A$1:$BN$172,$M104,FALSE)=999,NA(),VLOOKUP(H$38,'Quali 2'!$A$1:$BN$172,$M104,FALSE)) ->  | I104: 4 | J104: =IF(VLOOKUP($H$38,'BL Quali 2'!$A$1:$CK$158,K104,FALSE)=999, "No data", VLOOKUP($H$38,'BL Quali 2'!$A$1:$CK$158,K104,FALSE)) -> 3 | K104: 60 | L104: =VLOOKUP("Country",'Quali 2'!$A$1:$BN$172,$M104,FALSE) -> 36. Based on best fit as described in the Guidance Notes, please rate Community Engagement in relation to Education policy or sector plan that includes multilingual education to allow children to learn in their mother tongue during the early grades. [Score 1=Weak to Score 4=Championing] | M104: 38
D107: 13.a Law/Policy [Footnote 36] | E107: =LEFT(RIGHT(D107,LEN(D107)-4),SEARCH("[",D107)-6) -> Law/Policy | F107: 3.058252427 | G107: =VLOOKUP(G$38,'Quali 2'!$A$1:$BN$172,$M107,FALSE) -> 2.9 | H107: =IF(VLOOKUP(H$38,'Quali 2'!$A$1:$BN$172,$M107,FALSE)=999,NA(),VLOOKUP(H$38,'Quali 2'!$A$1:$BN$172,$M107,FALSE)) -> 3 | I107: 4 | J107: =IF(VLOOKUP($H$38,'BL Quali 2'!$A$1:$CK$158,K107,FALSE)=999, "No data", VLOOKUP($H$38,'BL Quali 2'!$A$1:$CK$158,K107,FALSE)) -> 4 | K107: 63 | L107: =VLOOKUP("Country",'Quali 2'!$A$1:$BN$172,$M107,FALSE) -> 20. Based on best fit as described in the Guidance Notes, please rate Law/Policy in relation to Policies on inclusive education covering children with disabilities. [Score 1=Weak to Score 4=Championing] | M107: 22
D108: 13.b Physical environment [Footnote 37] | E108: Physical environment | F108: 2.051136364 | G108: =VLOOKUP(G$38,'Quali 2'!$A$1:$BN$172,$M108,FALSE) -> 1.875 | H108: =IF(VLOOKUP(H$38,'Quali 2'!$A$1:$BN$172,$M108,FALSE)=999,NA(),VLOOKUP(H$38,'Quali 2'!$A$1:$BN$172,$M108,FALSE)) ->  | I108: 4 | J108: =IF(VLOOKUP($H$38,'BL Quali 2'!$A$1:$CK$158,K108,FALSE)=999, "No data", VLOOKUP($H$38,'BL Quali 2'!$A$1:$CK$158,K108,FALSE)) -> 2 | K108: 64 | L108: =VLOOKUP("Country",'Quali 2'!$A$1:$BN$172,$M108,FALSE) -> 21. Based on best fit as described in the Guidance Notes, please rate Physical Environment in relation to Policies on inclusive education covering children with disabilities. [Score 1=Weak to Score 4=Championing] | M108: 23
D109: 13.c Materials and communication [Footnote 38] | E109: Materials and communication | F109: 2.287356322 | G109: =VLOOKUP(G$38,'Quali 2'!$A$1:$BN$172,$M109,FALSE) -> 2.625 | H109: =IF(VLOOKUP(H$38,'Quali 2'!$A$1:$BN$172,$M109,FALSE)=999,NA(),VLOOKUP(H$38,'Quali 2'!$A$1:$BN$172,$M109,FALSE)) ->  | I109: 4 | J109: =IF(VLOOKUP($H$38,'BL Quali 2'!$A$1:$CK$158,K109,FALSE)=999, "No data", VLOOKUP($H$38,'BL Quali 2'!$A$1:$CK$158,K109,FALSE)) -> 1 | K109: 65 | L109: =VLOOKUP("Country",'Quali 2'!$A$1:$BN$172,$M109,FALSE) -> 22. Based on best fit as described in the Guidance Notes, please rate Materials and Communication in relation to Policies on inclusive education covering children with disabilities. [Score 1=Weak to Score 4=Championing] | M109: 24
D110: 13.d Human Resources [Footnote 39] | E110: Human Resources | F110: 2.134831461 | G110: =VLOOKUP(G$38,'Quali 2'!$A$1:$BN$172,$M110,FALSE) -> 2.4 | H110: =IF(VLOOKUP(H$38,'Quali 2'!$A$1:$BN$172,$M110,FALSE)=999,NA(),VLOOKUP(H$38,'Quali 2'!$A$1:$BN$172,$M110,FALSE)) ->  | I110: 4 | J110: =IF(VLOOKUP($H$38,'BL Quali 2'!$A$1:$CK$158,K110,FALSE)=999, "No data", VLOOKUP($H$38,'BL Quali 2'!$A$1:$CK$158,K110,FALSE)) -> 2 | K110: 66 | L110: =VLOOKUP("Country",'Quali 2'!$A$1:$BN$172,$M110,FALSE) -> 23. Based on best fit as described in the Guidance Notes, please rate Human Resources in relation to Policies on inclusive education covering children with disabilities. [Score 1=Weak to Score 4=Championing] | M110: 25
D111: 13.e Attitudes [Footnote 40] | E111: Attitudes | F111: 2.551136364 | G111: =VLOOKUP(G$38,'Quali 2'!$A$1:$BN$172,$M111,FALSE) -> 2.5 | H111: =IF(VLOOKUP(H$38,'Quali 2'!$A$1:$BN$172,$M111,FALSE)=999,NA(),VLOOKUP(H$38,'Quali 2'!$A$1:$BN$172,$M111,FALSE)) ->  | I111: 4 | J111: =IF(VLOOKUP($H$38,'BL Quali 2'!$A$1:$CK$158,K111,FALSE)=999, "No data", VLOOKUP($H$38,'BL Quali 2'!$A$1:$CK$158,K111,FALSE)) -> 3 | K111: 67 | L111: =VLOOKUP("Country",'Quali 2'!$A$1:$BN$172,$M111,FALSE) -> 24. Based on best fit as described in the Guidance Notes, please rate Attitudes in relation to Policies on inclusive education covering children with disabilities. [Score 1=Weak to Score 4=Championing] | M111: 26
D112: 13.f EMIS [Footnote 41] | E112: EMIS | F112: 2.397058824 | G112: =VLOOKUP(G$38,'Quali 2'!$A$1:$BN$172,$M112,FALSE) -> 2.6 | H112: =IF(VLOOKUP(H$38,'Quali 2'!$A$1:$BN$172,$M112,FALSE)=999,NA(),VLOOKUP(H$38,'Quali 2'!$A$1:$BN$172,$M112,FALSE)) ->  | I112: 4 | J112: =IF(VLOOKUP($H$38,'BL Quali 2'!$A$1:$CK$158,K112,FALSE)=999, "No data", VLOOKUP($H$38,'BL Quali 2'!$A$1:$CK$158,K112,FALSE)) -> 2 | K112: 68 | L112: =VLOOKUP("Country",'Quali 2'!$A$1:$BN$172,$M112,FALSE) -> 25. Based on best fit as described in the Guidance Notes, please rate EMIS in relation to Policies on inclusive education covering children with disabilities. [Score 1=Weak to Score 4=Championing] | M112: 27
D114: 14.a Legal/policy framework [Footnote 42] | E114: =LEFT(RIGHT(D114,LEN(D114)-4),SEARCH("[",D114)-6) -> Legal/policy framework | F114: 2.560240964 | G114: =VLOOKUP(G$38,'Quali 2'!$A$1:$BN$172,$M114,FALSE) -> 2.5 | H114: =IF(VLOOKUP(H$38,'Quali 2'!$A$1:$BN$172,$M114,FALSE)=999,NA(),VLOOKUP(H$38,'Quali 2'!$A$1:$BN$172,$M114,FALSE)) -> 1 | I114: 4 | J114: =IF(VLOOKUP($H$38,'BL Quali 2'!$A$1:$CK$158,K114,FALSE)=999, "No data", VLOOKUP($H$38,'BL Quali 2'!$A$1:$CK$158,K114,FALSE)) -> 2 | K114: 70 | L114: =VLOOKUP("Country",'Quali 2'!$A$1:$BN$172,$M114,FALSE) -> 26. Based on best fit as described in the Guidance Notes, please rate Legal/Policy Framework in relation to Education policy or sector plan that specifies prevention and response mechanism to address gender-based violence in and around schools (SRGBV). [Score 1=Weak to Score 4=Championing] | M114: 28
D115: 14.b Prevention and response mechanism [Footnote 43] | E115: =LEFT(RIGHT(D115,LEN(D115)-4),SEARCH("[",D115)-6) -> Prevention and response mechanism | F115: 2.244186047 | G115: =VLOOKUP(G$38,'Quali 2'!$A$1:$BN$172,$M115,FALSE) -> 2.2 | H115: =IF(VLOOKUP(H$38,'Quali 2'!$A$1:$BN$172,$M115,FALSE)=999,NA(),VLOOKUP(H$38,'Quali 2'!$A$1:$BN$172,$M115,FALSE)) -> 1 | I115: 4 | J115: =IF(VLOOKUP($H$38,'BL Quali 2'!$A$1:$CK$158,K115,FALSE)=999, "No data", VLOOKUP($H$38,'BL Quali 2'!$A$1:$CK$158,K115,FALSE)) -> 1 | K115: 71 | L115: =VLOOKUP("Country",'Quali 2'!$A$1:$BN$172,$M115,FALSE) -> 27. Based on best fit as described in the Guidance Notes, please rate Prevention and Response Mechanism in relation to Education policy or sector plan that specifies prevention and response mechanism to address gender-based violence in and around schools (SRGBV). [Score 1=Weak to Score 4=Championing] | M115: 29
D116: 14.c Awareness, attitude and empowerment [Footnote 44] | E116: =LEFT(RIGHT(D116,LEN(D116)-4),SEARCH("[",D116)-6) -> Awareness, attitude and empowerment | F116: 2.274390244 | G116: =VLOOKUP(G$38,'Quali 2'!$A$1:$BN$172,$M116,FALSE) -> 2 | H116: =IF(VLOOKUP(H$38,'Quali 2'!$A$1:$BN$172,$M116,FALSE)=999,NA(),VLOOKUP(H$38,'Quali 2'!$A$1:$BN$172,$M116,FALSE)) -> 1 | I116: 4 | J116: =IF(VLOOKUP($H$38,'BL Quali 2'!$A$1:$CK$158,K116,FALSE)=999, "No data", VLOOKUP($H$38,'BL Quali 2'!$A$1:$CK$158,K116,FALSE)) -> 1 | K116: 72 | L116: =VLOOKUP("Country",'Quali 2'!$A$1:$BN$172,$M116,FALSE) -> 28. Based on best fit as described in the Guidance Notes, please rate Awareness, Attitude and Empowerment in relation to Education policy or sector plan that specifies prevention and response mechanism to address gender-based violence in and around schools (SRGBV). [Score 1=Weak to Score 4=Championing] | M116: 30
D117: 14.d Data collection, availability and use [Footnote 45] | E117: =LEFT(RIGHT(D117,LEN(D117)-4),SEARCH("[",D117)-6) -> Data collection, availability and use | F117: 2.092105263 | G117: =VLOOKUP(G$38,'Quali 2'!$A$1:$BN$172,$M117,FALSE) -> 1.625 | H117: =IF(VLOOKUP(H$38,'Quali 2'!$A$1:$BN$172,$M117,FALSE)=999,NA(),VLOOKUP(H$38,'Quali 2'!$A$1:$BN$172,$M117,FALSE)) -> 1 | I117: 4 | J117: =IF(VLOOKUP($H$38,'BL Quali 2'!$A$1:$CK$158,K117,FALSE)=999, "No data", VLOOKUP($H$38,'BL Quali 2'!$A$1:$CK$158,K117,FALSE)) -> 2 | K117: 73 | L117: =VLOOKUP("Country",'Quali 2'!$A$1:$BN$172,$M117,FALSE) -> 29. Based on best fit as described in the Guidance Notes, please rate Data Collection, Availability and Use in relation to Education policy or sector plan that specifies prevention and response mechanism to address gender-based violence in and around schools (SRGBV). [Score 1=Weak to Score 4=Championing] | M117: 31
D120: 16.a Is girls’ secondary schooling specifically mentioned as a priority in the national strategy/plan on education? | E120: Demand | F120: 2.311688312 | G120: =VLOOKUP(G$38,'Quali 2'!$A$1:$BN$172,$M120,FALSE) -> 2.2 | H120: =IF(VLOOKUP(H$38,'Quali 2'!$A$1:$BN$172,$M120,FALSE)=999,NA(),VLOOKUP(H$38,'Quali 2'!$A$1:$BN$172,$M120,FALSE)) -> 1.5 | I120: 4 | J120: =IF(VLOOKUP($H$38,'BL Quali 2'!$A$1:$CK$158,K120,FALSE)=999, "No data", VLOOKUP($H$38,'BL Quali 2'!$A$1:$CK$158,K120,FALSE)) ->  | L120: =VLOOKUP("Country",'Quali 2'!$A$1:$BN$172,$M120,FALSE) -> 30. Based on best fit as described in the Guidance Notes, please rate Creating Demand in relation to Girls' secondary education, in terms of access, retention, and learning is a recognised, targeted and budgeted priority. [Score 1=Weak to Score 4=Championing] | M120: 32
D121: 16.b Does the national strategy mention specific targets for at least one of the following: increasing girls’ secondary school enrolment, retention, or completion? | E121: Supportive Environment | F121: 2.45890411 | G121: =VLOOKUP(G$38,'Quali 2'!$A$1:$BN$172,$M121,FALSE) -> 2.7 | H121: =IF(VLOOKUP(H$38,'Quali 2'!$A$1:$BN$172,$M121,FALSE)=999,NA(),VLOOKUP(H$38,'Quali 2'!$A$1:$BN$172,$M121,FALSE)) -> 2.5 | I121: 4 | J121: =IF(VLOOKUP($H$38,'BL Quali 2'!$A$1:$CK$158,K121,FALSE)=999, "No data", VLOOKUP($H$38,'BL Quali 2'!$A$1:$CK$158,K121,FALSE)) ->  | L121: =VLOOKUP("Country",'Quali 2'!$A$1:$BN$172,$M121,FALSE) -> 31. Based on best fit as described in the Guidance Notes, please rate Supportive Learning Environment in relation to Girls' secondary education, in terms of access, retention, and learning is a recognised, targeted and budgeted priority. [Score 1=Weak to Score 4=Championing] | M121: 33
D122: 16.c Does the national strategy specify a budget line for improving girls’ secondary schooling? | E122: Resources | F122: 2.253521127 | G122: =VLOOKUP(G$38,'Quali 2'!$A$1:$BN$172,$M122,FALSE) -> 2.8 | H122: =IF(VLOOKUP(H$38,'Quali 2'!$A$1:$BN$172,$M122,FALSE)=999,NA(),VLOOKUP(H$38,'Quali 2'!$A$1:$BN$172,$M122,FALSE)) -> 2 | I122: 4 | J122: =IF(VLOOKUP($H$38,'BL Quali 2'!$A$1:$CK$158,K122,FALSE)=999, "No data", VLOOKUP($H$38,'BL Quali 2'!$A$1:$CK$158,K122,FALSE)) ->  | L122: =VLOOKUP("Country",'Quali 2'!$A$1:$BN$172,$M122,FALSE) -> 32. Based on best fit as described in the Guidance Notes, please rate Prioritisation and Resource Allocation in relation to Girls' secondary education, in terms of access, retention, and learning is a recognised, targeted and budgeted priority. [Score 1=Weak to Score 4=Championing] | M122: 34
L123: 15. Has the country office/staff authored any paper in peer-reviewed journal on Education issues? (If yes, list the paper and journal in the remarks)
D124: Out Profile | E124: Sheet name | L124: 16. What is girls’ secondary school enrolment rate? Please indicate the year for which the data is available in the remarks column.
D125: SMCs | E125: Output profile SMCs | L125: 16.a Is girls’ secondary schooling specifically mentioned as a priority in the national strategy/plan on education?
D126: EMIS Feedback | E126: Output profile EMIS Feedback | L126: 16.b Does the national strategy mention specific targets for at least one of the following: increasing girls’ secondary school enrolment, retention, or completion?
D127: Innovations | E127: Output profile Innovations | L127: 16.c Does the national strategy specify a budget line for improving girls’ secondary schooling?
D128: CFS | E128: Output profile CFS
D129: Learning Assessm | E129: Output profile Learning Assess
D130: Early Learning | E130: Output profile Early Learning
D131: Risk Management | E131: Output profile Risk Mgt
D132: EMIS | E132: Output profile EMIS
D133: Multilingual | E133: Output profile Multilingual
D134: Inclusive Educat | E134: Output profile Inclusive Educat
D135: SRGBV | E135: Output profile SRGBV
D136: Girls' Education | E136: Output profile Girls' Education

Sheet Data for global profile (hidden)
G4: World | I4: 1
C5: Selected country data
E6: PRE PRIMARY EDUCATION | K6: Zimbabwe | L6: Baseline
G7: =$G$4 -> World | H7: Benchmark | I7: # c. reaching Benchmark | J7: # countries | L7: World | M7: # c. reaching Benchmark | N7: # countries | S7: Reach Benchmark | T7: # countries
F9: GER (%) MF | L9: 65
F10: GER(%) F | L10: 55
F11: GER (%) M | L11: 55
D12: P54b | E12: ECD NAR Poorest Quint | F12: NAR_PQ | G12: =Master!AC242 -> 20.05714286 | H12: 25 | I12: =VLOOKUP($G$7,Master!$A$278:$AH$286,$P12,FALSE) -> 19 | J12: =Master!AC275 -> 60 | K12: =I12/J12 -> 0.3166666667 | L12: 13.9 | M12: =VLOOKUP($G$7,'BL Master'!$A$278:$AH$286,$P12,FALSE) -> 9 | N12: =VLOOKUP($G$7,'BL Master'!$A$265:$AH$275,$P12,FALSE) -> 53 | O12: =M12/N12 -> 0.1698113208 | P12: 29 | Q12: =VLOOKUP(Q$16,Master!$A$3:$BP$246,$P12,FALSE) -> ECD NAR-PQ | R12: ECD NAR-PQ | S12: 9 | T12: 53
E14: PRIMARY EDUCATION
Q15: Check | R15: Check
A16: Current Year | B16: Baseline Year | G16: =$G$4 -> World | H16: Benchmark | I16: # c. reaching Benchmark | J16: # countries | L16: World | M16: # c. reaching Benchmark | N16: # countries | Q16: UIS country name | R16: UIS country name
D17: P51 | E17: Primary OOSC | F17: OOSCR (%) MF | G17: =Master!U299 -> 8.86545 | H17: 5 | I17: =Master!U286 -> 50 | J17: =Master!U275 -> 126 | K17: =I17/J17 -> 0.3968253968 | L17: 8.9 | M17: =VLOOKUP($G$7,'BL Master'!$A$278:$AH$286,$P17,FALSE) -> 51 | N17: =VLOOKUP($G$7,'BL Master'!$A$265:$AH$275,$P17,FALSE) -> 117 | O17: =M17/N17 -> 0.4358974359 | P17: 21 | Q17: =VLOOKUP(Q$16,Master!$A$3:$BP$246,$P17,FALSE) -> P-OOSCR MF | R17: P-OOSCR MF | S17: 57 | T17: 131
A18: =CONCATENATE("World"," (",Master!$I$292,")") -> World (2016) | B18: =VLOOKUP(G$16,#REF!,15,FALSE) ->  | C18: Impact | D18: P5a | E18: Number of OSC - M | F18: Boys | G18: =Master!L299 -> 29052401 | I18: =VLOOKUP($G$7,Master!$A$278:$AH$286,$P18,FALSE) ->  | L18: 27289636 | M18: =VLOOKUP($G$7,'BL Master'!$A$278:$AH$286,$P18,FALSE) ->  | P18: 12 | Q18: =VLOOKUP(Q$16,Master!$A$3:$BP$246,$P18,FALSE) -> P-NB-OOSCR M | R18: P-NB-OOSCR M
A19: =CONCATENATE("World"," (",Master!$I$292,")") -> World (2016) | B19: =VLOOKUP(G$16,#REF!,15,FALSE) ->  | E19: Number of OSC - F | F19: Girls | G19: =Master!J299 -> 34291025 | I19: =VLOOKUP($G$7,Master!$A$278:$AH$286,$P19,FALSE) ->  | L19: 30549241 | M19: =VLOOKUP($G$7,'BL Master'!$A$278:$AH$286,$P19,FALSE) ->  | P19: 10 | Q19: =VLOOKUP(Q$16,Master!$A$3:$BP$246,$P19,FALSE) -> P-NB-OOSC F | R19: P-NB-OOSCR F
A20: =CONCATENATE("World"," (",Master!$I$292,")") -> World (2016) | B20: =VLOOKUP(G$16,#REF!,15,FALSE) ->  | E20: Number of OSC - MF | F20: =CONCATENATE("All children: ",A20) -> All children: World (2016) | G20: =Master!H299 -> 63343426 | I20: =VLOOKUP($G$7,Master!$A$278:$AH$286,$P20,FALSE) ->  | L20: 57838877 | M20: =VLOOKUP($G$7,'BL Master'!$A$278:$AH$286,$P20,FALSE) ->  | P20: 8 | Q20: =VLOOKUP(Q$16,Master!$A$3:$BP$246,$P20,FALSE) -> P-NB-OOSC MF | R20: P-NB-OOSCR MF
A21: =CONCATENATE("World"," (",Master!$I$292,")") -> World (2016) | B21: =VLOOKUP(G$16,#REF!,15,FALSE) ->  | D21: P5b | E21: PCR - M | F21: GIR LG (%) M | G21: =Master!R299 -> 89.91 | I21: =VLOOKUP($G$7,Master!$A$278:$AH$286,$P21,FALSE) ->  | L21: =VLOOKUP(G$16,#REF!,$P21,FALSE) ->  | M21: =VLOOKUP($G$7,'BL Master'!$A$278:$AH$286,$P21,FALSE) ->  | P21: 32 | Q21: =VLOOKUP(Q$16,Master!$A$3:$BP$246,$P21,FALSE) -> Adult Support Y | R21: Adult Support Y
A22: =CONCATENATE("World"," (",Master!$I$292,")") -> World (2016) | B22: =VLOOKUP(G$16,#REF!,15,FALSE) ->  | E22: PCR - F | F22: GIR LG (%) F | G22: =Master!P299 -> 89.32 | I22: =VLOOKUP($G$7,Master!$A$278:$AH$286,$P22,FALSE) ->  | L22: =VLOOKUP(G$16,#REF!,$P22,FALSE) ->  | M22: =VLOOKUP($G$7,'BL Master'!$A$278:$AH$286,$P22,FALSE) ->  | P22: 34 | Q22: =VLOOKUP(Q$16,Master!$A$3:$BP$246,$P22,FALSE) -> LS-GPI GER y | R22: LS-GPI GER y
A23: =CONCATENATE("World"," (",Master!$I$292,")") -> World (2016) | B23: =VLOOKUP(G$16,#REF!,15,FALSE) ->  | E23: PCR - MF | F23: GIR LG (%) MF | G23: =Master!N299 -> 89.62 | I23: =VLOOKUP($G$7,Master!$A$278:$AH$286,$P23,FALSE) ->  | L23: =VLOOKUP(G$16,#REF!,$P23,FALSE) ->  | M23: =VLOOKUP($G$7,'BL Master'!$A$278:$AH$286,$P23,FALSE) ->  | P23: 30 | Q23: =VLOOKUP(Q$16,Master!$A$3:$BP$246,$P23,FALSE) -> ECD NARy | R23: ECD NARy
D24: P5abis | F24: NB-OOSC GPI | G24: =G19/G18 -> 1.180316388 | I24: =IFERROR(I19/I18,1) -> 1 | L24: 1.119444796
D25: P5bbis | F25: GPI-GIRLG | G25: =G22/G21 -> 0.9934378823 | I25: =IFERROR(I22/I21,1) -> 1 | L25: =L22/L21 -> 
F26: Q1 GER
F27: Transition Rate (%) M | L27: 90
F28: Transition Rate (%) F | L28: 78
F29: Transition Rate (%) MF | L29: 80
E30: Learning Outcomes | G30: =CONCATENATE("World: ",#REF!, " / ",(#REF!+#REF!)) ->  | L30: World: 33 / 52 | M30: 33 | N30: 52 | O30: =M30/N30 -> 0.6346153846
E31: Number of countries with increase in learning outcomes | G31: =#REF!*100 ->  | I31: =#REF! ->  | J31: =#REF! ->  | L31: =#REF!/(#REF!+#REF!)*100 ->  | M31: 33 | N31: 52
D32: P54a | E32: Primary NAR Poorest Quint | F32: NAR_PQ | G32: =Master!AA242 -> 79.39915531 | H32: 80 | I32: =Master!AA286 -> 48 | J32: =Master!AA275 -> 78 | K32: =I32/J32 -> 0.6153846154 | L32: 72.61084465 | M32: =VLOOKUP($G$7,'BL Master'!$A$278:$AH$286,$P32,FALSE) -> 32 | N32: =VLOOKUP($G$7,'BL Master'!$A$265:$AH$275,$P32,FALSE) -> 67 | O32: =M32/N32 -> 0.4776119403 | P32: 27 | Q32: =VLOOKUP(Q$16,Master!$A$3:$BP$246,$P32,FALSE) -> NAR-PQ | R32: NAR-PQ | S32: 45 | T32: 93
D33: P55 | F33: % 36-59mths involved in learning activities | G33: =Master!AE242 -> 65.65209877 | H33: 80 | I33: =Master!AE286 -> 24 | J33: =Master!AE275 -> 72 | K33: =I33/J33 -> 0.3333333333 | L33: 66.90615385 | M33: =VLOOKUP($G$7,'BL Master'!$A$278:$AH$286,$P33,FALSE) -> 16 | N33: =VLOOKUP($G$7,'BL Master'!$A$265:$AH$275,$P33,FALSE) -> 52 | O33: =M33/N33 -> 0.3076923077 | P33: 31 | Q33: =VLOOKUP(Q$16,Master!$A$3:$BP$246,$P33,FALSE) -> Adult Support | R33: Adult Support | S33: 16 | T33: 52
D34: P56 | F34: UNICEF only % of children in humanitarian situations accessing formal or non-formal basic education | G34: =G106/G105*100 -> 73.22689522 | H34: 80 | L34: 58.57819507
D35: P5d2 | F35: All % of children in humanitarian situations | G35: =G108/G107*100 -> 64.11866027 | H35: 50 | L35: 20.41164687
L36: =CONCATENATE("Countries reaching benchmark: ",'Data for global profile'!I47," /",'Data for global profile'!$J$47,", Baseline = ",'Data for global profile'!$M$47," /",'Data for global profile'!$N$47) -> Countries reaching benchmark: 18 /94, Baseline = 21 /103
E37: LOWER SECONDARY EDUCATION
G38: =$G$4 -> World | H38: Benchmark | I38: # c. reaching Benchmark | J38: # countries | L38: World | M38: # c. reaching Benchmark | N38: # countries
D39: P51 | E39: L Sec OOSC | F39: OOSCR (%) MF | G39: =Master!W242 -> 13.28386927 | H39: 5 | I39: =VLOOKUP($G$7,Master!$A$278:$AH$286,$P39,FALSE) -> 28 | J39: =VLOOKUP($G$7,Master!$A$265:$AH$275,$P39,FALSE) -> 102 | K39: =I39/J39 -> 0.2745098039 | L39: 18.1949 | M39: =VLOOKUP($G$7,'BL Master'!$A$278:$AH$286,$P39,FALSE) -> 22 | N39: =VLOOKUP($G$7,'BL Master'!$A$265:$AH$275,$P39,FALSE) -> 91 | O39: =M39/N39 -> 0.2417582418 | P39: 23 | Q39: =VLOOKUP(Q$16,Master!$A$3:$BP$246,$P39,FALSE) -> LS-OOSCR MF | R39: LS-OOSCR MF | S39: 25 | T39: 116
E40: Learning Outcomes | F40: MF
F41: F
D42: P5e1 | F42: GPI | G42: =Master!AG225 -> 0.97 | H42: 80 | I42: =Master!AG286 -> 49 | J42: =Master!AG275 -> 139 | K42: =I42/J42 -> 0.3525179856 | L42: 0.97415 | M42: =VLOOKUP($G$7,'BL Master'!$A$278:$AH$286,$P42,FALSE) -> 48 | N42: =VLOOKUP($G$7,'BL Master'!$A$265:$AH$275,$P42,FALSE) -> 128 | O42: =M42/N42 -> 0.375 | P42: 33 | Q42: =VLOOKUP(Q$16,Master!$A$3:$BP$246,$P42,FALSE) -> LS-GPI GER | R42: LS-GPI GER | T42: 144
E45: BUDGET FOR EDUCATION
G46: =$G$4 -> World | H46: Benchmark | I46: # c. reaching Benchmark | J46: # countries | L46: World | M46: # c. reaching Benchmark | N46: # countries | S46: # c. reaching Benchmark | T46: # countries
D47: P53 | E47: Public expenditure on education as % of total government expenditure | G47: =Master!Y242 -> 14.75230925 | H47: 20 | I47: =Master!Y286 -> 18 | J47: =Master!Y275 -> 94 | K47: =I47/J47 -> 0.1914893617 | L47: 15.23044 | M47: 21 | N47: 103 | O47: =M47/N47 -> 0.2038834951 | P47: 25 | Q47: =VLOOKUP(Q$16,Master!$A$3:$BP$246,$P47,FALSE) -> % EDU IN BUDGET | R47: % EDU IN BUDGET | S47: 22 | T47: 106
E49: BUDGET FOR EDUCATION IN HUMANITARIAN SITUATIONS
G51: =$G$4 -> World | H51: Benchmark | I51: # c. reaching Benchmark | J51: # countries | L51: World | M51: # c. reaching Benchmark | N51: # countries
E52: Percentage for Education in Humanitarian funds | L52: 17
E54: HUMANITARIAN SITUATIONS
G56: =$G$4 -> World | H56: Benchmark | I56: # c. reaching Benchmark | J56: # countries | L56: World | M56: # c. reaching Benchmark | N56: # countries
E57: Number and percentage of children in humanitarian situations accessing formal or non-formal basic education | I57: 60 | L57: 75 | M57: 60
L62: Baseline
A63: Current | B63: Baseline | G63: =$G$4 -> World | H63: Benchmark | L63: World
A64: 50 | B64: 79 | C64: Edu 1 | D64: A1 | E64: School Management Committees | F64: =E64 -> School Management Committees | G64: ='Quali 2'!$AX$172 -> 2.467881944 | L64: =ROUND(VLOOKUP(L$63,'BL Quali 2'!$A$1:$CP$170,$B64,FALSE),1) -> 2.2
A65: 51 | B65: 80 | C65: Edu 2 | D65: A2 | E65: EMIS Feedback to SMCs | F65: EMIS Feedback to SMCs | G65: ='Quali 2'!$AY$172 -> 2.225274725 | L65: =ROUND(VLOOKUP(L$63,'BL Quali 2'!$A$1:$CP$170,$B65,FALSE),1) -> 2.1
A66: 52 | B66: 81 | C66: Edu 3 | E66: P5.b.1 Countries with innovative approaches at scale to improve access to education and learning outcomes for the most disadvantaged and excluded children | F66: Innovative approaches | G66: ='Quali 2'!$AZ$172 -> 2.414285714 | L66: =ROUND(VLOOKUP(L$63,'BL Quali 2'!$A$1:$CP$170,$B66,FALSE),1) -> 2.1
A67: 53 | B67: 82 | C67: Edu 4 | E67: P5.b.2 Countries with quality standards consistent with child-friendly schools/education or similar models developed or revised | F67: Quality standards: child-friendly ed. | G67: ='Quali 2'!$BA$172 -> 2.695833333 | L67: =ROUND(VLOOKUP(L$63,'BL Quali 2'!$A$1:$CP$170,$B67,FALSE),1) -> 2.5
A68: 54 | B68: 83 | C68: Edu 5 | E68: P5.c.1 Countries with well-functioning student learning assessment system, especially for early grades | F68: Learning Assessment Syst. | G68: ='Quali 2'!$BB$172 -> 2.50093633 | L68: =ROUND(VLOOKUP(L$63,'BL Quali 2'!$A$1:$CP$170,$B68,FALSE),1) -> 2.3
A69: 55 | B69: 84 | C69: Edu 6 | E69: P5.c.2 Countries with effective early learning policies and quality early learning programmes | F69: Policies for Early Learning | G69: ='Quali 2'!$BC$172 -> 2.498727735 | L69: =ROUND(VLOOKUP(L$63,'BL Quali 2'!$A$1:$CP$170,$B69,FALSE),1) -> 2.2
A70: 56 | B70: 85 | C70: Edu 9 | E70: P5.c.3 Countries with an education sector plan/policy that includes risk assessment and risk management | F70: Risk Assesst & Mgt | G70: ='Quali 2'!$BD$172 -> 2.283482143 | L70: =ROUND(VLOOKUP(L$63,'BL Quali 2'!$A$1:$CP$170,$B70,FALSE),1) -> 1.9
A75: 61 | B75: 86 | C75: 11 | E75: P5.e.2 Countries with EMIS providing disaggregated data that allow identification of barriers and bottlenecks that inhibit realization of the rights of disadvantaged children | F75: Data on disadvantaged children | G75: ='Quali 2'!$BI$172 -> 2.595703125 | L75: =ROUND(VLOOKUP(L$63,'BL Quali 2'!$A$1:$CP$170,$B75,FALSE),1) -> 2.3
A76: 57 | B76: 88 | C76: 13 | E76: P5.e.3 Countries with policies on inclusive education covering children with disabilities | F76: Policies on inclusive education | G76: ='Quali 2'!$BE$172 -> 2.398743386 | L76: =ROUND(VLOOKUP(L$63,'BL Quali 2'!$A$1:$CP$170,$B76,FALSE),1) -> 2.1
A77: 58 | B77: 89 | C77: 14 | E77: P5.e.4 Countries with an education sector policy or plan that specify prevention and response mechanisms to address gender-based violence in around schools | F77: Policy on gender-based violence | G77: ='Quali 2'!$BF$172 -> 2.246453901 | L77: =ROUND(VLOOKUP(L$63,'BL Quali 2'!$A$1:$CP$170,$B77,FALSE),1) -> 2
A78: 59 | B78: 90 | E78: P5.e.5 Countries where girls’ secondary education, in terms of enrolment, retention, and completion is a recognised, targeted and budgeted education priority | F78: Girls' Secondary Education | G78: ='Quali 2'!$BG$172 -> 2.327309237 | L78: =ROUND(VLOOKUP(L$63,'BL Quali 2'!$A$1:$CP$170,$B78,FALSE),1) -> 2.1
A79: 60 | B79: 87 | E79: P5.e.6 Countries with an education policy/sector plan that includes multilingual education to allow children to learn in their mother tongue during the early grades | F79: Multilingual Education | G79: ='Quali 2'!$BH$172 -> 2.568452381 | L79: =ROUND(VLOOKUP(L$63,'BL Quali 2'!$A$1:$CP$170,$B79,FALSE),1) -> 2.3
E81: 1. Based on best fit as described in the Guidance Notes [posted on the Help Forum], please rate the following criteria on whether the country has functional school management committee in primary and secondary schools.
A82: 3 | B82: 4 | E82: 1.a Community participation [Footnote 1] | F82: =LEFT(RIGHT(E82,LEN(E82)-4),SEARCH("[",E82)-6) -> Community participation | G82: ='Quali 2'!$C$172 -> 2.620879121 | H82: 4 | L82: 2.37037037
A83: 4 | B83: 5 | E83: 1.b Accountability [Footnote 2] | F83: Accountability | G83: ='Quali 2'!$D$172 -> 2.469135802 | H83: 4 | L83: 2.375
A84: 5 | B84: 6 | E84: 1.c Monitoring [Footnote 3] | F84: Monitoring | G84: ='Quali 2'!$E$172 -> 2.3625 | H84: 4 | L84: 2.245901639
E85: 2. Based on best fit as described in the Guidance Notes [posted on the Help Forum], please rate the following criteria on whether the EMIS in your country feeds findings back to communities or school management committees.
A86: 6 | B86: 10 | E86: 2.a Information feedback and transparency | F86: Information Feedback and Transparency | G86: ='Quali 2'!$F$172 -> 2.172619048 | H86: 4 | L86: 2.024193548
A87: 7 | B87: 11 | E87: 2.c Training and community participation | F87: Training and community participation | G87: ='Quali 2'!$G$172 -> 2.283783784 | H87: 4 | L87: 2.105691057
A90: 8 | B90: 13 | E90: 3.a Evidence [Footnote 7] | F90: Evidence | G90: ='Quali 2'!$H$172 -> 2.396428571 | H90: 4 | L90: 2.082089552
A91: 9 | B91: 14 | E91: 3.b Strategy/Traction [Footnote 8] | F91: Strategy/Traction | G91: ='Quali 2'!$I$172 -> 2.390510949 | H91: 4 | L91: 2.143939394
A92: 10 | B92: 15 | E92: 3.c Scalability [Footnote 9] | F92: Scalability | G92: ='Quali 2'!$J$172 -> 2.464028777 | H92: 4 | L92: 2.061068702
A94: 11 | B94: 21 | E94: 4.a CFS/CFE standards | F94: CFS/CFE standards | G94: ='Quali 2'!$K$172 -> 2.597457627 | H94: 4 | L94: 2.398897059
A95: 12 | B95: 22 | E95: 4.e Measuring learning outcomes [Footnote 15] | F95: Measuring learning outcomes | G95: ='Quali 2'!$L$172 -> 2.801886792 | H95: 4 | L95: 2.584615385
A97: 13 | B97: 24 | E97: 5.a Classroom assessment [Footnote 16] | F97: Classroom assessment | G97: ='Quali 2'!$M$172 -> 2.393333333 | H97: 4 | L97: 2.274074074
A98: 14 | B98: 25 | E98: 5.b Examinations [Footnote 17] | F98: Examinations | G98: ='Quali 2'!$N$172 -> 2.743421053 | H98: 4 | L98: 2.476923077
A99: 15 | B99: 26 | E99: 5.c National Large-Scale Assessment [Footnote 18] | F99: National Assessments | G99: ='Quali 2'!$O$172 -> 2.328947368 | H99: 4 | L99: 2.160305344
A101: 16 | B101: 30 | E101: 6.a Early learning curriculum and standards [Footnote 21] | F101: =LEFT(RIGHT(E101,LEN(E101)-4),SEARCH("[",E101)-6) -> Early learning curriculum and standards | G101: ='Quali 2'!$P$172 -> 2.75 | H101: 4 | L101: 2.335820896
A102: 17 | B102: 31 | E102: 6.b ECCE facility [Footnote 22] | F102: =LEFT(RIGHT(E102,LEN(E102)-4),SEARCH("[",E102)-6) -> ECCE facility | G102: ='Quali 2'!$Q$172 -> 2.292682927 | H102: 4 | L102: 2.053846154
A103: 18 | B103: 32 | E103: 6.c Community participation [Footnote 23] | F103: =LEFT(RIGHT(E103,LEN(E103)-4),SEARCH("[",E103)-6) -> Community participation | G103: ='Quali 2'!$R$172 -> 2.397540984 | H103: 4 | L103: 2.25984252
A105: 46 | B105: 34 | E105: 7.a UNICEF Targetted | F105: =RIGHT(E105,LEN(E105)-4) -> UNICEF Targetted | G105: ='Quali 2'!$AT$172 -> 11985431 | H105: 4 | L105: 10209333
A106: 47 | B106: 35 | E106: 7.b UNICEF Reached | F106: =RIGHT(E106,LEN(E106)-4) -> UNICEF Reached | G106: ='Quali 2'!$AU$172 -> 8776559 | H106: 4 | L106: 5980443
A107: 48 | B107: 36 | E107: 7.c All partners Targetted | F107: All partners Targetted | G107: ='Quali 2'!$AV$172 -> 17435592 | H107: 4 | L107: 2083893
A108: 49 | B108: 37 | E108: 7.d All partners Reached | F108: All partners Reached | G108: ='Quali 2'!$AW$172 -> 11179468 | H108: 4 | L108: 231002
B109: 38 | E109: 7.e How many of those targeted (planned) children did access primary education? Please provide disaggregated data for boys and girls in the remarks column separating two values with a slash symbol (boys/girls). | F109: How many of those targeted (planned) children did access primary education? Please provide disaggregated data for boys and girls in the remarks column separating two values with a slash symbol (boys/girls). | H109: 4 | L109: 4253664
B110: 39 | E110: 7.f How many of those targeted (planned) children did access secondary education? Please provide disaggregated data for boys and girls in the remarks column separating two values with a slash symbol (boys/girls). | F110: How many of those targeted (planned) children did access secondary education? Please provide disaggregated data for boys and girls in the remarks column separating two values with a slash symbol (boys/girls). | H110: 4 | L110: 151567
B111: 40 | E111: 7.g How many of those targeted (planned) children did access non-formal education? Please provide disaggregated data for boys and girls in the remarks column separating two values with a slash symbol (boys/girls). | F111: How many of those targeted (planned) children did access non-formal education? Please provide disaggregated data for boys and girls in the remarks column separating two values with a slash symbol (boys/girls). | H111: 4 | L111: 638920
B113: 42 | E113: 8.a If yes to 8, were partners convened? | F113: Partners convened | H113: 4 | L113: 0.2518518519
B114: 43 | E114: 8.b If yes to 8, was ToR for coordinating mechanism established? | F114: ToR for coordinating mechanism established | H114: 4 | L114: 0.223880597
B115: 44 | E115: 8.c If yes to 8, was the cluster operational strategy/action plan established? | F115: Cluster operational strategy/action plan established | H115: 4 | L115: 0.223880597
B116: 45 | E116: 8.d If yes to 8, was performance management system in place? | F116: Performance management system in place | H116: 4 | L116: 0.1417910448
B117: 46 | E117: 8.e If yes to 8, is sector coverage known from partner reports? | F117: Sector coverage known from partner reports | H117: 4 | L117: 0.2164179104
A119: 19 | B119: 48 | E119: 9.a Risk Assessment [Footnote 24] | F119: =LEFT(RIGHT(E119,LEN(E119)-4),SEARCH("[",E119)-6) -> Risk Assessment | G119: ='Quali 2'!$S$172 -> 2.395454545 | H119: 4 | L119: 1.904761905
A120: 20 | B120: 49 | E120: 9.b Risk reduction strategy [Footnote 25] | F120: =LEFT(RIGHT(E120,LEN(E120)-4),SEARCH("[",E120)-6) -> Risk reduction strategy | G120: ='Quali 2'!$T$172 -> 2.38317757 | H120: 4 | L120: 1.961538462
A121: 21 | B121: 50 | E121: 9.c Human and financial resources [Footnote 26] | F121: =LEFT(RIGHT(E121,LEN(E121)-4),SEARCH("[",E121)-6) -> Human and financial resources | G121: ='Quali 2'!$U$172 -> 2.106796117 | H121: 4 | L121: 2.049019608
B123: 51 | E123: 10. Does the country have gender parity in lower secondary education? [Footnote 27] | L123: 0.6268656716
A125: 39 | B125: 53 | E125: 11.a Data quality and timeliness (teaching and learning) [Footnote 28] | F125: Data quality and timeliness | G125: ='Quali 2'!$AM$172 -> 2.55078125 | H125: 4 | L125: 2.180451128
A126: 40 | B126: 54 | E126: 11.b Comprehensiveness [Footnote 29] | F126: =LEFT(RIGHT(E126,LEN(E126)-4),SEARCH("[",E126)-6) -> Comprehensiveness | G126: ='Quali 2'!$AN$172 -> 2.748 | H126: 4 | L126: 2.348837209
A127: 41 | B127: 55 | E127: 11.c Disaggregation [Footnote 30] | F127: Disaggregation | G127: ='Quali 2'!$AO$172 -> 2.508 | H127: 4 | L127: 2.290076336
A129: 35 | B129: 57 | E129: 12.a Policy environment [Footnote 31] | F129: Policy environment | G129: ='Quali 2'!$AI$172 -> 2.909836066 | H129: 4 | L129: 2.541284404
A130: 36 | B130: 58 | E130: 12.b Alignment [Footnote 32] | F130: Alignment | G130: ='Quali 2'!$AJ$172 -> 2.59375 | H130: 4 | L130: 2.213592233
A131: 37 | B131: 59 | E131: 12.c Resource allocation [Footnote 33] | F131: Resource allocation | G131: ='Quali 2'!$AK$172 -> 2.301724138 | H131: 4 | L131: 2
A132: 38 | B132: 60 | E132: 12.d Community engagement [Footnote 34] | F132: Community engagement | G132: ='Quali 2'!$AL$172 -> 2.465517241 | H132: 4 | L132: 2.284313725
B133: 61 | E133: 12.e Implementation [Footnote 35] | F133: Implementation | H133: 4 | L133: 2.25
A135: 22 | B135: 63 | E135: 13.a Law/Policy [Footnote 36] | F135: Law/Policy | G135: ='Quali 2'!$V$172 -> 3.058252427 | H135: 4 | L135: 2.684210526
A136: 23 | B136: 64 | E136: 13.b Physical environment [Footnote 37] | F136: Physical environment | G136: ='Quali 2'!$W$172 -> 2.051136364 | H136: 4 | L136: 1.930769231
A137: 24 | B137: 65 | E137: 13.c Materials and communication [Footnote 38] | F137: Materials and communication | G137: ='Quali 2'!$X$172 -> 2.287356322 | H137: 4 | L137: 2.038461538
A138: 25 | B138: 66 | E138: 13.d Human Resources [Footnote 39] | F138: Human Resources | G138: ='Quali 2'!$Y$172 -> 2.134831461 | H138: 4 | L138: 1.96969697
A139: 26 | B139: 67 | E139: 13.e Attitudes [Footnote 40] | F139: Attitudes | G139: ='Quali 2'!$Z$172 -> 2.551136364 | H139: 4 | L139: 2.3046875
A140: 27 | B140: 68 | E140: 13.f EMIS [Footnote 41] | F140: EMIS | G140: ='Quali 2'!$AA$172 -> 2.397058824 | H140: 4 | L140: 2.093023256
A142: 28 | B142: 70 | E142: 14.a Legal/policy framework [Footnote 42] | F142: Legal/policy framework | G142: ='Quali 2'!$AB$172 -> 2.560240964 | H142: 4 | L142: 2.152380952
A143: 29 | B143: 71 | E143: 14.b Prevention and response mechanism [Footnote 43] | F143: Prevention and response mechanism | G143: ='Quali 2'!$AC$172 -> 2.244186047 | H143: 4 | L143: 1.9
A144: 30 | B144: 72 | E144: 14.c Awareness, attitude and empowerment [Footnote 44] | F144: Awareness, attitude and empowerment | G144: ='Quali 2'!$AD$172 -> 2.274390244 | H144: 4 | L144: 2.059405941
A145: 31 | B145: 73 | E145: 14.d Data collection, availability and use [Footnote 45] | F145: Data collection, availability and use | G145: ='Quali 2'!$AE$172 -> 2.092105263 | H145: 4 | L145: 2.009708738
H146: 4 | L146: 2.152380952
A147: 42 | E147: 15. Has the country office/staff authored any paper in peer-reviewed journal on Education issues? (If yes, list the paper and journal in the remarks) | F147: Has the country office/staff authored any paper in peer-reviewed journal on Education issues? (If yes, list the paper and journal in the remarks) | G147: ='Quali 2'!AP172 -> 12 | H147: 4 | L147: 1.9
E148: 16. What is girls’ secondary school gross enrolment rate? Please indicate the year for which the data is available in the remarks column. | L148: 2.059405941
A149: 32 | E149: 16.a Is girls’ secondary schooling specifically mentioned as a priority in the national strategy/plan on education? | F149: Mention of girls’ secondary schooling mentioned as a priority in the national strategy/plan on education | G149: ='Quali 2'!$AF$172 -> 2.311688312 | H149: 4 | L149: 2.009708738
A150: 33 | E150: 16.b Does the national strategy mention specific targets for at least one of the following: increasing girls’ secondary school enrolment, retention, or completion? | F150: National strategy mentioning specific targets for at least one of the following: increasing girls’ secondary school enrolment, retention, or completion? | G150: ='Quali 2'!$AG$172 -> 2.45890411 | H150: 4 | L150: 0.07382550336
A151: 34 | E151: 16.c Does the national strategy specify a budget line for improving girls’ secondary schooling? | F151: National strategy specifying a budget line for improving girls’ secondary schooling | G151: ='Quali 2'!$AH$172 -> 2.253521127 | H151: 4 | L151: 57.42929577
E152: 16.a Is girls’ secondary schooling specifically mentioned as a priority in the national strategy/plan on education? | F152: =F149 -> Mention of girls’ secondary schooling mentioned as a priority in the national strategy/plan on education | H152: 4 | L152: 0.357615894
E153: 16.b Does the national strategy mention specific targets for at least one of the following: increasing girls’ secondary school enrolment, retention, or completion? | F153: =F149 -> Mention of girls’ secondary schooling mentioned as a priority in the national strategy/plan on education | H153: 4 | L153: 0.32
E154: 16.c Does the national strategy specify a budget line for improving girls’ secondary schooling? | F154: =F150 -> National strategy mentioning specific targets for at least one of the following: increasing girls’ secondary school enrolment, retention, or completion? | H154: 4 | L154: 0.1666666667
M156: Baseline
H157: 2 | I157: =VLOOKUP(G7,$B$159:$C$166,2,FALSE) -> 30 | K157: 1 | P157: 2 | Q157: 1 | R157: 3 | U157: 2 | V157: 1
C158: Baseline | D158: Current | H158: Yes % | I158: Yes | J158: Total Number of Countries | K158: No | L158: Benchmark number of Countries | M158: Yes | N158: Total | P158: Yes % | Q158: No | R158: Target | S158: Target % | T158: Target % | U158: Yes % | V158: No | W158: Target Countries
B159: ECAR | C159: 2 | D159: 2 | E159: P5.a.1. SMCs | H159: ='Quali 2'!D186 -> 0.5520833333 | I159: ='Quali 2'!$B$186 -> 53 | J159: =I159+K159 -> 96 | K159: ='Quali 2'!$C$186 -> 43 | L159: =CONCATENATE(I159, " Countries ", "(", TEXT(H159,"0%"),")") -> 53 Countries (55%) | M159: =VLOOKUP($G$63,'BL Quali 2'!$A$177:$BN$184, $C159, FALSE) -> 45 | N159: =M159+Q159 -> 134 | P159: =VLOOKUP($G$63,'BL Quali 2'!$A$177:$BN$184, $C159+$P$157, FALSE) -> 0.3358208955 | Q159: =VLOOKUP($G$63,'BL Quali 2'!$A$177:$BN$184, $C159+$Q$157, FALSE) -> 89 | R159: =VLOOKUP($G$63,'BL Quali 2'!$A$177:$BN$184, $C159+$R$157, FALSE) -> 112 | S159: 0.47 | T159: 0.8382352941 | U159: =VLOOKUP($G$63,'BL Quali 2'!$A$177:$BN$184, $C159+$P$157, FALSE) -> 0.3358208955 | V159: =VLOOKUP($G$63,'BL Quali 2'!$A$177:$BN$184, $C159+$Q$157, FALSE) -> 89 | W159: =CONCATENATE(R159, " Countries") -> 112 Countries
B160: EAPR | C160: 6 | D160: 5 | E160: P5.a.2. EMIS Feedback | H160: ='Quali 2'!G186 -> 0.4065934066 | I160: ='Quali 2'!E186 -> 37 | J160: =I160+K160 -> 91 | K160: ='Quali 2'!$F$186 -> 54 | L160: =CONCATENATE(I160, " Countries ", "(", TEXT(H160,"0%"),")") -> 37 Countries (41%) | M160: =VLOOKUP($G$63,'BL Quali 2'!$A$177:$BN$184, $C160, FALSE) -> 40 | N160: =M160+Q160 -> 124 | P160: =VLOOKUP($G$63,'BL Quali 2'!$A$177:$BN$184, $C160+$P$157, FALSE) -> 0.3225806452 | Q160: =VLOOKUP($G$63,'BL Quali 2'!$A$177:$BN$184, $C160+$Q$157, FALSE) -> 84 | R160: =VLOOKUP($G$63,'BL Quali 2'!$A$177:$BN$184, $C160+$R$157, FALSE) -> 105 | S160: 0.43 | T160: 0.8412698413 | U160: =VLOOKUP($G$63,'BL Quali 2'!$A$177:$BN$184, $C160+$P$157, FALSE) -> 0.3225806452 | V160: =VLOOKUP($G$63,'BL Quali 2'!$A$177:$BN$184, $C160+$Q$157, FALSE) -> 84 | W160: =CONCATENATE(R160, " Countries") -> 105 Countries
B161: ESAR | C161: 10 | D161: 8 | E161: P5.b.1 Innovations | H161: ='Quali 2'!J186 -> 0.5071428571 | I161: ='Quali 2'!H186 -> 71 | J161: 140 | K161: ='Quali 2'!$I$186 -> 69 | L161: 71 Countries (51%) | M161: =VLOOKUP($G$63,'BL Quali 2'!$A$177:$BN$184, $C161, FALSE) -> 39 | N161: 132 | P161: =VLOOKUP($G$63,'BL Quali 2'!$A$177:$BN$184, $C161+$P$157, FALSE) -> 0.2954545455 | Q161: =VLOOKUP($G$63,'BL Quali 2'!$A$177:$BN$184, $C161+$Q$157, FALSE) -> 93 | R161: =VLOOKUP($G$63,'BL Quali 2'!$A$177:$BN$184, $C161+$R$157, FALSE) -> 99 | S161: 0.4 | T161: 0.7462686567 | U161: =VLOOKUP($G$63,'BL Quali 2'!$A$177:$BN$184, $C161+$P$157, FALSE) -> 0.2954545455 | V161: =VLOOKUP($G$63,'BL Quali 2'!$A$177:$BN$184, $C161+$Q$157, FALSE) -> 93 | W161: 99 Countries
B162: MENA | C162: 14 | D162: 11 | E162: P5.b.2. Child Friendly Schools | H162: ='Quali 2'!M186 -> 0.7583333333 | I162: ='Quali 2'!$K$186 -> 91 | J162: 120 | K162: ='Quali 2'!$L$186 -> 29 | L162: 91 Countries (76%) | M162: =VLOOKUP($G$63,'BL Quali 2'!$A$177:$BN$184, $C162, FALSE) -> 79 | N162: 134 | P162: =VLOOKUP($G$63,'BL Quali 2'!$A$177:$BN$184, $C162+$P$157, FALSE) -> 0.5895522388 | Q162: =VLOOKUP($G$63,'BL Quali 2'!$A$177:$BN$184, $C162+$Q$157, FALSE) -> 55 | R162: =VLOOKUP($G$63,'BL Quali 2'!$A$177:$BN$184, $C162+$R$157, FALSE) -> 127 | S162: 0.91 | T162: 0.9338235294 | U162: =VLOOKUP($G$63,'BL Quali 2'!$A$177:$BN$184, $C162+$P$157, FALSE) -> 0.5895522388 | V162: =VLOOKUP($G$63,'BL Quali 2'!$A$177:$BN$184, $C162+$Q$157, FALSE) -> 55 | W162: 127 Countries
B163: SA | C163: 18 | D163: 14 | E163: P5.c.1. learning Assessment | H163: ='Quali 2'!P186 -> 0.606741573 | I163: ='Quali 2'!$N$186 -> 54 | J163: 89 | K163: ='Quali 2'!$O$186 -> 35 | L163: 54 Countries (61%) | M163: =VLOOKUP($G$63,'BL Quali 2'!$A$177:$BN$184, $C163, FALSE) -> 56 | N163: 134 | P163: =VLOOKUP($G$63,'BL Quali 2'!$A$177:$BN$184, $C163+$P$157, FALSE) -> 0.4179104478 | Q163: =VLOOKUP($G$63,'BL Quali 2'!$A$177:$BN$184, $C163+$Q$157, FALSE) -> 78 | R163: =VLOOKUP($G$63,'BL Quali 2'!$A$177:$BN$184, $C163+$R$157, FALSE) -> 123 | S163: 0.76 | T163: 0.9117647059 | U163: =VLOOKUP($G$63,'BL Quali 2'!$A$177:$BN$184, $C163+$P$157, FALSE) -> 0.4179104478 | V163: =VLOOKUP($G$63,'BL Quali 2'!$A$177:$BN$184, $C163+$Q$157, FALSE) -> 78 | W163: 123 Countries
B164: LACR | C164: 22 | D164: 17 | E164: P5.c.2. Early Learning | H164: ='Quali 2'!S186 -> 0.5801526718 | I164: ='Quali 2'!$Q$186 -> 76 | J164: 131 | K164: ='Quali 2'!$R$186 -> 55 | L164: 76 Countries (58%) | M164: =VLOOKUP($G$63,'BL Quali 2'!$A$177:$BN$184, $C164, FALSE) -> 41 | N164: 133 | P164: =VLOOKUP($G$63,'BL Quali 2'!$A$177:$BN$184, $C164+$P$157, FALSE) -> 0.3082706767 | Q164: =VLOOKUP($G$63,'BL Quali 2'!$A$177:$BN$184, $C164+$Q$157, FALSE) -> 92 | R164: =VLOOKUP($G$63,'BL Quali 2'!$A$177:$BN$184, $C164+$R$157, FALSE) -> 116 | S164: 0.7 | T164: 0.8740740741 | U164: =VLOOKUP($G$63,'BL Quali 2'!$A$177:$BN$184, $C164+$P$157, FALSE) -> 0.3082706767 | V164: =VLOOKUP($G$63,'BL Quali 2'!$A$177:$BN$184, $C164+$Q$157, FALSE) -> 92 | W164: 116 Countries
B165: WCAR | C165: 26 | D165: 20 | E165: P5.c.3. Risk Asst & Mgt | H165: ='Quali 2'!V186 -> 0.4464285714 | I165: ='Quali 2'!$T$186 -> 50 | J165: 112 | K165: ='Quali 2'!$U$186 -> 62 | L165: 50 Countries (45%) | M165: =VLOOKUP($G$63,'BL Quali 2'!$A$177:$BN$184, $C165, FALSE) -> 20 | N165: 106 | P165: =VLOOKUP($G$63,'BL Quali 2'!$A$177:$BN$184, $C165+$P$157, FALSE) -> 0.1886792453 | Q165: =VLOOKUP($G$63,'BL Quali 2'!$A$177:$BN$184, $C165+$Q$157, FALSE) -> 86 | R165: =VLOOKUP($G$63,'BL Quali 2'!$A$177:$BN$184, $C165+$R$157, FALSE) -> 78 | S165: 1 | T165: 0.738317757 | U165: =VLOOKUP($G$63,'BL Quali 2'!$A$177:$BN$184, $C165+$P$157, FALSE) -> 0.1886792453 | V165: =VLOOKUP($G$63,'BL Quali 2'!$A$177:$BN$184, $C165+$Q$157, FALSE) -> 86 | W165: 78 Countries
B166: World | C166: 30 | D166: 23 | E166: P5.e.2. EMIS BNA | H166: ='Quali 2'!Y186 -> 0.6328125 | I166: ='Quali 2'!$W$186 -> 81 | J166: 128 | K166: ='Quali 2'!$X$186 -> 47 | L166: 81 Countries (63%) | M166: =VLOOKUP($G$63,'BL Quali 2'!$A$177:$BN$184, $C166, FALSE) -> 53 | N166: =M166+Q166 -> 133 | P166: =VLOOKUP($G$63,'BL Quali 2'!$A$177:$BN$184, $C166+$P$157, FALSE) -> 0.3984962406 | Q166: =VLOOKUP($G$63,'BL Quali 2'!$A$177:$BN$184, $C166+$Q$157, FALSE) -> 80 | R166: =VLOOKUP($G$63,'BL Quali 2'!$A$177:$BN$184, $C166+$R$157, FALSE) -> 121 | S166: 0.75 | T166: 0.9029850746 | U166: =VLOOKUP($G$63,'BL Quali 2'!$A$177:$BN$184, $C166+$P$157, FALSE) -> 0.3984962406 | V166: =VLOOKUP($G$63,'BL Quali 2'!$A$177:$BN$184, $C166+$Q$157, FALSE) -> 80 | W166: 121 Countries
C167: 38 | D167: 29 | E167: P5.e.3. Inclusive Education | H167: ='Quali 2'!AE186 -> 0.5634920635 | I167: ='Quali 2'!$AC$186 -> 71 | J167: 126 | K167: ='Quali 2'!$AD$186 -> 55 | L167: 71 Countries (56%) | M167: =VLOOKUP($G$63,'BL Quali 2'!$A$177:$BN$184, $C167, FALSE) -> 48 | N167: 134 | P167: =VLOOKUP($G$63,'BL Quali 2'!$A$177:$BN$184, $C167+$P$157, FALSE) -> 0.3582089552 | Q167: =VLOOKUP($G$63,'BL Quali 2'!$A$177:$BN$184, $C167+$Q$157, FALSE) -> 86 | R167: =VLOOKUP($G$63,'BL Quali 2'!$A$177:$BN$184, $C167+$R$157, FALSE) -> 122 | S167: 0.46 | T167: 0.8970588235 | U167: =VLOOKUP($G$63,'BL Quali 2'!$A$177:$BN$184, $C167+$P$157, FALSE) -> 0.3582089552 | V167: =VLOOKUP($G$63,'BL Quali 2'!$A$177:$BN$184, $C167+$Q$157, FALSE) -> 86 | W167: 122 Countries
C168: 42 | D168: 32 | E168: P5.e.4. SRGBV | H168: ='Quali 2'!AH186 -> 0.3829787234 | I168: ='Quali 2'!$AF$186 -> 36 | J168: 94 | K168: ='Quali 2'!$AG$186 -> 58 | L168: 36 Countries (38%) | M168: =VLOOKUP($G$63,'BL Quali 2'!$A$177:$BN$184, $C168, FALSE) -> 29 | N168: 105 | P168: =VLOOKUP($G$63,'BL Quali 2'!$A$177:$BN$184, $C168+$P$157, FALSE) -> 0.2761904762 | Q168: =VLOOKUP($G$63,'BL Quali 2'!$A$177:$BN$184, $C168+$Q$157, FALSE) -> 76 | R168: =VLOOKUP($G$63,'BL Quali 2'!$A$177:$BN$184, $C168+$R$157, FALSE) -> 81 | S168: 0.32 | T168: 0.7663551402 | U168: =VLOOKUP($G$63,'BL Quali 2'!$A$177:$BN$184, $C168+$P$157, FALSE) -> 0.2761904762 | V168: =VLOOKUP($G$63,'BL Quali 2'!$A$177:$BN$184, $C168+$Q$157, FALSE) -> 76 | W168: 81 Countries
D169: 35 | E169: P5.s.1 Girls' Sec. Ed. | H169: ='Quali 2'!AK186 -> 0.3493975904 | I169: ='Quali 2'!$AI$186 -> 29 | J169: 83 | K169: ='Quali 2'!$AJ$186 -> 54 | L169: 29 Countries (35%) | N169: 0 | R169: =VLOOKUP($G$63,'BL Quali 2'!$A$177:$BN$184, $C169+$R$157, FALSE) -> 89 | S169: 0.4 | W169: 89 Countries
C170: 34 | D170: 26 | E170: P5.s.2 Multilingual Education | H170: ='Quali 2'!AB186 -> 0.5428571429 | I170: ='Quali 2'!$Z$186 -> 38 | J170: 70 | K170: ='Quali 2'!$AA$186 -> 32 | L170: 38 Countries (54%) | M170: =VLOOKUP($G$63,'BL Quali 2'!$A$177:$BN$184, $C170, FALSE) -> 47 | N170: 109 | P170: =VLOOKUP($G$63,'BL Quali 2'!$A$177:$BN$184, $C170+$P$157, FALSE) -> 0.4311926606 | Q170: =VLOOKUP($G$63,'BL Quali 2'!$A$177:$BN$184, $C170+$Q$157, FALSE) -> 62 | R170: =VLOOKUP($G$63,'BL Quali 2'!$A$177:$BN$184, $C170+$R$157, FALSE) -> 95 | S170: 0.65 | T170: 0.8727272727 | U170: =VLOOKUP($G$63,'BL Quali 2'!$A$177:$BN$184, $C170+$P$157, FALSE) -> 0.4311926606 | V170: =VLOOKUP($G$63,'BL Quali 2'!$A$177:$BN$184, $C170+$Q$157, FALSE) -> 62 | W170: 95 Countries
C171: 50 | E171: P5.d.3. CCC for Coordi. | H171: =IFERROR(VLOOKUP($G$63,'Quali 2'!$A$179:$BN$186,$D171,FALSE),"N/A") -> N/A | I171: =VLOOKUP($G$63,'Quali 2'!$A$179:$BN$186,$D171,FALSE) ->  | K171: =VLOOKUP($G$63,'Quali 2'!$A$179:$BN$186,$D171+$H$154,FALSE) -> 0.5520833333 | L171: =CONCATENATE(I171, " Countries") ->  | M171: =VLOOKUP($G$63,'BL Quali 2'!$A$177:$BN$184, $C171, FALSE) -> 0 | N171: 0 | P171: =VLOOKUP($G$63,'BL Quali 2'!$A$177:$BN$184, $C171+$P$157, FALSE) -> 0 | Q171: =VLOOKUP($G$63,'BL Quali 2'!$A$177:$BN$184, $C171+$Q$157, FALSE) -> 0 | R171: =VLOOKUP($G$63,'BL Quali 2'!$A$177:$BN$184, $C171+$R$157, FALSE) -> 0 | S171: =R171/(Q171+M171) ->  | U171: =VLOOKUP($G$63,'BL Quali 2'!$A$177:$BN$184, $C171+$P$157, FALSE) -> 0 | V171: =VLOOKUP($G$63,'BL Quali 2'!$A$177:$BN$184, $C171+$Q$157, FALSE) -> 0 | W171: 0 Countries
E172: P5.f.2 Number of peer-reviewed journal or research publications by UNICEF on Education | H172: ='Quali 2'!AP172 -> 12 | I172: =VLOOKUP($G$63,'Quali 2'!$A$179:$BN$186,$D172,FALSE) ->  | K172: =VLOOKUP($G$63,'Quali 2'!$A$179:$BN$186,$D172+$H$154,FALSE) -> 0.5520833333 | L172: =CONCATENATE(I172, " Countries") ->  | M172: =VLOOKUP($G$63,'BL Quali 2'!$A$177:$BN$184, $C172, FALSE) ->  | N172: =M172+Q172 ->  | P172: =VLOOKUP($G$63,'BL Quali 2'!$A$177:$BN$184, $C172+$P$157, FALSE) -> 45 | Q172: =VLOOKUP($G$63,'BL Quali 2'!$A$177:$BN$184, $C172+$Q$157, FALSE) -> World | R172: =VLOOKUP($G$63,'BL Quali 2'!$A$177:$BN$184, $C172+$R$157, FALSE) -> 89 | S172: =R172/(Q172+M172) ->  | T172: 0.8382352941 | U172: =VLOOKUP($G$63,'BL Quali 2'!$A$177:$BN$184, $C172+$P$157, FALSE) -> 45 | V172: =VLOOKUP($G$63,'BL Quali 2'!$A$177:$BN$184, $C172+$Q$157, FALSE) -> World

Sheet BL Quali 2 (hidden)
A1: Country | B1: Region | C1: 1. Does the country have functional school management committee in primary schools? If yes, rate the following criteria based on best fit as described in Footnotes 1 to 3. | D1: 1.a Community participation [Footnote 1] | E1: 1.b Accountability [Footnote 2] | F1: 1.c Monitoring [Footnote 3] | G1: 2. Does the EMIS in your country feed findings back to communities or school management committees? If yes, rate the following criteria based on best fit as described in Footnotes 4 to 6. | H1: 2.a Information feedback [Footnote 4] | I1: 2.b Transparency [Footnote 5] | J1: Information feedback and transparency | K1: 2.c Training and community participation [Footnote 6] | L1: 3. Does the country employ innovative approaches at scale to improve access to education and learning outcomes for the most disadvantaged and excluded children? If yes, rate the following criteria based on best fit as described in Footnotes 7 to 9. | M1: 3.a Evidence [Footnote 7] | N1: 3.b Strategy/Traction [Footnote 8] | O1: 3.c Scalability [Footnote 9] | P1: 4. Does the country have quality standards consistent with child-friendly schools/ education or similar models developed or revised? [Footnote 10] If yes, rate the following criteria based on best fit as described in Footnotes 11 to 15. | Q1: 4.a Pedagogy (teaching and learning) [Footnote 11] | R1: 4.b Learning Environment (healthy, safe and protective) [Footnote 12] | S1: 4.c School’s ethos and link to the community [Footnote 13] | T1: 4.d Infrastructure and design [Footnote 14] | U1: CFS / CFE Standards | V1: 4.e Measuring learning outcomes [Footnote 15] | W1: 5. Does the country have a well-functioning student learning assessment system, especially for early grades? If yes, rate the following criteria based on best fit as described in Footnotes 16 to 19. | X1: 5.a Classroom assessment [Footnote 16] | Y1: 5.b Examinations [Footnote 17] | Z1: 5.c National Large-Scale Assessment [Footnote 18] | AA1: 5.d International Large-Scale Assessment [Footnote 19] | AB1: 6. Does the country have effective learning policies and quality early learning programmes? If yes, rate the following criteria based on best fit as described in Footnotes 20 to 23. | AC1: 6.a Early learning outcomes [Footnote 20] | AD1: 6.b Early learning curriculum and standards [Footnote 21] | AE1: 6.c ECCE facility [Footnote 22] | AF1: 6.d Community participation [Footnote 23] | AG1: 7. Did your country office respond to humanitarian situations (regardless of scale), including new and ongoing situations, in 2013? | AH1: 7.a If yes to 7, what is the number of children (3-18 years old) in humanitarian situations targeted (or planned to be reached) for formal or non-formal basic education (including pre-primary schools/early childhood learning spaces)? Please provide disaggregated data for boys and girls in the remarks column separating two values with a slash symbol (boys/girls). | AI1: 7.b How many of those targeted (planned) children were actually reached by UNICEF for formal or non-formal basic education (including pre-primary schools/early childhood learning spaces)? Please provide disaggregated data for boys and girls in the remarks column separating two values with a slash symbol (boys/girls). | AJ1: 7.c Among those children reached by UNICEF for formal or non-formal basic education in humanitarian situation, how many of them received in 2013 psychosocial support? Please provide disaggregated data for boys and girls in the remarks column separating two values with a slash symbol (boys/girls). | AK1: 7.d How many of those targeted (planned) children did access early childhood education/pre-primary/early childhood learning spaces? Please provide disaggregated data for boys and girls in the remarks column separating two values with a slash symbol (boys/girls). | AL1: 7.e How many of those targeted (planned) children did access primary education? Please provide disaggregated data for boys and girls in the remarks column separating two values with a slash symbol (boys/girls). | AM1: 7.f How many of those targeted (planned) children did access secondary education? Please provide disaggregated data for boys and girls in the remarks column separating two values with a slash symbol (boys/girls). | AN1: 7.g How many of those targeted (planned) children did access non-formal education? Please provide disaggregated data for boys and girls in the remarks column separating two values with a slash symbol (boys/girls). | AO1: 8. If yes, was the Education cluster activated (or remained active) and UNICEF appointed as the lead agency? | AP1: 8.a If yes to 8, were partners convened? | AQ1: 8.b If yes to 8, was ToR for coordinating mechanism established? | AR1: 8.c If yes to 8, was the cluster operational strategy/action plan established? | AS1: 8.d If yes to 8, was monitoring framework put in place? | AT1: 8.e If yes to 8, is sector coverage known from partner reports? | AU1: 9. If yes to 7, does the country have an education sector plan/policy that includes risk assessment and risk management? If yes, rate the following criteria based on best fit as described in Footnotes 24 to 26. | AV1: 9.a Risk Assessment [Footnote 24] | AW1: 9.b Risk reduction strategy [Footnote 25] | AX1: 9.c Human and financial resources [Footnote 26] | AY1: 10. Does the country have gender parity in lower secondary education? [Footnote 27] | AZ1: 11. Does the country have well-functioning education management information system providing disaggregated data that allow identification of barriers and bottlenecks that inhibit the realization of the rights of disadvantaged children? If yes, rate the following criteria based on best fit as described in Footnotes 28 to 30. | BA1: 11.a Data quality and timeliness (teaching and learning) [Footnote 28] | BB1: 11.b Comprehensiveness [Footnote 29] | BC1: 11.c Disaggregation [Footnote 30] | BD1: 12. Does the country have an education policy or sector plan that includes multilingual education to allow children to learn in their mother tongue during the early grades? If yes, rate the following criteria based on best fit as described in Footnotes 31 to 35. | BE1: 12.a Policy environment [Footnote 31] | BF1: 12.b Alignment [Footnote 32] | BG1: 12.c Resource allocation [Footnote 33] | BH1: 12.d Community engagement [Footnote 34] | BI1: 12.e Implementation [Footnote 35] | BJ1: 13. Does the country have policies on inclusive education covering children with disabilities? If yes, rate the following criteria based on best fit as described in Footnotes 36 to 41. | BK1: 13.a Law/Policy [Footnote 36] | BL1: 13.b Physical environment [Footnote 37] | BM1: 13.c Materials and communication [Footnote 38] | BN1: 13.d Human Resources [Footnote 39] | BO1: 13.e Attitudes [Footnote 40] | BP1: 13.f EMIS [Footnote 41] | BQ1: 14. Does the country have an education policy or sector plan that specify prevention and response mechanism to address gender-based violence in and around schools (SRGBV)? If yes, rate the following criteria based on best fit as described in Footnotes 42 to 45. | BR1: 14.a Legal/policy framework [Footnote 42] | BS1: 14.b Prevention and response mechanism [Footnote 43] | BT1: 14.c Awareness, attitude and empowerment [Footnote 44] | BU1: 14.d Data collection, availability and use [Footnote 45] | BV1: 15. Has the country office/staff authored any paper in peer-reviewed journal on Education issues? (If yes, list the paper and journal in the remarks) | BW1: 16. What is girls’ secondary school enrolment rate? Please indicate the year for which the data is available in the remarks column. | BX1: 16.a Is girls’ secondary schooling specifically mentioned as a priority in the national strategy/plan on education? | BY1: 16.b Does the national strategy mention specific targets for at least one of the following: increasing girls’ secondary school enrolment, retention, or completion? | BZ1: 16.c Does the national strategy specify a budget line for improving girls’ secondary schooling? | CA1: P5.a.1 SMCs | CB1: P5.a.2 EMIS Feedback | CC1: P5.b.1 Innov | CD1: P5.b2 | CE1: P5.c.1 Assessments | CF1: P5.c.2 Early learning | CG1: P5.c.3 Risk | CH1: P5.e.2 EMIS BNA | CI1: P5.S2 Multilingual | CJ1: P5.e.3 Inclusive | CK1: P5.e4 SRGBV | CL1: P5.S1 (Girls) (2014 SMQs) | CM1: Percentage of children in humanitarian situations accessing formal or non-formal basic education | CN1: AF column numeric | CO1: AG column numeric | CP1: Nb Yes in edu8 | CQ1: Edu 1 | CR1: Edu 2 | CS1: Edu 3 | CT1: Edu 4 | CU1: Edu 5 | CV1: Edu 6 | CW1: Edu 9 | CX1: Edu 11 | CY1: Edu 12 | CZ1: Edu 13 | DA1: Edu 14 | DB1: Edu8 | DE1: 1a | DF1: 1b | DG1: 1c | DH1: 2 | DI1: 2a | DJ1: 2b | DK1: 2 Avg(b,c) | DL1: 2c | DM1: 3 | DN1: 3a | DO1: 3b | DP1: 3c | DQ1: 4 | DR1: 4a | DX1: 5 | DY1: 5a | DZ1: 5b | ET1: 8d | EU1: 8e | EV1: 9 | EW1: 9a | EX1: 9b | EY1: 9c | EZ1: 10 | FA1: 11 | FB1: 11a | FC1: 11b | FD1: 11c | FE1: 12 | FF1: 12a | FG1: 12b | FH1: 12c | FI1: 12d | FJ1: 12e | FK1: 13 | FL1: 13a | FM1: 13b | FN1: 13c | FO1: 13d | FP1: 13e | FQ1: 13f | FR1: 14 | FS1: 14a | FT1: 14b | FU1: 14c | FV1: 14d | FW1: 15
A2: Afghanistan | B2: SA | C2: No Answer Field | D2: 4 | E2: Zimbabwe | F2: 2 | G2: 999 | H2: 2 | I2: 1 | J2: 1.5 | K2: 2 | L2: 999 | M2: 2 | N2: 3 | O2: 3 | P2: 999 | Q2: 3 | R2: 4 | S2: 3 | T2: 4 | U2: 1 | V2: 1 | W2: 999 | X2: 2 | Y2: 1 | Z2: 1 | AA2: 1 | AB2: 999 | AC2: 1 | AD2: 1 | AE2: 1 | AF2: 999 | AG2: 1 | AH2: 10000 | AI2: 4721 | AJ2: 0 | AK2: 0 | AL2: 4721 | AM2: 0 | AN2: 0 | AO2: 1 | AP2: 1 | AQ2: 1 | AR2: 1 | AS2: 1 | AT2: 1 | AU2: 999 | AV2: 1 | AW2: 1 | AX2: 1 | AY2: 0 | AZ2: 999 | BA2: 3 | BB2: 3 | BC2: 3 | BD2: 999 | BE2: 3 | BF2: 3 | BG2: 1 | BH2: 3 | BI2: 1 | BJ2: 999 | BK2: 4 | BL2: 2 | BM2: 1 | BN2: 2 | BO2: 3 | BP2: 2 | BQ2: 999 | BR2: 2 | BS2: 1 | BT2: 1 | BU2: 2 | BV2: 0 | BW2: 35 | BX2: 1 | BY2: 1 | BZ2: 0 | CA2: 2.666666667 | CB2: 1.75 | CC2: 2.666666667 | CD2: 1 | CE2: 1.333333333 | CF2: 1 | CG2: 1 | CH2: 3 | CI2: 2.5 | CJ2: 2.333333333 | CK2: 1.5 | CL2: 2 | CM2: 0.4721 | CN2: 10000 | CO2: 4721 | CP2: 999 | CQ2: SA3 | CR2: SA2 | CS2: SA3 | CT2: SA1 | CU2: SA1 | CV2: SA1 | CW2: SA1 | CX2: SA3 | CY2: SA3 | CZ2: SA2 | DA2: SA2 | DB2: SA4 | DE2: =IFERROR(CONCATENATE($B2,ROUND(D2,0)),"") -> SA4 | DG2: SA2 | DH2: SA999 | DI2: SA2 | DJ2: SA1 | DK2: SA2 | DL2: SA2 | DM2: SA999 | DN2: SA2 | DO2: SA3 | DP2: SA3 | DQ2: SA999 | DR2: SA3 | DX2: =IFERROR(CONCATENATE($B2,ROUND(W2,0)),"") -> SA999 | DY2: =IFERROR(CONCATENATE($B2,ROUND(X2,0)),"") -> SA2 | DZ2: =IFERROR(CONCATENATE($B2,ROUND(Y2,0)),"") -> SA1 | EB2: =IFERROR(CONCATENATE($B2,ROUND(AA2,0)),"") -> SA1 | EC2: SA999 | ED2: SA1 | EE2: SA1 | EF2: SA1 | EG2: SA999 | EH2: SA1 | EI2: SA10000 | EJ2: SA4721 | EK2: SA0 | EL2: SA0 | EM2: SA4721 | EN2: SA0 | EO2: SA0 | EP2: SA1 | EQ2: SA1 | ER2: SA1 | ES2: SA1 | ET2: SA1 | EU2: SA1 | EV2: SA999 | EW2: SA1 | EX2: SA1 | EY2: SA1 | EZ2: SA0 | FA2: SA999 | FB2: SA3 | FC2: SA3 | FD2: SA3 | FE2: SA999 | FF2: SA3 | FG2: SA3 | FH2: SA1 | FI2: SA3 | FJ2: SA1 | FK2: SA999 | FL2: SA4 | FM2: SA2 | FN2: SA1 | FO2: SA2 | FP2: SA3 | FQ2: SA2 | FR2: SA999 | FS2: SA2 | FT2: SA1 | FU2: SA1 | FV2: SA2 | FW2: SA0
A3: Albania | B3: ECAR | C3: No Answer Field | D3: 2 | E3: 2 | F3: 2 | G3: 999 | H3: 2 | I3: 2 | J3: 2 | K3: 2 | L3: 999 | M3: 3 | N3: 3 | O3: 2 | P3: 999 | Q3: 3 | R3: 3 | S3: 3 | T3: 3 | U3: 3 | V3: 2 | W3: 999 | X3: 3 | Y3: 3 | Z3: 1 | AA3: 3 | AB3: 999 | AC3: 2 | AD3: 3 | AE3: 3 | AF3: 2 | AG3: 0 | AH3: 0 | AI3: 0 | AJ3: 0 | AK3: 0 | AL3: 0 | AM3: 0 | AN3: 0 | AO3: 0 | AP3: 0 | AQ3: 0 | AR3: 0 | AS3: 0 | AT3: 0 | AU3: 999 | AV3: 1 | AW3: 1 | AX3: 1 | AY3: 1 | AZ3: 999 | BA3: 3 | BB3: 2 | BC3: 3 | BD3: 999 | BE3: 3 | BF3: 2 | BG3: 2 | BH3: 2 | BI3: 2 | BJ3: 999 | BK3: 3 | BL3: 2 | BM3: 2 | BN3: 3 | BO3: 3 | BP3: 2 | BQ3: 999 | BR3: 2 | BS3: 2 | BT3: 3 | BU3: 3 | BV3: 0 | BW3: 999 | BX3: 0 | BY3: 0 | BZ3: 0 | CA3: 2 | CB3: 2 | CC3: 2.666666667 | CD3: 2.5 | CE3: 2.333333333 | CF3: 2.666666667 | CG3: 1 | CH3: 2.666666667 | CI3: 2.25 | CJ3: 2.5 | CK3: 2.5 | CL3: 2.333333333 | CN3: 0 | CO3: 0 | CP3: 999 | CQ3: ECAR2 | CR3: ECAR2 | CS3: ECAR3 | CT3: ECAR3 | CU3: ECAR2 | CV3: ECAR3 | CW3: ECAR1 | CX3: ECAR3 | CY3: ECAR2 | CZ3: ECAR3 | DA3: ECAR3 | DB3: ECAR999 | DE3: =IFERROR(CONCATENATE($B3,ROUND(D3,0)),"") -> ECAR2 | DF3: =IFERROR(CONCATENATE($B3,ROUND(E3,0)),"") -> ECAR2 | DG3: =IFERROR(CONCATENATE($B3,ROUND(F3,0)),"") -> ECAR2 | DI3: =IFERROR(CONCATENATE($B3,ROUND(H3,0)),"") -> ECAR2 | DJ3: =IFERROR(CONCATENATE($B3,ROUND(I3,0)),"") -> ECAR2 | DK3: =IFERROR(CONCATENATE($B3,ROUND(J3,0)),"") -> ECAR2 | DL3: =IFERROR(CONCATENATE($B3,ROUND(K3,0)),"") -> ECAR2 | DM3: =IFERROR(CONCATENATE($B3,ROUND(L3,0)),"") -> ECAR999 | DN3: =IFERROR(CONCATENATE($B3,ROUND(M3,0)),"") -> ECAR3 | DO3: =IFERROR(CONCATENATE($B3,ROUND(N3,0)),"") -> ECAR3 | DP3: =IFERROR(CONCATENATE($B3,ROUND(O3,0)),"") -> ECAR2 | DQ3: =IFERROR(CONCATENATE($B3,ROUND(P3,0)),"") -> ECAR999 | DR3: =IFERROR(CONCATENATE($B3,ROUND(Q3,0)),"") -> ECAR3 | DX3: ECAR999 | DY3: ECAR3 | DZ3: ECAR3 | EB3: =IFERROR(CONCATENATE($B3,ROUND(AA3,0)),"") -> ECAR3 | EC3: =IFERROR(CONCATENATE($B3,ROUND(AB3,0)),"") -> ECAR999 | ED3: =IFERROR(CONCATENATE($B3,ROUND(AC3,0)),"") -> ECAR2 | EE3: =IFERROR(CONCATENATE($B3,ROUND(AD3,0)),"") -> ECAR3 | EF3: =IFERROR(CONCATENATE($B3,ROUND(AE3,0)),"") -> ECAR3 | EG3: =IFERROR(CONCATENATE($B3,ROUND(AF3,0)),"") -> ECAR2 | EH3: =IFERROR(CONCATENATE($B3,ROUND(AG3,0)),"") -> ECAR0 | EI3: =IFERROR(CONCATENATE($B3,ROUND(AH3,0)),"") -> ECAR0 | EJ3: =IFERROR(CONCATENATE($B3,ROUND(AI3,0)),"") -> ECAR0 | EK3: =IFERROR(CONCATENATE($B3,ROUND(AJ3,0)),"") -> ECAR0 | EL3: =IFERROR(CONCATENATE($B3,ROUND(AK3,0)),"") -> ECAR0 | EM3: =IFERROR(CONCATENATE($B3,ROUND(AL3,0)),"") -> ECAR0 | EN3: ECAR0 | EO3: =IFERROR(CONCATENATE($B3,ROUND(AN3,0)),"") -> ECAR0 | EP3: =IFERROR(CONCATENATE($B3,ROUND(AO3,0)),"") -> ECAR0 | EQ3: =IFERROR(CONCATENATE($B3,ROUND(AP3,0)),"") -> ECAR0 | ER3: =IFERROR(CONCATENATE($B3,ROUND(AQ3,0)),"") -> ECAR0 | ES3: =IFERROR(CONCATENATE($B3,ROUND(AR3,0)),"") -> ECAR0 | ET3: =IFERROR(CONCATENATE($B3,ROUND(AS3,0)),"") -> ECAR0 | EU3: =IFERROR(CONCATENATE($B3,ROUND(AT3,0)),"") -> ECAR0 | EV3: =IFERROR(CONCATENATE($B3,ROUND(AU3,0)),"") -> ECAR999 | EW3: =IFERROR(CONCATENATE($B3,ROUND(AV3,0)),"") -> ECAR1 | EX3: =IFERROR(CONCATENATE($B3,ROUND(AW3,0)),"") -> ECAR1 | EY3: =IFERROR(CONCATENATE($B3,ROUND(AX3,0)),"") -> ECAR1 | EZ3: =IFERROR(CONCATENATE($B3,ROUND(AY3,0)),"") -> ECAR1 | FA3: =IFERROR(CONCATENATE($B3,ROUND(AZ3,0)),"") -> ECAR999 | FB3: =IFERROR(CONCATENATE($B3,ROUND(BA3,0)),"") -> ECAR3 | FC3: =IFERROR(CONCATENATE($B3,ROUND(BB3,0)),"") -> ECAR2 | FD3: =IFERROR(CONCATENATE($B3,ROUND(BC3,0)),"") -> ECAR3 | FE3: =IFERROR(CONCATENATE($B3,ROUND(BD3,0)),"") -> ECAR999 | FF3: =IFERROR(CONCATENATE($B3,ROUND(BE3,0)),"") -> ECAR3 | FG3: =IFERROR(CONCATENATE($B3,ROUND(BF3,0)),"") -> ECAR2 | FH3: =IFERROR(CONCATENATE($B3,ROUND(BG3,0)),"") -> ECAR2 | FI3: =IFERROR(CONCATENATE($B3,ROUND(BH3,0)),"") -> ECAR2 | FJ3: =IFERROR(CONCATENATE($B3,ROUND(BI3,0)),"") -> ECAR2 | FK3: =IFERROR(CONCATENATE($B3,ROUND(BJ3,0)),"") -> ECAR999 | FL3: =IFERROR(CONCATENATE($B3,ROUND(BK3,0)),"") -> ECAR3 | FM3: =IFERROR(CONCATENATE($B3,ROUND(BL3,0)),"") -> ECAR2 | FN3: =IFERROR(CONCATENATE($B3,ROUND(BM3,0)),"") -> ECAR2 | FO3: =IFERROR(CONCATENATE($B3,ROUND(BN3,0)),"") -> ECAR3 | FP3: =IFERROR(CONCATENATE($B3,ROUND(BO3,0)),"") -> ECAR3 | FQ3: =IFERROR(CONCATENATE($B3,ROUND(BP3,0)),"") -> ECAR2 | FR3: =IFERROR(CONCATENATE($B3,ROUND(BQ3,0)),"") -> ECAR999 | FS3: =IFERROR(CONCATENATE($B3,ROUND(BR3,0)),"") -> ECAR2 | FT3: =IFERROR(CONCATENATE($B3,ROUND(BS3,0)),"") -> ECAR2 | FU3: =IFERROR(CONCATENATE($B3,ROUND(BT3,0)),"") -> ECAR3 | FV3: =IFERROR(CONCATENATE($B3,ROUND(BU3,0)),"") -> ECAR3 | FW3: =IFERROR(CONCATENATE($B3,ROUND(BV3,0)),"") -> ECAR0
A4: Algeria | B4: MENA | C4: No Answer Field | D4: 2 | E4: 2 | F4: 2 | G4: 999 | H4: 2 | I4: 3 | J4: 2.5 | K4: 2 | L4: 999 | M4: 2 | N4: 3 | O4: 3 | P4: 999 | Q4: 3 | R4: 3 | S4: 2 | T4: 2 | U4: 2.5 | V4: 4 | W4: 999 | X4: 3 | Y4: 3 | Z4: 4 | AA4: 3 | AB4: 999 | AC4: 3 | AD4: 2 | AE4: 2 | AF4: 2 | AG4: 1 | AH4: 39000 | AI4: 39000 | AJ4: 0 | AK4: 6790 | AL4: 23602 | AM4: 8608 | AN4: 0 | AO4: 0 | AP4: 0 | AQ4: 0 | AR4: 0 | AS4: 0 | AT4: 0 | AU4: 999 | AV4: 1 | AW4: 1 | AX4: 1 | AY4: 1 | AZ4: 999 | BA4: 2 | BB4: 3 | BC4: 2 | BD4: 999 | BE4: 2 | BF4: 1 | BG4: 1 | BH4: 2 | BI4: 1 | BJ4: 999 | BK4: 1 | BL4: 2 | BM4: 2 | BN4: 1 | BO4: 1 | BP4: 2 | BQ4: 999 | BR4: 2 | BS4: 2 | BT4: 2 | BU4: 2 | BV4: 0 | BW4: 112 | BX4: 0 | BY4: 0 | BZ4: 0 | CA4: 2 | CB4: 2.25 | CC4: 2.666666667 | CD4: 3.25 | CE4: 3.333333333 | CF4: 2 | CG4: 1 | CH4: 2.333333333 | CI4: 1.5 | CJ4: 1.5 | CK4: 2 | CL4: 3 | CM4: 1 | CN4: 39000 | CO4: 39000 | CP4: 999 | CQ4: MENA2 | CR4: MENA2 | CS4: MENA3 | CT4: MENA3 | CU4: MENA3 | CV4: MENA2 | CW4: MENA1 | CX4: MENA2 | CY4: MENA2 | CZ4: MENA2 | DA4: MENA2 | DB4: MENA999 | DE4: MENA2 | DF4: MENA2 | DG4: MENA2 | DI4: MENA2 | DJ4: MENA3 | DK4: MENA3 | DL4: MENA2 | DM4: MENA999 | DN4: MENA2 | DO4: MENA3 | DP4: MENA3 | DQ4: MENA999 | DR4: MENA3 | DX4: MENA999 | DY4: MENA3 | DZ4: MENA3 | EB4: MENA3 | EC4: MENA999 | ED4: MENA3 | EE4: MENA2 | EF4: MENA2 | EG4: MENA2 | EH4: MENA1 | EI4: MENA39000 | EJ4: MENA39000 | EK4: MENA0 | EL4: MENA6790 | EM4: MENA23602 | EN4: MENA8608 | EO4: MENA0 | EP4: MENA0 | EQ4: MENA0 | ER4: MENA0 | ES4: MENA0 | ET4: MENA0 | EU4: MENA0 | EV4: MENA999 | EW4: MENA1 | EX4: MENA1 | EY4: MENA1 | EZ4: MENA1 | FA4: MENA999 | FB4: MENA2 | FC4: MENA3 | FD4: MENA2 | FE4: MENA999 | FF4: MENA2 | FG4: MENA1 | FH4: MENA1 | FI4: MENA2 | FJ4: MENA1 | FK4: MENA999 | FL4: MENA1 | FM4: MENA2 | FN4: MENA2 | FO4: MENA1 | FP4: MENA1 | FQ4: MENA2 | FR4: MENA999 | FS4: MENA2 | FT4: MENA2 | FU4: MENA2 | FV4: MENA2 | FW4: MENA0
A5: Angola | B5: ESAR | C5: No Answer Field | D5: 2 | E5: 2 | F5: 2 | G5: 999 | H5: 1 | I5: 1 | J5: 1 | K5: 2 | L5: 999 | M5: 2 | N5: 1 | O5: 1 | P5: 999 | Q5: 2 | R5: 2 | S5: 2 | T5: 2 | U5: 2 | V5: 2 | W5: 999 | X5: 2 | Y5: 2 | Z5: 1 | AA5: 2 | AB5: 999 | AC5: 1 | AD5: 2 | AE5: 1 | AF5: 2 | AG5: 0 | AH5: 0 | AI5: 0 | AJ5: 0 | AK5: 0 | AL5: 0 | AM5: 0 | AN5: 0 | AO5: 0 | AP5: 0 | AQ5: 0 | AR5: 0 | AS5: 0 | AT5: 0 | AU5: 999 | AV5: 2 | AW5: 1 | AX5: 2 | AY5: 0 | AZ5: 999 | BA5: 1 | BB5: 2 | BC5: 2 | BD5: 999 | BE5: 3 | BF5: 2 | BG5: 3 | BH5: 3 | BI5: 1 | BJ5: 999 | BK5: 3 | BL5: 2 | BM5: 2 | BN5: 2 | BO5: 3 | BP5: 2 | BQ5: 999 | BR5: 999 | BS5: 999 | BT5: 999 | BU5: 999 | BV5: 0 | BW5: 999 | BX5: 0 | BY5: 0 | BZ5: 0 | CA5: 2 | CB5: 1.5 | CC5: 1.333333333 | CD5: 2 | CE5: 1.666666667 | CF5: 1.666666667 | CG5: 1.666666667 | CH5: 1.666666667 | CI5: 2.75 | CJ5: 2.333333333 | CK5: Not applicable | CL5: 1 | CN5: 0 | CO5: 0 | CP5: 999 | CQ5: ESAR2 | CR5: ESAR2 | CS5: ESAR1 | CT5: ESAR2 | CU5: ESAR2 | CV5: ESAR2 | CW5: ESAR2 | CX5: ESAR2 | CY5: ESAR3 | CZ5: ESAR2 | DA5: ESAR999 | DB5: ESAR999 | DE5: ESAR2 | DF5: ESAR2 | DG5: ESAR2 | DI5: ESAR1 | DJ5: ESAR1 | DK5: ESAR1 | DL5: ESAR2 | DM5: ESAR999 | DN5: ESAR2 | DO5: ESAR1 | DP5: ESAR1 | DQ5: ESAR999 | DR5: ESAR2 | DX5: ESAR999 | DY5: ESAR2 | DZ5: ESAR2 | EB5: ESAR2 | EC5: ESAR999 | ED5: ESAR1 | EE5: ESAR2 | EF5: ESAR1 | EG5: ESAR2 | EH5: ESAR0 | EI5: ESAR0 | EJ5: ESAR0 | EK5: ESAR0 | EL5: ESAR0 | EM5: ESAR0 | EN5: ESAR0 | EO5: ESAR0 | EP5: ESAR0 | EQ5: ESAR0 | ER5: ESAR0 | ES5: ESAR0 | ET5: ESAR0 | EU5: ESAR0 | EV5: ESAR999 | EW5: ESAR2 | EX5: ESAR1 | EY5: ESAR2 | EZ5: ESAR0 | FA5: ESAR999 | FB5: ESAR1 | FC5: ESAR2 | FD5: ESAR2 | FE5: ESAR999 | FF5: ESAR3 | FG5: ESAR2 | FH5: ESAR3 | FI5: ESAR3 | FJ5: ESAR1 | FK5: ESAR999 | FL5: ESAR3 | FM5: ESAR2 | FN5: ESAR2 | FO5: ESAR2 | FP5: ESAR3 | FQ5: ESAR2 | FR5: ESAR999 | FS5: ESAR999 | FT5: ESAR999 | FU5: ESAR999 | FV5: ESAR999 | FW5: ESAR0
A6: Anguilla | B6: LACR | C6: No Answer Field | D6: 1 | E6: 999 | F6: 999 | G6: 999 | H6: 1 | I6: 2 | J6: 1.5 | K6: 1 | L6: 999 | M6: 1 | N6: 2 | O6: 1 | P6: 999 | Q6: 2 | R6: 2 | S6: 2 | T6: 3 | U6: 2.25 | V6: 3 | W6: 999 | X6: 2 | Y6: 3 | Z6: 1 | AA6: 1 | AB6: 999 | AC6: 2 | AD6: 2 | AE6: 2 | AF6: 1 | AG6: 0 | AH6: 0 | AI6: 0 | AJ6: 0 | AK6: 0 | AL6: 0 | AM6: 0 | AN6: 0 | AO6: 0 | AP6: 0 | AQ6: 0 | AR6: 0 | AS6: 0 | AT6: 0 | AU6: 999 | AV6: 1 | AW6: 2 | AX6: 2 | AY6: 1 | AZ6: 999 | BA6: 2 | BB6: 2 | BC6: 2 | BD6: 999 | BE6: 2 | BF6: 2 | BG6: 1 | BH6: 2 | BI6: 1 | BJ6: 999 | BK6: 3 | BL6: 3 | BM6: 2 | BN6: 2 | BO6: 3 | BP6: 2 | BQ6: 999 | BR6: 999 | BS6: 999 | BT6: 999 | BU6: 999 | BV6: 0 | BW6: 93.5 | BX6: 0 | BY6: 0 | BZ6: 0 | CA6: 1 | CB6: 1.25 | CC6: 1.333333333 | CD6: 2.625 | CE6: 2 | CF6: 1.666666667 | CG6: 1.666666667 | CH6: 2 | CI6: 1.75 | CJ6: 2.5 | CK6: Not applicable | CL6: Not applicable | CN6: 0 | CO6: 0 | CP6: 999 | CQ6: LACR1 | CR6: LACR1 | CS6: LACR1 | CT6: LACR3 | CU6: LACR2 | CV6: LACR2 | CW6: LACR2 | CX6: LACR2 | CY6: LACR2 | CZ6: LACR3 | DA6: LACR999 | DB6: LACR999 | DE6: LACR1 | DF6: LACR999 | DG6: LACR999 | DI6: LACR1 | DJ6: LACR2 | DK6: LACR2 | DL6: LACR1 | DM6: LACR999 | DN6: LACR1 | DO6: LACR2 | DP6: LACR1 | DQ6: LACR999 | DR6: LACR2 | DX6: LACR999 | DY6: LACR2 | DZ6: LACR3 | EB6: LACR1 | EC6: LACR999 | ED6: LACR2 | EE6: LACR2 | EF6: LACR2 | EG6: LACR1 | EH6: LACR0 | EI6: LACR0 | EJ6: LACR0 | EK6: LACR0 | EL6: LACR0 | EM6: LACR0 | EN6: LACR0 | EO6: LACR0 | EP6: LACR0 | EQ6: LACR0 | ER6: LACR0 | ES6: LACR0 | ET6: LACR0 | EU6: LACR0 | EV6: LACR999 | EW6: LACR1 | EX6: LACR2 | EY6: LACR2 | EZ6: LACR1 | FA6: LACR999 | FB6: LACR2 | FC6: LACR2 | FD6: LACR2 | FE6: LACR999 | FF6: LACR2 | FG6: LACR2 | FH6: LACR1 | FI6: LACR2 | FJ6: LACR1 | FK6: LACR999 | FL6: LACR3 | FM6: LACR3 | FN6: LACR2 | FO6: LACR2 | FP6: LACR3 | FQ6: LACR2 | FR6: LACR999 | FS6: LACR999 | FT6: LACR999 | FU6: LACR999 | FV6: LACR999 | FW6: LACR0
A7: Antig.&Barb. | B7: LACR | C7: No Answer Field | D7: 1 | E7: 999 | F7: 999 | G7: 999 | H7: 1 | I7: 2 | J7: 1.5 | K7: 1 | L7: 999 | M7: 1 | N7: 2 | O7: 1 | P7: 999 | Q7: 2 | R7: 2 | S7: 2 | T7: 3 | U7: 2.25 | V7: 3 | W7: 999 | X7: 2 | Y7: 3 | Z7: 1 | AA7: 1 | AB7: 999 | AC7: 2 | AD7: 2 | AE7: 2 | AF7: 1 | AG7: 0 | AH7: 0 | AI7: 0 | AJ7: 0 | AK7: 0 | AL7: 0 | AM7: 0 | AN7: 0 | AO7: 0 | AP7: 0 | AQ7: 0 | AR7: 0 | AS7: 0 | AT7: 0 | AU7: 999 | AV7: 1 | AW7: 2 | AX7: 2 | AY7: 1 | AZ7: 999 | BA7: 2 | BB7: 2 | BC7: 2 | BD7: 999 | BE7: 2 | BF7: 2 | BG7: 1 | BH7: 2 | BI7: 1 | BJ7: 999 | BK7: 3 | BL7: 3 | BM7: 2 | BN7: 2 | BO7: 3 | BP7: 2 | BQ7: 999 | BR7: 999 | BS7: 999 | BT7: 999 | BU7: 999 | BV7: 0 | BW7: 95.8 | BX7: 0 | BY7: 0 | BZ7: 0 | CA7: 1 | CB7: 1.25 | CC7: 1.333333333 | CD7: 2.625 | CE7: 2 | CF7: 1.666666667 | CG7: 1.666666667 | CH7: 2 | CI7: 1.75 | CJ7: 2.5 | CK7: Not applicable | CL7: Not applicable | CN7: 0 | CO7: 0 | CP7: 999 | CQ7: LACR1 | CR7: LACR1 | CS7: LACR1 | CT7: LACR3 | CU7: LACR2 | CV7: LACR2 | CW7: LACR2 | CX7: LACR2 | CY7: LACR2 | CZ7: LACR3 | DA7: LACR999 | DB7: LACR999 | DE7: LACR1 | DF7: LACR999 | DG7: LACR999 | DI7: LACR1 | DJ7: LACR2 | DK7: LACR2 | DL7: LACR1 | DM7: LACR999 | DN7: LACR1 | DO7: LACR2 | DP7: LACR1 | DQ7: LACR999 | DR7: LACR2 | DX7: LACR999 | DY7: LACR2 | DZ7: LACR3 | EB7: LACR1 | EC7: LACR999 | ED7: LACR2 | EE7: LACR2 | EF7: LACR2 | EG7: LACR1 | EH7: LACR0 | EI7: LACR0 | EJ7: LACR0 | EK7: LACR0 | EL7: LACR0 | EM7: LACR0 | EN7: LACR0 | EO7: LACR0 | EP7: LACR0 | EQ7: LACR0 | ER7: LACR0 | ES7: LACR0 | ET7: LACR0 | EU7: LACR0 | EV7: LACR999 | EW7: LACR1 | EX7: LACR2 | EY7: LACR2 | EZ7: LACR1 | FA7: LACR999 | FB7: LACR2 | FC7: LACR2 | FD7: LACR2 | FE7: LACR999 | FF7: LACR2 | FG7: LACR2 | FH7: LACR1 | FI7: LACR2 | FJ7: LACR1 | FK7: LACR999 | FL7: LACR3 | FM7: LACR3 | FN7: LACR2 | FO7: LACR2 | FP7: LACR3 | FQ7: LACR2 | FR7: LACR999 | FS7: LACR999 | FT7: LACR999 | FU7: LACR999 | FV7: LACR999 | FW7: LACR0
A8: Argentina | B8: LACR | C8: No Answer Field | D8: 2 | E8: 2 | F8: 2 | G8: 999 | H8: 2 | I8: 2 | J8: 2 | K8: 2 | L8: 999 | M8: 2 | N8: 3 | O8: 2 | P8: 999 | Q8: 3 | R8: 3 | S8: 3 | T8: 3 | U8: 3 | V8: 4 | W8: 999 | X8: 2 | Y8: 3 | Z8: 2 | AA8: 3 | AB8: 999 | AC8: 3 | AD8: 2 | AE8: 3 | AF8: 2 | AG8: 1 | AH8: 50000 | AI8: 22000 | AJ8: 22000 | AK8: 800 | AL8: 1200 | AM8: 4600 | AN8: 0 | AO8: 1 | AP8: 1 | AQ8: 0 | AR8: 1 | AS8: 0 | AT8: 0 | AU8: 999 | AV8: 2 | AW8: 2 | AX8: 2 | AY8: 1 | AZ8: 999 | BA8: 2 | BB8: 2 | BC8: 4 | BD8: 999 | BE8: 4 | BF8: 2 | BG8: 2 | BH8: 2 | BI8: 4 | BJ8: 999 | BK8: 4 | BL8: 2 | BM8: 2 | BN8: 2 | BO8: 3 | BP8: 2 | BQ8: 999 | BR8: 2 | BS8: 2 | BT8: 3 | BU8: 3 | BV8: 0 | BW8: 49 | BX8: 0 | BY8: 0 | BZ8: 0 | CA8: 2 | CB8: 2 | CC8: 2.333333333 | CD8: 3.5 | CE8: 2.333333333 | CF8: 2.333333333 | CG8: 2 | CH8: 2.666666667 | CI8: 2.5 | CJ8: 2.5 | CK8: 2.5 | CL8: 3 | CM8: 0.44 | CN8: 50000 | CO8: 22000 | CP8: 999 | CQ8: LACR2 | CR8: LACR2 | CS8: LACR2 | CT8: LACR4 | CU8: LACR2 | CV8: LACR2 | CW8: LACR2 | CX8: LACR3 | CY8: LACR3 | CZ8: LACR3 | DA8: LACR3 | DB8: LACR2 | DE8: LACR2 | DF8: LACR2 | DG8: LACR2 | DI8: LACR2 | DJ8: LACR2 | DK8: LACR2 | DL8: LACR2 | DM8: LACR999 | DN8: LACR2 | DO8: LACR3 | DP8: LACR2 | DQ8: LACR999 | DR8: LACR3 | DX8: LACR999 | DY8: LACR2 | DZ8: LACR3 | EB8: LACR3 | EC8: LACR999 | ED8: LACR3 | EE8: LACR2 | EF8: LACR3 | EG8: LACR2 | EH8: LACR1 | EI8: LACR50000 | EJ8: LACR22000 | EK8: LACR22000 | EL8: LACR800 | EM8: LACR1200 | EN8: LACR4600 | EO8: LACR0 | EP8: LACR1 | EQ8: LACR1 | ER8: LACR0 | ES8: LACR1 | ET8: LACR0 | EU8: LACR0 | EV8: LACR999 | EW8: LACR2 | EX8: LACR2 | EY8: LACR2 | EZ8: LACR1 | FA8: LACR999 | FB8: LACR2 | FC8: LACR2 | FD8: LACR4 | FE8: LACR999 | FF8: LACR4 | FG8: LACR2 | FH8: LACR2 | FI8: LACR2 | FJ8: LACR4 | FK8: LACR999 | FL8: LACR4 | FM8: LACR2 | FN8: LACR2 | FO8: LACR2 | FP8: LACR3 | FQ8: LACR2 | FR8: LACR999 | FS8: LACR2 | FT8: LACR2 | FU8: LACR3 | FV8: LACR3 | FW8: LACR0
A9: Armenia | B9: ECAR | C9: No Answer Field | D9: 3 | E9: 2 | F9: 2 | G9: 999 | H9: 3 | I9: 3 | J9: 3 | K9: 2 | L9: 999 | M9: 2 | N9: 2 | O9: 2 | P9: 999 | Q9: 3 | R9: 3 | S9: 3 | T9: 3 | U9: 3 | V9: 3 | W9: 999 | X9: 3 | Y9: 2 | Z9: 2 | AA9: 2 | AB9: 999 | AC9: 3 | AD9: 2 | AE9: 2 | AF9: 2 | AG9: 1 | AH9: 290 | AI9: 150 | AJ9: 150 | AK9: 60 | AL9: 0 | AM9: 0 | AN9: 90 | AO9: 0 | AP9: 0 | AQ9: 0 | AR9: 0 | AS9: 0 | AT9: 0 | AU9: 999 | AV9: 2 | AW9: 2 | AX9: 2 | AY9: 1 | AZ9: 999 | BA9: 2 | BB9: 1 | BC9: 3 | BD9: 999 | BE9: 3 | BF9: 3 | BG9: 3 | BH9: 2 | BI9: 3 | BJ9: 999 | BK9: 3 | BL9: 2 | BM9: 2 | BN9: 2 | BO9: 2 | BP9: 2 | BQ9: 999 | BR9: 2 | BS9: 1 | BT9: 1 | BU9: 1 | BV9: 0 | BW9: 91 | BX9: 0 | BY9: 0 | BZ9: 0 | CA9: 2.333333333 | CB9: 2.5 | CC9: 2 | CD9: 3 | CE9: 2.333333333 | CF9: 2 | CG9: 2 | CH9: 2 | CI9: 2.75 | CJ9: 2.166666667 | CK9: 1.25 | CL9: Not applicable | CM9: 0.5172413793 | CN9: 290 | CO9: 150 | CP9: 999 | CQ9: ECAR2 | CR9: ECAR3 | CS9: ECAR2 | CT9: ECAR3 | CU9: ECAR2 | CV9: ECAR2 | CW9: ECAR2 | CX9: ECAR2 | CY9: ECAR3 | CZ9: ECAR2 | DA9: ECAR1 | DB9: ECAR999 | DE9: ECAR3 | DF9: ECAR2 | DG9: ECAR2 | DI9: ECAR3 | DJ9: ECAR3 | DK9: ECAR3 | DL9: ECAR2 | DM9: ECAR999 | DN9: ECAR2 | DO9: ECAR2 | DP9: ECAR2 | DQ9: ECAR999 | DR9: ECAR3 | DX9: ECAR999 | DY9: ECAR3 | DZ9: ECAR2 | EB9: ECAR2 | EC9: ECAR999 | ED9: ECAR3 | EE9: ECAR2 | EF9: ECAR2 | EG9: ECAR2 | EH9: ECAR1 | EI9: ECAR290 | EJ9: ECAR150 | EK9: ECAR150 | EL9: ECAR60 | EM9: ECAR0 | EN9: ECAR0 | EO9: ECAR90 | EP9: ECAR0 | EQ9: ECAR0 | ER9: ECAR0 | ES9: ECAR0 | ET9: ECAR0 | EU9: ECAR0 | EV9: ECAR999 | EW9: ECAR2 | EX9: ECAR2 | EY9: ECAR2 | EZ9: ECAR1 | FA9: ECAR999 | FB9: ECAR2 | FC9: ECAR1 | FD9: ECAR3 | FE9: ECAR999 | FF9: ECAR3 | FG9: ECAR3 | FH9: ECAR3 | FI9: ECAR2 | FJ9: ECAR3 | FK9: ECAR999 | FL9: ECAR3 | FM9: ECAR2 | FN9: ECAR2 | FO9: ECAR2 | FP9: ECAR2 | FQ9: ECAR2 | FR9: ECAR999 | FS9: ECAR2 | FT9: ECAR1 | FU9: ECAR1 | FV9: ECAR1 | FW9: ECAR0
A10: Azerbaijan | B10: ECAR | C10: No Answer Field | D10: 2 | E10: 2 | F10: 1 | G10: 999 | H10: 1 | I10: 1 | J10: 1 | K10: 1 | L10: 999 | M10: 1 | N10: 1 | O10: 2 | P10: 999 | Q10: 1 | R10: 2 | S10: 2 | T10: 3 | U10: 2 | V10: 4 | W10: 999 | X10: 3 | Y10: 3 | Z10: 3 | AA10: 3 | AB10: 999 | AC10: 2 | AD10: 2 | AE10: 1 | AF10: 1 | AG10: 0 | AH10: 0 | AI10: 0 | AJ10: 0 | AK10: 0 | AL10: 0 | AM10: 0 | AN10: 0 | AO10: 0 | AP10: 0 | AQ10: 0 | AR10: 0 | AS10: 0 | AT10: 0 | AU10: 999 | AV10: 1 | AW10: 1 | AX10: 2 | AY10: 1 | AZ10: 999 | BA10: 1 | BB10: 4 | BC10: 2 | BD10: 999 | BE10: 999 | BF10: 999 | BG10: 999 | BH10: 999 | BI10: 999 | BJ10: 999 | BK10: 2 | BL10: 1 | BM10: 1 | BN10: 1 | BO10: 1 | BP10: 1 | BQ10: 999 | BR10: 3 | BS10: 1 | BT10: 1 | BU10: 2 | BV10: 0 | BW10: 85 | BX10: 0 | BY10: 1 | BZ10: 0 | CA10: 1.666666667 | CB10: 1 | CC10: 1.333333333 | CD10: 3 | CE10: 3 | CF10: 1.333333333 | CG10: 1.333333333 | CH10: 2.333333333 | CI10: Not applicable | CJ10: 1.166666667 | CK10: 1.75 | CL10: 1.666666667 | CN10: 0 | CO10: 0 | CP10: 999 | CQ10: ECAR2 | CR10: ECAR1 | CS10: ECAR1 | CT10: ECAR3 | CU10: ECAR3 | CV10: ECAR1 | CW10: ECAR1 | CX10: ECAR2 | CY10: ECAR999 | CZ10: ECAR1 | DA10: ECAR2 | DB10: ECAR999 | DE10: ECAR2 | DF10: ECAR2 | DG10: ECAR1 | DI10: ECAR1 | DJ10: ECAR1 | DK10: ECAR1 | DL10: ECAR1 | DM10: ECAR999 | DN10: ECAR1 | DO10: ECAR1 | DP10: ECAR2 | DQ10: ECAR999 | DR10: ECAR1 | DX10: ECAR999 | DY10: ECAR3 | DZ10: ECAR3 | EB10: ECAR3 | EC10: ECAR999 | ED10: ECAR2 | EE10: ECAR2 | EF10: ECAR1 | EG10: ECAR1 | EH10: ECAR0 | EI10: ECAR0 | EJ10: ECAR0 | EK10: ECAR0 | EL10: ECAR0 | EM10: ECAR0 | EN10: ECAR0 | EO10: ECAR0 | EP10: ECAR0 | EQ10: ECAR0 | ER10: ECAR0 | ES10: ECAR0 | ET10: ECAR0 | EU10: ECAR0 | EV10: ECAR999 | EW10: ECAR1 | EX10: ECAR1 | EY10: ECAR2 | EZ10: ECAR1 | FA10: ECAR999 | FB10: ECAR1 | FC10: ECAR4 | FD10: ECAR2 | FE10: ECAR999 | FF10: ECAR999 | FG10: ECAR999 | FH10: ECAR999 | FI10: ECAR999 | FJ10: ECAR999 | FK10: ECAR999 | FL10: ECAR2 | FM10: ECAR1 | FN10: ECAR1 | FO10: ECAR1 | FP10: ECAR1 | FQ10: ECAR1 | FR10: ECAR999 | FS10: ECAR3 | FT10: ECAR1 | FU10: ECAR1 | FV10: ECAR2 | FW10: ECAR0
A11: Bahrain | B11: MENA | C11: No Answer Field | D11: 999 | E11: 999 | F11: 999 | G11: 999 | H11: 999 | I11: 999 | J11: 999 | K11: 999 | L11: 999 | M11: 999 | N11: 999 | O11: 999 | P11: 999 | Q11: 999 | R11: 999 | S11: 999 | T11: 999 | U11: 999 | V11: 999 | W11: 999 | X11: 999 | Y11: 999 | Z11: 999 | AA11: 999 | AB11: 999 | AC11: 999 | AD11: 999 | AE11: 999 | AF11: 999 | AG11: 999 | AH11: 999 | AI11: 999 | AJ11: 999 | AK11: 999 | AL11: 999 | AM11: 999 | AN11: 999 | AO11: 999 | AP11: 999 | AQ11: 999 | AR11: 999 | AS11: 999 | AT11: 999 | AU11: 999 | AV11: 999 | AW11: 999 | AX11: 999 | AY11: 999 | AZ11: 999 | BA11: 999 | BB11: 999 | BC11: 999 | BD11: 999 | BE11: 999 | BF11: 999 | BG11: 999 | BH11: 999 | BI11: 999 | BJ11: 999 | BK11: 999 | BL11: 999 | BM11: 999 | BN11: 999 | BO11: 999 | BP11: 999 | BQ11: 999 | BR11: 999 | BS11: 999 | BT11: 999 | BU11: 999 | BV11: 999 | BW11: 999 | BX11: 999 | BY11: 999 | BZ11: 999 | CA11: Not applicable | CB11: Not applicable | CC11: Not applicable | CD11: Not applicable | CE11: Not applicable | CF11: Not applicable | CG11: Not applicable | CH11: Not applicable | CI11: Not applicable | CJ11: Not applicable | CK11: Not applicable | CL11: 3 | CM11: 1 | CN11: 999 | CO11: 999 | CP11: 999 | CQ11: MENA999 | CR11: MENA999 | CS11: MENA999 | CT11: MENA999 | CU11: MENA999 | CV11: MENA999 | CW11: MENA999 | CX11: MENA999 | CY11: MENA999 | CZ11: MENA999 | DA11: MENA999 | DB11: MENA999 | DE11: MENA999 | DF11: MENA999 | DG11: MENA999 | DI11: MENA999 | DJ11: MENA999 | DK11: MENA999 | DL11: MENA999 | DM11: MENA999 | DN11: MENA999 | DO11: MENA999 | DP11: MENA999 | DQ11: MENA999 | DR11: MENA999 | DX11: MENA999 | DY11: MENA999 | DZ11: MENA999 | EB11: MENA999 | EC11: MENA999 | ED11: MENA999 | EE11: MENA999 | EF11: MENA999 | EG11: MENA999 | EH11: MENA999 | EI11: MENA999 | EJ11: MENA999 | EK11: MENA999 | EL11: MENA999 | EM11: MENA999 | EN11: MENA999 | EO11: MENA999 | EP11: MENA999 | EQ11: MENA999 | ER11: MENA999 | ES11: MENA999 | ET11: MENA999 | EU11: MENA999 | EV11: MENA999 | EW11: MENA999 | EX11: MENA999 | EY11: MENA999 | EZ11: MENA999 | FA11: MENA999 | FB11: MENA999 | FC11: MENA999 | FD11: MENA999 | FE11: MENA999 | FF11: MENA999 | FG11: MENA999 | FH11: MENA999 | FI11: MENA999 | FJ11: MENA999 | FK11: MENA999 | FL11: MENA999 | FM11: MENA999 | FN11: MENA999 | FO11: MENA999 | FP11: MENA999 | FQ11: MENA999 | FR11: MENA999 | FS11: MENA999 | FT11: MENA999 | FU11: MENA999 | FV11: MENA999 | FW11: MENA999
A12: Bangladesh | B12: SA | C12: No Answer Field | D12: 2 | E12: 2 | F12: 3 | G12: 999 | H12: 2 | I12: 2 | J12: 2 | K12: 3 | L12: 999 | M12: 2 | N12: 2 | O12: 2 | P12: 999 | Q12: 3 | R12: 2 | S12: 2 | T12: 2 | U12: 2.25 | V12: 3 | W12: 999 | X12: 2 | Y12: 3 | Z12: 2 | AA12: 2 | AB12: 999 | AC12: 3 | AD12: 3 | AE12: 2 | AF12: 2 | AG12: 1 | AH12: 1810 | AI12: 0 | AJ12: 0 | AK12: 0 | AL12: 0 | AM12: 0 | AN12: 0 | AO12: 1 | AP12: 1 | AQ12: 1 | AR12: 1 | AS12: 0 | AT12: 1 | AU12: 999 | AV12: 1 | AW12: 2 | AX12: 2 | AY12: 0 | AZ12: 999 | BA12: 2 | BB12: 2 | BC12: 2 | BD12: 999 | BE12: 2 | BF12: 3 | BG12: 2 | BH12: 2 | BI12: 2 | BJ12: 999 | BK12: 2 | BL12: 2 | BM12: 2 | BN12: 2 | BO12: 1 | BP12: 2 | BQ12: 999 | BR12: 3 | BS12: 2 | BT12: 3 | BU12: 2 | BV12: 0 | BW12: 63 | BX12: 1 | BY12: 1 | BZ12: 0 | CA12: 2.333333333 | CB12: 2.5 | CC12: 2 | CD12: 2.625 | CE12: 2.333333333 | CF12: 2.333333333 | CG12: 1.666666667 | CH12: 2 | CI12: 2.25 | CJ12: 1.833333333 | CK12: 2.5 | CL12: 2.333333333 | CM12: 0 | CN12: 1810 | CO12: 0 | CP12: 999 | CQ12: SA2 | CR12: SA3 | CS12: SA2 | CT12: SA3 | CU12: SA2 | CV12: SA2 | CW12: SA2 | CX12: SA2 | CY12: SA2 | CZ12: SA2 | DA12: SA3 | DB12: SA3 | DE12: SA2 | DF12: SA2 | DG12: SA3 | DI12: SA2 | DJ12: SA2 | DK12: SA2 | DL12: SA3 | DM12: SA999 | DN12: SA2 | DO12: SA2 | DP12: SA2 | DQ12: SA999 | DR12: SA3 | DX12: SA999 | DY12: SA2 | DZ12: SA3 | EB12: SA2 | EC12: SA999 | ED12: SA3 | EE12: SA3 | EF12: SA2 | EG12: SA2 | EH12: SA1 | EI12: SA1810 | EJ12: SA0 | EK12: SA0 | EL12: SA0 | EM12: SA0 | EN12: SA0 | EO12: SA0 | EP12: SA1 | EQ12: SA1 | ER12: SA1 | ES12: SA1 | ET12: SA0 | EU12: SA1 | EV12: SA999 | EW12: SA1 | EX12: SA2 | EY12: SA2 | EZ12: SA0 | FA12: SA999 | FB12: SA2 | FC12: SA2 | FD12: SA2 | FE12: SA999 | FF12: SA2 | FG12: SA3 | FH12: SA2 | FI12: SA2 | FJ12: SA2 | FK12: SA999 | FL12: SA2 | FM12: SA2 | FN12: SA2 | FO12: SA2 | FP12: SA1 | FQ12: SA2 | FR12: SA999 | FS12: SA3 | FT12: SA2 | FU12: SA3 | FV12: SA2 | FW12: SA0
A13: Barbados | B13: LACR | C13: No Answer Field | D13: 1 | E13: 999 | F13: 999 | G13: 999 | H13: 1 | I13: 2 | J13: 1.5 | K13: 1 | L13: 999 | M13: 1 | N13: 2 | O13: 1 | P13: 999 | Q13: 2 | R13: 2 | S13: 2 | T13: 3 | U13: 2.25 | V13: 3 | W13: 999 | X13: 2 | Y13: 3 | Z13: 1 | AA13: 1 | AB13: 999 | AC13: 2 | AD13: 2 | AE13: 2 | AF13: 1 | AG13: 0 | AH13: 0 | AI13: 0 | AJ13: 0 | AK13: 0 | AL13: 0 | AM13: 0 | AN13: 0 | AO13: 0 | AP13: 0 | AQ13: 0 | AR13: 0 | AS13: 0 | AT13: 0 | AU13: 999 | AV13: 1 | AW13: 2 | AX13: 2 | AY13: 1 | AZ13: 999 | BA13: 2 | BB13: 2 | BC13: 2 | BD13: 999 | BE13: 2 | BF13: 2 | BG13: 1 | BH13: 2 | BI13: 1 | BJ13: 999 | BK13: 3 | BL13: 3 | BM13: 2 | BN13: 2 | BO13: 3 | BP13: 2 | BQ13: 999 | BR13: 999 | BS13: 999 | BT13: 999 | BU13: 999 | BV13: 0 | BW13: 99.1 | BX13: 0 | BY13: 0 | BZ13: 0 | CA13: 1 | CB13: 1.25 | CC13: 1.333333333 | CD13: 2.625 | CE13: 2 | CF13: 1.666666667 | CG13: 1.666666667 | CH13: 2 | CI13: 1.75 | CJ13: 2.5 | CK13: Not applicable | CL13: Not applicable | CN13: 0 | CO13: 0 | CP13: 999 | CQ13: LACR1 | CR13: LACR1 | CS13: LACR1 | CT13: LACR3 | CU13: LACR2 | CV13: LACR2 | CW13: LACR2 | CX13: LACR2 | CY13: LACR2 | CZ13: LACR3 | DA13: LACR999 | DB13: LACR999 | DE13: LACR1 | DF13: LACR999 | DG13: LACR999 | DI13: LACR1 | DJ13: LACR2 | DK13: LACR2 | DL13: LACR1 | DM13: LACR999 | DN13: LACR1 | DO13: LACR2 | DP13: LACR1 | DQ13: LACR999 | DR13: LACR2 | DX13: LACR999 | DY13: LACR2 | DZ13: LACR3 | EB13: LACR1 | EC13: LACR999 | ED13: LACR2 | EE13: LACR2 | EF13: LACR2 | EG13: LACR1 | EH13: LACR0 | EI13: LACR0 | EJ13: LACR0 | EK13: LACR0 | EL13: LACR0 | EM13: LACR0 | EN13: LACR0 | EO13: LACR0 | EP13: LACR0 | EQ13: LACR0 | ER13: LACR0 | ES13: LACR0 | ET13: LACR0 | EU13: LACR0 | EV13: LACR999 | EW13: LACR1 | EX13: LACR2 | EY13: LACR2 | EZ13: LACR1 | FA13: LACR999 | FB13: LACR2 | FC13: LACR2 | FD13: LACR2 | FE13: LACR999 | FF13: LACR2 | FG13: LACR2 | FH13: LACR1 | FI13: LACR2 | FJ13: LACR1 | FK13: LACR999 | FL13: LACR3 | FM13: LACR3 | FN13: LACR2 | FO13: LACR2 | FP13: LACR3 | FQ13: LACR2 | FR13: LACR999 | FS13: LACR999 | FT13: LACR999 | FU13: LACR999 | FV13: LACR999 | FW13: LACR0
A14: Belarus | B14: ECAR | C14: No Answer Field | D14: 3 | E14: 999 | F14: 999 | G14: 999 | H14: 999 | I14: 999 | J14: 999 | K14: 999 | L14: 999 | M14: 3 | N14: 3 | O14: 3 | P14: 999 | Q14: 999 | R14: 999 | S14: 999 | T14: 999 | U14: 999 | V14: 999 | W14: 999 | X14: 999 | Y14: 999 | Z14: 999 | AA14: 999 | AB14: 999 | AC14: 4 | AD14: 3 | AE14: 4 | AF14: 3 | AG14: 0 | AH14: 0 | AI14: 0 | AJ14: 0 | AK14: 0 | AL14: 0 | AM14: 0 | AN14: 0 | AO14: 0 | AP14: 0 | AQ14: 0 | AR14: 0 | AS14: 0 | AT14: 0 | AU14: 999 | AV14: 999 | AW14: 999 | AX14: 999 | AY14: 1 | AZ14: 999 | BA14: 999 | BB14: 999 | BC14: 999 | BD14: 999 | BE14: 999 | BF14: 999 | BG14: 999 | BH14: 999 | BI14: 999 | BJ14: 999 | BK14: 3 | BL14: 2 | BM14: 3 | BN14: 2 | BO14: 2 | BP14: 999 | BQ14: 999 | BR14: 999 | BS14: 999 | BT14: 999 | BU14: 999 | BV14: 0 | BW14: 98 | BX14: 0 | BY14: 0 | BZ14: 0 | CA14: 3 | CB14: Not applicable | CC14: 3 | CD14: Not applicable | CE14: Not applicable | CF14: 3.333333333 | CG14: Not applicable | CH14: Not applicable | CI14: Not applicable | CJ14: 2.4 | CK14: Not applicable | CL14: Not applicable | CN14: 0 | CO14: 0 | CP14: 999 | CQ14: ECAR3 | CR14: ECAR999 | CS14: ECAR3 | CT14: ECAR999 | CU14: ECAR999 | CV14: ECAR3 | CW14: ECAR999 | CX14: ECAR999 | CY14: ECAR999 | CZ14: ECAR2 | DA14: ECAR999 | DB14: ECAR999 | DE14: ECAR3 | DF14: ECAR999 | DG14: ECAR999 | DI14: ECAR999 | DJ14: ECAR999 | DK14: ECAR999 | DL14: ECAR999 | DM14: ECAR999 | DN14: ECAR3 | DO14: ECAR3 | DP14: ECAR3 | DQ14: ECAR999 | DR14: ECAR999 | DX14: ECAR999 | DY14: ECAR999 | DZ14: ECAR999 | EB14: ECAR999 | EC14: ECAR999 | ED14: ECAR4 | EE14: ECAR3 | EF14: ECAR4 | EG14: ECAR3 | EH14: ECAR0 | EI14: ECAR0 | EJ14: ECAR0 | EK14: ECAR0 | EL14: ECAR0 | EM14: ECAR0 | EN14: ECAR0 | EO14: ECAR0 | EP14: ECAR0 | EQ14: ECAR0 | ER14: ECAR0 | ES14: ECAR0 | ET14: ECAR0 | EU14: ECAR0 | EV14: ECAR999 | EW14: ECAR999 | EX14: ECAR999 | EY14: ECAR999 | EZ14: ECAR1 | FA14: ECAR999 | FB14: ECAR999 | FC14: ECAR999 | FD14: ECAR999 | FE14: ECAR999 | FF14: ECAR999 | FG14: ECAR999 | FH14: ECAR999 | FI14: ECAR999 | FJ14: ECAR999 | FK14: ECAR999 | FL14: ECAR3 | FM14: ECAR2 | FN14: ECAR3 | FO14: ECAR2 | FP14: ECAR2 | FQ14: ECAR999 | FR14: ECAR999 | FS14: ECAR999 | FT14: ECAR999 | FU14: ECAR999 | FV14: ECAR999 | FW14: ECAR0
A15: Belize | B15: LACR | C15: No Answer Field | D15: 3 | E15: 3 | F15: 3 | G15: 999 | H15: 999 | I15: 999 | J15: 999 | K15: 999 | L15: 999 | M15: 2 | N15: 2 | O15: 2 | P15: 999 | Q15: 1 | R15: 1 | S15: 1 | T15: 1 | U15: 1 | V15: 1 | W15: 999 | X15: 2 | Y15: 3 | Z15: 2 | AA15: 2 | AB15: 999 | AC15: 1 | AD15: 1 | AE15: 1 | AF15: 1 | AG15: 0 | AH15: 0 | AI15: 0 | AJ15: 0 | AK15: 0 | AL15: 0 | AM15: 0 | AN15: 0 | AO15: 0 | AP15: 0 | AQ15: 0 | AR15: 0 | AS15: 0 | AT15: 0 | AU15: 999 | AV15: 999 | AW15: 999 | AX15: 999 | AY15: 999 | AZ15: 999 | BA15: 3 | BB15: 3 | BC15: 3 | BD15: 999 | BE15: 1 | BF15: 2 | BG15: 3 | BH15: 2 | BI15: 3 | BJ15: 999 | BK15: 2 | BL15: 3 | BM15: 2 | BN15: 2 | BO15: 2 | BP15: 3 | BQ15: 999 | BR15: 2 | BS15: 2 | BT15: 2 | BU15: 3 | BV15: 0 | BW15: 68 | BX15: 1 | BY15: 1 | BZ15: 0 | CA15: 3 | CB15: Not applicable | CC15: 2 | CD15: 1 | CE15: 2.333333333 | CF15: 1 | CG15: Not applicable | CH15: 3 | CI15: 2 | CJ15: 2.333333333 | CK15: 2.25 | CL15: 3 | CN15: 0 | CO15: 0 | CP15: 999 | CQ15: LACR3 | CR15: LACR999 | CS15: LACR2 | CT15: LACR1 | CU15: LACR2 | CV15: LACR1 | CW15: LACR999 | CX15: LACR3 | CY15: LACR2 | CZ15: LACR2 | DA15: LACR2 | DB15: LACR999 | DE15: LACR3 | DF15: LACR3 | DG15: LACR3 | DI15: LACR999 | DJ15: LACR999 | DK15: LACR999 | DL15: LACR999 | DM15: LACR999 | DN15: LACR2 | DO15: LACR2 | DP15: LACR2 | DQ15: LACR999 | DR15: LACR1 | DX15: LACR999 | DY15: LACR2 | DZ15: LACR3 | EB15: LACR2 | EC15: LACR999 | ED15: LACR1 | EE15: LACR1 | EF15: LACR1 | EG15: LACR1 | EH15: LACR0 | EI15: LACR0 | EJ15: LACR0 | EK15: LACR0 | EL15: LACR0 | EM15: LACR0 | EN15: LACR0 | EO15: LACR0 | EP15: LACR0 | EQ15: LACR0 | ER15: LACR0 | ES15: LACR0 | ET15: LACR0 | EU15: LACR0 | EV15: LACR999 | EW15: LACR999 | EX15: LACR999 | EY15: LACR999 | EZ15: LACR999 | FA15: LACR999 | FB15: LACR3 | FC15: LACR3 | FD15: LACR3 | FE15: LACR999 | FF15: LACR1 | FG15: LACR2 | FH15: LACR3 | FI15: LACR2 | FJ15: LACR3 | FK15: LACR999 | FL15: LACR2 | FM15: LACR3 | FN15: LACR2 | FO15: LACR2 | FP15: LACR2 | FQ15: LACR3 | FR15: LACR999 | FS15: LACR2 | FT15: LACR2 | FU15: LACR2 | FV15: LACR3 | FW15: LACR0
A16: Benin | B16: WCAR | C16: No Answer Field | D16: 3 | E16: 3 | F16: 2 | G16: 999 | H16: 2 | I16: 2 | J16: 2 | K16: 2 | L16: 999 | M16: 3 | N16: 2 | O16: 2 | P16: 999 | Q16: 2 | R16: 2 | S16: 1 | T16: 2 | U16: 1.75 | V16: 1 | W16: 999 | X16: 1 | Y16: 2 | Z16: 1 | AA16: 3 | AB16: 999 | AC16: 3 | AD16: 2 | AE16: 3 | AF16: 2 | AG16: 1 | AH16: 0 | AI16: 0 | AJ16: 0 | AK16: 0 | AL16: 998 | AM16: 0 | AN16: 1988 | AO16: 1 | AP16: 1 | AQ16: 1 | AR16: 1 | AS16: 0 | AT16: 1 | AU16: 999 | AV16: 2 | AW16: 2 | AX16: 2 | AY16: 0 | AZ16: 999 | BA16: 3 | BB16: 3 | BC16: 3 | BD16: 999 | BE16: 999 | BF16: 999 | BG16: 999 | BH16: 999 | BI16: 999 | BJ16: 999 | BK16: 3 | BL16: 2 | BM16: 2 | BN16: 2 | BO16: 1 | BP16: 2 | BQ16: 999 | BR16: 2 | BS16: 1 | BT16: 1 | BU16: 1 | BV16: 0 | BW16: 43 | BX16: 1 | BY16: 1 | BZ16: 1 | CA16: 2.666666667 | CB16: 2 | CC16: 2.333333333 | CD16: 1.375 | CE16: 1.333333333 | CF16: 2.333333333 | CG16: 2 | CH16: 3 | CI16: Not applicable | CJ16: 2 | CK16: 1.25 | CL16: 1.666666667 | CN16: 0 | CO16: 0 | CP16: 999 | CQ16: WCAR3 | CR16: WCAR2 | CS16: WCAR2 | CT16: WCAR1 | CU16: WCAR1 | CV16: WCAR2 | CW16: WCAR2 | CX16: WCAR3 | CY16: WCAR999 | CZ16: WCAR2 | DA16: WCAR1 | DB16: WCAR3 | DE16: WCAR3 | DF16: WCAR3 | DG16: WCAR2 | DI16: WCAR2 | DJ16: WCAR2 | DK16: WCAR2 | DL16: WCAR2 | DM16: WCAR999 | DN16: WCAR3 | DO16: WCAR2 | DP16: WCAR2 | DQ16: WCAR999 | DR16: WCAR2 | DX16: WCAR999 | DY16: WCAR1 | DZ16: WCAR2 | EB16: WCAR3 | EC16: WCAR999 | ED16: WCAR3 | EE16: WCAR2 | EF16: WCAR3 | EG16: WCAR2 | EH16: WCAR1 | EI16: WCAR0 | EJ16: WCAR0 | EK16: WCAR0 | EL16: WCAR0 | EM16: WCAR998 | EN16: WCAR0 | EO16: WCAR1988 | EP16: WCAR1 | EQ16: WCAR1 | ER16: WCAR1 | ES16: WCAR1 | ET16: WCAR0 | EU16: WCAR1 | EV16: WCAR999 | EW16: WCAR2 | EX16: WCAR2 | EY16: WCAR2 | EZ16: WCAR0 | FA16: WCAR999 | FB16: WCAR3 | FC16: WCAR3 | FD16: WCAR3 | FE16: WCAR999 | FF16: WCAR999 | FG16: WCAR999 | FH16: WCAR999 | FI16: WCAR999 | FJ16: WCAR999 | FK16: WCAR999 | FL16: WCAR3 | FM16: WCAR2 | FN16: WCAR2 | FO16: WCAR2 | FP16: WCAR1 | FQ16: WCAR2 | FR16: WCAR999 | FS16: WCAR2 | FT16: WCAR1 | FU16: WCAR1 | FV16: WCAR1 | FW16: WCAR0
A17: Bhutan | B17: SA | C17: No Answer Field | D17: 2 | E17: 2 | F17: 2 | G17: 999 | H17: 2 | I17: 2 | J17: 2 | K17: 2 | L17: 999 | M17: 3 | N17: 4 | O17: 3 | P17: 999 | Q17: 3 | R17: 3 | S17: 2 | T17: 3 | U17: 2.75 | V17: 2 | W17: 999 | X17: 3 | Y17: 3 | Z17: 2 | AA17: 1 | AB17: 999 | AC17: 1 | AD17: 2 | AE17: 1 | AF17: 3 | AG17: 0 | AH17: 0 | AI17: 0 | AJ17: 0 | AK17: 0 | AL17: 0 | AM17: 0 | AN17: 0 | AO17: 0 | AP17: 0 | AQ17: 0 | AR17: 0 | AS17: 0 | AT17: 0 | AU17: 999 | AV17: 999 | AW17: 999 | AX17: 999 | AY17: 1 | AZ17: 999 | BA17: 3 | BB17: 4 | BC17: 2 | BD17: 999 | BE17: 999 | BF17: 999 | BG17: 999 | BH17: 999 | BI17: 999 | BJ17: 999 | BK17: 1 | BL17: 1 | BM17: 2 | BN17: 2 | BO17: 3 | BP17: 2 | BQ17: 999 | BR17: 1 | BS17: 1 | BT17: 1 | BU17: 2 | BV17: 0 | BW17: 93 | BX17: 0 | BY17: 0 | BZ17: 0 | CA17: 2 | CB17: 2 | CC17: 3.333333333 | CD17: 2.375 | CE17: 2.666666667 | CF17: 2 | CG17: Not applicable | CH17: 3 | CI17: Not applicable | CJ17: 1.833333333 | CK17: 1.25 | CL17: Not applicable | CN17: 0 | CO17: 0 | CP17: 999 | CQ17: SA2 | CR17: SA2 | CS17: SA3 | CT17: SA2 | CU17: SA3 | CV17: SA2 | CW17: SA999 | CX17: SA3 | CY17: SA999 | CZ17: SA2 | DA17: SA1 | DB17: SA999 | DE17: SA2 | DF17: SA2 | DG17: SA2 | DI17: SA2 | DJ17: SA2 | DK17: SA2 | DL17: SA2 | DM17: SA999 | DN17: SA3 | DO17: SA4 | DP17: SA3 | DQ17: SA999 | DR17: SA3 | DX17: SA999 | DY17: SA3 | DZ17: SA3 | EB17: SA1 | EC17: SA999 | ED17: SA1 | EE17: SA2 | EF17: SA1 | EG17: SA3 | EH17: SA0 | EI17: SA0 | EJ17: SA0 | EK17: SA0 | EL17: SA0 | EM17: SA0 | EN17: SA0 | EO17: SA0 | EP17: SA0 | EQ17: SA0 | ER17: SA0 | ES17: SA0 | ET17: SA0 | EU17: SA0 | EV17: SA999 | EW17: SA999 | EX17: SA999 | EY17: SA999 | EZ17: SA1 | FA17: SA999 | FB17: SA3 | FC17: SA4 | FD17: SA2 | FE17: SA999 | FF17: SA999 | FG17: SA999 | FH17: SA999 | FI17: SA999 | FJ17: SA999 | FK17: SA999 | FL17: SA1 | FM17: SA1 | FN17: SA2 | FO17: SA2 | FP17: SA3 | FQ17: SA2 | FR17: SA999 | FS17: SA1 | FT17: SA1 | FU17: SA1 | FV17: SA2 | FW17: SA0
A18: Bolivia | B18: LACR | C18: No Answer Field | D18: 3 | E18: 3 | F18: 2 | G18: 999 | H18: 2 | I18: 1 | J18: 1.5 | K18: 2 | L18: 999 | M18: 2 | N18: 3 | O18: 2 | P18: 999 | Q18: 2 | R18: 1 | S18: 3 | T18: 2 | U18: 2 | V18: 999 | W18: 999 | X18: 2 | Y18: 1 | Z18: 1 | AA18: 1 | AB18: 999 | AC18: 2 | AD18: 2 | AE18: 1 | AF18: 3 | AG18: 0 | AH18: 999 | AI18: 999 | AJ18: 999 | AK18: 999 | AL18: 999 | AM18: 999 | AN18: 999 | AO18: 0 | AP18: 999 | AQ18: 999 | AR18: 999 | AS18: 999 | AT18: 999 | AU18: 999 | AV18: 1 | AW18: 2 | AX18: 2 | AY18: 1 | AZ18: 999 | BA18: 3 | BB18: 2 | BC18: 3 | BD18: 999 | BE18: 4 | BF18: 3 | BG18: 3 | BH18: 4 | BI18: 3 | BJ18: 999 | BK18: 3 | BL18: 1 | BM18: 2 | BN18: 2 | BO18: 2 | BP18: 2 | BQ18: 999 | BR18: 2 | BS18: 1 | BT18: 2 | BU18: 2 | BV18: 0 | BW18: 68 | BX18: 0 | BY18: 0 | BZ18: 0 | CA18: 2.666666667 | CB18: 1.75 | CC18: 2.333333333 | CD18: 2 | CE18: 1.333333333 | CF18: 2 | CG18: 1.666666667 | CH18: 2.666666667 | CI18: 3.5 | CJ18: 2 | CK18: 1.75 | CL18: Not applicable | CM18: 1 | CN18: 999 | CO18: 999 | CP18: 999 | CQ18: LACR3 | CR18: LACR2 | CS18: LACR2 | CT18: LACR2 | CU18: LACR1 | CV18: LACR2 | CW18: LACR2 | CX18: LACR3 | CY18: LACR4 | CZ18: LACR2 | DA18: LACR2 | DB18: LACR999 | DE18: LACR3 | DF18: LACR3 | DG18: LACR2 | DI18: LACR2 | DJ18: LACR1 | DK18: LACR2 | DL18: LACR2 | DM18: LACR999 | DN18: LACR2 | DO18: LACR3 | DP18: LACR2 | DQ18: LACR999 | DR18: LACR2 | DX18: LACR999 | DY18: LACR2 | DZ18: LACR1 | EB18: LACR1 | EC18: LACR999 | ED18: LACR2 | EE18: LACR2 | EF18: LACR1 | EG18: LACR3 | EH18: LACR0 | EI18: LACR999 | EJ18: LACR999 | EK18: LACR999 | EL18: LACR999 | EM18: LACR999 | EN18: LACR999 | EO18: LACR999 | EP18: LACR0 | EQ18: LACR999 | ER18: LACR999 | ES18: LACR999 | ET18: LACR999 | EU18: LACR999 | EV18: LACR999 | EW18: LACR1 | EX18: LACR2 | EY18: LACR2 | EZ18: LACR1 | FA18: LACR999 | FB18: LACR3 | FC18: LACR2 | FD18: LACR3 | FE18: LACR999 | FF18: LACR4 | FG18: LACR3 | FH18: LACR3 | FI18: LACR4 | FJ18: LACR3 | FK18: LACR999 | FL18: LACR3 | FM18: LACR1 | FN18: LACR2 | FO18: LACR2 | FP18: LACR2 | FQ18: LACR2 | FR18: LACR999 | FS18: LACR2 | FT18: LACR1 | FU18: LACR2 | FV18: LACR2 | FW18: LACR0
A19: Bos.&Herz. | B19: ECAR | C19: No Answer Field | D19: 3 | E19: 999 | F19: 2 | G19: 999 | H19: 2 | I19: 999 | J19: 2 | K19: 3 | L19: 999 | M19: 2 | N19: 3 | O19: 2 | P19: 999 | Q19: 3 | R19: 3 | S19: 3 | T19: 3 | U19: 3 | V19: 2 | W19: 999 | X19: 2 | Y19: 1 | Z19: 1 | AA19: 1 | AB19: 999 | AC19: 2 | AD19: 3 | AE19: 4 | AF19: 3 | AG19: 0 | AH19: 0 | AI19: 0 | AJ19: 0 | AK19: 0 | AL19: 0 | AM19: 0 | AN19: 0 | AO19: 0 | AP19: 0 | AQ19: 0 | AR19: 0 | AS19: 0 | AT19: 0 | AU19: 999 | AV19: 1 | AW19: 3 | AX19: 2 | AY19: 1 | AZ19: 999 | BA19: 3 | BB19: 1 | BC19: 2 | BD19: 999 | BE19: 999 | BF19: 999 | BG19: 999 | BH19: 999 | BI19: 999 | BJ19: 999 | BK19: 4 | BL19: 2 | BM19: 2 | BN19: 2 | BO19: 3 | BP19: 1 | BQ19: 999 | BR19: 999 | BS19: 999 | BT19: 999 | BU19: 999 | BV19: 0 | BW19: 93 | BX19: 0 | BY19: 0 | BZ19: 0 | CA19: 2.5 | CB19: 2.5 | CC19: 2.333333333 | CD19: 2.5 | CE19: 1.333333333 | CF19: 3.333333333 | CG19: 2 | CH19: 2 | CI19: Not applicable | CJ19: 2.333333333 | CK19: Not applicable | CL19: Not applicable | CN19: 0 | CO19: 0 | CP19: 999 | CQ19: ECAR3 | CR19: ECAR3 | CS19: ECAR2 | CT19: ECAR3 | CU19: ECAR1 | CV19: ECAR3 | CW19: ECAR2 | CX19: ECAR2 | CY19: ECAR999 | CZ19: ECAR2 | DA19: ECAR999 | DB19: ECAR999 | DE19: ECAR3 | DF19: ECAR999 | DG19: ECAR2 | DI19: ECAR2 | DJ19: ECAR999 | DK19: ECAR2 | DL19: ECAR3 | DM19: ECAR999 | DN19: ECAR2 | DO19: ECAR3 | DP19: ECAR2 | DQ19: ECAR999 | DR19: ECAR3 | DX19: ECAR999 | DY19: ECAR2 | DZ19: ECAR1 | EB19: ECAR1 | EC19: ECAR999 | ED19: ECAR2 | EE19: ECAR3 | EF19: ECAR4 | EG19: ECAR3 | EH19: ECAR0 | EI19: ECAR0 | EJ19: ECAR0 | EK19: ECAR0 | EL19: ECAR0 | EM19: ECAR0 | EN19: ECAR0 | EO19: ECAR0 | EP19: ECAR0 | EQ19: ECAR0 | ER19: ECAR0 | ES19: ECAR0 | ET19: ECAR0 | EU19: ECAR0 | EV19: ECAR999 | EW19: ECAR1 | EX19: ECAR3 | EY19: ECAR2 | EZ19: ECAR1 | FA19: ECAR999 | FB19: ECAR3 | FC19: ECAR1 | FD19: ECAR2 | FE19: ECAR999 | FF19: ECAR999 | FG19: ECAR999 | FH19: ECAR999 | FI19: ECAR999 | FJ19: ECAR999 | FK19: ECAR999 | FL19: ECAR4 | FM19: ECAR2 | FN19: ECAR2 | FO19: ECAR2 | FP19: ECAR3 | FQ19: ECAR1 | FR19: ECAR999 | FS19: ECAR999 | FT19: ECAR999 | FU19: ECAR999 | FV19: ECAR999 | FW19: ECAR0
A20: Botswana | B20: ESAR | C20: No Answer Field | D20: 2 | E20: 2 | F20: 999 | G20: 999 | H20: 2 | I20: 2 | J20: 2 | K20: 999 | L20: 999 | M20: 2 | N20: 3 | O20: 2 | P20: 999 | Q20: 1 | R20: 1 | S20: 1 | T20: 1 | U20: 1 | V20: 999 | W20: 999 | X20: 2 | Y20: 3 | Z20: 3 | AA20: 4 | AB20: 999 | AC20: 1 | AD20: 2 | AE20: 4 | AF20: 2 | AG20: 0 | AH20: 0 | AI20: 0 | AJ20: 0 | AK20: 0 | AL20: 0 | AM20: 0 | AN20: 0 | AO20: 0 | AP20: 0 | AQ20: 0 | AR20: 0 | AS20: 0 | AT20: 0 | AU20: 999 | AV20: 999 | AW20: 999 | AX20: 999 | AY20: 1 | AZ20: 999 | BA20: 2 | BB20: 3 | BC20: 3 | BD20: 999 | BE20: 1 | BF20: 2 | BG20: 2 | BH20: 2 | BI20: 1 | BJ20: 999 | BK20: 4 | BL20: 999 | BM20: 999 | BN20: 2 | BO20: 3 | BP20: 3 | BQ20: 999 | BR20: 3 | BS20: 2 | BT20: 1 | BU20: 2 | BV20: 0 | BW20: 71 | BX20: 1 | BY20: 1 | BZ20: 1 | CA20: 2 | CB20: 2 | CC20: 2.333333333 | CD20: 1 | CE20: 2.666666667 | CF20: 2.666666667 | CG20: Not applicable | CH20: 2.666666667 | CI20: 1.75 | CJ20: 3 | CK20: 2 | CL20: 2 | CN20: 0 | CO20: 0 | CP20: 999 | CQ20: ESAR2 | CR20: ESAR2 | CS20: ESAR2 | CT20: ESAR1 | CU20: ESAR3 | CV20: ESAR3 | CW20: ESAR999 | CX20: ESAR3 | CY20: ESAR2 | CZ20: ESAR3 | DA20: ESAR2 | DB20: ESAR999 | DE20: ESAR2 | DF20: ESAR2 | DG20: ESAR999 | DI20: ESAR2 | DJ20: ESAR2 | DK20: ESAR2 | DL20: ESAR999 | DM20: ESAR999 | DN20: ESAR2 | DO20: ESAR3 | DP20: ESAR2 | DQ20: ESAR999 | DR20: ESAR1 | DX20: ESAR999 | DY20: ESAR2 | DZ20: ESAR3 | EB20: ESAR4 | EC20: ESAR999 | ED20: ESAR1 | EE20: ESAR2 | EF20: ESAR4 | EG20: ESAR2 | EH20: ESAR0 | EI20: ESAR0 | EJ20: ESAR0 | EK20: ESAR0 | EL20: ESAR0 | EM20: ESAR0 | EN20: ESAR0 | EO20: ESAR0 | EP20: ESAR0 | EQ20: ESAR0 | ER20: ESAR0 | ES20: ESAR0 | ET20: ESAR0 | EU20: ESAR0 | EV20: ESAR999 | EW20: ESAR999 | EX20: ESAR999 | EY20: ESAR999 | EZ20: ESAR1 | FA20: ESAR999 | FB20: ESAR2 | FC20: ESAR3 | FD20: ESAR3 | FE20: ESAR999 | FF20: ESAR1 | FG20: ESAR2 | FH20: ESAR2 | FI20: ESAR2 | FJ20: ESAR1 | FK20: ESAR999 | FL20: ESAR4 | FM20: ESAR999 | FN20: ESAR999 | FO20: ESAR2 | FP20: ESAR3 | FQ20: ESAR3 | FR20: ESAR999 | FS20: ESAR3 | FT20: ESAR2 | FU20: ESAR1 | FV20: ESAR2 | FW20: ESAR0
A21: Brazil | B21: LACR | C21: No Answer Field | D21: 3 | E21: 3 | F21: 3 | G21: 999 | H21: 4 | I21: 3 | J21: 3.5 | K21: 3 | L21: 999 | M21: 3 | N21: 3 | O21: 3 | P21: 999 | Q21: 3 | R21: 2 | S21: 2 | T21: 2 | U21: 2.25 | V21: 3 | W21: 999 | X21: 3 | Y21: 2 | Z21: 3 | AA21: 999 | AB21: 999 | AC21: 3 | AD21: 4 | AE21: 2 | AF21: 3 | AG21: 0 | AH21: 0 | AI21: 0 | AJ21: 0 | AK21: 0 | AL21: 0 | AM21: 0 | AN21: 0 | AO21: 0 | AP21: 0 | AQ21: 0 | AR21: 0 | AS21: 0 | AT21: 0 | AU21: 999 | AV21: 999 | AW21: 999 | AX21: 999 | AY21: 1 | AZ21: 999 | BA21: 4 | BB21: 4 | BC21: 3 | BD21: 999 | BE21: 3 | BF21: 1 | BG21: 2 | BH21: 3 | BI21: 1 | BJ21: 999 | BK21: 4 | BL21: 1 | BM21: 4 | BN21: 2 | BO21: 3 | BP21: 2 | BQ21: 999 | BR21: 999 | BS21: 999 | BT21: 999 | BU21: 999 | BV21: 1 | BW21: 0 | BX21: 0 | BY21: 0 | BZ21: 0 | CA21: 3 | CB21: 3.25 | CC21: 3 | CD21: 2.625 | CE21: 2.666666667 | CF21: 3 | CG21: Not applicable | CH21: 3.666666667 | CI21: 2.25 | CJ21: 2.666666667 | CK21: Not applicable | CL21: Not applicable | CN21: 0 | CO21: 0 | CP21: 999 | CQ21: LACR3 | CR21: LACR3 | CS21: LACR3 | CT21: LACR3 | CU21: LACR3 | CV21: LACR3 | CW21: LACR999 | CX21: LACR4 | CY21: LACR2 | CZ21: LACR3 | DA21: LACR999 | DB21: LACR999 | DE21: LACR3 | DF21: LACR3 | DG21: LACR3 | DI21: LACR4 | DJ21: LACR3 | DK21: LACR4 | DL21: LACR3 | DM21: LACR999 | DN21: LACR3 | DO21: LACR3 | DP21: LACR3 | DQ21: LACR999 | DR21: LACR3 | DX21: LACR999 | DY21: LACR3 | DZ21: LACR2 | EB21: LACR999 | EC21: LACR999 | ED21: LACR3 | EE21: LACR4 | EF21: LACR2 | EG21: LACR3 | EH21: LACR0 | EI21: LACR0 | EJ21: LACR0 | EK21: LACR0 | EL21: LACR0 | EM21: LACR0 | EN21: LACR0 | EO21: LACR0 | EP21: LACR0 | EQ21: LACR0 | ER21: LACR0 | ES21: LACR0 | ET21: LACR0 | EU21: LACR0 | EV21: LACR999 | EW21: LACR999 | EX21: LACR999 | EY21: LACR999 | EZ21: LACR1 | FA21: LACR999 | FB21: LACR4 | FC21: LACR4 | FD21: LACR3 | FE21: LACR999 | FF21: LACR3 | FG21: LACR1 | FH21: LACR2 | FI21: LACR3 | FJ21: LACR1 | FK21: LACR999 | FL21: LACR4 | FM21: LACR1 | FN21: LACR4 | FO21: LACR2 | FP21: LACR3 | FQ21: LACR2 | FR21: LACR999 | FS21: LACR999 | FT21: LACR999 | FU21: LACR999 | FV21: LACR999 | FW21: LACR1
A22: BVI | B22: LACR | C22: No Answer Field | D22: 1 | E22: 999 | F22: 1 | G22: 999 | H22: 1 | I22: 2 | J22: 1.5 | K22: 1 | L22: 999 | M22: 1 | N22: 2 | O22: 1 | P22: 999 | Q22: 2 | R22: 2 | S22: 2 | T22: 3 | U22: 2.25 | V22: 3 | W22: 999 | X22: 2 | Y22: 3 | Z22: 1 | AA22: 1 | AB22: 999 | AC22: 2 | AD22: 2 | AE22: 2 | AF22: 1 | AG22: 0 | AH22: 0 | AI22: 0 | AJ22: 0 | AK22: 0 | AL22: 0 | AM22: 0 | AN22: 0 | AO22: 0 | AP22: 0 | AQ22: 0 | AR22: 0 | AS22: 0 | AT22: 0 | AU22: 999 | AV22: 1 | AW22: 2 | AX22: 2 | AY22: 1 | AZ22: 999 | BA22: 2 | BB22: 2 | BC22: 2 | BD22: 999 | BE22: 2 | BF22: 2 | BG22: 1 | BH22: 2 | BI22: 1 | BJ22: 999 | BK22: 3 | BL22: 3 | BM22: 2 | BN22: 2 | BO22: 3 | BP22: 2 | BQ22: 999 | BR22: 999 | BS22: 999 | BT22: 999 | BU22: 999 | BV22: 0 | BW22: 93.9 | BX22: 0 | BY22: 0 | BZ22: 0 | CA22: 1 | CB22: 1.25 | CC22: 1.333333333 | CD22: 2.625 | CE22: 2 | CF22: 1.666666667 | CG22: 1.666666667 | CH22: 2 | CI22: 1.75 | CJ22: 2.5 | CK22: Not applicable | CL22: Not applicable | CN22: 0 | CO22: 0 | CP22: 999 | CQ22: LACR1 | CR22: LACR1 | CS22: LACR1 | CT22: LACR3 | CU22: LACR2 | CV22: LACR2 | CW22: LACR2 | CX22: LACR2 | CY22: LACR2 | CZ22: LACR3 | DA22: LACR999 | DB22: LACR999 | DE22: LACR1 | DF22: LACR999 | DG22: LACR1 | DI22: LACR1 | DJ22: LACR2 | DK22: LACR2 | DL22: LACR1 | DM22: LACR999 | DN22: LACR1 | DO22: LACR2 | DP22: LACR1 | DQ22: LACR999 | DR22: LACR2 | DX22: LACR999 | DY22: LACR2 | DZ22: LACR3 | EB22: LACR1 | EC22: LACR999 | ED22: LACR2 | EE22: LACR2 | EF22: LACR2 | EG22: LACR1 | EH22: LACR0 | EI22: LACR0 | EJ22: LACR0 | EK22: LACR0 | EL22: LACR0 | EM22: LACR0 | EN22: LACR0 | EO22: LACR0 | EP22: LACR0 | EQ22: LACR0 | ER22: LACR0 | ES22: LACR0 | ET22: LACR0 | EU22: LACR0 | EV22: LACR999 | EW22: LACR1 | EX22: LACR2 | EY22: LACR2 | EZ22: LACR1 | FA22: LACR999 | FB22: LACR2 | FC22: LACR2 | FD22: LACR2 | FE22: LACR999 | FF22: LACR2 | FG22: LACR2 | FH22: LACR1 | FI22: LACR2 | FJ22: LACR1 | FK22: LACR999 | FL22: LACR3 | FM22: LACR3 | FN22: LACR2 | FO22: LACR2 | FP22: LACR3 | FQ22: LACR2 | FR22: LACR999 | FS22: LACR999 | FT22: LACR999 | FU22: LACR999 | FV22: LACR999 | FW22: LACR0
A23: Bulgaria | B23: ECAR | C23: No Answer Field | D23: 2 | E23: 2 | F23: 2 | G23: 999 | H23: 3 | I23: 3 | J23: 3 | K23: 3 | L23: 999 | M23: 1 | N23: 2 | O23: 1 | P23: 999 | Q23: 2 | R23: 2 | S23: 2 | T23: 3 | U23: 2.25 | V23: 1 | W23: 999 | X23: 2 | Y23: 2 | Z23: 2 | AA23: 2 | AB23: 999 | AC23: 2 | AD23: 1 | AE23: 4 | AF23: 2 | AG23: 1 | AH23: 0 | AI23: 0 | AJ23: 0 | AK23: 0 | AL23: 0 | AM23: 0 | AN23: 0 | AO23: 0 | AP23: 0 | AQ23: 0 | AR23: 0 | AS23: 0 | AT23: 0 | AU23: 999 | AV23: 999 | AW23: 999 | AX23: 999 | AY23: 1 | AZ23: 999 | BA23: 3 | BB23: 999 | BC23: 3 | BD23: 999 | BE23: 1 | BF23: 1 | BG23: 2 | BH23: 2 | BI23: 4 | BJ23: 999 | BK23: 3 | BL23: 2 | BM23: 2 | BN23: 3 | BO23: 3 | BP23: 3 | BQ23: 999 | BR23: 2 | BS23: 2 | BT23: 3 | BU23: 3 | BV23: 0 | BW23: 0 | BX23: 0 | BY23: 0 | BZ23: 0 | CA23: 2 | CB23: 3 | CC23: 1.333333333 | CD23: 1.625 | CE23: 2 | CF23: 2.333333333 | CG23: Not applicable | CH23: 3 | CI23: 1.5 | CJ23: 2.666666667 | CK23: 2.5 | CL23: Not applicable | CN23: 0 | CO23: 0 | CP23: 999 | CQ23: ECAR2 | CR23: ECAR3 | CS23: ECAR1 | CT23: ECAR2 | CU23: ECAR2 | CV23: ECAR2 | CW23: ECAR999 | CX23: ECAR3 | CY23: ECAR2 | CZ23: ECAR3 | DA23: ECAR3 | DB23: ECAR999 | DE23: ECAR2 | DF23: ECAR2 | DG23: ECAR2 | DI23: ECAR3 | DJ23: ECAR3 | DK23: ECAR3 | DL23: ECAR3 | DM23: ECAR999 | DN23: ECAR1 | DO23: ECAR2 | DP23: ECAR1 | DQ23: ECAR999 | DR23: ECAR2 | DX23: ECAR999 | DY23: ECAR2 | DZ23: ECAR2 | EB23: ECAR2 | EC23: ECAR999 | ED23: ECAR2 | EE23: ECAR1 | EF23: ECAR4 | EG23: ECAR2 | EH23: ECAR1 | EI23: ECAR0 | EJ23: ECAR0 | EK23: ECAR0 | EL23: ECAR0 | EM23: ECAR0 | EN23: ECAR0 | EO23: ECAR0 | EP23: ECAR0 | EQ23: ECAR0 | ER23: ECAR0 | ES23: ECAR0 | ET23: ECAR0 | EU23: ECAR0 | EV23: ECAR999 | EW23: ECAR999 | EX23: ECAR999 | EY23: ECAR999 | EZ23: ECAR1 | FA23: ECAR999 | FB23: ECAR3 | FC23: ECAR999 | FD23: ECAR3 | FE23: ECAR999 | FF23: ECAR1 | FG23: ECAR1 | FH23: ECAR2 | FI23: ECAR2 | FJ23: ECAR4 | FK23: ECAR999 | FL23: ECAR3 | FM23: ECAR2 | FN23: ECAR2 | FO23: ECAR3 | FP23: ECAR3 | FQ23: ECAR3 | FR23: ECAR999 | FS23: ECAR2 | FT23: ECAR2 | FU23: ECAR3 | FV23: ECAR3 | FW23: ECAR0
A24: Burkina Faso | B24: WCAR | C24: No Answer Field | D24: 2 | E24: 2 | F24: 2 | G24: 999 | H24: 3 | I24: 3 | J24: 3 | K24: 3 | L24: 999 | M24: 2 | N24: 3 | O24: 3 | P24: 999 | Q24: 3 | R24: 3 | S24: 3 | T24: 3 | U24: 3 | V24: 3 | W24: 999 | X24: 2 | Y24: 2 | Z24: 2 | AA24: 2 | AB24: 999 | AC24: 3 | AD24: 2 | AE24: 2 | AF24: 2 | AG24: 1 | AH24: 14473 | AI24: 13778 | AJ24: 0 | AK24: 2335 | AL24: 11143 | AM24: 0 | AN24: 300 | AO24: 0 | AP24: 0 | AQ24: 0 | AR24: 0 | AS24: 0 | AT24: 0 | AU24: 999 | AV24: 2 | AW24: 3 | AX24: 2 | AY24: 0 | AZ24: 999 | BA24: 2 | BB24: 3 | BC24: 3 | BD24: 999 | BE24: 4 | BF24: 4 | BG24: 4 | BH24: 4 | BI24: 4 | BJ24: 999 | BK24: 3 | BL24: 4 | BM24: 3 | BN24: 3 | BO24: 2 | BP24: 2 | BQ24: 999 | BR24: 3 | BS24: 3 | BT24: 4 | BU24: 3 | BV24: 0 | BW24: 22 | BX24: 1 | BY24: 1 | BZ24: 1 | CA24: 2 | CB24: 3 | CC24: 2.666666667 | CD24: 3 | CE24: 2 | CF24: 2 | CG24: 2.333333333 | CH24: 2.666666667 | CI24: 4 | CJ24: 2.833333333 | CK24: 3.25 | CL24: 2.333333333 | CM24: 0.9519795481 | CN24: 14473 | CO24: 13778 | CP24: 999 | CQ24: WCAR2 | CR24: WCAR3 | CS24: WCAR3 | CT24: WCAR3 | CU24: WCAR2 | CV24: WCAR2 | CW24: WCAR2 | CX24: WCAR3 | CY24: WCAR4 | CZ24: WCAR3 | DA24: WCAR3 | DB24: WCAR999 | DE24: WCAR2 | DF24: WCAR2 | DG24: WCAR2 | DI24: WCAR3 | DJ24: WCAR3 | DK24: WCAR3 | DL24: WCAR3 | DM24: WCAR999 | DN24: WCAR2 | DO24: WCAR3 | DP24: WCAR3 | DQ24: WCAR999 | DR24: WCAR3 | DX24: WCAR999 | DY24: WCAR2 | DZ24: WCAR2 | EB24: WCAR2 | EC24: WCAR999 | ED24: WCAR3 | EE24: WCAR2 | EF24: WCAR2 | EG24: WCAR2 | EH24: WCAR1 | EI24: WCAR14473 | EJ24: WCAR13778 | EK24: WCAR0 | EL24: WCAR2335 | EM24: WCAR11143 | EN24: WCAR0 | EO24: WCAR300 | EP24: WCAR0 | EQ24: WCAR0 | ER24: WCAR0 | ES24: WCAR0 | ET24: WCAR0 | EU24: WCAR0 | EV24: WCAR999 | EW24: WCAR2 | EX24: WCAR3 | EY24: WCAR2 | EZ24: WCAR0 | FA24: WCAR999 | FB24: WCAR2 | FC24: WCAR3 | FD24: WCAR3 | FE24: WCAR999 | FF24: WCAR4 | FG24: WCAR4 | FH24: WCAR4 | FI24: WCAR4 | FJ24: WCAR4 | FK24: WCAR999 | FL24: WCAR3 | FM24: WCAR4 | FN24: WCAR3 | FO24: WCAR3 | FP24: WCAR2 | FQ24: WCAR2 | FR24: WCAR999 | FS24: WCAR3 | FT24: WCAR3 | FU24: WCAR4 | FV24: WCAR3 | FW24: WCAR0
A25: Burundi | B25: ESAR | C25: No Answer Field | D25: 3 | E25: 3 | F25: 3 | G25: 999 | H25: 2 | I25: 2 | J25: 2 | K25: 2 | L25: 999 | M25: 2 | N25: 1 | O25: 1 | P25: 999 | Q25: 2 | R25: 3 | S25: 3 | T25: 2 | U25: 2.5 | V25: 2 | W25: 999 | X25: 2 | Y25: 2 | Z25: 2 | AA25: 2 | AB25: 999 | AC25: 1 | AD25: 1 | AE25: 1 | AF25: 3 | AG25: 1 | AH25: 20000 | AI25: 12905 | AJ25: 0 | AK25: 1710 | AL25: 10395 | AM25: 0 | AN25: 800 | AO25: 0 | AP25: 0 | AQ25: 0 | AR25: 0 | AS25: 0 | AT25: 0 | AU25: 999 | AV25: 999 | AW25: 999 | AX25: 999 | AY25: 0 | AZ25: 999 | BA25: 3 | BB25: 3 | BC25: 1 | BD25: 999 | BE25: 4 | BF25: 999 | BG25: 999 | BH25: 999 | BI25: 4 | BJ25: 999 | BK25: 2 | BL25: 2 | BM25: 2 | BN25: 2 | BO25: 3 | BP25: 1 | BQ25: 999 | BR25: 2 | BS25: 999 | BT25: 1 | BU25: 2 | BV25: 0 | BW25: 26 | BX25: 1 | BY25: 1 | BZ25: 0 | CA25: 3 | CB25: 2 | CC25: 1.333333333 | CD25: 2.25 | CE25: 2 | CF25: 1.666666667 | CG25: Not applicable | CH25: 2.333333333 | CI25: 4 | CJ25: 2 | CK25: 1.666666667 | CL25: 2 | CM25: 0.64525 | CN25: 20000 | CO25: 12905 | CP25: 999 | CQ25: ESAR3 | CR25: ESAR2 | CS25: ESAR1 | CT25: ESAR2 | CU25: ESAR2 | CV25: ESAR2 | CW25: ESAR999 | CX25: ESAR2 | CY25: ESAR4 | CZ25: ESAR2 | DA25: ESAR2 | DB25: ESAR999 | DE25: ESAR3 | DF25: ESAR3 | DG25: ESAR3 | DI25: ESAR2 | DJ25: ESAR2 | DK25: ESAR2 | DL25: ESAR2 | DM25: ESAR999 | DN25: ESAR2 | DO25: ESAR1 | DP25: ESAR1 | DQ25: ESAR999 | DR25: ESAR2 | DX25: ESAR999 | DY25: ESAR2 | DZ25: ESAR2 | EB25: ESAR2 | EC25: ESAR999 | ED25: ESAR1 | EE25: ESAR1 | EF25: ESAR1 | EG25: ESAR3 | EH25: ESAR1 | EI25: ESAR20000 | EJ25: ESAR12905 | EK25: ESAR0 | EL25: ESAR1710 | EM25: ESAR10395 | EN25: ESAR0 | EO25: ESAR800 | EP25: ESAR0 | EQ25: ESAR0 | ER25: ESAR0 | ES25: ESAR0 | ET25: ESAR0 | EU25: ESAR0 | EV25: ESAR999 | EW25: ESAR999 | EX25: ESAR999 | EY25: ESAR999 | EZ25: ESAR0 | FA25: ESAR999 | FB25: ESAR3 | FC25: ESAR3 | FD25: ESAR1 | FE25: ESAR999 | FF25: ESAR4 | FG25: ESAR999 | FH25: ESAR999 | FI25: ESAR999 | FJ25: ESAR4 | FK25: ESAR999 | FL25: ESAR2 | FM25: ESAR2 | FN25: ESAR2 | FO25: ESAR2 | FP25: ESAR3 | FQ25: ESAR1 | FR25: ESAR999 | FS25: ESAR2 | FT25: ESAR999 | FU25: ESAR1 | FV25: ESAR2 | FW25: ESAR0
A26: Cambodia | B26: EAPR | C26: No Answer Field | D26: 2 | E26: 2 | F26: 2 | G26: 999 | H26: 1 | I26: 3 | J26: 2 | K26: 2 | L26: 999 | M26: 2 | N26: 3 | O26: 3 | P26: 999 | Q26: 1 | R26: 3 | S26: 2 | T26: 2 | U26: 2 | V26: 3 | W26: 999 | X26: 3 | Y26: 3 | Z26: 999 | AA26: 3 | AB26: 999 | AC26: 2 | AD26: 2 | AE26: 3 | AF26: 2 | AG26: 1 | AH26: 0 | AI26: 0 | AJ26: 0 | AK26: 0 | AL26: 0 | AM26: 0 | AN26: 0 | AO26: 1 | AP26: 1 | AQ26: 1 | AR26: 1 | AS26: 0 | AT26: 0 | AU26: 999 | AV26: 2 | AW26: 2 | AX26: 3 | AY26: 1 | AZ26: 999 | BA26: 3 | BB26: 3 | BC26: 3 | BD26: 999 | BE26: 1 | BF26: 3 | BG26: 2 | BH26: 1 | BI26: 3 | BJ26: 999 | BK26: 1 | BL26: 4 | BM26: 3 | BN26: 3 | BO26: 2 | BP26: 4 | BQ26: 999 | BR26: 3 | BS26: 3 | BT26: 3 | BU26: 3 | BV26: 0 | BW26: 54 | BX26: 1 | BY26: 1 | BZ26: 0 | CA26: 2 | CB26: 2 | CC26: 2.666666667 | CD26: 2.5 | CE26: 3 | CF26: 2.333333333 | CG26: 2.333333333 | CH26: 3 | CI26: 1.75 | CJ26: 2.833333333 | CK26: 3 | CL26: 2 | CN26: 0 | CO26: 0 | CP26: 999 | CQ26: EAPR2 | CR26: EAPR2 | CS26: EAPR3 | CT26: EAPR3 | CU26: EAPR3 | CV26: EAPR2 | CW26: EAPR2 | CX26: EAPR3 | CY26: EAPR2 | CZ26: EAPR3 | DA26: EAPR3 | DB26: EAPR3 | DE26: EAPR2 | DF26: EAPR2 | DG26: EAPR2 | DI26: EAPR1 | DJ26: EAPR3 | DK26: EAPR2 | DL26: EAPR2 | DM26: EAPR999 | DN26: EAPR2 | DO26: EAPR3 | DP26: EAPR3 | DQ26: EAPR999 | DR26: EAPR1 | DX26: EAPR999 | DY26: EAPR3 | DZ26: EAPR3 | EB26: EAPR3 | EC26: EAPR999 | ED26: EAPR2 | EE26: EAPR2 | EF26: EAPR3 | EG26: EAPR2 | EH26: EAPR1 | EI26: EAPR0 | EJ26: EAPR0 | EK26: EAPR0 | EL26: EAPR0 | EM26: EAPR0 | EN26: EAPR0 | EO26: EAPR0 | EP26: EAPR1 | EQ26: EAPR1 | ER26: EAPR1 | ES26: EAPR1 | ET26: EAPR0 | EU26: EAPR0 | EV26: EAPR999 | EW26: EAPR2 | EX26: EAPR2 | EY26: EAPR3 | EZ26: EAPR1 | FA26: EAPR999 | FB26: EAPR3 | FC26: EAPR3 | FD26: EAPR3 | FE26: EAPR999 | FF26: EAPR1 | FG26: EAPR3 | FH26: EAPR2 | FI26: EAPR1 | FJ26: EAPR3 | FK26: EAPR999 | FL26: EAPR1 | FM26: EAPR4 | FN26: EAPR3 | FO26: EAPR3 | FP26: EAPR2 | FQ26: EAPR4 | FR26: EAPR999 | FS26: EAPR3 | FT26: EAPR3 | FU26: EAPR3 | FV26: EAPR3 | FW26: EAPR0
A27: Cameroon | B27: WCAR | C27: No Answer Field | D27: 3 | E27: 2 | F27: 2 | G27: 999 | H27: 2 | I27: 1 | J27: 1.5 | K27: 2 | L27: 999 | M27: 2 | N27: 1 | O27: 2 | P27: 999 | Q27: 2 | R27: 4 | S27: 3 | T27: 3 | U27: 3 | V27: 3 | W27: 999 | X27: 2 | Y27: 3 | Z27: 3 | AA27: 2 | AB27: 999 | AC27: 2 | AD27: 2 | AE27: 2 | AF27: 2 | AG27: 1 | AH27: 2127 | AI27: 1994 | AJ27: 0 | AK27: 333 | AL27: 1661 | AM27: 0 | AN27: 0 | AO27: 0 | AP27: 999 | AQ27: 999 | AR27: 999 | AS27: 999 | AT27: 999 | AU27: 999 | AV27: 2 | AW27: 1 | AX27: 1 | AY27: 0 | AZ27: 999 | BA27: 2 | BB27: 2 | BC27: 2 | BD27: 999 | BE27: 2 | BF27: 1 | BG27: 2 | BH27: 1 | BI27: 2 | BJ27: 999 | BK27: 1 | BL27: 2 | BM27: 1 | BN27: 1 | BO27: 2 | BP27: 1 | BQ27: 999 | BR27: 3 | BS27: 2 | BT27: 2 | BU27: 1 | BV27: 0 | BW27: 75 | BX27: 1 | BY27: 1 | BZ27: 0 | CA27: 2.333333333 | CB27: 1.75 | CC27: 1.666666667 | CD27: 3 | CE27: 2.666666667 | CF27: 2 | CG27: 1.333333333 | CH27: 2 | CI27: 1.5 | CJ27: 1.333333333 | CK27: 2 | CL27: 2.333333333 | CM27: 0.9374706159 | CN27: 2127 | CO27: 1994 | CP27: 999 | CQ27: WCAR2 | CR27: WCAR2 | CS27: WCAR2 | CT27: WCAR3 | CU27: WCAR3 | CV27: WCAR2 | CW27: WCAR1 | CX27: WCAR2 | CY27: WCAR2 | CZ27: WCAR1 | DA27: WCAR2 | DB27: WCAR999 | DE27: WCAR3 | DF27: WCAR2 | DG27: WCAR2 | DI27: WCAR2 | DJ27: WCAR1 | DK27: WCAR2 | DL27: WCAR2 | DM27: WCAR999 | DN27: WCAR2 | DO27: WCAR1 | DP27: WCAR2 | DQ27: WCAR999 | DR27: WCAR2 | DX27: WCAR999 | DY27: WCAR2 | DZ27: WCAR3 | EB27: WCAR2 | EC27: WCAR999 | ED27: WCAR2 | EE27: WCAR2 | EF27: WCAR2 | EG27: WCAR2 | EH27: WCAR1 | EI27: WCAR2127 | EJ27: WCAR1994 | EK27: WCAR0 | EL27: WCAR333 | EM27: WCAR1661 | EN27: WCAR0 | EO27: WCAR0 | EP27: WCAR0 | EQ27: WCAR999 | ER27: WCAR999 | ES27: WCAR999 | ET27: WCAR999 | EU27: WCAR999 | EV27: WCAR999 | EW27: WCAR2 | EX27: WCAR1 | EY27: WCAR1 | EZ27: WCAR0 | FA27: WCAR999 | FB27: WCAR2 | FC27: WCAR2 | FD27: WCAR2 | FE27: WCAR999 | FF27: WCAR2 | FG27: WCAR1 | FH27: WCAR2 | FI27: WCAR1 | FJ27: WCAR2 | FK27: WCAR999 | FL27: WCAR1 | FM27: WCAR2 | FN27: WCAR1 | FO27: WCAR1 | FP27: WCAR2 | FQ27: WCAR1 | FR27: WCAR999 | FS27: WCAR3 | FT27: WCAR2 | FU27: WCAR2 | FV27: WCAR1 | FW27: WCAR0
A28: Cape Verde | B28: WCAR | C28: No Answer Field | D28: 3 | E28: 3 | F28: 2 | G28: 999 | H28: 2 | I28: 4 | J28: 3 | K28: 2 | L28: 999 | M28: 3 | N28: 3 | O28: 3 | P28: 999 | Q28: 3 | R28: 3 | S28: 2 | T28: 3 | U28: 2.75 | V28: 3 | W28: 999 | X28: 3 | Y28: 3 | Z28: 4 | AA28: 3 | AB28: 999 | AC28: 3 | AD28: 4 | AE28: 999 | AF28: 999 | AG28: 0 | AH28: 0 | AI28: 0 | AJ28: 0 | AK28: 0 | AL28: 0 | AM28: 0 | AN28: 0 | AO28: 0 | AP28: 0 | AQ28: 0 | AR28: 0 | AS28: 0 | AT28: 0 | AU28: 999 | AV28: 3 | AW28: 1 | AX28: 1 | AY28: 1 | AZ28: 999 | BA28: 3 | BB28: 4 | BC28: 3 | BD28: 999 | BE28: 999 | BF28: 999 | BG28: 999 | BH28: 999 | BI28: 999 | BJ28: 999 | BK28: 4 | BL28: 2 | BM28: 3 | BN28: 3 | BO28: 3 | BP28: 2 | BQ28: 999 | BR28: 4 | BS28: 999 | BT28: 3 | BU28: 3 | BV28: 0 | BW28: 88 | BX28: 0 | BY28: 0 | BZ28: 0 | CA28: 2.666666667 | CB28: 2.5 | CC28: 3 | CD28: 2.875 | CE28: 3.333333333 | CF28: 4 | CG28: 1.666666667 | CH28: 3.333333333 | CI28: Not applicable | CJ28: 2.833333333 | CK28: 3.333333333 | CL28: 3.5 | CN28: 0 | CO28: 0 | CP28: 999 | CQ28: WCAR3 | CR28: WCAR3 | CS28: WCAR3 | CT28: WCAR3 | CU28: WCAR3 | CV28: WCAR4 | CW28: WCAR2 | CX28: WCAR3 | CY28: WCAR999 | CZ28: WCAR3 | DA28: WCAR3 | DB28: WCAR999 | DE28: WCAR3 | DF28: WCAR3 | DG28: WCAR2 | DI28: WCAR2 | DJ28: WCAR4 | DK28: WCAR3 | DL28: WCAR2 | DM28: WCAR999 | DN28: WCAR3 | DO28: WCAR3 | DP28: WCAR3 | DQ28: WCAR999 | DR28: WCAR3 | DX28: WCAR999 | DY28: WCAR3 | DZ28: WCAR3 | EB28: WCAR3 | EC28: WCAR999 | ED28: WCAR3 | EE28: WCAR4 | EF28: WCAR999 | EG28: WCAR999 | EH28: WCAR0 | EI28: WCAR0 | EJ28: WCAR0 | EK28: WCAR0 | EL28: WCAR0 | EM28: WCAR0 | EN28: WCAR0 | EO28: WCAR0 | EP28: WCAR0 | EQ28: WCAR0 | ER28: WCAR0 | ES28: WCAR0 | ET28: WCAR0 | EU28: WCAR0 | EV28: WCAR999 | EW28: WCAR3 | EX28: WCAR1 | EY28: WCAR1 | EZ28: WCAR1 | FA28: WCAR999 | FB28: WCAR3 | FC28: WCAR4 | FD28: WCAR3 | FE28: WCAR999 | FF28: WCAR999 | FG28: WCAR999 | FH28: WCAR999 | FI28: WCAR999 | FJ28: WCAR999 | FK28: WCAR999 | FL28: WCAR4 | FM28: WCAR2 | FN28: WCAR3 | FO28: WCAR3 | FP28: WCAR3 | FQ28: WCAR2 | FR28: WCAR999 | FS28: WCAR4 | FT28: WCAR999 | FU28: WCAR3 | FV28: WCAR3 | FW28: WCAR0
A29: Centr. Afr. Rep. | B29: WCAR | C29: No Answer Field | D29: 3 | E29: 1 | F29: 2 | G29: 999 | H29: 2 | I29: 1 | J29: 1.5 | K29: 2 | L29: 999 | M29: 2 | N29: 1 | O29: 1 | P29: 999 | Q29: 2 | R29: 2 | S29: 2 | T29: 2 | U29: 2 | V29: 2 | W29: 999 | X29: 1 | Y29: 2 | Z29: 2 | AA29: 1 | AB29: 999 | AC29: 1 | AD29: 1 | AE29: 1 | AF29: 2 | AG29: 1 | AH29: 1900000 | AI29: 76800 | AJ29: 0 | AK29: 0 | AL29: 76800 | AM29: 0 | AN29: 0 | AO29: 1 | AP29: 1 | AQ29: 1 | AR29: 1 | AS29: 1 | AT29: 1 | AU29: 999 | AV29: 1 | AW29: 1 | AX29: 1 | AY29: 0 | AZ29: 999 | BA29: 1 | BB29: 1 | BC29: 2 | BD29: 999 | BE29: 1 | BF29: 2 | BG29: 1 | BH29: 2 | BI29: 1 | BJ29: 999 | BK29: 1 | BL29: 1 | BM29: 1 | BN29: 1 | BO29: 2 | BP29: 2 | BQ29: 999 | BR29: 1 | BS29: 1 | BT29: 1 | BU29: 1 | BV29: 0 | BW29: 0 | BX29: 0 | BY29: 0 | BZ29: 0 | CA29: 2 | CB29: 1.75 | CC29: 1.333333333 | CD29: 2 | CE29: 1.666666667 | CF29: 1.333333333 | CG29: 1 | CH29: 1.333333333 | CI29: 1.5 | CJ29: 1.333333333 | CK29: 1 | CL29: 1 | CM29: 0.04042105263 | CN29: 1900000 | CO29: 76800 | CP29: 999 | CQ29: WCAR2 | CR29: WCAR2 | CS29: WCAR1 | CT29: WCAR2 | CU29: WCAR2 | CV29: WCAR1 | CW29: WCAR1 | CX29: WCAR1 | CY29: WCAR2 | CZ29: WCAR1 | DA29: WCAR1 | DB29: WCAR4 | DE29: WCAR3 | DF29: WCAR1 | DG29: WCAR2 | DI29: WCAR2 | DJ29: WCAR1 | DK29: WCAR2 | DL29: WCAR2 | DM29: WCAR999 | DN29: WCAR2 | DO29: WCAR1 | DP29: WCAR1 | DQ29: WCAR999 | DR29: WCAR2 | DX29: WCAR999 | DY29: WCAR1 | DZ29: WCAR2 | EB29: WCAR1 | EC29: WCAR999 | ED29: WCAR1 | EE29: WCAR1 | EF29: WCAR1 | EG29: WCAR2 | EH29: WCAR1 | EI29: WCAR1900000 | EJ29: WCAR76800 | EK29: WCAR0 | EL29: WCAR0 | EM29: WCAR76800 | EN29: WCAR0 | EO29: WCAR0 | EP29: WCAR1 | EQ29: WCAR1 | ER29: WCAR1 | ES29: WCAR1 | ET29: WCAR1 | EU29: WCAR1 | EV29: WCAR999 | EW29: WCAR1 | EX29: WCAR1 | EY29: WCAR1 | EZ29: WCAR0 | FA29: WCAR999 | FB29: WCAR1 | FC29: WCAR1 | FD29: WCAR2 | FE29: WCAR999 | FF29: WCAR1 | FG29: WCAR2 | FH29: WCAR1 | FI29: WCAR2 | FJ29: WCAR1 | FK29: WCAR999 | FL29: WCAR1 | FM29: WCAR1 | FN29: WCAR1 | FO29: WCAR1 | FP29: WCAR2 | FQ29: WCAR2 | FR29: WCAR999 | FS29: WCAR1 | FT29: WCAR1 | FU29: WCAR1 | FV29: WCAR1 | FW29: WCAR0
A30: Chad | B30: WCAR | C30: No Answer Field | D30: 3 | E30: 1 | F30: 2 | G30: 999 | H30: 2 | I30: 1 | J30: 1.5 | K30: 2 | L30: 999 | M30: 2 | N30: 2 | O30: 2 | P30: 999 | Q30: 2 | R30: 2 | S30: 2 | T30: 3 | U30: 2.25 | V30: 1 | W30: 999 | X30: 1 | Y30: 2 | Z30: 2 | AA30: 3 | AB30: 999 | AC30: 1 | AD30: 1 | AE30: 1 | AF30: 1 | AG30: 1 | AH30: 100000 | AI30: 65500 | AJ30: 650 | AK30: 3600 | AL30: 7650 | AM30: 0 | AN30: 0 | AO30: 1 | AP30: 1 | AQ30: 1 | AR30: 1 | AS30: 0 | AT30: 1 | AU30: 999 | AV30: 3 | AW30: 3 | AX30: 3 | AY30: 0 | AZ30: 999 | BA30: 2 | BB30: 2 | BC30: 2 | BD30: 999 | BE30: 1 | BF30: 1 | BG30: 1 | BH30: 1 | BI30: 1 | BJ30: 999 | BK30: 3 | BL30: 2 | BM30: 2 | BN30: 1 | BO30: 2 | BP30: 1 | BQ30: 999 | BR30: 2 | BS30: 1 | BT30: 2 | BU30: 2 | BV30: 0 | BW30: 22.8 | BX30: 0 | BY30: 0 | BZ30: 0 | CA30: 2 | CB30: 1.75 | CC30: 2 | CD30: 1.625 | CE30: 1.666666667 | CF30: 1 | CG30: 3 | CH30: 2 | CI30: 1 | CJ30: 1.833333333 | CK30: 1.75 | CL30: 1.666666667 | CM30: 0.655 | CN30: 100000 | CO30: 65500 | CP30: 999 | CQ30: WCAR2 | CR30: WCAR2 | CS30: WCAR2 | CT30: WCAR2 | CU30: WCAR2 | CV30: WCAR1 | CW30: WCAR3 | CX30: WCAR2 | CY30: WCAR1 | CZ30: WCAR2 | DA30: WCAR2 | DB30: WCAR3 | DE30: WCAR3 | DF30: WCAR1 | DG30: WCAR2 | DI30: WCAR2 | DJ30: WCAR1 | DK30: WCAR2 | DL30: WCAR2 | DM30: WCAR999 | DN30: WCAR2 | DO30: WCAR2 | DP30: WCAR2 | DQ30: WCAR999 | DR30: WCAR2 | DX30: WCAR999 | DY30: WCAR1 | DZ30: WCAR2 | EB30: WCAR3 | EC30: WCAR999 | ED30: WCAR1 | EE30: WCAR1 | EF30: WCAR1 | EG30: WCAR1 | EH30: WCAR1 | EI30: WCAR100000 | EJ30: WCAR65500 | EK30: WCAR650 | EL30: WCAR3600 | EM30: WCAR7650 | EN30: WCAR0 | EO30: WCAR0 | EP30: WCAR1 | EQ30: WCAR1 | ER30: WCAR1 | ES30: WCAR1 | ET30: WCAR0 | EU30: WCAR1 | EV30: WCAR999 | EW30: WCAR3 | EX30: WCAR3 | EY30: WCAR3 | EZ30: WCAR0 | FA30: WCAR999 | FB30: WCAR2 | FC30: WCAR2 | FD30: WCAR2 | FE30: WCAR999 | FF30: WCAR1 | FG30: WCAR1 | FH30: WCAR1 | FI30: WCAR1 | FJ30: WCAR1 | FK30: WCAR999 | FL30: WCAR3 | FM30: WCAR2 | FN30: WCAR2 | FO30: WCAR1 | FP30: WCAR2 | FQ30: WCAR1 | FR30: WCAR999 | FS30: WCAR2 | FT30: WCAR1 | FU30: WCAR2 | FV30: WCAR2 | FW30: WCAR0
A31: Chile | B31: LACR | C31: No Answer Field | D31: 2 | E31: 2 | F31: 3 | G31: 999 | H31: 1 | I31: 1 | J31: 1 | K31: 3 | L31: 999 | M31: 3 | N31: 3 | O31: 2 | P31: 999 | Q31: 3 | R31: 2 | S31: 2 | T31: 2 | U31: 2.25 | V31: 4 | W31: 999 | X31: 3 | Y31: 3 | Z31: 4 | AA31: 4 | AB31: 999 | AC31: 2 | AD31: 3 | AE31: 3 | AF31: 2 | AG31: 0 | AH31: 0 | AI31: 0 | AJ31: 0 | AK31: 0 | AL31: 0 | AM31: 0 | AN31: 0 | AO31: 0 | AP31: 0 | AQ31: 0 | AR31: 0 | AS31: 0 | AT31: 0 | AU31: 999 | AV31: 2 | AW31: 3 | AX31: 2 | AY31: 1 | AZ31: 999 | BA31: 3 | BB31: 4 | BC31: 3 | BD31: 999 | BE31: 3 | BF31: 2 | BG31: 2 | BH31: 2 | BI31: 2 | BJ31: 999 | BK31: 3 | BL31: 3 | BM31: 3 | BN31: 3 | BO31: 2 | BP31: 3 | BQ31: 999 | BR31: 4 | BS31: 3 | BT31: 2 | BU31: 3 | BV31: 1 | BW31: 91 | BX31: 0 | BY31: 0 | BZ31: 0 | CA31: 2.333333333 | CB31: 2 | CC31: 2.666666667 | CD31: 3.125 | CE31: 3.333333333 | CF31: 2.666666667 | CG31: 2.333333333 | CH31: 3.333333333 | CI31: 2.25 | CJ31: 2.833333333 | CK31: 3 | CL31: 2 | CN31: 0 | CO31: 0 | CP31: 999 | CQ31: LACR2 | CR31: LACR2 | CS31: LACR3 | CT31: LACR3 | CU31: LACR3 | CV31: LACR3 | CW31: LACR2 | CX31: LACR3 | CY31: LACR2 | CZ31: LACR3 | DA31: LACR3 | DB31: LACR999 | DE31: LACR2 | DF31: LACR2 | DG31: LACR3 | DI31: LACR1 | DJ31: LACR1 | DK31: LACR1 | DL31: LACR3 | DM31: LACR999 | DN31: LACR3 | DO31: LACR3 | DP31: LACR2 | DQ31: LACR999 | DR31: LACR3 | DX31: LACR999 | DY31: LACR3 | DZ31: LACR3 | EB31: LACR4 | EC31: LACR999 | ED31: LACR2 | EE31: LACR3 | EF31: LACR3 | EG31: LACR2 | EH31: LACR0 | EI31: LACR0 | EJ31: LACR0 | EK31: LACR0 | EL31: LACR0 | EM31: LACR0 | EN31: LACR0 | EO31: LACR0 | EP31: LACR0 | EQ31: LACR0 | ER31: LACR0 | ES31: LACR0 | ET31: LACR0 | EU31: LACR0 | EV31: LACR999 | EW31: LACR2 | EX31: LACR3 | EY31: LACR2 | EZ31: LACR1 | FA31: LACR999 | FB31: LACR3 | FC31: LACR4 | FD31: LACR3 | FE31: LACR999 | FF31: LACR3 | FG31: LACR2 | FH31: LACR2 | FI31: LACR2 | FJ31: LACR2 | FK31: LACR999 | FL31: LACR3 | FM31: LACR3 | FN31: LACR3 | FO31: LACR3 | FP31: LACR2 | FQ31: LACR3 | FR31: LACR999 | FS31: LACR4 | FT31: LACR3 | FU31: LACR2 | FV31: LACR3 | FW31: LACR1
A32: China | B32: EAPR | C32: No Answer Field | D32: 2 | E32: 2 | F32: 2 | G32: 999 | H32: 2 | I32: 2 | J32: 2 | K32: 2 | L32: 999 | M32: 2 | N32: 3 | O32: 2 | P32: 999 | Q32: 2 | R32: 2 | S32: 2 | T32: 2 | U32: 2 | V32: 3 | W32: 999 | X32: 2 | Y32: 999 | Z32: 1 | AA32: 1 | AB32: 999 | AC32: 2 | AD32: 2 | AE32: 1 | AF32: 999 | AG32: 1 | AH32: 999 | AI32: 9746 | AJ32: 9746 | AK32: 999 | AL32: 999 | AM32: 999 | AN32: 0 | AO32: 0 | AP32: 0 | AQ32: 0 | AR32: 0 | AS32: 0 | AT32: 0 | AU32: 999 | AV32: 1 | AW32: 2 | AX32: 2 | AY32: 1 | AZ32: 999 | BA32: 3 | BB32: 4 | BC32: 3 | BD32: 999 | BE32: 3 | BF32: 2 | BG32: 2 | BH32: 3 | BI32: 3 | BJ32: 999 | BK32: 4 | BL32: 1 | BM32: 3 | BN32: 2 | BO32: 3 | BP32: 3 | BQ32: 999 | BR32: 2 | BS32: 3 | BT32: 2 | BU32: 2 | BV32: 0 | BW32: 999 | BX32: 1 | BY32: 1 | BZ32: 0 | CA32: 2 | CB32: 2 | CC32: 2.333333333 | CD32: 2.5 | CE32: 1.5 | CF32: 1.5 | CG32: 1.666666667 | CH32: 3.333333333 | CI32: 2.5 | CJ32: 2.666666667 | CK32: 2.25 | CL32: Not applicable | CM32: 9.755755756 | CN32: 999 | CO32: 9746 | CP32: 999 | CQ32: EAPR2 | CR32: EAPR2 | CS32: EAPR2 | CT32: EAPR3 | CU32: EAPR2 | CV32: EAPR2 | CW32: EAPR2 | CX32: EAPR3 | CY32: EAPR3 | CZ32: EAPR3 | DA32: EAPR2 | DB32: EAPR999 | DE32: EAPR2 | DF32: EAPR2 | DG32: EAPR2 | DI32: EAPR2 | DJ32: EAPR2 | DK32: EAPR2 | DL32: EAPR2 | DM32: EAPR999 | DN32: EAPR2 | DO32: EAPR3 | DP32: EAPR2 | DQ32: EAPR999 | DR32: EAPR2 | DX32: EAPR999 | DY32: EAPR2 | DZ32: EAPR999 | EB32: EAPR1 | EC32: EAPR999 | ED32: EAPR2 | EE32: EAPR2 | EF32: EAPR1 | EG32: EAPR999 | EH32: EAPR1 | EI32: EAPR999 | EJ32: EAPR9746 | EK32: EAPR9746 | EL32: EAPR999 | EM32: EAPR999 | EN32: EAPR999 | EO32: EAPR0 | EP32: EAPR0 | EQ32: EAPR0 | ER32: EAPR0 | ES32: EAPR0 | ET32: EAPR0 | EU32: EAPR0 | EV32: EAPR999 | EW32: EAPR1 | EX32: EAPR2 | EY32: EAPR2 | EZ32: EAPR1 | FA32: EAPR999 | FB32: EAPR3 | FC32: EAPR4 | FD32: EAPR3 | FE32: EAPR999 | FF32: EAPR3 | FG32: EAPR2 | FH32: EAPR2 | FI32: EAPR3 | FJ32: EAPR3 | FK32: EAPR999 | FL32: EAPR4 | FM32: EAPR1 | FN32: EAPR3 | FO32: EAPR2 | FP32: EAPR3 | FQ32: EAPR3 | FR32: EAPR999 | FS32: EAPR2 | FT32: EAPR3 | FU32: EAPR2 | FV32: EAPR2 | FW32: EAPR0
A33: Colombia | B33: LACR | C33: No Answer Field | D33: 3 | E33: 3 | F33: 3 | G33: 999 | H33: 2 | I33: 2 | J33: 2 | K33: 2 | L33: 999 | M33: 3 | N33: 3 | O33: 2 | P33: 999 | Q33: 2 | R33: 2 | S33: 2 | T33: 999 | U33: 2 | V33: 3 | W33: 999 | X33: 3 | Y33: 3 | Z33: 3 | AA33: 3 | AB33: 999 | AC33: 2 | AD33: 2 | AE33: 2 | AF33: 3 | AG33: 1 | AH33: 1069000 | AI33: 62380 | AJ33: 18714 | AK33: 11000 | AL33: 3000 | AM33: 7700 | AN33: 40680 | AO33: 1 | AP33: 1 | AQ33: 1 | AR33: 1 | AS33: 1 | AT33: 1 | AU33: 999 | AV33: 3 | AW33: 3 | AX33: 2 | AY33: 1 | AZ33: 999 | BA33: 2 | BB33: 2 | BC33: 3 | BD33: 999 | BE33: 2 | BF33: 3 | BG33: 3 | BH33: 2 | BI33: 3 | BJ33: 999 | BK33: 999 | BL33: 999 | BM33: 999 | BN33: 999 | BO33: 999 | BP33: 999 | BQ33: 999 | BR33: 2 | BS33: 2 | BT33: 2 | BU33: 2 | BV33: 0 | BW33: 78 | BX33: 0 | BY33: 0 | BZ33: 0 | CA33: 3 | CB33: 2 | CC33: 2.666666667 | CD33: 2.5 | CE33: 3 | CF33: 2.333333333 | CG33: 2.666666667 | CH33: 2.333333333 | CI33: 2.5 | CJ33: Not applicable | CK33: 2 | CL33: 2 | CM33: 0.0583536015 | CN33: 1069000 | CO33: 62380 | CP33: 999 | CQ33: LACR3 | CR33: LACR2 | CS33: LACR3 | CT33: LACR3 | CU33: LACR3 | CV33: LACR2 | CW33: LACR3 | CX33: LACR2 | CY33: LACR3 | CZ33: LACR999 | DA33: LACR2 | DB33: LACR4 | DE33: LACR3 | DF33: LACR3 | DG33: LACR3 | DI33: LACR2 | DJ33: LACR2 | DK33: LACR2 | DL33: LACR2 | DM33: LACR999 | DN33: LACR3 | DO33: LACR3 | DP33: LACR2 | DQ33: LACR999 | DR33: LACR2 | DX33: LACR999 | DY33: LACR3 | DZ33: LACR3 | EB33: LACR3 | EC33: LACR999 | ED33: LACR2 | EE33: LACR2 | EF33: LACR2 | EG33: LACR3 | EH33: LACR1 | EI33: LACR1069000 | EJ33: LACR62380 | EK33: LACR18714 | EL33: LACR11000 | EM33: LACR3000 | EN33: LACR7700 | EO33: LACR40680 | EP33: LACR1 | EQ33: LACR1 | ER33: LACR1 | ES33: LACR1 | ET33: LACR1 | EU33: LACR1 | EV33: LACR999 | EW33: LACR3 | EX33: LACR3 | EY33: LACR2 | EZ33: LACR1 | FA33: LACR999 | FB33: LACR2 | FC33: LACR2 | FD33: LACR3 | FE33: LACR999 | FF33: LACR2 | FG33: LACR3 | FH33: LACR3 | FI33: LACR2 | FJ33: LACR3 | FK33: LACR999 | FL33: LACR999 | FM33: LACR999 | FN33: LACR999 | FO33: LACR999 | FP33: LACR999 | FQ33: LACR999 | FR33: LACR999 | FS33: LACR2 | FT33: LACR2 | FU33: LACR2 | FV33: LACR2 | FW33: LACR0
A34: Comoros | B34: ESAR | C34: No Answer Field | D34: 2 | E34: 1 | F34: 1 | G34: 999 | H34: 999 | I34: 999 | J34: 999 | K34: 999 | L34: 999 | M34: 2 | N34: 1 | O34: 1 | P34: 999 | Q34: 999 | R34: 999 | S34: 999 | T34: 999 | U34: 999 | V34: 999 | W34: 999 | X34: 2 | Y34: 2 | Z34: 4 | AA34: 3 | AB34: 999 | AC34: 3 | AD34: 3 | AE34: 3 | AF34: 3 | AG34: 1 | AH34: 78 | AI34: 78 | AJ34: 0 | AK34: 0 | AL34: 78 | AM34: 0 | AN34: 0 | AO34: 0 | AP34: 0 | AQ34: 0 | AR34: 0 | AS34: 0 | AT34: 0 | AU34: 999 | AV34: 3 | AW34: 3 | AX34: 2 | AY34: 0 | AZ34: 999 | BA34: 3 | BB34: 2 | BC34: 3 | BD34: 999 | BE34: 1 | BF34: 999 | BG34: 999 | BH34: 999 | BI34: 999 | BJ34: 999 | BK34: 1 | BL34: 1 | BM34: 3 | BN34: 1 | BO34: 3 | BP34: 2 | BQ34: 999 | BR34: 999 | BS34: 999 | BT34: 999 | BU34: 999 | BV34: 1 | BW34: 45 | BX34: 1 | BY34: 1 | BZ34: 0 | CA34: 1.333333333 | CB34: Not applicable | CC34: 1.333333333 | CD34: Not applicable | CE34: 2.666666667 | CF34: 3 | CG34: 2.666666667 | CH34: 2.666666667 | CI34: 1 | CJ34: 1.833333333 | CK34: Not applicable | CL34: 1.333333333 | CM34: 1 | CN34: 78 | CO34: 78 | CP34: 999 | CQ34: ESAR1 | CR34: ESAR999 | CS34: ESAR1 | CT34: ESAR999 | CU34: ESAR3 | CV34: ESAR3 | CW34: ESAR3 | CX34: ESAR3 | CY34: ESAR1 | CZ34: ESAR2 | DA34: ESAR999 | DB34: ESAR999 | DE34: ESAR2 | DF34: ESAR1 | DG34: ESAR1 | DI34: ESAR999 | DJ34: ESAR999 | DK34: ESAR999 | DL34: ESAR999 | DM34: ESAR999 | DN34: ESAR2 | DO34: ESAR1 | DP34: ESAR1 | DQ34: ESAR999 | DR34: ESAR999 | DX34: =IFERROR(CONCATENATE($B34,ROUND(W34,0)),"") -> ESAR999 | DY34: =IFERROR(CONCATENATE($B34,ROUND(X34,0)),"") -> ESAR2 | DZ34: =IFERROR(CONCATENATE($B34,ROUND(Y34,0)),"") -> ESAR2 | EB34: ESAR3 | EC34: ESAR999 | ED34: ESAR3 | EE34: ESAR3 | EF34: ESAR3 | EG34: ESAR3 | EH34: ESAR1 | EI34: ESAR78 | EJ34: ESAR78 | EK34: ESAR0 | EL34: ESAR0 | EM34: ESAR78 | EN34: ESAR0 | EO34: ESAR0 | EP34: ESAR0 | EQ34: ESAR0 | ER34: ESAR0 | ES34: ESAR0 | ET34: ESAR0 | EU34: ESAR0 | EV34: ESAR999 | EW34: ESAR3 | EX34: ESAR3 | EY34: ESAR2 | EZ34: ESAR0 | FA34: ESAR999 | FB34: ESAR3 | FC34: ESAR2 | FD34: ESAR3 | FE34: ESAR999 | FF34: ESAR1 | FG34: ESAR999 | FH34: ESAR999 | FI34: ESAR999 | FJ34: ESAR999 | FK34: ESAR999 | FL34: ESAR1 | FM34: ESAR1 | FN34: ESAR3 | FO34: ESAR1 | FP34: ESAR3 | FQ34: ESAR2 | FR34: ESAR999 | FS34: ESAR999 | FT34: ESAR999 | FU34: ESAR999 | FV34: ESAR999 | FW34: ESAR1
A35: Congo | B35: WCAR | C35: No Answer Field | D35: 2 | E35: 1 | F35: 1 | G35: 999 | H35: 2 | I35: 1 | J35: 1.5 | K35: 2 | L35: 999 | M35: 1 | N35: 999 | O35: 999 | P35: 999 | Q35: 2 | R35: 2 | S35: 2 | T35: 2 | U35: 2 | V35: 2 | W35: 999 | X35: 2 | Y35: 2 | Z35: 2 | AA35: 2 | AB35: 999 | AC35: 2 | AD35: 2 | AE35: 2 | AF35: 2 | AG35: 1 | AH35: 6000 | AI35: 3600 | AJ35: 500 | AK35: 350 | AL35: 3000 | AM35: 250 | AN35: 350 | AO35: 0 | AP35: 0 | AQ35: 0 | AR35: 0 | AS35: 0 | AT35: 0 | AU35: 999 | AV35: 2 | AW35: 2 | AX35: 1 | AY35: 1 | AZ35: 999 | BA35: 1 | BB35: 1 | BC35: 1 | BD35: 999 | BE35: 999 | BF35: 999 | BG35: 999 | BH35: 999 | BI35: 999 | BJ35: 999 | BK35: 999 | BL35: 999 | BM35: 999 | BN35: 999 | BO35: 999 | BP35: 999 | BQ35: 999 | BR35: 999 | BS35: 999 | BT35: 999 | BU35: 999 | BV35: 999 | BW35: 60 | BX35: 1 | BY35: 0 | BZ35: 0 | CA35: 1.333333333 | CB35: 1.75 | CC35: 1 | CD35: 2 | CE35: 2 | CF35: 2 | CG35: 1.666666667 | CH35: 1 | CI35: Not applicable | CJ35: Not applicable | CK35: Not applicable | CL35: 1.666666667 | CM35: 0.6 | CN35: 6000 | CO35: 3600 | CP35: 999 | CQ35: WCAR1 | CR35: WCAR2 | CS35: WCAR1 | CT35: WCAR2 | CU35: WCAR2 | CV35: WCAR2 | CW35: WCAR2 | CX35: WCAR1 | CY35: WCAR999 | CZ35: WCAR999 | DA35: WCAR999 | DB35: WCAR999 | DE35: =IFERROR(CONCATENATE($B35,ROUND(D35,0)),"") -> WCAR2 | DF35: =IFERROR(CONCATENATE($B35,ROUND(E35,0)),"") -> WCAR1 | DG35: =IFERROR(CONCATENATE($B35,ROUND(F35,0)),"") -> WCAR1 | DI35: =IFERROR(CONCATENATE($B35,ROUND(H35,0)),"") -> WCAR2 | DJ35: =IFERROR(CONCATENATE($B35,ROUND(I35,0)),"") -> WCAR1 | DK35: =IFERROR(CONCATENATE($B35,ROUND(J35,0)),"") -> WCAR2 | DL35: =IFERROR(CONCATENATE($B35,ROUND(K35,0)),"") -> WCAR2 | DM35: =IFERROR(CONCATENATE($B35,ROUND(L35,0)),"") -> WCAR999 | DN35: =IFERROR(CONCATENATE($B35,ROUND(M35,0)),"") -> WCAR1 | DO35: =IFERROR(CONCATENATE($B35,ROUND(N35,0)),"") -> WCAR999 | DP35: =IFERROR(CONCATENATE($B35,ROUND(O35,0)),"") -> WCAR999 | DQ35: =IFERROR(CONCATENATE($B35,ROUND(P35,0)),"") -> WCAR999 | DR35: =IFERROR(CONCATENATE($B35,ROUND(Q35,0)),"") -> WCAR2 | DX35: WCAR999 | DY35: WCAR2 | DZ35: WCAR2 | EB35: =IFERROR(CONCATENATE($B35,ROUND(AA35,0)),"") -> WCAR2 | EC35: =IFERROR(CONCATENATE($B35,ROUND(AB35,0)),"") -> WCAR999 | ED35: =IFERROR(CONCATENATE($B35,ROUND(AC35,0)),"") -> WCAR2 | EE35: =IFERROR(CONCATENATE($B35,ROUND(AD35,0)),"") -> WCAR2 | EF35: =IFERROR(CONCATENATE($B35,ROUND(AE35,0)),"") -> WCAR2 | EG35: =IFERROR(CONCATENATE($B35,ROUND(AF35,0)),"") -> WCAR2 | EH35: =IFERROR(CONCATENATE($B35,ROUND(AG35,0)),"") -> WCAR1 | EI35: =IFERROR(CONCATENATE($B35,ROUND(AH35,0)),"") -> WCAR6000 | EJ35: =IFERROR(CONCATENATE($B35,ROUND(AI35,0)),"") -> WCAR3600 | EK35: =IFERROR(CONCATENATE($B35,ROUND(AJ35,0)),"") -> WCAR500 | EL35: =IFERROR(CONCATENATE($B35,ROUND(AK35,0)),"") -> WCAR350 | EM35: =IFERROR(CONCATENATE($B35,ROUND(AL35,0)),"") -> WCAR3000 | EN35: WCAR250 | EO35: =IFERROR(CONCATENATE($B35,ROUND(AN35,0)),"") -> WCAR350 | EP35: =IFERROR(CONCATENATE($B35,ROUND(AO35,0)),"") -> WCAR0 | EQ35: =IFERROR(CONCATENATE($B35,ROUND(AP35,0)),"") -> WCAR0 | ER35: =IFERROR(CONCATENATE($B35,ROUND(AQ35,0)),"") -> WCAR0 | ES35: =IFERROR(CONCATENATE($B35,ROUND(AR35,0)),"") -> WCAR0 | ET35: =IFERROR(CONCATENATE($B35,ROUND(AS35,0)),"") -> WCAR0 | EU35: =IFERROR(CONCATENATE($B35,ROUND(AT35,0)),"") -> WCAR0 | EV35: =IFERROR(CONCATENATE($B35,ROUND(AU35,0)),"") -> WCAR999 | EW35: =IFERROR(CONCATENATE($B35,ROUND(AV35,0)),"") -> WCAR2 | EX35: =IFERROR(CONCATENATE($B35,ROUND(AW35,0)),"") -> WCAR2 | EY35: =IFERROR(CONCATENATE($B35,ROUND(AX35,0)),"") -> WCAR1 | EZ35: =IFERROR(CONCATENATE($B35,ROUND(AY35,0)),"") -> WCAR1 | FA35: =IFERROR(CONCATENATE($B35,ROUND(AZ35,0)),"") -> WCAR999 | FB35: =IFERROR(CONCATENATE($B35,ROUND(BA35,0)),"") -> WCAR1 | FC35: =IFERROR(CONCATENATE($B35,ROUND(BB35,0)),"") -> WCAR1 | FD35: =IFERROR(CONCATENATE($B35,ROUND(BC35,0)),"") -> WCAR1 | FE35: =IFERROR(CONCATENATE($B35,ROUND(BD35,0)),"") -> WCAR999 | FF35: =IFERROR(CONCATENATE($B35,ROUND(BE35,0)),"") -> WCAR999 | FG35: =IFERROR(CONCATENATE($B35,ROUND(BF35,0)),"") -> WCAR999 | FH35: =IFERROR(CONCATENATE($B35,ROUND(BG35,0)),"") -> WCAR999 | FI35: =IFERROR(CONCATENATE($B35,ROUND(BH35,0)),"") -> WCAR999 | FJ35: =IFERROR(CONCATENATE($B35,ROUND(BI35,0)),"") -> WCAR999 | FK35: =IFERROR(CONCATENATE($B35,ROUND(BJ35,0)),"") -> WCAR999 | FL35: =IFERROR(CONCATENATE($B35,ROUND(BK35,0)),"") -> WCAR999 | FM35: =IFERROR(CONCATENATE($B35,ROUND(BL35,0)),"") -> WCAR999 | FN35: =IFERROR(CONCATENATE($B35,ROUND(BM35,0)),"") -> WCAR999 | FO35: =IFERROR(CONCATENATE($B35,ROUND(BN35,0)),"") -> WCAR999 | FP35: =IFERROR(CONCATENATE($B35,ROUND(BO35,0)),"") -> WCAR999 | FQ35: =IFERROR(CONCATENATE($B35,ROUND(BP35,0)),"") -> WCAR999 | FR35: =IFERROR(CONCATENATE($B35,ROUND(BQ35,0)),"") -> WCAR999 | FS35: =IFERROR(CONCATENATE($B35,ROUND(BR35,0)),"") -> WCAR999 | FT35: =IFERROR(CONCATENATE($B35,ROUND(BS35,0)),"") -> WCAR999 | FU35: =IFERROR(CONCATENATE($B35,ROUND(BT35,0)),"") -> WCAR999 | FV35: =IFERROR(CONCATENATE($B35,ROUND(BU35,0)),"") -> WCAR999 | FW35: =IFERROR(CONCATENATE($B35,ROUND(BV35,0)),"") -> WCAR999
A36: Cook Islands | B36: EAPR | C36: No Answer Field | D36: 999 | E36: 999 | F36: 999 | G36: 999 | H36: 999 | I36: 999 | J36: 999 | K36: 999 | L36: 999 | M36: 999 | N36: 999 | O36: 999 | P36: 999 | Q36: 999 | R36: 999 | S36: 999 | T36: 999 | U36: 999 | V36: 999 | W36: 999 | X36: 999 | Y36: 999 | Z36: 999 | AA36: 999 | AB36: 999 | AC36: 999 | AD36: 999 | AE36: 999 | AF36: 999 | AG36: 0 | AH36: 0 | AI36: 0 | AJ36: 0 | AK36: 0 | AL36: 0 | AM36: 0 | AN36: 0 | AO36: 0 | AP36: 0 | AQ36: 0 | AR36: 0 | AS36: 0 | AT36: 0 | AU36: 999 | AV36: 999 | AW36: 999 | AX36: 999 | AY36: 999 | AZ36: 999 | BA36: 999 | BB36: 999 | BC36: 999 | BD36: 999 | BE36: 999 | BF36: 999 | BG36: 999 | BH36: 999 | BI36: 999 | BJ36: 999 | BK36: 999 | BL36: 999 | BM36: 999 | BN36: 999 | BO36: 999 | BP36: 999 | BQ36: 999 | BR36: 999 | BS36: 999 | BT36: 999 | BU36: 999 | BV36: 0 | BW36: 0 | BX36: 0 | BY36: 0 | BZ36: 0 | CA36: Not applicable | CB36: Not applicable | CC36: Not applicable | CD36: Not applicable | CE36: Not applicable | CF36: Not applicable | CG36: Not applicable | CH36: Not applicable | CI36: Not applicable | CJ36: Not applicable | CK36: Not applicable | CL36: Not applicable | CN36: 0 | CO36: 0 | CP36: 999 | CQ36: EAPR999 | CR36: EAPR999 | CS36: EAPR999 | CT36: EAPR999 | CU36: EAPR999 | CV36: EAPR999 | CW36: EAPR999 | CX36: EAPR999 | CY36: EAPR999 | CZ36: EAPR999 | DA36: EAPR999 | DB36: EAPR999 | DE36: EAPR999 | DF36: EAPR999 | DG36: EAPR999 | DI36: EAPR999 | DJ36: EAPR999 | DK36: EAPR999 | DL36: EAPR999 | DM36: EAPR999 | DN36: EAPR999 | DO36: EAPR999 | DP36: EAPR999 | DQ36: EAPR999 | DR36: EAPR999 | DX36: EAPR999 | DY36: EAPR999 | DZ36: EAPR999 | EB36: EAPR999 | EC36: EAPR999 | ED36: EAPR999 | EE36: EAPR999 | EF36: EAPR999 | EG36: EAPR999 | EH36: EAPR0 | EI36: EAPR0 | EJ36: EAPR0 | EK36: EAPR0 | EL36: EAPR0 | EM36: EAPR0 | EN36: EAPR0 | EO36: EAPR0 | EP36: EAPR0 | EQ36: EAPR0 | ER36: EAPR0 | ES36: EAPR0 | ET36: EAPR0 | EU36: EAPR0 | EV36: EAPR999 | EW36: EAPR999 | EX36: EAPR999 | EY36: EAPR999 | EZ36: EAPR999 | FA36: EAPR999 | FB36: EAPR999 | FC36: EAPR999 | FD36: EAPR999 | FE36: EAPR999 | FF36: EAPR999 | FG36: EAPR999 | FH36: EAPR999 | FI36: EAPR999 | FJ36: EAPR999 | FK36: EAPR999 | FL36: EAPR999 | FM36: EAPR999 | FN36: EAPR999 | FO36: EAPR999 | FP36: EAPR999 | FQ36: EAPR999 | FR36: EAPR999 | FS36: EAPR999 | FT36: EAPR999 | FU36: EAPR999 | FV36: EAPR999 | FW36: EAPR0
A37: Costa Rica | B37: LACR | C37: No Answer Field | D37: 3 | E37: 3 | F37: 999 | G37: 999 | H37: 999 | I37: 999 | J37: 999 | K37: 1 | L37: 999 | M37: 3 | N37: 3 | O37: 3 | P37: 999 | Q37: 3 | R37: 2 | S37: 2 | T37: 999 | U37: 2.333333333 | V37: 2 | W37: 999 | X37: 2 | Y37: 1 | Z37: 2 | AA37: 2 | AB37: 999 | AC37: 3 | AD37: 3 | AE37: 2 | AF37: 1 | AG37: 999 | AH37: 999 | AI37: 999 | AJ37: 999 | AK37: 999 | AL37: 999 | AM37: 999 | AN37: 999 | AO37: 999 | AP37: 999 | AQ37: 999 | AR37: 999 | AS37: 999 | AT37: 999 | AU37: 999 | AV37: 2 | AW37: 2 | AX37: 2 | AY37: 1 | AZ37: 999 | BA37: 2 | BB37: 3 | BC37: 2 | BD37: 999 | BE37: 2 | BF37: 2 | BG37: 2 | BH37: 3 | BI37: 4 | BJ37: 999 | BK37: 3 | BL37: 3 | BM37: 2 | BN37: 2 | BO37: 2 | BP37: 1 | BQ37: 999 | BR37: 3 | BS37: 2 | BT37: 3 | BU37: 2 | BV37: 0 | BW37: 92 | BX37: 1 | BY37: 0 | BZ37: 0 | CA37: 3 | CB37: 1 | CC37: 3 | CD37: 2.166666667 | CE37: 1.666666667 | CF37: 2 | CG37: 2 | CH37: 2.333333333 | CI37: 2.25 | CJ37: 2.166666667 | CK37: 2.5 | CL37: 3 | CM37: 1 | CN37: 999 | CO37: 999 | CP37: 999 | CQ37: LACR3 | CR37: LACR1 | CS37: LACR3 | CT37: LACR2 | CU37: LACR2 | CV37: LACR2 | CW37: LACR2 | CX37: LACR2 | CY37: LACR2 | CZ37: LACR2 | DA37: LACR3 | DB37: LACR999 | DE37: LACR3 | DF37: LACR3 | DG37: LACR999 | DI37: LACR999 | DJ37: LACR999 | DK37: LACR999 | DL37: LACR1 | DM37: LACR999 | DN37: LACR3 | DO37: LACR3 | DP37: LACR3 | DQ37: LACR999 | DR37: LACR3 | DX37: LACR999 | DY37: LACR2 | DZ37: LACR1 | EB37: LACR2 | EC37: LACR999 | ED37: LACR3 | EE37: LACR3 | EF37: LACR2 | EG37: LACR1 | EH37: LACR999 | EI37: LACR999 | EJ37: LACR999 | EK37: LACR999 | EL37: LACR999 | EM37: LACR999 | EN37: LACR999 | EO37: LACR999 | EP37: LACR999 | EQ37: LACR999 | ER37: LACR999 | ES37: LACR999 | ET37: LACR999 | EU37: LACR999 | EV37: LACR999 | EW37: LACR2 | EX37: LACR2 | EY37: LACR2 | EZ37: LACR1 | FA37: LACR999 | FB37: LACR2 | FC37: LACR3 | FD37: LACR2 | FE37: LACR999 | FF37: LACR2 | FG37: LACR2 | FH37: LACR2 | FI37: LACR3 | FJ37: LACR4 | FK37: LACR999 | FL37: LACR3 | FM37: LACR3 | FN37: LACR2 | FO37: LACR2 | FP37: LACR2 | FQ37: LACR1 | FR37: LACR999 | FS37: LACR3 | FT37: LACR2 | FU37: LACR3 | FV37: LACR2 | FW37: LACR0
A38: Cote d'Ivoire | B38: WCAR | C38: No Answer Field | D38: 3 | E38: 2 | F38: 2 | G38: 999 | H38: 2 | I38: 1 | J38: 1.5 | K38: 2 | L38: 999 | M38: 1 | N38: 1 | O38: 1 | P38: 999 | Q38: 2 | R38: 2 | S38: 2 | T38: 2 | U38: 2 | V38: 1 | W38: 999 | X38: 3 | Y38: 3 | Z38: 3 | AA38: 2 | AB38: 999 | AC38: 1 | AD38: 2 | AE38: 4 | AF38: 3 | AG38: 0 | AH38: 999 | AI38: 999 | AJ38: 999 | AK38: 999 | AL38: 999 | AM38: 999 | AN38: 999 | AO38: 0 | AP38: 999 | AQ38: 999 | AR38: 999 | AS38: 999 | AT38: 999 | AU38: 999 | AV38: 1 | AW38: 1 | AX38: 1 | AY38: 1 | AZ38: 999 | BA38: 3 | BB38: 2 | BC38: 2 | BD38: 999 | BE38: 999 | BF38: 999 | BG38: 999 | BH38: 999 | BI38: 999 | BJ38: 999 | BK38: 2 | BL38: 1 | BM38: 3 | BN38: 3 | BO38: 2 | BP38: 2 | BQ38: 999 | BR38: 3 | BS38: 2 | BT38: 3 | BU38: 3 | BV38: 0 | BW38: 999 | BX38: 1 | BY38: 1 | BZ38: 0 | CA38: 2.333333333 | CB38: 1.75 | CC38: 1 | CD38: 1.5 | CE38: 3 | CF38: 3 | CG38: 1 | CH38: 2.333333333 | CI38: Not applicable | CJ38: 2.166666667 | CK38: 2.75 | CL38: 1 | CM38: 1 | CN38: 999 | CO38: 999 | CP38: 999 | CQ38: WCAR2 | CR38: WCAR2 | CS38: WCAR1 | CT38: WCAR2 | CU38: WCAR3 | CV38: WCAR3 | CW38: WCAR1 | CX38: WCAR2 | CY38: WCAR999 | CZ38: WCAR2 | DA38: WCAR3 | DB38: WCAR999 | DE38: WCAR3 | DF38: WCAR2 | DG38: WCAR2 | DI38: WCAR2 | DJ38: WCAR1 | DK38: WCAR2 | DL38: WCAR2 | DM38: WCAR999 | DN38: WCAR1 | DO38: WCAR1 | DP38: WCAR1 | DQ38: WCAR999 | DR38: WCAR2 | DX38: WCAR999 | DY38: WCAR3 | DZ38: WCAR3 | EB38: WCAR2 | EC38: WCAR999 | ED38: WCAR1 | EE38: WCAR2 | EF38: WCAR4 | EG38: WCAR3 | EH38: WCAR0 | EI38: WCAR999 | EJ38: WCAR999 | EK38: WCAR999 | EL38: WCAR999 | EM38: WCAR999 | EN38: WCAR999 | EO38: WCAR999 | EP38: WCAR0 | EQ38: WCAR999 | ER38: WCAR999 | ES38: WCAR999 | ET38: WCAR999 | EU38: WCAR999 | EV38: WCAR999 | EW38: WCAR1 | EX38: WCAR1 | EY38: WCAR1 | EZ38: WCAR1 | FA38: WCAR999 | FB38: WCAR3 | FC38: WCAR2 | FD38: WCAR2 | FE38: WCAR999 | FF38: WCAR999 | FG38: WCAR999 | FH38: WCAR999 | FI38: WCAR999 | FJ38: WCAR999 | FK38: WCAR999 | FL38: WCAR2 | FM38: WCAR1 | FN38: WCAR3 | FO38: WCAR3 | FP38: WCAR2 | FQ38: WCAR2 | FR38: WCAR999 | FS38: WCAR3 | FT38: WCAR2 | FU38: WCAR3 | FV38: WCAR3 | FW38: WCAR0
A39: Croatia | B39: ECAR | C39: No Answer Field | D39: 4 | E39: 3 | F39: 3 | G39: 999 | H39: 2 | I39: 2 | J39: 2 | K39: 3 | L39: 999 | M39: 3 | N39: 3 | O39: 3 | P39: 999 | Q39: 4 | R39: 4 | S39: 3 | T39: 3 | U39: 3.5 | V39: 4 | W39: 999 | X39: 4 | Y39: 3 | Z39: 1 | AA39: 3 | AB39: 999 | AC39: 2 | AD39: 3 | AE39: 4 | AF39: 4 | AG39: 0 | AH39: 0 | AI39: 0 | AJ39: 0 | AK39: 0 | AL39: 0 | AM39: 0 | AN39: 0 | AO39: 0 | AP39: 0 | AQ39: 0 | AR39: 0 | AS39: 0 | AT39: 0 | AU39: 999 | AV39: 999 | AW39: 999 | AX39: 999 | AY39: 1 | AZ39: 999 | BA39: 3 | BB39: 4 | BC39: 3 | BD39: 999 | BE39: 4 | BF39: 3 | BG39: 3 | BH39: 2 | BI39: 4 | BJ39: 999 | BK39: 4 | BL39: 2 | BM39: 2 | BN39: 3 | BO39: 2 | BP39: 3 | BQ39: 999 | BR39: 3 | BS39: 3 | BT39: 3 | BU39: 3 | BV39: 0 | BW39: 999 | BX39: 0 | BY39: 0 | BZ39: 0 | CA39: 3.333333333 | CB39: 2.5 | CC39: 3 | CD39: 3.75 | CE39: 2.666666667 | CF39: 3.666666667 | CG39: Not applicable | CH39: 3.333333333 | CI39: 3 | CJ39: 2.666666667 | CK39: 3 | CL39: Not applicable | CN39: 0 | CO39: 0 | CP39: 999 | CQ39: ECAR3 | CR39: ECAR3 | CS39: ECAR3 | CT39: ECAR4 | CU39: ECAR3 | CV39: ECAR4 | CW39: ECAR999 | CX39: ECAR3 | CY39: ECAR3 | CZ39: ECAR3 | DA39: ECAR3 | DB39: ECAR999 | DE39: ECAR4 | DF39: ECAR3 | DG39: ECAR3 | DI39: ECAR2 | DJ39: ECAR2 | DK39: ECAR2 | DL39: ECAR3 | DM39: ECAR999 | DN39: ECAR3 | DO39: ECAR3 | DP39: ECAR3 | DQ39: ECAR999 | DR39: ECAR4 | DX39: ECAR999 | DY39: ECAR4 | DZ39: ECAR3 | EB39: ECAR3 | EC39: ECAR999 | ED39: ECAR2 | EE39: ECAR3 | EF39: ECAR4 | EG39: ECAR4 | EH39: ECAR0 | EI39: ECAR0 | EJ39: ECAR0 | EK39: ECAR0 | EL39: ECAR0 | EM39: ECAR0 | EN39: ECAR0 | EO39: ECAR0 | EP39: ECAR0 | EQ39: ECAR0 | ER39: ECAR0 | ES39: ECAR0 | ET39: ECAR0 | EU39: ECAR0 | EV39: ECAR999 | EW39: ECAR999 | EX39: ECAR999 | EY39: ECAR999 | EZ39: ECAR1 | FA39: ECAR999 | FB39: ECAR3 | FC39: ECAR4 | FD39: ECAR3 | FE39: ECAR999 | FF39: ECAR4 | FG39: ECAR3 | FH39: ECAR3 | FI39: ECAR2 | FJ39: ECAR4 | FK39: ECAR999 | FL39: ECAR4 | FM39: ECAR2 | FN39: ECAR2 | FO39: ECAR3 | FP39: ECAR2 | FQ39: ECAR3 | FR39: ECAR999 | FS39: ECAR3 | FT39: ECAR3 | FU39: ECAR3 | FV39: ECAR3 | FW39: ECAR0
A40: Cuba | B40: LACR | C40: No Answer Field | D40: 2 | E40: 3 | F40: 3 | G40: 999 | H40: 999 | I40: 999 | J40: 999 | K40: 999 | L40: 999 | M40: 2 | N40: 2 | O40: 2 | P40: 999 | Q40: 4 | R40: 4 | S40: 4 | T40: 4 | U40: 4 | V40: 4 | W40: 999 | X40: 4 | Y40: 4 | Z40: 2 | AA40: 3 | AB40: 999 | AC40: 4 | AD40: 4 | AE40: 4 | AF40: 3 | AG40: 1 | AH40: 151756 | AI40: 307289 | AJ40: 259542 | AK40: 0 | AL40: 0 | AM40: 0 | AN40: 0 | AO40: 0 | AP40: 0 | AQ40: 0 | AR40: 0 | AS40: 0 | AT40: 0 | AU40: 999 | AV40: 4 | AW40: 3 | AX40: 3 | AY40: 1 | AZ40: 999 | BA40: 3 | BB40: 4 | BC40: 3 | BD40: 999 | BE40: 999 | BF40: 999 | BG40: 999 | BH40: 999 | BI40: 999 | BJ40: 999 | BK40: 4 | BL40: 2 | BM40: 2 | BN40: 3 | BO40: 2 | BP40: 3 | BQ40: 999 | BR40: 2 | BS40: 3 | BT40: 1 | BU40: 1 | BV40: 0 | BW40: 94 | BX40: 1 | BY40: 1 | BZ40: 1 | CA40: 2.666666667 | CB40: Not applicable | CC40: 2 | CD40: 4 | CE40: 3.333333333 | CF40: 3.666666667 | CG40: 3.333333333 | CH40: 3.333333333 | CI40: Not applicable | CJ40: 2.666666667 | CK40: 1.75 | CL40: Not applicable | CM40: 2.024888637 | CN40: 151756 | CO40: 307289 | CP40: 999 | CQ40: LACR3 | CR40: LACR999 | CS40: LACR2 | CT40: LACR4 | CU40: LACR3 | CV40: LACR4 | CW40: LACR3 | CX40: LACR3 | CY40: LACR999 | CZ40: LACR3 | DA40: LACR2 | DB40: LACR999 | DE40: LACR2 | DF40: LACR3 | DG40: LACR3 | DI40: LACR999 | DJ40: LACR999 | DK40: LACR999 | DL40: LACR999 | DM40: LACR999 | DN40: LACR2 | DO40: LACR2 | DP40: LACR2 | DQ40: LACR999 | DR40: LACR4 | DX40: LACR999 | DY40: LACR4 | DZ40: LACR4 | EB40: LACR3 | EC40: LACR999 | ED40: LACR4 | EE40: LACR4 | EF40: LACR4 | EG40: LACR3 | EH40: LACR1 | EI40: LACR151756 | EJ40: LACR307289 | EK40: LACR259542 | EL40: LACR0 | EM40: LACR0 | EN40: LACR0 | EO40: LACR0 | EP40: LACR0 | EQ40: LACR0 | ER40: LACR0 | ES40: LACR0 | ET40: LACR0 | EU40: LACR0 | EV40: LACR999 | EW40: LACR4 | EX40: LACR3 | EY40: LACR3 | EZ40: LACR1 | FA40: LACR999 | FB40: LACR3 | FC40: LACR4 | FD40: LACR3 | FE40: LACR999 | FF40: LACR999 | FG40: LACR999 | FH40: LACR999 | FI40: LACR999 | FJ40: LACR999 | FK40: LACR999 | FL40: LACR4 | FM40: LACR2 | FN40: LACR2 | FO40: LACR3 | FP40: LACR2 | FQ40: LACR3 | FR40: LACR999 | FS40: LACR2 | FT40: LACR3 | FU40: LACR1 | FV40: LACR1 | FW40: LACR0
A41: Dem. Rep. of Congo | B41: WCAR | C41: No Answer Field | D41: 3 | E41: 3 | F41: 3 | G41: 999 | H41: 1 | I41: 1 | J41: 1 | K41: 3 | L41: 999 | M41: 3 | N41: 3 | O41: 2 | P41: 999 | Q41: 3 | R41: 3 | S41: 2 | T41: 3 | U41: 2.75 | V41: 2 | W41: 999 | X41: 2 | Y41: 2 | Z41: 1 | AA41: 1 | AB41: 999 | AC41: 1 | AD41: 2 | AE41: 1 | AF41: 3 | AG41: 1 | AH41: 1205642 | AI41: 795724 | AJ41: 795724 | AK41: 0 | AL41: 795724 | AM41: 0 | AN41: 126570 | AO41: 1 | AP41: 1 | AQ41: 1 | AR41: 1 | AS41: 1 | AT41: 0 | AU41: 999 | AV41: 4 | AW41: 3 | AX41: 4 | AY41: 0 | AZ41: 999 | BA41: 2 | BB41: 2 | BC41: 2 | BD41: 999 | BE41: 1 | BF41: 1 | BG41: 1 | BH41: 2 | BI41: 4 | BJ41: 999 | BK41: 2 | BL41: 1 | BM41: 1 | BN41: 1 | BO41: 3 | BP41: 1 | BQ41: 999 | BR41: 1 | BS41: 2 | BT41: 2 | BU41: 1 | BV41: 0 | BW41: 28 | BX41: 0 | BY41: 1 | BZ41: 0 | CA41: 3 | CB41: 2 | CC41: 2.666666667 | CD41: 2.375 | CE41: 1.666666667 | CF41: 2 | CG41: 3.666666667 | CH41: 2 | CI41: 1.25 | CJ41: 1.5 | CK41: 1.5 | CL41: 1 | CM41: 0.6600002322 | CN41: 1205642 | CO41: 795724 | CP41: 999 | CQ41: WCAR3 | CR41: WCAR2 | CS41: WCAR3 | CT41: WCAR2 | CU41: WCAR2 | CV41: WCAR2 | CW41: WCAR4 | CX41: WCAR2 | CY41: WCAR1 | CZ41: WCAR2 | DA41: WCAR2 | DB41: WCAR3 | DE41: WCAR3 | DF41: WCAR3 | DG41: WCAR3 | DI41: WCAR1 | DJ41: WCAR1 | DK41: WCAR1 | DL41: WCAR3 | DM41: WCAR999 | DN41: WCAR3 | DO41: WCAR3 | DP41: WCAR2 | DQ41: WCAR999 | DR41: WCAR3 | DX41: WCAR999 | DY41: WCAR2 | DZ41: WCAR2 | EB41: WCAR1 | EC41: WCAR999 | ED41: WCAR1 | EE41: WCAR2 | EF41: WCAR1 | EG41: WCAR3 | EH41: WCAR1 | EI41: WCAR1205642 | EJ41: WCAR795724 | EK41: WCAR795724 | EL41: WCAR0 | EM41: WCAR795724 | EN41: WCAR0 | EO41: WCAR126570 | EP41: WCAR1 | EQ41: WCAR1 | ER41: WCAR1 | ES41: WCAR1 | ET41: WCAR1 | EU41: WCAR0 | EV41: WCAR999 | EW41: WCAR4 | EX41: WCAR3 | EY41: WCAR4 | EZ41: WCAR0 | FA41: WCAR999 | FB41: WCAR2 | FC41: WCAR2 | FD41: WCAR2 | FE41: WCAR999 | FF41: WCAR1 | FG41: WCAR1 | FH41: WCAR1 | FI41: WCAR2 | FJ41: WCAR4 | FK41: WCAR999 | FL41: WCAR2 | FM41: WCAR1 | FN41: WCAR1 | FO41: WCAR1 | FP41: WCAR3 | FQ41: WCAR1 | FR41: WCAR999 | FS41: WCAR1 | FT41: WCAR2 | FU41: WCAR2 | FV41: WCAR1 | FW41: WCAR0
A42: Djibouti | B42: MENA | C42: No Answer Field | D42: 1 | E42: 1 | F42: 1 | G42: 999 | H42: 2 | I42: 1 | J42: 1.5 | K42: 1 | L42: 999 | M42: 2 | N42: 1 | O42: 1 | P42: 999 | Q42: 2 | R42: 2 | S42: 1 | T42: 3 | U42: 2 | V42: 2 | W42: 999 | X42: 2 | Y42: 2 | Z42: 2 | AA42: 1 | AB42: 999 | AC42: 1 | AD42: 3 | AE42: 1 | AF42: 2 | AG42: 1 | AH42: 3500 | AI42: 2880 | AJ42: 999 | AK42: 800 | AL42: 2000 | AM42: 80 | AN42: 100 | AO42: 0 | AP42: 999 | AQ42: 999 | AR42: 999 | AS42: 999 | AT42: 999 | AU42: 999 | AV42: 1 | AW42: 1 | AX42: 1 | AY42: 0 | AZ42: 999 | BA42: 3 | BB42: 999 | BC42: 2 | BD42: 999 | BE42: 999 | BF42: 999 | BG42: 999 | BH42: 999 | BI42: 999 | BJ42: 999 | BK42: 2 | BL42: 1 | BM42: 1 | BN42: 1 | BO42: 1 | BP42: 1 | BQ42: 999 | BR42: 2 | BS42: 1 | BT42: 1 | BU42: 1 | BV42: 0 | BW42: 28 | BX42: 1 | BY42: 1 | BZ42: 0 | CA42: 1 | CB42: 1.25 | CC42: 1.333333333 | CD42: 2 | CE42: 2 | CF42: 2 | CG42: 1 | CH42: 2.5 | CI42: Not applicable | CJ42: 1.166666667 | CK42: 1.25 | CL42: 2 | CM42: 0.8228571429 | CN42: 3500 | CO42: 2880 | CP42: 999 | CQ42: MENA1 | CR42: MENA1 | CS42: MENA1 | CT42: MENA2 | CU42: MENA2 | CV42: MENA2 | CW42: MENA1 | CX42: MENA3 | CY42: MENA999 | CZ42: MENA1 | DA42: MENA1 | DB42: MENA999 | DE42: MENA1 | DF42: MENA1 | DG42: MENA1 | DI42: MENA2 | DJ42: MENA1 | DK42: MENA2 | DL42: MENA1 | DM42: MENA999 | DN42: MENA2 | DO42: MENA1 | DP42: MENA1 | DQ42: MENA999 | DR42: MENA2 | DX42: MENA999 | DY42: MENA2 | DZ42: MENA2 | EB42: MENA1 | EC42: MENA999 | ED42: MENA1 | EE42: MENA3 | EF42: MENA1 | EG42: MENA2 | EH42: MENA1 | EI42: MENA3500 | EJ42: MENA2880 | EK42: MENA999 | EL42: MENA800 | EM42: MENA2000 | EN42: MENA80 | EO42: MENA100 | EP42: MENA0 | EQ42: MENA999 | ER42: MENA999 | ES42: MENA999 | ET42: MENA999 | EU42: MENA999 | EV42: MENA999 | EW42: MENA1 | EX42: MENA1 | EY42: MENA1 | EZ42: MENA0 | FA42: MENA999 | FB42: MENA3 | FC42: MENA999 | FD42: MENA2 | FE42: MENA999 | FF42: MENA999 | FG42: MENA999 | FH42: MENA999 | FI42: MENA999 | FJ42: MENA999 | FK42: MENA999 | FL42: MENA2 | FM42: MENA1 | FN42: MENA1 | FO42: MENA1 | FP42: MENA1 | FQ42: MENA1 | FR42: MENA999 | FS42: MENA2 | FT42: MENA1 | FU42: MENA1 | FV42: MENA1 | FW42: MENA0
A43: Dominica | B43: LACR | C43: No Answer Field | D43: 1 | E43: 999 | F43: 999 | G43: 999 | H43: 1 | I43: 2 | J43: 1.5 | K43: 1 | L43: 999 | M43: 1 | N43: 2 | O43: 1 | P43: 999 | Q43: 2 | R43: 2 | S43: 2 | T43: 3 | U43: 2.25 | V43: 3 | W43: 999 | X43: 2 | Y43: 3 | Z43: 1 | AA43: 1 | AB43: 999 | AC43: 2 | AD43: 2 | AE43: 2 | AF43: 1 | AG43: 0 | AH43: 0 | AI43: 0 | AJ43: 0 | AK43: 0 | AL43: 0 | AM43: 0 | AN43: 0 | AO43: 0 | AP43: 0 | AQ43: 0 | AR43: 0 | AS43: 0 | AT43: 0 | AU43: 999 | AV43: 1 | AW43: 2 | AX43: 2 | AY43: 1 | AZ43: 999 | BA43: 2 | BB43: 2 | BC43: 2 | BD43: 999 | BE43: 2 | BF43: 2 | BG43: 1 | BH43: 2 | BI43: 1 | BJ43: 999 | BK43: 3 | BL43: 3 | BM43: 2 | BN43: 2 | BO43: 3 | BP43: 2 | BQ43: 999 | BR43: 999 | BS43: 999 | BT43: 999 | BU43: 999 | BV43: 0 | BW43: 100.8 | BX43: 0 | BY43: 0 | BZ43: 0 | CA43: 1 | CB43: 1.25 | CC43: 1.333333333 | CD43: 2.625 | CE43: 2 | CF43: 1.666666667 | CG43: 1.666666667 | CH43: 2 | CI43: 1.75 | CJ43: 2.5 | CK43: Not applicable | CL43: Not applicable | CN43: 0 | CO43: 0 | CP43: 999 | CQ43: LACR1 | CR43: LACR1 | CS43: LACR1 | CT43: LACR3 | CU43: LACR2 | CV43: LACR2 | CW43: LACR2 | CX43: LACR2 | CY43: LACR2 | CZ43: LACR3 | DA43: LACR999 | DB43: LACR999 | DE43: LACR1 | DF43: LACR999 | DG43: LACR999 | DI43: LACR1 | DJ43: LACR2 | DK43: LACR2 | DL43: LACR1 | DM43: LACR999 | DN43: LACR1 | DO43: LACR2 | DP43: LACR1 | DQ43: LACR999 | DR43: LACR2 | DX43: LACR999 | DY43: LACR2 | DZ43: LACR3 | EB43: LACR1 | EC43: LACR999 | ED43: LACR2 | EE43: LACR2 | EF43: LACR2 | EG43: LACR1 | EH43: LACR0 | EI43: LACR0 | EJ43: LACR0 | EK43: LACR0 | EL43: LACR0 | EM43: LACR0 | EN43: LACR0 | EO43: LACR0 | EP43: LACR0 | EQ43: LACR0 | ER43: LACR0 | ES43: LACR0 | ET43: LACR0 | EU43: LACR0 | EV43: LACR999 | EW43: LACR1 | EX43: LACR2 | EY43: LACR2 | EZ43: LACR1 | FA43: LACR999 | FB43: LACR2 | FC43: LACR2 | FD43: LACR2 | FE43: LACR999 | FF43: LACR2 | FG43: LACR2 | FH43: LACR1 | FI43: LACR2 | FJ43: LACR1 | FK43: LACR999 | FL43: LACR3 | FM43: LACR3 | FN43: LACR2 | FO43: LACR2 | FP43: LACR3 | FQ43: LACR2 | FR43: LACR999 | FS43: LACR999 | FT43: LACR999 | FU43: LACR999 | FV43: LACR999 | FW43: LACR0
A44: Dom. Rep. | B44: LACR | C44: No Answer Field | D44: 3 | E44: 2 | F44: 2 | G44: 999 | H44: 2 | I44: 1 | J44: 1.5 | K44: 2 | L44: 999 | M44: 1 | N44: 1 | O44: 2 | P44: 999 | Q44: 1 | R44: 1 | S44: 1 | T44: 1 | U44: 1 | V44: 4 | W44: 999 | X44: 2 | Y44: 1 | Z44: 2 | AA44: 2 | AB44: 999 | AC44: 2 | AD44: 3 | AE44: 2 | AF44: 999 | AG44: 0 | AH44: 0 | AI44: 0 | AJ44: 0 | AK44: 0 | AL44: 0 | AM44: 0 | AN44: 0 | AO44: 0 | AP44: 0 | AQ44: 0 | AR44: 0 | AS44: 0 | AT44: 0 | AU44: 999 | AV44: 2 | AW44: 2 | AX44: 2 | AY44: 1 | AZ44: 999 | BA44: 2 | BB44: 2 | BC44: 2 | BD44: 999 | BE44: 999 | BF44: 999 | BG44: 999 | BH44: 999 | BI44: 999 | BJ44: 999 | BK44: 3 | BL44: 1 | BM44: 3 | BN44: 1 | BO44: 1 | BP44: 3 | BQ44: 999 | BR44: 2 | BS44: 2 | BT44: 2 | BU44: 2 | BV44: 0 | BW44: 80 | BX44: 0 | BY44: 0 | BZ44: 0 | CA44: 2.333333333 | CB44: 1.75 | CC44: 1.333333333 | CD44: 2.5 | CE44: 1.666666667 | CF44: 2.5 | CG44: 2 | CH44: 2 | CI44: Not applicable | CJ44: 2 | CK44: 2 | CL44: 2 | CN44: 0 | CO44: 0 | CP44: 999 | CQ44: LACR2 | CR44: LACR2 | CS44: LACR1 | CT44: LACR3 | CU44: LACR2 | CV44: LACR3 | CW44: LACR2 | CX44: LACR2 | CY44: LACR999 | CZ44: LACR2 | DA44: LACR2 | DB44: LACR999 | DE44: LACR3 | DF44: LACR2 | DG44: LACR2 | DI44: LACR2 | DJ44: LACR1 | DK44: LACR2 | DL44: LACR2 | DM44: LACR999 | DN44: LACR1 | DO44: LACR1 | DP44: LACR2 | DQ44: LACR999 | DR44: LACR1 | DX44: LACR999 | DY44: LACR2 | DZ44: LACR1 | EB44: LACR2 | EC44: LACR999 | ED44: LACR2 | EE44: LACR3 | EF44: LACR2 | EG44: LACR999 | EH44: LACR0 | EI44: LACR0 | EJ44: LACR0 | EK44: LACR0 | EL44: LACR0 | EM44: LACR0 | EN44: LACR0 | EO44: LACR0 | EP44: LACR0 | EQ44: LACR0 | ER44: LACR0 | ES44: LACR0 | ET44: LACR0 | EU44: LACR0 | EV44: LACR999 | EW44: LACR2 | EX44: LACR2 | EY44: LACR2 | EZ44: LACR1 | FA44: LACR999 | FB44: LACR2 | FC44: LACR2 | FD44: LACR2 | FE44: LACR999 | FF44: LACR999 | FG44: LACR999 | FH44: LACR999 | FI44: LACR999 | FJ44: LACR999 | FK44: LACR999 | FL44: LACR3 | FM44: LACR1 | FN44: LACR3 | FO44: LACR1 | FP44: LACR1 | FQ44: LACR3 | FR44: LACR999 | FS44: LACR2 | FT44: LACR2 | FU44: LACR2 | FV44: LACR2 | FW44: LACR0
A45: Ecuador | B45: LACR | C45: No Answer Field | D45: 2 | E45: 2 | F45: 2 | G45: 999 | H45: 2 | I45: 1 | J45: 1.5 | K45: 2 | L45: 999 | M45: 1 | N45: 2 | O45: 1 | P45: 999 | Q45: 2 | R45: 2 | S45: 2 | T45: 2 | U45: 2 | V45: 2 | W45: 999 | X45: 2 | Y45: 2 | Z45: 2 | AA45: 2 | AB45: 999 | AC45: 2 | AD45: 2 | AE45: 1 | AF45: 2 | AG45: 0 | AH45: 0 | AI45: 0 | AJ45: 0 | AK45: 0 | AL45: 0 | AM45: 0 | AN45: 0 | AO45: 0 | AP45: 0 | AQ45: 0 | AR45: 0 | AS45: 0 | AT45: 0 | AU45: 999 | AV45: 2 | AW45: 3 | AX45: 3 | AY45: 1 | AZ45: 999 | BA45: 3 | BB45: 1 | BC45: 3 | BD45: 999 | BE45: 3 | BF45: 2 | BG45: 2 | BH45: 3 | BI45: 999 | BJ45: 999 | BK45: 3 | BL45: 999 | BM45: 999 | BN45: 999 | BO45: 999 | BP45: 999 | BQ45: 999 | BR45: 2 | BS45: 999 | BT45: 999 | BU45: 2 | BV45: 0 | BW45: 95 | BX45: 0 | BY45: 0 | BZ45: 0 | CA45: 2 | CB45: 1.75 | CC45: 1.333333333 | CD45: 2 | CE45: 2 | CF45: 1.666666667 | CG45: 2.666666667 | CH45: 2.333333333 | CI45: 2.5 | CJ45: 3 | CK45: 2 | CL45: 2.333333333 | CN45: 0 | CO45: 0 | CP45: 999 | CQ45: LACR2 | CR45: LACR2 | CS45: LACR1 | CT45: LACR2 | CU45: LACR2 | CV45: LACR2 | CW45: LACR3 | CX45: LACR2 | CY45: LACR3 | CZ45: LACR3 | DA45: LACR2 | DB45: LACR999 | DE45: LACR2 | DF45: LACR2 | DG45: LACR2 | DI45: LACR2 | DJ45: LACR1 | DK45: LACR2 | DL45: LACR2 | DM45: LACR999 | DN45: LACR1 | DO45: LACR2 | DP45: LACR1 | DQ45: LACR999 | DR45: LACR2 | DX45: LACR999 | DY45: LACR2 | DZ45: LACR2 | EB45: LACR2 | EC45: LACR999 | ED45: LACR2 | EE45: LACR2 | EF45: LACR1 | EG45: LACR2 | EH45: LACR0 | EI45: LACR0 | EJ45: LACR0 | EK45: LACR0 | EL45: LACR0 | EM45: LACR0 | EN45: LACR0 | EO45: LACR0 | EP45: LACR0 | EQ45: LACR0 | ER45: LACR0 | ES45: LACR0 | ET45: LACR0 | EU45: LACR0 | EV45: LACR999 | EW45: LACR2 | EX45: LACR3 | EY45: LACR3 | EZ45: LACR1 | FA45: LACR999 | FB45: LACR3 | FC45: LACR1 | FD45: LACR3 | FE45: LACR999 | FF45: LACR3 | FG45: LACR2 | FH45: LACR2 | FI45: LACR3 | FJ45: LACR999 | FK45: LACR999 | FL45: LACR3 | FM45: LACR999 | FN45: LACR999 | FO45: LACR999 | FP45: LACR999 | FQ45: LACR999 | FR45: LACR999 | FS45: LACR2 | FT45: LACR999 | FU45: LACR999 | FV45: LACR2 | FW45: LACR0
A46: Egypt | B46: MENA | C46: No Answer Field | D46: 3 | E46: 3 | F46: 2 | G46: 999 | H46: 999 | I46: 999 | J46: 999 | K46: 999 | L46: 999 | M46: 3 | N46: 3 | O46: 3 | P46: 999 | Q46: 3 | R46: 3 | S46: 3 | T46: 3 | U46: 3 | V46: 4 | W46: 999 | X46: 2 | Y46: 2 | Z46: 3 | AA46: 3 | AB46: 999 | AC46: 2 | AD46: 3 | AE46: 3 | AF46: 2 | AG46: 1 | AH46: 25000 | AI46: 8013 | AJ46: 0 | AK46: 310 | AL46: 25358 | AM46: 4875 | AN46: 0 | AO46: 0 | AP46: 999 | AQ46: 999 | AR46: 999 | AS46: 999 | AT46: 999 | AU46: 999 | AV46: 2 | AW46: 3 | AX46: 2 | AY46: 0 | AZ46: 999 | BA46: 2 | BB46: 2 | BC46: 2 | BD46: 999 | BE46: 999 | BF46: 999 | BG46: 999 | BH46: 999 | BI46: 999 | BJ46: 999 | BK46: 4 | BL46: 1 | BM46: 2 | BN46: 1 | BO46: 3 | BP46: 3 | BQ46: 999 | BR46: 999 | BS46: 999 | BT46: 999 | BU46: 999 | BV46: 0 | BW46: 83 | BX46: 0 | BY46: 0 | BZ46: 0 | CA46: 2.666666667 | CB46: Not applicable | CC46: 3 | CD46: 3.5 | CE46: 2.333333333 | CF46: 2.666666667 | CG46: 2.333333333 | CH46: 2 | CI46: Not applicable | CJ46: 2.333333333 | CK46: Not applicable | CL46: Not applicable | CM46: 0.32052 | CN46: 25000 | CO46: 8013 | CP46: 999 | CQ46: MENA3 | CR46: MENA999 | CS46: MENA3 | CT46: MENA4 | CU46: MENA2 | CV46: MENA3 | CW46: MENA2 | CX46: MENA2 | CY46: MENA999 | CZ46: MENA2 | DA46: MENA999 | DB46: MENA999 | DE46: MENA3 | DF46: MENA3 | DG46: MENA2 | DI46: MENA999 | DJ46: MENA999 | DK46: MENA999 | DL46: MENA999 | DM46: MENA999 | DN46: MENA3 | DO46: MENA3 | DP46: MENA3 | DQ46: MENA999 | DR46: MENA3 | DX46: MENA999 | DY46: MENA2 | DZ46: MENA2 | EB46: MENA3 | EC46: MENA999 | ED46: MENA2 | EE46: MENA3 | EF46: MENA3 | EG46: MENA2 | EH46: MENA1 | EI46: MENA25000 | EJ46: MENA8013 | EK46: MENA0 | EL46: MENA310 | EM46: MENA25358 | EN46: MENA4875 | EO46: MENA0 | EP46: MENA0 | EQ46: MENA999 | ER46: MENA999 | ES46: MENA999 | ET46: MENA999 | EU46: MENA999 | EV46: MENA999 | EW46: MENA2 | EX46: MENA3 | EY46: MENA2 | EZ46: MENA0 | FA46: MENA999 | FB46: MENA2 | FC46: MENA2 | FD46: MENA2 | FE46: MENA999 | FF46: MENA999 | FG46: MENA999 | FH46: MENA999 | FI46: MENA999 | FJ46: MENA999 | FK46: MENA999 | FL46: MENA4 | FM46: MENA1 | FN46: MENA2 | FO46: MENA1 | FP46: MENA3 | FQ46: MENA3 | FR46: MENA999 | FS46: MENA999 | FT46: MENA999 | FU46: MENA999 | FV46: MENA999 | FW46: MENA0
A47: El Salvador | B47: LACR | C47: No Answer Field | D47: 3 | E47: 2 | F47: 2 | G47: 999 | H47: 2 | I47: 2 | J47: 2 | K47: 2 | L47: 999 | M47: 2 | N47: 3 | O47: 2 | P47: 999 | Q47: 3 | R47: 2 | S47: 3 | T47: 2 | U47: 2.5 | V47: 2 | W47: 999 | X47: 2 | Y47: 3 | Z47: 3 | AA47: 2 | AB47: 999 | AC47: 2 | AD47: 3 | AE47: 2 | AF47: 3 | AG47: 0 | AH47: 0 | AI47: 0 | AJ47: 0 | AK47: 0 | AL47: 0 | AM47: 0 | AN47: 0 | AO47: 0 | AP47: 0 | AQ47: 0 | AR47: 0 | AS47: 0 | AT47: 0 | AU47: 999 | AV47: 3 | AW47: 3 | AX47: 2 | AY47: 1 | AZ47: 999 | BA47: 3 | BB47: 3 | BC47: 2 | BD47: 999 | BE47: 999 | BF47: 999 | BG47: 999 | BH47: 999 | BI47: 999 | BJ47: 999 | BK47: 3 | BL47: 1 | BM47: 2 | BN47: 2 | BO47: 2 | BP47: 2 | BQ47: 999 | BR47: 3 | BS47: 2 | BT47: 2 | BU47: 2 | BV47: 0 | BW47: 64 | BX47: 1 | BY47: 0 | BZ47: 0 | CA47: 2.333333333 | CB47: 2 | CC47: 2.333333333 | CD47: 2.25 | CE47: 2.666666667 | CF47: 2.666666667 | CG47: 2.666666667 | CH47: 2.666666667 | CI47: Not applicable | CJ47: 2 | CK47: 2.25 | CL47: 2 | CN47: 0 | CO47: 0 | CP47: 999 | CQ47: LACR2 | CR47: LACR2 | CS47: LACR2 | CT47: LACR2 | CU47: LACR3 | CV47: LACR3 | CW47: LACR3 | CX47: LACR3 | CY47: LACR999 | CZ47: LACR2 | DA47: LACR2 | DB47: LACR999 | DE47: LACR3 | DF47: LACR2 | DG47: LACR2 | DI47: LACR2 | DJ47: LACR2 | DK47: LACR2 | DL47: LACR2 | DM47: LACR999 | DN47: LACR2 | DO47: LACR3 | DP47: LACR2 | DQ47: LACR999 | DR47: LACR3 | DX47: LACR999 | DY47: LACR2 | DZ47: LACR3 | EB47: LACR2 | EC47: LACR999 | ED47: LACR2 | EE47: LACR3 | EF47: LACR2 | EG47: LACR3 | EH47: LACR0 | EI47: LACR0 | EJ47: LACR0 | EK47: LACR0 | EL47: LACR0 | EM47: LACR0 | EN47: LACR0 | EO47: LACR0 | EP47: LACR0 | EQ47: LACR0 | ER47: LACR0 | ES47: LACR0 | ET47: LACR0 | EU47: LACR0 | EV47: LACR999 | EW47: LACR3 | EX47: LACR3 | EY47: LACR2 | EZ47: LACR1 | FA47: LACR999 | FB47: LACR3 | FC47: LACR3 | FD47: LACR2 | FE47: LACR999 | FF47: LACR999 | FG47: LACR999 | FH47: LACR999 | FI47: LACR999 | FJ47: LACR999 | FK47: LACR999 | FL47: LACR3 | FM47: LACR1 | FN47: LACR2 | FO47: LACR2 | FP47: LACR2 | FQ47: LACR2 | FR47: LACR999 | FS47: LACR3 | FT47: LACR2 | FU47: LACR2 | FV47: LACR2 | FW47: LACR0
A48: Equatorial Guinea | B48: WCAR | C48: No Answer Field | D48: 2 | E48: 2 | F48: 2 | G48: 999 | H48: 2 | I48: 3 | J48: 2.5 | K48: 3 | L48: 999 | M48: 4 | N48: 2 | O48: 1 | P48: 999 | Q48: 3 | R48: 4 | S48: 3 | T48: 4 | U48: 3.5 | V48: 2 | W48: 999 | X48: 3 | Y48: 2 | Z48: 1 | AA48: 1 | AB48: 999 | AC48: 3 | AD48: 2 | AE48: 3 | AF48: 2 | AG48: 0 | AH48: 0 | AI48: 0 | AJ48: 0 | AK48: 0 | AL48: 0 | AM48: 0 | AN48: 0 | AO48: 0 | AP48: 0 | AQ48: 0 | AR48: 0 | AS48: 0 | AT48: 0 | AU48: 999 | AV48: 1 | AW48: 1 | AX48: 999 | AY48: 0 | AZ48: 999 | BA48: 2 | BB48: 2 | BC48: 2 | BD48: 999 | BE48: 1 | BF48: 1 | BG48: 1 | BH48: 2 | BI48: 999 | BJ48: 999 | BK48: 2 | BL48: 2 | BM48: 2 | BN48: 1 | BO48: 2 | BP48: 3 | BQ48: 999 | BR48: 2 | BS48: 2 | BT48: 999 | BU48: 1 | BV48: 0 | BW48: 47.1 | BX48: 1 | BY48: 0 | BZ48: 0 | CA48: 2 | CB48: 2.75 | CC48: 2.333333333 | CD48: 2.75 | CE48: 2 | CF48: 2.333333333 | CG48: 1 | CH48: 2 | CI48: 1.25 | CJ48: 2 | CK48: 1.666666667 | CL48: 2 | CN48: 0 | CO48: 0 | CP48: 999 | CQ48: WCAR2 | CR48: WCAR3 | CS48: WCAR2 | CT48: WCAR3 | CU48: WCAR2 | CV48: WCAR2 | CW48: WCAR1 | CX48: WCAR2 | CY48: WCAR1 | CZ48: WCAR2 | DA48: WCAR2 | DB48: WCAR999 | DE48: WCAR2 | DF48: WCAR2 | DG48: WCAR2 | DI48: WCAR2 | DJ48: WCAR3 | DK48: WCAR3 | DL48: WCAR3 | DM48: WCAR999 | DN48: WCAR4 | DO48: WCAR2 | DP48: WCAR1 | DQ48: WCAR999 | DR48: WCAR3 | DX48: WCAR999 | DY48: WCAR3 | DZ48: WCAR2 | EB48: WCAR1 | EC48: WCAR999 | ED48: WCAR3 | EE48: WCAR2 | EF48: WCAR3 | EG48: WCAR2 | EH48: WCAR0 | EI48: WCAR0 | EJ48: WCAR0 | EK48: WCAR0 | EL48: WCAR0 | EM48: WCAR0 | EN48: WCAR0 | EO48: WCAR0 | EP48: WCAR0 | EQ48: WCAR0 | ER48: WCAR0 | ES48: WCAR0 | ET48: WCAR0 | EU48: WCAR0 | EV48: WCAR999 | EW48: WCAR1 | EX48: WCAR1 | EY48: WCAR999 | EZ48: WCAR0 | FA48: WCAR999 | FB48: WCAR2 | FC48: WCAR2 | FD48: WCAR2 | FE48: WCAR999 | FF48: WCAR1 | FG48: WCAR1 | FH48: WCAR1 | FI48: WCAR2 | FJ48: WCAR999 | FK48: WCAR999 | FL48: WCAR2 | FM48: WCAR2 | FN48: WCAR2 | FO48: WCAR1 | FP48: WCAR2 | FQ48: WCAR3 | FR48: WCAR999 | FS48: WCAR2 | FT48: WCAR2 | FU48: WCAR999 | FV48: WCAR1 | FW48: WCAR0
A49: Eritrea | B49: ESAR | C49: No Answer Field | D49: 3 | E49: 1 | F49: 2 | G49: 999 | H49: 2 | I49: 2 | J49: 2 | K49: 3 | L49: 999 | M49: 3 | N49: 3 | O49: 2 | P49: 999 | Q49: 3 | R49: 2 | S49: 3 | T49: 3 | U49: 2.75 | V49: 2 | W49: 999 | X49: 3 | Y49: 3 | Z49: 3 | AA49: 999 | AB49: 999 | AC49: 2 | AD49: 2 | AE49: 2 | AF49: 3 | AG49: 0 | AH49: 999 | AI49: 999 | AJ49: 999 | AK49: 999 | AL49: 999 | AM49: 999 | AN49: 999 | AO49: 0 | AP49: 999 | AQ49: 999 | AR49: 999 | AS49: 999 | AT49: 999 | AU49: 999 | AV49: 1 | AW49: 1 | AX49: 2 | AY49: 0 | AZ49: 999 | BA49: 2 | BB49: 4 | BC49: 3 | BD49: 999 | BE49: 4 | BF49: 2 | BG49: 3 | BH49: 3 | BI49: 3 | BJ49: 999 | BK49: 3 | BL49: 2 | BM49: 2 | BN49: 2 | BO49: 3 | BP49: 3 | BQ49: 999 | BR49: 999 | BS49: 999 | BT49: 999 | BU49: 999 | BV49: 0 | BW49: 27 | BX49: 1 | BY49: 1 | BZ49: 0 | CA49: 2 | CB49: 2.5 | CC49: 2.666666667 | CD49: 2.375 | CE49: 3 | CF49: 2.333333333 | CG49: 1.333333333 | CH49: 3 | CI49: 3 | CJ49: 2.5 | CK49: Not applicable | CL49: 2.333333333 | CM49: 1 | CN49: 999 | CO49: 999 | CP49: 999 | CQ49: ESAR2 | CR49: ESAR3 | CS49: ESAR3 | CT49: ESAR2 | CU49: ESAR3 | CV49: ESAR2 | CW49: ESAR1 | CX49: ESAR3 | CY49: ESAR3 | CZ49: ESAR3 | DA49: ESAR999 | DB49: ESAR999 | DE49: ESAR3 | DF49: ESAR1 | DG49: ESAR2 | DI49: ESAR2 | DJ49: ESAR2 | DK49: ESAR2 | DL49: ESAR3 | DM49: ESAR999 | DN49: ESAR3 | DO49: ESAR3 | DP49: ESAR2 | DQ49: ESAR999 | DR49: ESAR3 | DX49: ESAR999 | DY49: ESAR3 | DZ49: ESAR3 | EB49: ESAR999 | EC49: ESAR999 | ED49: ESAR2 | EE49: ESAR2 | EF49: ESAR2 | EG49: ESAR3 | EH49: ESAR0 | EI49: ESAR999 | EJ49: ESAR999 | EK49: ESAR999 | EL49: ESAR999 | EM49: ESAR999 | EN49: ESAR999 | EO49: ESAR999 | EP49: ESAR0 | EQ49: ESAR999 | ER49: ESAR999 | ES49: ESAR999 | ET49: ESAR999 | EU49: ESAR999 | EV49: ESAR999 | EW49: ESAR1 | EX49: ESAR1 | EY49: ESAR2 | EZ49: ESAR0 | FA49: ESAR999 | FB49: ESAR2 | FC49: ESAR4 | FD49: ESAR3 | FE49: ESAR999 | FF49: ESAR4 | FG49: ESAR2 | FH49: ESAR3 | FI49: ESAR3 | FJ49: ESAR3 | FK49: ESAR999 | FL49: ESAR3 | FM49: ESAR2 | FN49: ESAR2 | FO49: ESAR2 | FP49: ESAR3 | FQ49: ESAR3 | FR49: ESAR999 | FS49: ESAR999 | FT49: ESAR999 | FU49: ESAR999 | FV49: ESAR999 | FW49: ESAR0
A50: Ethiopia | B50: ESAR | C50: No Answer Field | D50: 4 | E50: 3 | F50: 3 | G50: 999 | H50: 2 | I50: 3 | J50: 2.5 | K50: 3 | L50: 999 | M50: 3 | N50: 3 | O50: 4 | P50: 999 | Q50: 4 | R50: 4 | S50: 4 | T50: 4 | U50: 4 | V50: 1 | W50: 999 | X50: 2 | Y50: 4 | Z50: 4 | AA50: 1 | AB50: 999 | AC50: 2 | AD50: 2 | AE50: 1 | AF50: 2 | AG50: 1 | AH50: 60000 | AI50: 80083 | AJ50: 42000 | AK50: 9610 | AL50: 70473 | AM50: 0 | AN50: 0 | AO50: 1 | AP50: 1 | AQ50: 1 | AR50: 1 | AS50: 1 | AT50: 1 | AU50: 999 | AV50: 3 | AW50: 3 | AX50: 3 | AY50: 0 | AZ50: 999 | BA50: 3 | BB50: 3 | BC50: 2 | BD50: 999 | BE50: 4 | BF50: 3 | BG50: 2 | BH50: 2 | BI50: 4 | BJ50: 999 | BK50: 4 | BL50: 2 | BM50: 2 | BN50: 2 | BO50: 3 | BP50: 3 | BQ50: 999 | BR50: 2 | BS50: 1 | BT50: 1 | BU50: 2 | BV50: 0 | BW50: 37 | BX50: 1 | BY50: 1 | BZ50: 1 | CA50: 3.333333333 | CB50: 2.75 | CC50: 3.333333333 | CD50: 2.5 | CE50: 3.333333333 | CF50: 1.666666667 | CG50: 3 | CH50: 2.666666667 | CI50: 2.75 | CJ50: 2.666666667 | CK50: 1.5 | CL50: 3 | CM50: 1.334716667 | CN50: 60000 | CO50: 80083 | CP50: 999 | CQ50: ESAR3 | CR50: ESAR3 | CS50: ESAR3 | CT50: ESAR3 | CU50: ESAR3 | CV50: ESAR2 | CW50: ESAR3 | CX50: ESAR3 | CY50: ESAR3 | CZ50: ESAR3 | DA50: ESAR2 | DB50: ESAR4 | DE50: ESAR4 | DF50: ESAR3 | DG50: ESAR3 | DI50: ESAR2 | DJ50: ESAR3 | DK50: ESAR3 | DL50: ESAR3 | DM50: ESAR999 | DN50: ESAR3 | DO50: ESAR3 | DP50: ESAR4 | DQ50: ESAR999 | DR50: ESAR4 | DX50: ESAR999 | DY50: ESAR2 | DZ50: ESAR4 | EB50: ESAR1 | EC50: ESAR999 | ED50: ESAR2 | EE50: ESAR2 | EF50: ESAR1 | EG50: ESAR2 | EH50: ESAR1 | EI50: ESAR60000 | EJ50: ESAR80083 | EK50: ESAR42000 | EL50: ESAR9610 | EM50: ESAR70473 | EN50: ESAR0 | EO50: ESAR0 | EP50: ESAR1 | EQ50: ESAR1 | ER50: ESAR1 | ES50: ESAR1 | ET50: ESAR1 | EU50: ESAR1 | EV50: ESAR999 | EW50: ESAR3 | EX50: ESAR3 | EY50: ESAR3 | EZ50: ESAR0 | FA50: ESAR999 | FB50: ESAR3 | FC50: ESAR3 | FD50: ESAR2 | FE50: ESAR999 | FF50: ESAR4 | FG50: ESAR3 | FH50: ESAR2 | FI50: ESAR2 | FJ50: ESAR4 | FK50: ESAR999 | FL50: ESAR4 | FM50: ESAR2 | FN50: ESAR2 | FO50: ESAR2 | FP50: ESAR3 | FQ50: ESAR3 | FR50: ESAR999 | FS50: ESAR2 | FT50: ESAR1 | FU50: ESAR1 | FV50: ESAR2 | FW50: ESAR0
A51: Fiji | B51: EAPR | C51: No Answer Field | D51: 999 | E51: 999 | F51: 999 | G51: 999 | H51: 999 | I51: 999 | J51: 999 | K51: 999 | L51: 999 | M51: 999 | N51: 999 | O51: 999 | P51: 999 | Q51: 999 | R51: 999 | S51: 999 | T51: 999 | U51: 999 | V51: 999 | W51: 999 | X51: 999 | Y51: 999 | Z51: 999 | AA51: 999 | AB51: 999 | AC51: 999 | AD51: 999 | AE51: 999 | AF51: 999 | AG51: 1 | AH51: 3000 | AI51: 3000 | AJ51: 0 | AK51: 0 | AL51: 0 | AM51: 0 | AN51: 0 | AO51: 1 | AP51: 1 | AQ51: 0 | AR51: 1 | AS51: 0 | AT51: 0 | AU51: 999 | AV51: 999 | AW51: 999 | AX51: 999 | AY51: 999 | AZ51: 999 | BA51: 999 | BB51: 999 | BC51: 999 | BD51: 999 | BE51: 999 | BF51: 999 | BG51: 999 | BH51: 999 | BI51: 999 | BJ51: 999 | BK51: 999 | BL51: 999 | BM51: 999 | BN51: 999 | BO51: 999 | BP51: 999 | BQ51: 999 | BR51: 999 | BS51: 999 | BT51: 999 | BU51: 999 | BV51: 0 | BW51: 0 | BX51: 0 | BY51: 0 | BZ51: 0 | CA51: Not applicable | CB51: Not applicable | CC51: Not applicable | CD51: Not applicable | CE51: Not applicable | CF51: Not applicable | CG51: Not applicable | CH51: Not applicable | CI51: Not applicable | CJ51: Not applicable | CK51: Not applicable | CL51: Not applicable | CM51: 1 | CN51: 3000 | CO51: 3000 | CP51: 999 | CQ51: EAPR999 | CR51: EAPR999 | CS51: EAPR999 | CT51: EAPR999 | CU51: EAPR999 | CV51: EAPR999 | CW51: EAPR999 | CX51: EAPR999 | CY51: EAPR999 | CZ51: EAPR999 | DA51: EAPR999 | DB51: EAPR2 | DE51: EAPR999 | DF51: EAPR999 | DG51: EAPR999 | DI51: EAPR999 | DJ51: EAPR999 | DK51: EAPR999 | DL51: EAPR999 | DM51: EAPR999 | DN51: EAPR999 | DO51: EAPR999 | DP51: EAPR999 | DQ51: EAPR999 | DR51: EAPR999 | DX51: EAPR999 | DY51: EAPR999 | DZ51: EAPR999 | EB51: EAPR999 | EC51: EAPR999 | ED51: EAPR999 | EE51: EAPR999 | EF51: EAPR999 | EG51: EAPR999 | EH51: EAPR1 | EI51: EAPR3000 | EJ51: EAPR3000 | EK51: EAPR0 | EL51: EAPR0 | EM51: EAPR0 | EN51: EAPR0 | EO51: EAPR0 | EP51: EAPR1 | EQ51: EAPR1 | ER51: EAPR0 | ES51: EAPR1 | ET51: EAPR0 | EU51: EAPR0 | EV51: EAPR999 | EW51: EAPR999 | EX51: EAPR999 | EY51: EAPR999 | EZ51: EAPR999 | FA51: EAPR999 | FB51: EAPR999 | FC51: EAPR999 | FD51: EAPR999 | FE51: EAPR999 | FF51: EAPR999 | FG51: EAPR999 | FH51: EAPR999 | FI51: EAPR999 | FJ51: EAPR999 | FK51: EAPR999 | FL51: EAPR999 | FM51: EAPR999 | FN51: EAPR999 | FO51: EAPR999 | FP51: EAPR999 | FQ51: EAPR999 | FR51: EAPR999 | FS51: EAPR999 | FT51: EAPR999 | FU51: EAPR999 | FV51: EAPR999 | FW51: EAPR0
A52: Gabon | C52: No Answer Field | D52: 2 | E52: 1 | F52: 2 | G52: 999 | H52: 2 | I52: 1 | J52: 1.5 | K52: 1 | L52: 999 | M52: 2 | N52: 2 | O52: 2 | P52: 999 | Q52: 3 | R52: 2 | S52: 2 | T52: 3 | U52: 2.5 | V52: 2 | W52: 999 | X52: 2 | Y52: 2 | Z52: 2 | AA52: 1 | AB52: 999 | AC52: 2 | AD52: 3 | AE52: 2 | AF52: 2 | AG52: 0 | AH52: 0 | AI52: 0 | AJ52: 0 | AK52: 0 | AL52: 0 | AM52: 0 | AN52: 0 | AO52: 0 | AP52: 0 | AQ52: 0 | AR52: 0 | AS52: 0 | AT52: 0 | AU52: 999 | AV52: 999 | AW52: 999 | AX52: 999 | AY52: 999 | AZ52: 999 | BA52: 1 | BB52: 2 | BC52: 2 | BD52: 999 | BE52: 999 | BF52: 999 | BG52: 999 | BH52: 999 | BI52: 999 | BJ52: 999 | BK52: 2 | BL52: 1 | BM52: 2 | BN52: 1 | BO52: 1 | BP52: 1 | BQ52: 999 | BR52: 2 | BS52: 1 | BT52: 2 | BU52: 1 | BV52: 0 | BW52: 58 | BX52: 0 | BY52: 0 | BZ52: 0 | CA52: 1.666666667 | CB52: 1.25 | CC52: 2 | CD52: 2.25 | CE52: 2 | CF52: 2.333333333 | CG52: Not applicable | CH52: 1.666666667 | CI52: Not applicable | CJ52: 1.333333333 | CK52: 1.5 | CL52: Not applicable | CN52: 0 | CO52: 0
A53: Gambia | B53: WCAR | C53: No Answer Field | D53: 4 | E53: 4 | F53: 4 | G53: 999 | H53: 2 | I53: 2 | J53: 2 | K53: 2 | L53: 999 | M53: 2 | N53: 2 | O53: 2 | P53: 999 | Q53: 1 | R53: 2 | S53: 1 | T53: 2 | U53: 1.5 | V53: 4 | W53: 999 | X53: 2 | Y53: 2 | Z53: 3 | AA53: 999 | AB53: 999 | AC53: 2 | AD53: 2 | AE53: 2 | AF53: 2 | AG53: 1 | AH53: 1170 | AI53: 1170 | AJ53: 0 | AK53: 106 | AL53: 0 | AM53: 0 | AN53: 0 | AO53: 0 | AP53: 0 | AQ53: 0 | AR53: 0 | AS53: 0 | AT53: 0 | AU53: 999 | AV53: 4 | AW53: 3 | AX53: 4 | AY53: 1 | AZ53: 999 | BA53: 1 | BB53: 2 | BC53: 1 | BD53: 999 | BE53: 3 | BF53: 2 | BG53: 2 | BH53: 2 | BI53: 2 | BJ53: 999 | BK53: 2 | BL53: 3 | BM53: 2 | BN53: 2 | BO53: 2 | BP53: 2 | BQ53: 999 | BR53: 3 | BS53: 3 | BT53: 4 | BU53: 3 | BV53: 0 | BW53: 37 | BX53: 1 | BY53: 1 | BZ53: 1 | CA53: 4 | CB53: 2 | CC53: 2 | CD53: 2.75 | CE53: 2.333333333 | CF53: 2 | CG53: 3.666666667 | CH53: 1.333333333 | CI53: 2.25 | CJ53: 2.166666667 | CK53: 3.25 | CL53: 2.666666667 | CM53: 1 | CN53: 1170 | CO53: 1170 | CP53: 999 | CQ53: WCAR4 | CR53: WCAR2 | CS53: WCAR2 | CT53: WCAR3 | CU53: WCAR2 | CV53: WCAR2 | CW53: WCAR4 | CX53: WCAR1 | CY53: WCAR2 | CZ53: WCAR2 | DA53: WCAR3 | DB53: WCAR999 | DE53: =IFERROR(CONCATENATE($B53,ROUND(D53,0)),"") -> WCAR4 | DF53: =IFERROR(CONCATENATE($B53,ROUND(E53,0)),"") -> WCAR4 | DG53: =IFERROR(CONCATENATE($B53,ROUND(F53,0)),"") -> WCAR4 | DI53: =IFERROR(CONCATENATE($B53,ROUND(H53,0)),"") -> WCAR2 | DJ53: =IFERROR(CONCATENATE($B53,ROUND(I53,0)),"") -> WCAR2 | DK53: =IFERROR(CONCATENATE($B53,ROUND(J53,0)),"") -> WCAR2 | DL53: =IFERROR(CONCATENATE($B53,ROUND(K53,0)),"") -> WCAR2 | DM53: =IFERROR(CONCATENATE($B53,ROUND(L53,0)),"") -> WCAR999 | DN53: =IFERROR(CONCATENATE($B53,ROUND(M53,0)),"") -> WCAR2 | DO53: =IFERROR(CONCATENATE($B53,ROUND(N53,0)),"") -> WCAR2 | DP53: =IFERROR(CONCATENATE($B53,ROUND(O53,0)),"") -> WCAR2 | DQ53: =IFERROR(CONCATENATE($B53,ROUND(P53,0)),"") -> WCAR999 | DR53: =IFERROR(CONCATENATE($B53,ROUND(Q53,0)),"") -> WCAR1 | DX53: =IFERROR(CONCATENATE($B53,ROUND(W53,0)),"") -> WCAR999 | DY53: =IFERROR(CONCATENATE($B53,ROUND(X53,0)),"") -> WCAR2 | DZ53: =IFERROR(CONCATENATE($B53,ROUND(Y53,0)),"") -> WCAR2 | EB53: =IFERROR(CONCATENATE($B53,ROUND(AA53,0)),"") -> WCAR999 | EC53: =IFERROR(CONCATENATE($B53,ROUND(AB53,0)),"") -> WCAR999 | ED53: =IFERROR(CONCATENATE($B53,ROUND(AC53,0)),"") -> WCAR2 | EE53: =IFERROR(CONCATENATE($B53,ROUND(AD53,0)),"") -> WCAR2 | EF53: =IFERROR(CONCATENATE($B53,ROUND(AE53,0)),"") -> WCAR2 | EG53: =IFERROR(CONCATENATE($B53,ROUND(AF53,0)),"") -> WCAR2 | EH53: =IFERROR(CONCATENATE($B53,ROUND(AG53,0)),"") -> WCAR1 | EI53: =IFERROR(CONCATENATE($B53,ROUND(AH53,0)),"") -> WCAR1170 | EJ53: =IFERROR(CONCATENATE($B53,ROUND(AI53,0)),"") -> WCAR1170 | EK53: =IFERROR(CONCATENATE($B53,ROUND(AJ53,0)),"") -> WCAR0 | EL53: =IFERROR(CONCATENATE($B53,ROUND(AK53,0)),"") -> WCAR106 | EM53: =IFERROR(CONCATENATE($B53,ROUND(AL53,0)),"") -> WCAR0 | EN53: WCAR0 | EO53: =IFERROR(CONCATENATE($B53,ROUND(AN53,0)),"") -> WCAR0 | EP53: =IFERROR(CONCATENATE($B53,ROUND(AO53,0)),"") -> WCAR0 | EQ53: =IFERROR(CONCATENATE($B53,ROUND(AP53,0)),"") -> WCAR0 | ER53: =IFERROR(CONCATENATE($B53,ROUND(AQ53,0)),"") -> WCAR0 | ES53: =IFERROR(CONCATENATE($B53,ROUND(AR53,0)),"") -> WCAR0 | ET53: =IFERROR(CONCATENATE($B53,ROUND(AS53,0)),"") -> WCAR0 | EU53: =IFERROR(CONCATENATE($B53,ROUND(AT53,0)),"") -> WCAR0 | EV53: =IFERROR(CONCATENATE($B53,ROUND(AU53,0)),"") -> WCAR999 | EW53: =IFERROR(CONCATENATE($B53,ROUND(AV53,0)),"") -> WCAR4 | EX53: =IFERROR(CONCATENATE($B53,ROUND(AW53,0)),"") -> WCAR3 | EY53: =IFERROR(CONCATENATE($B53,ROUND(AX53,0)),"") -> WCAR4 | EZ53: =IFERROR(CONCATENATE($B53,ROUND(AY53,0)),"") -> WCAR1 | FA53: =IFERROR(CONCATENATE($B53,ROUND(AZ53,0)),"") -> WCAR999 | FB53: =IFERROR(CONCATENATE($B53,ROUND(BA53,0)),"") -> WCAR1 | FC53: =IFERROR(CONCATENATE($B53,ROUND(BB53,0)),"") -> WCAR2 | FD53: =IFERROR(CONCATENATE($B53,ROUND(BC53,0)),"") -> WCAR1 | FE53: =IFERROR(CONCATENATE($B53,ROUND(BD53,0)),"") -> WCAR999 | FF53: =IFERROR(CONCATENATE($B53,ROUND(BE53,0)),"") -> WCAR3 | FG53: =IFERROR(CONCATENATE($B53,ROUND(BF53,0)),"") -> WCAR2 | FH53: =IFERROR(CONCATENATE($B53,ROUND(BG53,0)),"") -> WCAR2 | FI53: =IFERROR(CONCATENATE($B53,ROUND(BH53,0)),"") -> WCAR2 | FJ53: =IFERROR(CONCATENATE($B53,ROUND(BI53,0)),"") -> WCAR2 | FK53: =IFERROR(CONCATENATE($B53,ROUND(BJ53,0)),"") -> WCAR999 | FL53: =IFERROR(CONCATENATE($B53,ROUND(BK53,0)),"") -> WCAR2 | FM53: =IFERROR(CONCATENATE($B53,ROUND(BL53,0)),"") -> WCAR3 | FN53: =IFERROR(CONCATENATE($B53,ROUND(BM53,0)),"") -> WCAR2 | FO53: =IFERROR(CONCATENATE($B53,ROUND(BN53,0)),"") -> WCAR2 | FP53: =IFERROR(CONCATENATE($B53,ROUND(BO53,0)),"") -> WCAR2 | FQ53: =IFERROR(CONCATENATE($B53,ROUND(BP53,0)),"") -> WCAR2 | FR53: =IFERROR(CONCATENATE($B53,ROUND(BQ53,0)),"") -> WCAR999 | FS53: =IFERROR(CONCATENATE($B53,ROUND(BR53,0)),"") -> WCAR3 | FT53: =IFERROR(CONCATENATE($B53,ROUND(BS53,0)),"") -> WCAR3 | FU53: =IFERROR(CONCATENATE($B53,ROUND(BT53,0)),"") -> WCAR4 | FV53: =IFERROR(CONCATENATE($B53,ROUND(BU53,0)),"") -> WCAR3 | FW53: =IFERROR(CONCATENATE($B53,ROUND(BV53,0)),"") -> WCAR0
A54: Georgia | B54: ECAR | C54: No Answer Field | D54: 4 | E54: 4 | F54: 3 | G54: 999 | H54: 2 | I54: 3 | J54: 2.5 | K54: 3 | L54: 999 | M54: 2 | N54: 1 | O54: 4 | P54: 999 | Q54: 4 | R54: 3 | S54: 3 | T54: 2 | U54: 3 | V54: 4 | W54: 999 | X54: 3 | Y54: 3 | Z54: 3 | AA54: 3 | AB54: 999 | AC54: 3 | AD54: 3 | AE54: 2 | AF54: 3 | AG54: 1 | AH54: 0 | AI54: 0 | AJ54: 0 | AK54: 0 | AL54: 0 | AM54: 0 | AN54: 0 | AO54: 0 | AP54: 0 | AQ54: 0 | AR54: 0 | AS54: 0 | AT54: 0 | AU54: 999 | AV54: 4 | AW54: 4 | AX54: 4 | AY54: 0 | AZ54: 999 | BA54: 3 | BB54: 4 | BC54: 2 | BD54: 999 | BE54: 4 | BF54: 3 | BG54: 3 | BH54: 3 | BI54: 4 | BJ54: 999 | BK54: 4 | BL54: 2 | BM54: 2 | BN54: 2 | BO54: 2 | BP54: 2 | BQ54: 999 | BR54: 3 | BS54: 4 | BT54: 3 | BU54: 3 | BV54: 0 | BW54: 108 | BX54: 0 | BY54: 0 | BZ54: 0 | CA54: 3.666666667 | CB54: 2.75 | CC54: 2.333333333 | CD54: 3.5 | CE54: 3 | CF54: 2.666666667 | CG54: 4 | CH54: 3 | CI54: 3.25 | CJ54: 2.333333333 | CK54: 3.25 | CL54: 2.333333333 | CN54: 0 | CO54: 0 | CP54: 999 | CQ54: ECAR4 | CR54: ECAR3 | CS54: ECAR2 | CT54: ECAR4 | CU54: ECAR3 | CV54: ECAR3 | CW54: ECAR4 | CX54: ECAR3 | CY54: ECAR3 | CZ54: ECAR2 | DA54: ECAR3 | DB54: ECAR999 | DE54: ECAR4 | DF54: ECAR4 | DG54: ECAR3 | DI54: ECAR2 | DJ54: ECAR3 | DK54: ECAR3 | DL54: ECAR3 | DM54: ECAR999 | DN54: ECAR2 | DO54: ECAR1 | DP54: ECAR4 | DQ54: ECAR999 | DR54: ECAR4 | DX54: ECAR999 | DY54: ECAR3 | DZ54: ECAR3 | EB54: ECAR3 | EC54: ECAR999 | ED54: ECAR3 | EE54: ECAR3 | EF54: ECAR2 | EG54: ECAR3 | EH54: ECAR1 | EI54: ECAR0 | EJ54: ECAR0 | EK54: ECAR0 | EL54: ECAR0 | EM54: ECAR0 | EN54: ECAR0 | EO54: ECAR0 | EP54: ECAR0 | EQ54: ECAR0 | ER54: ECAR0 | ES54: ECAR0 | ET54: ECAR0 | EU54: ECAR0 | EV54: ECAR999 | EW54: ECAR4 | EX54: ECAR4 | EY54: ECAR4 | EZ54: ECAR0 | FA54: ECAR999 | FB54: ECAR3 | FC54: ECAR4 | FD54: ECAR2 | FE54: ECAR999 | FF54: ECAR4 | FG54: ECAR3 | FH54: ECAR3 | FI54: ECAR3 | FJ54: ECAR4 | FK54: ECAR999 | FL54: ECAR4 | FM54: ECAR2 | FN54: ECAR2 | FO54: ECAR2 | FP54: ECAR2 | FQ54: ECAR2 | FR54: ECAR999 | FS54: ECAR3 | FT54: ECAR4 | FU54: ECAR3 | FV54: ECAR3 | FW54: ECAR0
A55: Ghana | B55: WCAR | C55: No Answer Field | D55: 3 | E55: 3 | F55: 3 | G55: 999 | H55: 3 | I55: 3 | J55: 3 | K55: 3 | L55: 999 | M55: 2 | N55: 1 | O55: 2 | P55: 999 | Q55: 4 | R55: 4 | S55: 4 | T55: 3 | U55: 2 | V55: 2 | W55: 999 | X55: 3 | Y55: 3 | Z55: 3 | AA55: 3 | AB55: 999 | AC55: 4 | AD55: 4 | AE55: 3 | AF55: 3 | AG55: 0 | AH55: 0 | AI55: 0 | AJ55: 0 | AK55: 0 | AL55: 0 | AM55: 0 | AN55: 0 | AO55: 0 | AP55: 0 | AQ55: 0 | AR55: 0 | AS55: 0 | AT55: 0 | AU55: 999 | AV55: 3 | AW55: 2 | AX55: 3 | AY55: 1 | AZ55: 999 | BA55: 3 | BB55: 3 | BC55: 3 | BD55: 999 | BE55: 4 | BF55: 3 | BG55: 3 | BH55: 3 | BI55: 4 | BJ55: 999 | BK55: 2 | BL55: 3 | BM55: 2 | BN55: 2 | BO55: 1 | BP55: 3 | BQ55: 999 | BR55: 3 | BS55: 2 | BT55: 2 | BU55: 2 | BV55: 0 | BW55: 41 | BX55: 1 | BY55: 1 | BZ55: 0 | CA55: 3 | CB55: 3 | CC55: 1.666666667 | CD55: 2 | CE55: 3 | CF55: 3.333333333 | CG55: 2.666666667 | CH55: 3 | CI55: 3.25 | CJ55: 2.166666667 | CK55: 2.25 | CL55: Not applicable | CN55: 0 | CO55: 0 | CP55: 999 | CQ55: WCAR3 | CR55: WCAR3 | CS55: WCAR2 | CT55: WCAR2 | CU55: WCAR3 | CV55: WCAR3 | CW55: WCAR3 | CX55: WCAR3 | CY55: WCAR3 | CZ55: WCAR2 | DA55: WCAR2 | DB55: WCAR999 | DE55: WCAR3 | DF55: WCAR3 | DG55: WCAR3 | DI55: WCAR3 | DJ55: WCAR3 | DK55: WCAR3 | DL55: WCAR3 | DM55: WCAR999 | DN55: WCAR2 | DO55: WCAR1 | DP55: WCAR2 | DQ55: WCAR999 | DR55: WCAR4 | DX55: WCAR999 | DY55: WCAR3 | DZ55: WCAR3 | EB55: WCAR3 | EC55: WCAR999 | ED55: WCAR4 | EE55: WCAR4 | EF55: WCAR3 | EG55: WCAR3 | EH55: WCAR0 | EI55: WCAR0 | EJ55: WCAR0 | EK55: WCAR0 | EL55: WCAR0 | EM55: WCAR0 | EN55: WCAR0 | EO55: WCAR0 | EP55: WCAR0 | EQ55: WCAR0 | ER55: WCAR0 | ES55: WCAR0 | ET55: WCAR0 | EU55: WCAR0 | EV55: WCAR999 | EW55: WCAR3 | EX55: WCAR2 | EY55: WCAR3 | EZ55: WCAR1 | FA55: WCAR999 | FB55: WCAR3 | FC55: WCAR3 | FD55: WCAR3 | FE55: WCAR999 | FF55: WCAR4 | FG55: WCAR3 | FH55: WCAR3 | FI55: WCAR3 | FJ55: WCAR4 | FK55: WCAR999 | FL55: WCAR2 | FM55: WCAR3 | FN55: WCAR2 | FO55: WCAR2 | FP55: WCAR1 | FQ55: WCAR3 | FR55: WCAR999 | FS55: WCAR3 | FT55: WCAR2 | FU55: WCAR2 | FV55: WCAR2 | FW55: WCAR0
A56: Grenada | B56: LACR | C56: No Answer Field | D56: 1 | E56: 999 | F56: 999 | G56: 999 | H56: 1 | I56: 2 | J56: 1.5 | K56: 1 | L56: 999 | M56: 1 | N56: 2 | O56: 1 | P56: 999 | Q56: 2 | R56: 2 | S56: 2 | T56: 3 | U56: 2.25 | V56: 3 | W56: 999 | X56: 2 | Y56: 3 | Z56: 1 | AA56: 1 | AB56: 999 | AC56: 2 | AD56: 2 | AE56: 2 | AF56: 1 | AG56: 0 | AH56: 0 | AI56: 0 | AJ56: 0 | AK56: 0 | AL56: 0 | AM56: 0 | AN56: 0 | AO56: 0 | AP56: 0 | AQ56: 0 | AR56: 0 | AS56: 0 | AT56: 0 | AU56: 999 | AV56: 1 | AW56: 2 | AX56: 2 | AY56: 1 | AZ56: 999 | BA56: 2 | BB56: 2 | BC56: 2 | BD56: 999 | BE56: 2 | BF56: 2 | BG56: 1 | BH56: 2 | BI56: 1 | BJ56: 999 | BK56: 3 | BL56: 3 | BM56: 2 | BN56: 2 | BO56: 3 | BP56: 2 | BQ56: 999 | BR56: 999 | BS56: 999 | BT56: 999 | BU56: 999 | BV56: 0 | BW56: 102.1 | BX56: 0 | BY56: 0 | BZ56: 0 | CA56: 1 | CB56: 1.25 | CC56: 1.333333333 | CD56: 2.625 | CE56: 2 | CF56: 1.666666667 | CG56: 1.666666667 | CH56: 2 | CI56: 1.75 | CJ56: 2.5 | CK56: Not applicable | CL56: Not applicable | CN56: 0 | CO56: 0 | CP56: 999 | CQ56: LACR1 | CR56: LACR1 | CS56: LACR1 | CT56: LACR3 | CU56: LACR2 | CV56: LACR2 | CW56: LACR2 | CX56: LACR2 | CY56: LACR2 | CZ56: LACR3 | DA56: LACR999 | DB56: LACR999 | DE56: LACR1 | DF56: LACR999 | DG56: LACR999 | DI56: LACR1 | DJ56: LACR2 | DK56: LACR2 | DL56: LACR1 | DM56: LACR999 | DN56: LACR1 | DO56: LACR2 | DP56: LACR1 | DQ56: LACR999 | DR56: LACR2 | DX56: LACR999 | DY56: LACR2 | DZ56: LACR3 | EB56: LACR1 | EC56: LACR999 | ED56: LACR2 | EE56: LACR2 | EF56: LACR2 | EG56: LACR1 | EH56: LACR0 | EI56: LACR0 | EJ56: LACR0 | EK56: LACR0 | EL56: LACR0 | EM56: LACR0 | EN56: LACR0 | EO56: LACR0 | EP56: LACR0 | EQ56: LACR0 | ER56: LACR0 | ES56: LACR0 | ET56: LACR0 | EU56: LACR0 | EV56: LACR999 | EW56: LACR1 | EX56: LACR2 | EY56: LACR2 | EZ56: LACR1 | FA56: LACR999 | FB56: LACR2 | FC56: LACR2 | FD56: LACR2 | FE56: LACR999 | FF56: LACR2 | FG56: LACR2 | FH56: LACR1 | FI56: LACR2 | FJ56: LACR1 | FK56: LACR999 | FL56: LACR3 | FM56: LACR3 | FN56: LACR2 | FO56: LACR2 | FP56: LACR3 | FQ56: LACR2 | FR56: LACR999 | FS56: LACR999 | FT56: LACR999 | FU56: LACR999 | FV56: LACR999 | FW56: LACR0
A57: Guatemala | B57: LACR | C57: No Answer Field | D57: 2 | E57: 3 | F57: 3 | G57: 999 | H57: 2 | I57: 2 | J57: 2 | K57: 2 | L57: 999 | M57: 2 | N57: 2 | O57: 2 | P57: 999 | Q57: 3 | R57: 2 | S57: 2 | T57: 2 | U57: 2.25 | V57: 2 | W57: 999 | X57: 2 | Y57: 2 | Z57: 2 | AA57: 1 | AB57: 999 | AC57: 2 | AD57: 3 | AE57: 1 | AF57: 2 | AG57: 0 | AH57: 0 | AI57: 0 | AJ57: 0 | AK57: 0 | AL57: 0 | AM57: 0 | AN57: 0 | AO57: 0 | AP57: 0 | AQ57: 0 | AR57: 0 | AS57: 0 | AT57: 0 | AU57: 999 | AV57: 999 | AW57: 999 | AX57: 999 | AY57: 0 | AZ57: 999 | BA57: 2 | BB57: 1 | BC57: 3 | BD57: 999 | BE57: 4 | BF57: 3 | BG57: 2 | BH57: 2 | BI57: 2 | BJ57: 999 | BK57: 4 | BL57: 1 | BM57: 2 | BN57: 2 | BO57: 2 | BP57: 1 | BQ57: 999 | BR57: 2 | BS57: 2 | BT57: 2 | BU57: 2 | BV57: 0 | BW57: 42 | BX57: 1 | BY57: 1 | BZ57: 0 | CA57: 2.666666667 | CB57: 2 | CC57: 2 | CD57: 2.125 | CE57: 2 | CF57: 2 | CG57: Not applicable | CH57: 2 | CI57: 2.75 | CJ57: 2 | CK57: 2 | CL57: 2 | CN57: 0 | CO57: 0 | CP57: 999 | CQ57: LACR3 | CR57: LACR2 | CS57: LACR2 | CT57: LACR2 | CU57: LACR2 | CV57: LACR2 | CW57: LACR999 | CX57: LACR2 | CY57: LACR3 | CZ57: LACR2 | DA57: LACR2 | DB57: LACR999 | DE57: LACR2 | DF57: LACR3 | DG57: LACR3 | DI57: LACR2 | DJ57: LACR2 | DK57: LACR2 | DL57: LACR2 | DM57: LACR999 | DN57: LACR2 | DO57: LACR2 | DP57: LACR2 | DQ57: LACR999 | DR57: LACR3 | DX57: LACR999 | DY57: LACR2 | DZ57: LACR2 | EB57: LACR1 | EC57: LACR999 | ED57: LACR2 | EE57: LACR3 | EF57: LACR1 | EG57: LACR2 | EH57: LACR0 | EI57: LACR0 | EJ57: LACR0 | EK57: LACR0 | EL57: LACR0 | EM57: LACR0 | EN57: LACR0 | EO57: LACR0 | EP57: LACR0 | EQ57: LACR0 | ER57: LACR0 | ES57: LACR0 | ET57: LACR0 | EU57: LACR0 | EV57: LACR999 | EW57: LACR999 | EX57: LACR999 | EY57: LACR999 | EZ57: LACR0 | FA57: LACR999 | FB57: LACR2 | FC57: LACR1 | FD57: LACR3 | FE57: LACR999 | FF57: LACR4 | FG57: LACR3 | FH57: LACR2 | FI57: LACR2 | FJ57: LACR2 | FK57: LACR999 | FL57: LACR4 | FM57: LACR1 | FN57: LACR2 | FO57: LACR2 | FP57: LACR2 | FQ57: LACR1 | FR57: LACR999 | FS57: LACR2 | FT57: LACR2 | FU57: LACR2 | FV57: LACR2 | FW57: LACR0
A58: Guinea | B58: WCAR | C58: No Answer Field | D58: 4 | E58: 4 | F58: 3 | G58: 999 | H58: 2 | I58: 3 | J58: 2.5 | K58: 2 | L58: 999 | M58: 3 | N58: 2 | O58: 3 | P58: 999 | Q58: 3 | R58: 3 | S58: 3 | T58: 3 | U58: 3 | V58: 3 | W58: 999 | X58: 3 | Y58: 3 | Z58: 3 | AA58: 3 | AB58: 999 | AC58: 2 | AD58: 3 | AE58: 2 | AF58: 4 | AG58: 1 | AH58: 32000 | AI58: 7491 | AJ58: 6689 | AK58: 362 | AL58: 7129 | AM58: 0 | AN58: 0 | AO58: 1 | AP58: 1 | AQ58: 1 | AR58: 0 | AS58: 0 | AT58: 1 | AU58: 999 | AV58: 1 | AW58: 1 | AX58: 1 | AY58: 0 | AZ58: 999 | BA58: 1 | BB58: 1 | BC58: 1 | BD58: 999 | BE58: 2 | BF58: 1 | BG58: 1 | BH58: 2 | BI58: 1 | BJ58: 999 | BK58: 3 | BL58: 2 | BM58: 2 | BN58: 1 | BO58: 2 | BP58: 1 | BQ58: 999 | BR58: 3 | BS58: 2 | BT58: 2 | BU58: 2 | BV58: 0 | BW58: 28 | BX58: 1 | BY58: 1 | BZ58: 0 | CA58: 3.666666667 | CB58: 2.25 | CC58: 2.666666667 | CD58: 3 | CE58: 3 | CF58: 3 | CG58: 1 | CH58: 1 | CI58: 1.5 | CJ58: 1.833333333 | CK58: 2.25 | CL58: 2.666666667 | CM58: 0.23409375 | CN58: 32000 | CO58: 7491 | CP58: 999 | CQ58: WCAR4 | CR58: WCAR2 | CS58: WCAR3 | CT58: WCAR3 | CU58: WCAR3 | CV58: WCAR3 | CW58: WCAR1 | CX58: WCAR1 | CY58: WCAR2 | CZ58: WCAR2 | DA58: WCAR2 | DB58: WCAR3 | DE58: WCAR4 | DF58: WCAR4 | DG58: WCAR3 | DI58: WCAR2 | DJ58: WCAR3 | DK58: WCAR3 | DL58: WCAR2 | DM58: WCAR999 | DN58: WCAR3 | DO58: WCAR2 | DP58: WCAR3 | DQ58: WCAR999 | DR58: WCAR3 | DX58: WCAR999 | DY58: WCAR3 | DZ58: WCAR3 | EB58: WCAR3 | EC58: WCAR999 | ED58: WCAR2 | EE58: WCAR3 | EF58: WCAR2 | EG58: WCAR4 | EH58: WCAR1 | EI58: WCAR32000 | EJ58: WCAR7491 | EK58: WCAR6689 | EL58: WCAR362 | EM58: WCAR7129 | EN58: WCAR0 | EO58: WCAR0 | EP58: WCAR1 | EQ58: WCAR1 | ER58: WCAR1 | ES58: WCAR0 | ET58: WCAR0 | EU58: WCAR1 | EV58: WCAR999 | EW58: WCAR1 | EX58: WCAR1 | EY58: WCAR1 | EZ58: WCAR0 | FA58: WCAR999 | FB58: WCAR1 | FC58: WCAR1 | FD58: WCAR1 | FE58: WCAR999 | FF58: WCAR2 | FG58: WCAR1 | FH58: WCAR1 | FI58: WCAR2 | FJ58: WCAR1 | FK58: WCAR999 | FL58: WCAR3 | FM58: WCAR2 | FN58: WCAR2 | FO58: WCAR1 | FP58: WCAR2 | FQ58: WCAR1 | FR58: WCAR999 | FS58: WCAR3 | FT58: WCAR2 | FU58: WCAR2 | FV58: WCAR2 | FW58: WCAR0
A59: Guinea Bissau | B59: WCAR | C59: No Answer Field | D59: 3 | E59: 2 | F59: 2 | G59: 999 | H59: 2 | I59: 2 | J59: 2 | K59: 2 | L59: 999 | M59: 2 | N59: 1 | O59: 2 | P59: 999 | Q59: 1 | R59: 1 | S59: 1 | T59: 1 | U59: 1 | V59: 2 | W59: 999 | X59: 1 | Y59: 1 | Z59: 2 | AA59: 2 | AB59: 999 | AC59: 1 | AD59: 2 | AE59: 2 | AF59: 2 | AG59: 1 | AH59: 60 | AI59: 60 | AJ59: 0 | AK59: 0 | AL59: 60 | AM59: 0 | AN59: 0 | AO59: 0 | AP59: 0 | AQ59: 0 | AR59: 0 | AS59: 0 | AT59: 0 | AU59: 999 | AV59: 2 | AW59: 1 | AX59: 1 | AY59: 0 | AZ59: 999 | BA59: 1 | BB59: 2 | BC59: 2 | BD59: 999 | BE59: 1 | BF59: 1 | BG59: 1 | BH59: 1 | BI59: 2 | BJ59: 999 | BK59: 2 | BL59: 1 | BM59: 1 | BN59: 2 | BO59: 2 | BP59: 2 | BQ59: 999 | BR59: 1 | BS59: 1 | BT59: 1 | BU59: 1 | BV59: 1 | BW59: 34 | BX59: 0 | BY59: 0 | BZ59: 0 | CA59: 2.333333333 | CB59: 2 | CC59: 1.666666667 | CD59: 1.5 | CE59: 1.333333333 | CF59: 2 | CG59: 1.333333333 | CH59: 1.666666667 | CI59: 1 | CJ59: 1.666666667 | CK59: 1 | CL59: 1 | CM59: 1 | CN59: 60 | CO59: 60 | CP59: 999 | CQ59: WCAR2 | CR59: WCAR2 | CS59: WCAR2 | CT59: WCAR2 | CU59: WCAR1 | CV59: WCAR2 | CW59: WCAR1 | CX59: WCAR2 | CY59: WCAR1 | CZ59: WCAR2 | DA59: WCAR1 | DB59: WCAR999 | DE59: WCAR3 | DF59: WCAR2 | DG59: WCAR2 | DI59: WCAR2 | DJ59: WCAR2 | DK59: WCAR2 | DL59: WCAR2 | DM59: WCAR999 | DN59: WCAR2 | DO59: WCAR1 | DP59: WCAR2 | DQ59: WCAR999 | DR59: WCAR1 | DX59: WCAR999 | DY59: WCAR1 | DZ59: WCAR1 | EB59: WCAR2 | EC59: WCAR999 | ED59: WCAR1 | EE59: WCAR2 | EF59: WCAR2 | EG59: WCAR2 | EH59: WCAR1 | EI59: WCAR60 | EJ59: WCAR60 | EK59: WCAR0 | EL59: WCAR0 | EM59: WCAR60 | EN59: WCAR0 | EO59: WCAR0 | EP59: WCAR0 | EQ59: WCAR0 | ER59: WCAR0 | ES59: WCAR0 | ET59: WCAR0 | EU59: WCAR0 | EV59: WCAR999 | EW59: WCAR2 | EX59: WCAR1 | EY59: WCAR1 | EZ59: WCAR0 | FA59: WCAR999 | FB59: WCAR1 | FC59: WCAR2 | FD59: WCAR2 | FE59: WCAR999 | FF59: WCAR1 | FG59: WCAR1 | FH59: WCAR1 | FI59: WCAR1 | FJ59: WCAR2 | FK59: WCAR999 | FL59: WCAR2 | FM59: WCAR1 | FN59: WCAR1 | FO59: WCAR2 | FP59: WCAR2 | FQ59: WCAR2 | FR59: WCAR999 | FS59: WCAR1 | FT59: WCAR1 | FU59: WCAR1 | FV59: WCAR1 | FW59: WCAR1
A60: Guyana | B60: LACR | C60: No Answer Field | D60: 3 | E60: 2 | F60: 3 | G60: 999 | H60: 3 | I60: 2 | J60: 2.5 | K60: 2 | L60: 999 | M60: 2 | N60: 3 | O60: 2 | P60: 999 | Q60: 3 | R60: 3 | S60: 2 | T60: 3 | U60: 2.75 | V60: 4 | W60: 999 | X60: 2 | Y60: 3 | Z60: 3 | AA60: 3 | AB60: 999 | AC60: 3 | AD60: 3 | AE60: 3 | AF60: 2 | AG60: 0 | AH60: 0 | AI60: 0 | AJ60: 0 | AK60: 0 | AL60: 0 | AM60: 0 | AN60: 0 | AO60: 999 | AP60: 999 | AQ60: 999 | AR60: 999 | AS60: 999 | AT60: 999 | AU60: 999 | AV60: 999 | AW60: 999 | AX60: 999 | AY60: 1 | AZ60: 999 | BA60: 2 | BB60: 2 | BC60: 3 | BD60: 999 | BE60: 2 | BF60: 1 | BG60: 1 | BH60: 1 | BI60: 1 | BJ60: 999 | BK60: 4 | BL60: 3 | BM60: 2 | BN60: 3 | BO60: 2 | BP60: 2 | BQ60: 999 | BR60: 2 | BS60: 1 | BT60: 1 | BU60: 1 | BV60: 0 | BW60: 999 | BX60: 0 | BY60: 0 | BZ60: 0 | CA60: 2.666666667 | CB60: 2.25 | CC60: 2.333333333 | CD60: 3.375 | CE60: 2.666666667 | CF60: 2.666666667 | CG60: Not applicable | CH60: 2.333333333 | CI60: 1.25 | CJ60: 2.666666667 | CK60: 1.25 | CL60: Not applicable | CN60: 0 | CO60: 0 | CP60: 999 | CQ60: LACR3 | CR60: LACR2 | CS60: LACR2 | CT60: LACR3 | CU60: LACR3 | CV60: LACR3 | CW60: LACR999 | CX60: LACR2 | CY60: LACR1 | CZ60: LACR3 | DA60: LACR1 | DB60: LACR999 | DE60: LACR3 | DF60: LACR2 | DG60: LACR3 | DI60: LACR3 | DJ60: LACR2 | DK60: LACR3 | DL60: LACR2 | DM60: LACR999 | DN60: LACR2 | DO60: LACR3 | DP60: LACR2 | DQ60: LACR999 | DR60: LACR3 | DX60: LACR999 | DY60: LACR2 | DZ60: LACR3 | EB60: LACR3 | EC60: LACR999 | ED60: LACR3 | EE60: LACR3 | EF60: LACR3 | EG60: LACR2 | EH60: LACR0 | EI60: LACR0 | EJ60: LACR0 | EK60: LACR0 | EL60: LACR0 | EM60: LACR0 | EN60: LACR0 | EO60: LACR0 | EP60: LACR999 | EQ60: LACR999 | ER60: LACR999 | ES60: LACR999 | ET60: LACR999 | EU60: LACR999 | EV60: LACR999 | EW60: LACR999 | EX60: LACR999 | EY60: LACR999 | EZ60: LACR1 | FA60: LACR999 | FB60: LACR2 | FC60: LACR2 | FD60: LACR3 | FE60: LACR999 | FF60: LACR2 | FG60: LACR1 | FH60: LACR1 | FI60: LACR1 | FJ60: LACR1 | FK60: LACR999 | FL60: LACR4 | FM60: LACR3 | FN60: LACR2 | FO60: LACR3 | FP60: LACR2 | FQ60: LACR2 | FR60: LACR999 | FS60: LACR2 | FT60: LACR1 | FU60: LACR1 | FV60: LACR1 | FW60: LACR0
A61: Haiti | B61: LACR | C61: No Answer Field | D61: 2 | E61: 1 | F61: 1 | G61: 999 | H61: 1 | I61: 1 | J61: 1 | K61: 2 | L61: 999 | M61: 2 | N61: 1 | O61: 2 | P61: 999 | Q61: 2 | R61: 2 | S61: 2 | T61: 2 | U61: 2 | V61: 2 | W61: 999 | X61: 2 | Y61: 3 | Z61: 1 | AA61: 1 | AB61: 999 | AC61: 2 | AD61: 2 | AE61: 1 | AF61: 2 | AG61: 0 | AH61: 0 | AI61: 0 | AJ61: 0 | AK61: 0 | AL61: 0 | AM61: 0 | AN61: 0 | AO61: 0 | AP61: 0 | AQ61: 0 | AR61: 0 | AS61: 0 | AT61: 0 | AU61: 999 | AV61: 2 | AW61: 1 | AX61: 2 | AY61: 1 | AZ61: 999 | BA61: 1 | BB61: 2 | BC61: 2 | BD61: 999 | BE61: 4 | BF61: 999 | BG61: 999 | BH61: 999 | BI61: 4 | BJ61: 999 | BK61: 2 | BL61: 1 | BM61: 1 | BN61: 1 | BO61: 2 | BP61: 2 | BQ61: 999 | BR61: 2 | BS61: 1 | BT61: 1 | BU61: 1 | BV61: 0 | BW61: 40 | BX61: 0 | BY61: 0 | BZ61: 0 | CA61: 1.333333333 | CB61: 1.5 | CC61: 1.666666667 | CD61: 2 | CE61: 2 | CF61: 1.666666667 | CG61: 1.666666667 | CH61: 1.666666667 | CI61: 4 | CJ61: 1.5 | CK61: 1.25 | CL61: 2.333333333 | CN61: 0 | CO61: 0 | CP61: 999 | CQ61: LACR1 | CR61: LACR2 | CS61: LACR2 | CT61: LACR2 | CU61: LACR2 | CV61: LACR2 | CW61: LACR2 | CX61: LACR2 | CY61: LACR4 | CZ61: LACR2 | DA61: LACR1 | DB61: LACR999 | DE61: LACR2 | DF61: LACR1 | DG61: LACR1 | DI61: LACR1 | DJ61: LACR1 | DK61: LACR1 | DL61: LACR2 | DM61: LACR999 | DN61: LACR2 | DO61: LACR1 | DP61: LACR2 | DQ61: LACR999 | DR61: LACR2 | DX61: LACR999 | DY61: LACR2 | DZ61: LACR3 | EB61: LACR1 | EC61: LACR999 | ED61: LACR2 | EE61: LACR2 | EF61: LACR1 | EG61: LACR2 | EH61: LACR0 | EI61: LACR0 | EJ61: LACR0 | EK61: LACR0 | EL61: LACR0 | EM61: LACR0 | EN61: LACR0 | EO61: LACR0 | EP61: LACR0 | EQ61: LACR0 | ER61: LACR0 | ES61: LACR0 | ET61: LACR0 | EU61: LACR0 | EV61: LACR999 | EW61: LACR2 | EX61: LACR1 | EY61: LACR2 | EZ61: LACR1 | FA61: LACR999 | FB61: LACR1 | FC61: LACR2 | FD61: LACR2 | FE61: LACR999 | FF61: LACR4 | FG61: LACR999 | FH61: LACR999 | FI61: LACR999 | FJ61: LACR4 | FK61: LACR999 | FL61: LACR2 | FM61: LACR1 | FN61: LACR1 | FO61: LACR1 | FP61: LACR2 | FQ61: LACR2 | FR61: LACR999 | FS61: LACR2 | FT61: LACR1 | FU61: LACR1 | FV61: LACR1 | FW61: LACR0
A62: Honduras | B62: LACR | C62: No Answer Field | D62: 2 | E62: 2 | F62: 1 | G62: 999 | H62: 2 | I62: 1 | J62: 1.5 | K62: 1 | L62: 999 | M62: 2 | N62: 2 | O62: 2 | P62: 999 | Q62: 1 | R62: 1 | S62: 1 | T62: 2 | U62: 2 | V62: 2 | W62: 999 | X62: 2 | Y62: 3 | Z62: 3 | AA62: 2 | AB62: 999 | AC62: 1 | AD62: 2 | AE62: 1 | AF62: 2 | AG62: 999 | AH62: 0 | AI62: 0 | AJ62: 0 | AK62: 0 | AL62: 0 | AM62: 0 | AN62: 0 | AO62: 0 | AP62: 0 | AQ62: 0 | AR62: 0 | AS62: 0 | AT62: 0 | AU62: 999 | AV62: 2 | AW62: 2 | AX62: 2 | AY62: 1 | AZ62: 999 | BA62: 2 | BB62: 2 | BC62: 2 | BD62: 999 | BE62: 4 | BF62: 3 | BG62: 3 | BH62: 2 | BI62: 2 | BJ62: 999 | BK62: 3 | BL62: 1 | BM62: 999 | BN62: 1 | BO62: 1 | BP62: 999 | BQ62: 999 | BR62: 1 | BS62: 1 | BT62: 1 | BU62: 2 | BV62: 0 | BW62: 30 | BX62: 1 | BY62: 1 | BZ62: 0 | CA62: 1.666666667 | CB62: 1.25 | CC62: 2 | CD62: 2 | CE62: 2.666666667 | CF62: 1.666666667 | CG62: 2 | CH62: 2 | CI62: 3 | CJ62: 1.5 | CK62: 1.25 | CL62: 1 | CN62: 0 | CO62: 0 | CP62: 999 | CQ62: LACR2 | CR62: LACR1 | CS62: LACR2 | CT62: LACR2 | CU62: LACR3 | CV62: LACR2 | CW62: LACR2 | CX62: LACR2 | CY62: LACR3 | CZ62: LACR2 | DA62: LACR1 | DB62: LACR999 | DE62: LACR2 | DF62: LACR2 | DG62: LACR1 | DI62: LACR2 | DJ62: LACR1 | DK62: LACR2 | DL62: LACR1 | DM62: LACR999 | DN62: LACR2 | DO62: LACR2 | DP62: LACR2 | DQ62: LACR999 | DR62: LACR1 | DX62: LACR999 | DY62: LACR2 | DZ62: LACR3 | EB62: LACR2 | EC62: LACR999 | ED62: LACR1 | EE62: LACR2 | EF62: LACR1 | EG62: LACR2 | EH62: LACR999 | EI62: LACR0 | EJ62: LACR0 | EK62: LACR0 | EL62: LACR0 | EM62: LACR0 | EN62: LACR0 | EO62: LACR0 | EP62: LACR0 | EQ62: LACR0 | ER62: LACR0 | ES62: LACR0 | ET62: LACR0 | EU62: LACR0 | EV62: LACR999 | EW62: LACR2 | EX62: LACR2 | EY62: LACR2 | EZ62: LACR1 | FA62: LACR999 | FB62: LACR2 | FC62: LACR2 | FD62: LACR2 | FE62: LACR999 | FF62: LACR4 | FG62: LACR3 | FH62: LACR3 | FI62: LACR2 | FJ62: LACR2 | FK62: LACR999 | FL62: LACR3 | FM62: LACR1 | FN62: LACR999 | FO62: LACR1 | FP62: LACR1 | FQ62: LACR999 | FR62: LACR999 | FS62: LACR1 | FT62: LACR1 | FU62: LACR1 | FV62: LACR2 | FW62: LACR0
A63: India | B63: SA | C63: No Answer Field | D63: 2 | E63: 3 | F63: 2 | G63: 999 | H63: 3 | I63: 3 | J63: 3 | K63: 3 | L63: 999 | M63: 3 | N63: 3 | O63: 3 | P63: 999 | Q63: 4 | R63: 4 | S63: 4 | T63: 3 | U63: 3.75 | V63: 3 | W63: 999 | X63: 3 | Y63: 3 | Z63: 2 | AA63: 3 | AB63: 999 | AC63: 4 | AD63: 3 | AE63: 3 | AF63: 2 | AG63: 0 | AH63: 0 | AI63: 0 | AJ63: 0 | AK63: 0 | AL63: 0 | AM63: 0 | AN63: 0 | AO63: 0 | AP63: 0 | AQ63: 0 | AR63: 0 | AS63: 0 | AT63: 0 | AU63: 999 | AV63: 3 | AW63: 3 | AX63: 3 | AY63: 0 | AZ63: 999 | BA63: 2 | BB63: 2 | BC63: 3 | BD63: 999 | BE63: 3 | BF63: 3 | BG63: 3 | BH63: 3 | BI63: 3 | BJ63: 999 | BK63: 3 | BL63: 3 | BM63: 3 | BN63: 3 | BO63: 3 | BP63: 3 | BQ63: 999 | BR63: 3 | BS63: 999 | BT63: 999 | BU63: 999 | BV63: 0 | BW63: 61 | BX63: 1 | BY63: 0 | BZ63: 0 | CA63: 2.333333333 | CB63: 3 | CC63: 3 | CD63: 3.375 | CE63: 2.666666667 | CF63: 2.666666667 | CG63: 3 | CH63: 2.333333333 | CI63: 3 | CJ63: 3 | CK63: 3 | CL63: 2 | CN63: 0 | CO63: 0 | CP63: 999 | CQ63: SA2 | CR63: SA3 | CS63: SA3 | CT63: SA3 | CU63: SA3 | CV63: SA3 | CW63: SA3 | CX63: SA2 | CY63: SA3 | CZ63: SA3 | DA63: SA3 | DB63: SA999 | DE63: SA2 | DF63: SA3 | DG63: SA2 | DI63: SA3 | DJ63: SA3 | DK63: SA3 | DL63: SA3 | DM63: SA999 | DN63: SA3 | DO63: SA3 | DP63: SA3 | DQ63: SA999 | DR63: SA4 | DX63: SA999 | DY63: SA3 | DZ63: SA3 | EB63: SA3 | EC63: SA999 | ED63: SA4 | EE63: SA3 | EF63: SA3 | EG63: SA2 | EH63: SA0 | EI63: SA0 | EJ63: SA0 | EK63: SA0 | EL63: SA0 | EM63: SA0 | EN63: SA0 | EO63: SA0 | EP63: SA0 | EQ63: SA0 | ER63: SA0 | ES63: SA0 | ET63: SA0 | EU63: SA0 | EV63: SA999 | EW63: SA3 | EX63: SA3 | EY63: SA3 | EZ63: SA0 | FA63: SA999 | FB63: SA2 | FC63: SA2 | FD63: SA3 | FE63: SA999 | FF63: SA3 | FG63: SA3 | FH63: SA3 | FI63: SA3 | FJ63: SA3 | FK63: SA999 | FL63: SA3 | FM63: SA3 | FN63: SA3 | FO63: SA3 | FP63: SA3 | FQ63: SA3 | FR63: SA999 | FS63: SA3 | FT63: SA999 | FU63: SA999 | FV63: SA999 | FW63: SA0
A64: Indonesia | B64: EAPR | C64: No Answer Field | D64: 3 | E64: 4 | F64: 2 | G64: 999 | H64: 2 | I64: 3 | J64: 2.5 | K64: 2 | L64: 999 | M64: 3 | N64: 3 | O64: 2 | P64: 999 | Q64: 3 | R64: 3 | S64: 2 | T64: 3 | U64: 2.75 | V64: 4 | W64: 999 | X64: 2 | Y64: 3 | Z64: 3 | AA64: 3 | AB64: 999 | AC64: 4 | AD64: 4 | AE64: 1 | AF64: 3 | AG64: 1 | AH64: 20000 | AI64: 22480 | AJ64: 22480 | AK64: 1600 | AL64: 20880 | AM64: 0 | AN64: 0 | AO64: 0 | AP64: 0 | AQ64: 0 | AR64: 0 | AS64: 0 | AT64: 0 | AU64: 999 | AV64: 1 | AW64: 2 | AX64: 1 | AY64: 1 | AZ64: 999 | BA64: 999 | BB64: 999 | BC64: 999 | BD64: 999 | BE64: 999 | BF64: 999 | BG64: 999 | BH64: 999 | BI64: 999 | BJ64: 999 | BK64: 4 | BL64: 3 | BM64: 2 | BN64: 2 | BO64: 3 | BP64: 4 | BQ64: 999 | BR64: 999 | BS64: 999 | BT64: 999 | BU64: 999 | BV64: 0 | BW64: 99 | BX64: 0 | BY64: 0 | BZ64: 0 | CA64: 3 | CB64: 2.25 | CC64: 2.666666667 | CD64: 3.375 | CE64: 2.666666667 | CF64: 2.666666667 | CG64: 1.333333333 | CH64: Not applicable | CI64: Not applicable | CJ64: 3 | CK64: Not applicable | CL64: 3 | CM64: 1.124 | CN64: 20000 | CO64: 22480 | CP64: 999 | CQ64: EAPR3 | CR64: EAPR2 | CS64: EAPR3 | CT64: EAPR3 | CU64: EAPR3 | CV64: EAPR3 | CW64: EAPR1 | CX64: EAPR999 | CY64: EAPR999 | CZ64: EAPR3 | DA64: EAPR999 | DB64: EAPR999 | DE64: EAPR3 | DF64: EAPR4 | DG64: EAPR2 | DI64: EAPR2 | DJ64: EAPR3 | DK64: EAPR3 | DL64: EAPR2 | DM64: EAPR999 | DN64: EAPR3 | DO64: EAPR3 | DP64: EAPR2 | DQ64: EAPR999 | DR64: EAPR3 | DX64: EAPR999 | DY64: EAPR2 | DZ64: EAPR3 | EB64: EAPR3 | EC64: EAPR999 | ED64: EAPR4 | EE64: EAPR4 | EF64: EAPR1 | EG64: EAPR3 | EH64: EAPR1 | EI64: EAPR20000 | EJ64: EAPR22480 | EK64: EAPR22480 | EL64: EAPR1600 | EM64: EAPR20880 | EN64: EAPR0 | EO64: EAPR0 | EP64: EAPR0 | EQ64: EAPR0 | ER64: EAPR0 | ES64: EAPR0 | ET64: EAPR0 | EU64: EAPR0 | EV64: EAPR999 | EW64: EAPR1 | EX64: EAPR2 | EY64: EAPR1 | EZ64: EAPR1 | FA64: EAPR999 | FB64: EAPR999 | FC64: EAPR999 | FD64: EAPR999 | FE64: EAPR999 | FF64: EAPR999 | FG64: EAPR999 | FH64: EAPR999 | FI64: EAPR999 | FJ64: EAPR999 | FK64: EAPR999 | FL64: EAPR4 | FM64: EAPR3 | FN64: EAPR2 | FO64: EAPR2 | FP64: EAPR3 | FQ64: EAPR4 | FR64: EAPR999 | FS64: EAPR999 | FT64: EAPR999 | FU64: EAPR999 | FV64: EAPR999 | FW64: EAPR0
A65: Iran | B65: MENA | C65: No Answer Field | D65: 3 | E65: 3 | F65: 3 | G65: 999 | H65: 2 | I65: 3 | J65: 2.5 | K65: 3 | L65: 999 | M65: 3 | N65: 3 | O65: 3 | P65: 999 | Q65: 999 | R65: 999 | S65: 999 | T65: 999 | U65: 999 | V65: 999 | W65: 999 | X65: 3 | Y65: 3 | Z65: 3 | AA65: 4 | AB65: 999 | AC65: 999 | AD65: 999 | AE65: 999 | AF65: 999 | AG65: 0 | AH65: 0 | AI65: 0 | AJ65: 0 | AK65: 0 | AL65: 0 | AM65: 0 | AN65: 0 | AO65: 0 | AP65: 0 | AQ65: 0 | AR65: 0 | AS65: 0 | AT65: 0 | AU65: 999 | AV65: 999 | AW65: 999 | AX65: 999 | AY65: 1 | AZ65: 999 | BA65: 3 | BB65: 4 | BC65: 2 | BD65: 999 | BE65: 999 | BF65: 999 | BG65: 999 | BH65: 999 | BI65: 999 | BJ65: 999 | BK65: 3 | BL65: 1 | BM65: 2 | BN65: 1 | BO65: 2 | BP65: 2 | BQ65: 999 | BR65: 999 | BS65: 999 | BT65: 999 | BU65: 999 | BV65: 0 | BW65: 77 | BX65: 0 | BY65: 0 | BZ65: 0 | CA65: 3 | CB65: 2.75 | CC65: 3 | CD65: Not applicable | CE65: 3 | CF65: Not applicable | CG65: Not applicable | CH65: 3 | CI65: Not applicable | CJ65: 1.833333333 | CK65: Not applicable | CL65: 3.333333333 | CN65: 0 | CO65: 0 | CP65: 999 | CQ65: MENA3 | CR65: MENA3 | CS65: MENA3 | CT65: MENA999 | CU65: MENA3 | CV65: MENA999 | CW65: MENA999 | CX65: MENA3 | CY65: MENA999 | CZ65: MENA2 | DA65: MENA999 | DB65: MENA999 | DE65: MENA3 | DF65: MENA3 | DG65: MENA3 | DI65: MENA2 | DJ65: MENA3 | DK65: MENA3 | DL65: MENA3 | DM65: MENA999 | DN65: MENA3 | DO65: MENA3 | DP65: MENA3 | DQ65: MENA999 | DR65: MENA999 | DX65: MENA999 | DY65: MENA3 | DZ65: MENA3 | EB65: MENA4 | EC65: MENA999 | ED65: MENA999 | EE65: MENA999 | EF65: MENA999 | EG65: MENA999 | EH65: MENA0 | EI65: MENA0 | EJ65: MENA0 | EK65: MENA0 | EL65: MENA0 | EM65: MENA0 | EN65: MENA0 | EO65: MENA0 | EP65: MENA0 | EQ65: MENA0 | ER65: MENA0 | ES65: MENA0 | ET65: MENA0 | EU65: MENA0 | EV65: MENA999 | EW65: MENA999 | EX65: MENA999 | EY65: MENA999 | EZ65: MENA1 | FA65: MENA999 | FB65: MENA3 | FC65: MENA4 | FD65: MENA2 | FE65: MENA999 | FF65: MENA999 | FG65: MENA999 | FH65: MENA999 | FI65: MENA999 | FJ65: MENA999 | FK65: MENA999 | FL65: MENA3 | FM65: MENA1 | FN65: MENA2 | FO65: MENA1 | FP65: MENA2 | FQ65: MENA2 | FR65: MENA999 | FS65: MENA999 | FT65: MENA999 | FU65: MENA999 | FV65: MENA999 | FW65: MENA0
A66: Iraq | B66: MENA | C66: No Answer Field | D66: 2 | E66: 2 | F66: 2 | G66: 999 | H66: 3 | I66: 3 | J66: 3 | K66: 3 | L66: 999 | M66: 3 | N66: 3 | O66: 4 | P66: 999 | Q66: 2 | R66: 3 | S66: 3 | T66: 2 | U66: 2.5 | V66: 4 | W66: 999 | X66: 3 | Y66: 3 | Z66: 3 | AA66: 3 | AB66: 999 | AC66: 4 | AD66: 3 | AE66: 3 | AF66: 4 | AG66: 1 | AH66: 46375 | AI66: 12662 | AJ66: 4065 | AK66: 0 | AL66: 16000 | AM66: 4257 | AN66: 0 | AO66: 0 | AP66: 1 | AQ66: 1 | AR66: 1 | AS66: 1 | AT66: 1 | AU66: 999 | AV66: 4 | AW66: 4 | AX66: 4 | AY66: 0 | AZ66: 999 | BA66: 4 | BB66: 3 | BC66: 3 | BD66: 999 | BE66: 3 | BF66: 3 | BG66: 3 | BH66: 3 | BI66: 3 | BJ66: 999 | BK66: 2 | BL66: 3 | BM66: 3 | BN66: 3 | BO66: 3 | BP66: 4 | BQ66: 999 | BR66: 3 | BS66: 3 | BT66: 3 | BU66: 3 | BV66: 0 | BW66: 40 | BX66: 0 | BY66: 0 | BZ66: 0 | CA66: 2 | CB66: 3 | CC66: 3.333333333 | CD66: 3.25 | CE66: 3 | CF66: 3.333333333 | CG66: 4 | CH66: 3.333333333 | CI66: 3 | CJ66: 3 | CK66: 3 | CL66: 2.333333333 | CM66: 0.2730350404 | CN66: 46375 | CO66: 12662 | CP66: 999 | CQ66: MENA2 | CR66: MENA3 | CS66: MENA3 | CT66: MENA3 | CU66: MENA3 | CV66: MENA3 | CW66: MENA4 | CX66: MENA3 | CY66: MENA3 | CZ66: MENA3 | DA66: MENA3 | DB66: MENA999 | DE66: MENA2 | DF66: MENA2 | DG66: MENA2 | DI66: MENA3 | DJ66: MENA3 | DK66: MENA3 | DL66: MENA3 | DM66: MENA999 | DN66: MENA3 | DO66: MENA3 | DP66: MENA4 | DQ66: MENA999 | DR66: MENA2 | DX66: MENA999 | DY66: MENA3 | DZ66: MENA3 | EB66: MENA3 | EC66: MENA999 | ED66: MENA4 | EE66: MENA3 | EF66: MENA3 | EG66: MENA4 | EH66: MENA1 | EI66: MENA46375 | EJ66: MENA12662 | EK66: MENA4065 | EL66: MENA0 | EM66: MENA16000 | EN66: MENA4257 | EO66: MENA0 | EP66: MENA0 | EQ66: MENA1 | ER66: MENA1 | ES66: MENA1 | ET66: MENA1 | EU66: MENA1 | EV66: MENA999 | EW66: MENA4 | EX66: MENA4 | EY66: MENA4 | EZ66: MENA0 | FA66: MENA999 | FB66: MENA4 | FC66: MENA3 | FD66: MENA3 | FE66: MENA999 | FF66: MENA3 | FG66: MENA3 | FH66: MENA3 | FI66: MENA3 | FJ66: MENA3 | FK66: MENA999 | FL66: MENA2 | FM66: MENA3 | FN66: MENA3 | FO66: MENA3 | FP66: MENA3 | FQ66: MENA4 | FR66: MENA999 | FS66: MENA3 | FT66: MENA3 | FU66: MENA3 | FV66: MENA3 | FW66: MENA0
A67: Jamaica | B67: LACR | C67: No Answer Field | D67: 4 | E67: 4 | F67: 3 | G67: 999 | H67: 2 | I67: 2 | J67: 2 | K67: 2 | L67: 999 | M67: 999 | N67: 999 | O67: 999 | P67: 999 | Q67: 2 | R67: 2 | S67: 3 | T67: 3 | U67: 2.5 | V67: 3 | W67: 999 | X67: 2 | Y67: 3 | Z67: 3 | AA67: 1 | AB67: 999 | AC67: 4 | AD67: 4 | AE67: 3 | AF67: 3 | AG67: 0 | AH67: 999 | AI67: 999 | AJ67: 999 | AK67: 999 | AL67: 999 | AM67: 999 | AN67: 999 | AO67: 0 | AP67: 0 | AQ67: 999 | AR67: 999 | AS67: 999 | AT67: 999 | AU67: 999 | AV67: 999 | AW67: 999 | AX67: 999 | AY67: 1 | AZ67: 999 | BA67: 2 | BB67: 3 | BC67: 2 | BD67: 999 | BE67: 3 | BF67: 999 | BG67: 999 | BH67: 999 | BI67: 999 | BJ67: 999 | BK67: 3 | BL67: 2 | BM67: 2 | BN67: 2 | BO67: 3 | BP67: 2 | BQ67: 999 | BR67: 2 | BS67: 1 | BT67: 2 | BU67: 2 | BV67: 0 | BW67: 94 | BX67: 0 | BY67: 0 | BZ67: 0 | CA67: 3.666666667 | CB67: 2 | CC67: Not applicable | CD67: 2.75 | CE67: 2.666666667 | CF67: 3.333333333 | CG67: Not applicable | CH67: 2.333333333 | CI67: 3 | CJ67: 2.333333333 | CK67: 1.75 | CL67: Not applicable | CM67: 1 | CN67: 999 | CO67: 999 | CP67: 999 | CQ67: LACR4 | CR67: LACR2 | CS67: LACR999 | CT67: LACR3 | CU67: LACR3 | CV67: LACR3 | CW67: LACR999 | CX67: LACR2 | CY67: LACR3 | CZ67: LACR2 | DA67: LACR2 | DB67: LACR999 | DE67: LACR4 | DF67: LACR4 | DG67: LACR3 | DI67: LACR2 | DJ67: LACR2 | DK67: LACR2 | DL67: LACR2 | DM67: LACR999 | DN67: LACR999 | DO67: LACR999 | DP67: LACR999 | DQ67: LACR999 | DR67: LACR2 | DX67: LACR999 | DY67: LACR2 | DZ67: LACR3 | EB67: LACR1 | EC67: LACR999 | ED67: LACR4 | EE67: LACR4 | EF67: LACR3 | EG67: LACR3 | EH67: LACR0 | EI67: LACR999 | EJ67: LACR999 | EK67: LACR999 | EL67: LACR999 | EM67: LACR999 | EN67: LACR999 | EO67: LACR999 | EP67: LACR0 | EQ67: LACR0 | ER67: LACR999 | ES67: LACR999 | ET67: LACR999 | EU67: LACR999 | EV67: LACR999 | EW67: LACR999 | EX67: LACR999 | EY67: LACR999 | EZ67: LACR1 | FA67: LACR999 | FB67: LACR2 | FC67: LACR3 | FD67: LACR2 | FE67: LACR999 | FF67: LACR3 | FG67: LACR999 | FH67: LACR999 | FI67: LACR999 | FJ67: LACR999 | FK67: LACR999 | FL67: LACR3 | FM67: LACR2 | FN67: LACR2 | FO67: LACR2 | FP67: LACR3 | FQ67: LACR2 | FR67: LACR999 | FS67: LACR2 | FT67: LACR1 | FU67: LACR2 | FV67: LACR2 | FW67: LACR0
A68: Jordan | B68: MENA | C68: No Answer Field | D68: 2 | E68: 2 | F68: 3 | G68: 999 | H68: 3 | I68: 1 | J68: 2 | K68: 3 | L68: 999 | M68: 2 | N68: 2 | O68: 2 | P68: 999 | Q68: 2 | R68: 1 | S68: 999 | T68: 3 | U68: 2 | V68: 3 | W68: 999 | X68: 3 | Y68: 1 | Z68: 4 | AA68: 4 | AB68: 999 | AC68: 2 | AD68: 3 | AE68: 999 | AF68: 2 | AG68: 1 | AH68: 197500 | AI68: 125625 | AJ68: 13273 | AK68: 0 | AL68: 102370 | AM68: 4856 | AN68: 6135 | AO68: 1 | AP68: 1 | AQ68: 1 | AR68: 1 | AS68: 1 | AT68: 1 | AU68: 999 | AV68: 1 | AW68: 1 | AX68: 3 | AY68: 1 | AZ68: 999 | BA68: 2 | BB68: 999 | BC68: 3 | BD68: 999 | BE68: 999 | BF68: 999 | BG68: 999 | BH68: 999 | BI68: 999 | BJ68: 999 | BK68: 3 | BL68: 2 | BM68: 2 | BN68: 2 | BO68: 2 | BP68: 3 | BQ68: 999 | BR68: 3 | BS68: 2 | BT68: 3 | BU68: 1 | BV68: 0 | BW68: 91 | BX68: 0 | BY68: 0 | BZ68: 0 | CA68: 2.333333333 | CB68: 2.5 | CC68: 2 | CD68: 2.5 | CE68: 2.666666667 | CF68: 2.5 | CG68: 1.666666667 | CH68: 2.5 | CI68: Not applicable | CJ68: 2.333333333 | CK68: 2.25 | CL68: 2.666666667 | CM68: 0.6360759494 | CN68: 197500 | CO68: 125625 | CP68: 999 | CQ68: MENA2 | CR68: MENA3 | CS68: MENA2 | CT68: MENA3 | CU68: MENA3 | CV68: MENA3 | CW68: MENA2 | CX68: MENA3 | CY68: MENA999 | CZ68: MENA2 | DA68: MENA2 | DB68: MENA4 | DE68: MENA2 | DF68: MENA2 | DG68: MENA3 | DI68: MENA3 | DJ68: MENA1 | DK68: MENA2 | DL68: MENA3 | DM68: MENA999 | DN68: MENA2 | DO68: MENA2 | DP68: MENA2 | DQ68: MENA999 | DR68: MENA2 | DX68: MENA999 | DY68: MENA3 | DZ68: MENA1 | EB68: MENA4 | EC68: MENA999 | ED68: MENA2 | EE68: MENA3 | EF68: MENA999 | EG68: MENA2 | EH68: MENA1 | EI68: MENA197500 | EJ68: MENA125625 | EK68: MENA13273 | EL68: MENA0 | EM68: MENA102370 | EN68: MENA4856 | EO68: MENA6135 | EP68: MENA1 | EQ68: MENA1 | ER68: MENA1 | ES68: MENA1 | ET68: MENA1 | EU68: MENA1 | EV68: MENA999 | EW68: MENA1 | EX68: MENA1 | EY68: MENA3 | EZ68: MENA1 | FA68: MENA999 | FB68: MENA2 | FC68: MENA999 | FD68: MENA3 | FE68: MENA999 | FF68: MENA999 | FG68: MENA999 | FH68: MENA999 | FI68: MENA999 | FJ68: MENA999 | FK68: MENA999 | FL68: MENA3 | FM68: MENA2 | FN68: MENA2 | FO68: MENA2 | FP68: MENA2 | FQ68: MENA3 | FR68: MENA999 | FS68: MENA3 | FT68: MENA2 | FU68: MENA3 | FV68: MENA1 | FW68: MENA0
A69: Kazakhstan | B69: ECAR | C69: No Answer Field | D69: 2 | E69: 2 | F69: 3 | G69: 999 | H69: 3 | I69: 3 | J69: 3 | K69: 3 | L69: 999 | M69: 3 | N69: 2 | O69: 3 | P69: 999 | Q69: 2 | R69: 2 | S69: 2 | T69: 3 | U69: 2.25 | V69: 4 | W69: 999 | X69: 3 | Y69: 3 | Z69: 4 | AA69: 4 | AB69: 999 | AC69: 3 | AD69: 3 | AE69: 2 | AF69: 2 | AG69: 0 | AH69: 0 | AI69: 0 | AJ69: 0 | AK69: 0 | AL69: 0 | AM69: 0 | AN69: 0 | AO69: 0 | AP69: 0 | AQ69: 0 | AR69: 0 | AS69: 0 | AT69: 0 | AU69: 999 | AV69: 999 | AW69: 999 | AX69: 999 | AY69: 1 | AZ69: 999 | BA69: 3 | BB69: 3 | BC69: 2 | BD69: 999 | BE69: 2 | BF69: 2 | BG69: 2 | BH69: 2 | BI69: 2 | BJ69: 999 | BK69: 2 | BL69: 2 | BM69: 2 | BN69: 3 | BO69: 2 | BP69: 3 | BQ69: 999 | BR69: 2 | BS69: 2 | BT69: 2 | BU69: 2 | BV69: 0 | BW69: 96.1 | BX69: 1 | BY69: 1 | BZ69: 1 | CA69: 2.333333333 | CB69: 3 | CC69: 2.666666667 | CD69: 3.125 | CE69: 3.333333333 | CF69: 2.333333333 | CG69: Not applicable | CH69: 2.666666667 | CI69: 2 | CJ69: 2.333333333 | CK69: 2 | CL69: 3 | CN69: 0 | CO69: 0 | CP69: 999 | CQ69: ECAR2 | CR69: ECAR3 | CS69: ECAR3 | CT69: ECAR3 | CU69: ECAR3 | CV69: ECAR2 | CW69: ECAR999 | CX69: ECAR3 | CY69: ECAR2 | CZ69: ECAR2 | DA69: ECAR2 | DB69: ECAR999 | DE69: ECAR2 | DF69: ECAR2 | DG69: ECAR3 | DI69: ECAR3 | DJ69: ECAR3 | DK69: ECAR3 | DL69: ECAR3 | DM69: ECAR999 | DN69: ECAR3 | DO69: ECAR2 | DP69: ECAR3 | DQ69: ECAR999 | DR69: ECAR2 | DX69: ECAR999 | DY69: ECAR3 | DZ69: ECAR3 | EB69: ECAR4 | EC69: ECAR999 | ED69: ECAR3 | EE69: ECAR3 | EF69: ECAR2 | EG69: ECAR2 | EH69: ECAR0 | EI69: ECAR0 | EJ69: ECAR0 | EK69: ECAR0 | EL69: ECAR0 | EM69: ECAR0 | EN69: ECAR0 | EO69: ECAR0 | EP69: ECAR0 | EQ69: ECAR0 | ER69: ECAR0 | ES69: ECAR0 | ET69: ECAR0 | EU69: ECAR0 | EV69: ECAR999 | EW69: ECAR999 | EX69: ECAR999 | EY69: ECAR999 | EZ69: ECAR1 | FA69: ECAR999 | FB69: ECAR3 | FC69: ECAR3 | FD69: ECAR2 | FE69: ECAR999 | FF69: ECAR2 | FG69: ECAR2 | FH69: ECAR2 | FI69: ECAR2 | FJ69: ECAR2 | FK69: ECAR999 | FL69: ECAR2 | FM69: ECAR2 | FN69: ECAR2 | FO69: ECAR3 | FP69: ECAR2 | FQ69: ECAR3 | FR69: ECAR999 | FS69: ECAR2 | FT69: ECAR2 | FU69: ECAR2 | FV69: ECAR2 | FW69: ECAR0
A70: Kenya | B70: ESAR | C70: No Answer Field | D70: 3 | E70: 4 | F70: 3 | G70: 999 | H70: 3 | I70: 3 | J70: 3 | K70: 2 | L70: 999 | M70: 3 | N70: 3 | O70: 3 | P70: 999 | Q70: 3 | R70: 3 | S70: 3 | T70: 3 | U70: 3 | V70: 3 | W70: 999 | X70: 3 | Y70: 1 | Z70: 3 | AA70: 3 | AB70: 999 | AC70: 3 | AD70: 1 | AE70: 3 | AF70: 3 | AG70: 1 | AH70: 240000 | AI70: 177393 | AJ70: 34200 | AK70: 24600 | AL70: 71539 | AM70: 27000 | AN70: 2200 | AO70: 1 | AP70: 1 | AQ70: 1 | AR70: 1 | AS70: 0 | AT70: 1 | AU70: 999 | AV70: 2 | AW70: 2 | AX70: 2 | AY70: 0 | AZ70: 999 | BA70: 2 | BB70: 3 | BC70: 3 | BD70: 999 | BE70: 1 | BF70: 1 | BG70: 3 | BH70: 3 | BI70: 3 | BJ70: 999 | BK70: 1 | BL70: 3 | BM70: 2 | BN70: 2 | BO70: 2 | BP70: 2 | BQ70: 999 | BR70: 2 | BS70: 3 | BT70: 3 | BU70: 3 | BV70: 0 | BW70: 48 | BX70: 1 | BY70: 1 | BZ70: 1 | CA70: 3.333333333 | CB70: 2.5 | CC70: 3 | CD70: 3 | CE70: 2.333333333 | CF70: 2.333333333 | CG70: 2 | CH70: 2.666666667 | CI70: 2 | CJ70: 2 | CK70: 2.75 | CL70: 3 | CM70: 0.7391375 | CN70: 240000 | CO70: 177393 | CP70: 999 | CQ70: ESAR3 | CR70: ESAR3 | CS70: ESAR3 | CT70: ESAR3 | CU70: ESAR2 | CV70: ESAR2 | CW70: ESAR2 | CX70: ESAR3 | CY70: ESAR2 | CZ70: ESAR2 | DA70: ESAR3 | DB70: ESAR3 | DE70: ESAR3 | DF70: ESAR4 | DG70: ESAR3 | DI70: ESAR3 | DJ70: ESAR3 | DK70: ESAR3 | DL70: ESAR2 | DM70: ESAR999 | DN70: ESAR3 | DO70: ESAR3 | DP70: ESAR3 | DQ70: ESAR999 | DR70: ESAR3 | DX70: ESAR999 | DY70: ESAR3 | DZ70: ESAR1 | EB70: ESAR3 | EC70: ESAR999 | ED70: ESAR3 | EE70: ESAR1 | EF70: ESAR3 | EG70: ESAR3 | EH70: ESAR1 | EI70: ESAR240000 | EJ70: ESAR177393 | EK70: ESAR34200 | EL70: ESAR24600 | EM70: ESAR71539 | EN70: ESAR27000 | EO70: ESAR2200 | EP70: ESAR1 | EQ70: ESAR1 | ER70: ESAR1 | ES70: ESAR1 | ET70: ESAR0 | EU70: ESAR1 | EV70: ESAR999 | EW70: ESAR2 | EX70: ESAR2 | EY70: ESAR2 | EZ70: ESAR0 | FA70: ESAR999 | FB70: ESAR2 | FC70: ESAR3 | FD70: ESAR3 | FE70: ESAR999 | FF70: ESAR1 | FG70: ESAR1 | FH70: ESAR3 | FI70: ESAR3 | FJ70: ESAR3 | FK70: ESAR999 | FL70: ESAR1 | FM70: ESAR3 | FN70: ESAR2 | FO70: ESAR2 | FP70: ESAR2 | FQ70: ESAR2 | FR70: ESAR999 | FS70: ESAR2 | FT70: ESAR3 | FU70: ESAR3 | FV70: ESAR3 | FW70: ESAR0
A71: Kiribati | B71: EAPR | C71: No Answer Field | D71: 999 | E71: 999 | F71: 999 | G71: 999 | H71: 999 | I71: 999 | J71: 999 | K71: 999 | L71: 999 | M71: 999 | N71: 999 | O71: 999 | P71: 999 | Q71: 4 | R71: 4 | S71: 1 | T71: 1 | U71: 2.5 | V71: 4 | W71: 999 | X71: 999 | Y71: 999 | Z71: 999 | AA71: 999 | AB71: 999 | AC71: 999 | AD71: 999 | AE71: 999 | AF71: 999 | AG71: 0 | AH71: 0 | AI71: 0 | AJ71: 0 | AK71: 0 | AL71: 0 | AM71: 0 | AN71: 0 | AO71: 0 | AP71: 0 | AQ71: 0 | AR71: 0 | AS71: 0 | AT71: 0 | AU71: 999 | AV71: 999 | AW71: 999 | AX71: 999 | AY71: 999 | AZ71: 999 | BA71: 999 | BB71: 999 | BC71: 999 | BD71: 999 | BE71: 999 | BF71: 999 | BG71: 999 | BH71: 999 | BI71: 999 | BJ71: 999 | BK71: 999 | BL71: 999 | BM71: 999 | BN71: 999 | BO71: 999 | BP71: 999 | BQ71: 999 | BR71: 999 | BS71: 999 | BT71: 999 | BU71: 999 | BV71: 0 | BW71: 90 | BX71: 0 | BY71: 0 | BZ71: 0 | CA71: Not applicable | CB71: Not applicable | CC71: Not applicable | CD71: 3.25 | CE71: Not applicable | CF71: Not applicable | CG71: Not applicable | CH71: Not applicable | CI71: Not applicable | CJ71: Not applicable | CK71: Not applicable | CL71: Not applicable | CN71: 0 | CO71: 0 | CP71: 999 | CQ71: EAPR999 | CR71: EAPR999 | CS71: EAPR999 | CT71: EAPR3 | CU71: EAPR999 | CV71: EAPR999 | CW71: EAPR999 | CX71: EAPR999 | CY71: EAPR999 | CZ71: EAPR999 | DA71: EAPR999 | DB71: EAPR999 | DE71: EAPR999 | DF71: EAPR999 | DG71: EAPR999 | DI71: EAPR999 | DJ71: EAPR999 | DK71: EAPR999 | DL71: EAPR999 | DM71: EAPR999 | DN71: EAPR999 | DO71: EAPR999 | DP71: EAPR999 | DQ71: EAPR999 | DR71: EAPR4 | DX71: EAPR999 | DY71: EAPR999 | DZ71: EAPR999 | EB71: EAPR999 | EC71: EAPR999 | ED71: EAPR999 | EE71: EAPR999 | EF71: EAPR999 | EG71: EAPR999 | EH71: EAPR0 | EI71: EAPR0 | EJ71: EAPR0 | EK71: EAPR0 | EL71: EAPR0 | EM71: EAPR0 | EN71: EAPR0 | EO71: EAPR0 | EP71: EAPR0 | EQ71: EAPR0 | ER71: EAPR0 | ES71: EAPR0 | ET71: EAPR0 | EU71: EAPR0 | EV71: EAPR999 | EW71: EAPR999 | EX71: EAPR999 | EY71: EAPR999 | EZ71: EAPR999 | FA71: EAPR999 | FB71: EAPR999 | FC71: EAPR999 | FD71: EAPR999 | FE71: EAPR999 | FF71: EAPR999 | FG71: EAPR999 | FH71: EAPR999 | FI71: EAPR999 | FJ71: EAPR999 | FK71: EAPR999 | FL71: EAPR999 | FM71: EAPR999 | FN71: EAPR999 | FO71: EAPR999 | FP71: EAPR999 | FQ71: EAPR999 | FR71: EAPR999 | FS71: EAPR999 | FT71: EAPR999 | FU71: EAPR999 | FV71: EAPR999 | FW71: EAPR0
A72: Korea, D.P.R. | B72: EAPR | C72: No Answer Field | D72: 1 | E72: 1 | F72: 1 | G72: 999 | H72: 1 | I72: 3 | J72: 1 | K72: 1 | L72: 999 | M72: 3 | N72: 2 | O72: 2 | P72: 999 | Q72: 2 | R72: 3 | S72: 1 | T72: 2 | U72: 2 | V72: 2 | W72: 999 | X72: 2 | Y72: 999 | Z72: 1 | AA72: 2 | AB72: 999 | AC72: 4 | AD72: 3 | AE72: 4 | AF72: 4 | AG72: 0 | AH72: 0 | AI72: 0 | AJ72: 0 | AK72: 0 | AL72: 0 | AM72: 0 | AN72: 0 | AO72: 999 | AP72: 999 | AQ72: 999 | AR72: 999 | AS72: 999 | AT72: 999 | AU72: 999 | AV72: 999 | AW72: 999 | AX72: 999 | AY72: 1 | AZ72: 999 | BA72: 1 | BB72: 1 | BC72: 1 | BD72: 999 | BE72: 999 | BF72: 999 | BG72: 999 | BH72: 999 | BI72: 999 | BJ72: 999 | BK72: 1 | BL72: 1 | BM72: 1 | BN72: 1 | BO72: 2 | BP72: 999 | BQ72: 999 | BR72: 999 | BS72: 999 | BT72: 999 | BU72: 999 | BV72: 0 | BW72: 98 | BX72: 1 | BY72: 1 | BZ72: 0 | CA72: 1 | CB72: 1 | CC72: 2.333333333 | CD72: 2 | CE72: 1.5 | CF72: 3.666666667 | CG72: Not applicable | CH72: 1 | CI72: Not applicable | CJ72: 1.2 | CK72: Not applicable | CL72: Not applicable | CN72: 0 | CO72: 0 | CP72: 999 | CQ72: EAPR1 | CR72: EAPR1 | CS72: EAPR2 | CT72: EAPR2 | CU72: EAPR2 | CV72: EAPR4 | CW72: EAPR999 | CX72: EAPR1 | CY72: EAPR999 | CZ72: EAPR1 | DA72: EAPR999 | DB72: EAPR999 | DE72: EAPR1 | DF72: EAPR1 | DG72: EAPR1 | DI72: EAPR1 | DJ72: EAPR3 | DK72: EAPR1 | DL72: EAPR1 | DM72: EAPR999 | DN72: EAPR3 | DO72: EAPR2 | DP72: EAPR2 | DQ72: EAPR999 | DR72: EAPR2 | DX72: EAPR999 | DY72: EAPR2 | DZ72: EAPR999 | EB72: EAPR2 | EC72: EAPR999 | ED72: EAPR4 | EE72: EAPR3 | EF72: EAPR4 | EG72: EAPR4 | EH72: EAPR0 | EI72: EAPR0 | EJ72: EAPR0 | EK72: EAPR0 | EL72: EAPR0 | EM72: EAPR0 | EN72: EAPR0 | EO72: EAPR0 | EP72: EAPR999 | EQ72: EAPR999 | ER72: EAPR999 | ES72: EAPR999 | ET72: EAPR999 | EU72: EAPR999 | EV72: EAPR999 | EW72: EAPR999 | EX72: EAPR999 | EY72: EAPR999 | EZ72: EAPR1 | FA72: EAPR999 | FB72: EAPR1 | FC72: EAPR1 | FD72: EAPR1 | FE72: EAPR999 | FF72: EAPR999 | FG72: EAPR999 | FH72: EAPR999 | FI72: EAPR999 | FJ72: EAPR999 | FK72: EAPR999 | FL72: EAPR1 | FM72: EAPR1 | FN72: EAPR1 | FO72: EAPR1 | FP72: EAPR2 | FQ72: EAPR999 | FR72: EAPR999 | FS72: EAPR999 | FT72: EAPR999 | FU72: EAPR999 | FV72: EAPR999 | FW72: EAPR0
A73: Kosovo | B73: ECAR | C73: No Answer Field | D73: 3 | E73: 3 | F73: 2 | G73: 999 | H73: 2 | I73: 3 | J73: 2.5 | K73: 3 | L73: 999 | M73: 2 | N73: 2 | O73: 2 | P73: 999 | Q73: 4 | R73: 4 | S73: 4 | T73: 4 | U73: 4 | V73: 3 | W73: 999 | X73: 2 | Y73: 2 | Z73: 3 | AA73: 2 | AB73: 999 | AC73: 3 | AD73: 2 | AE73: 2 | AF73: 3 | AG73: 0 | AH73: 0 | AI73: 0 | AJ73: 0 | AK73: 0 | AL73: 0 | AM73: 0 | AN73: 0 | AO73: 0 | AP73: 0 | AQ73: 0 | AR73: 0 | AS73: 0 | AT73: 0 | AU73: 999 | AV73: 1 | AW73: 1 | AX73: 1 | AY73: 1 | AZ73: 999 | BA73: 2 | BB73: 3 | BC73: 3 | BD73: 999 | BE73: 3 | BF73: 4 | BG73: 3 | BH73: 3 | BI73: 2 | BJ73: 999 | BK73: 4 | BL73: 2 | BM73: 2 | BN73: 2 | BO73: 3 | BP73: 3 | BQ73: 999 | BR73: 2 | BS73: 2 | BT73: 2 | BU73: 2 | BV73: 0 | BW73: 88 | BX73: 1 | BY73: 1 | BZ73: 0 | CA73: 2.666666667 | CB73: 2.75 | CC73: 2 | CD73: 3.5 | CE73: 2.333333333 | CF73: 2.333333333 | CG73: 1 | CH73: 2.666666667 | CI73: 3.25 | CJ73: 2.666666667 | CK73: 2 | CL73: 2.333333333 | CN73: 0 | CO73: 0 | CP73: 999 | CQ73: ECAR3 | CR73: ECAR3 | CS73: ECAR2 | CT73: ECAR4 | CU73: ECAR2 | CV73: ECAR2 | CW73: ECAR1 | CX73: ECAR3 | CY73: ECAR3 | CZ73: ECAR3 | DA73: ECAR2 | DB73: ECAR999 | DE73: ECAR3 | DF73: ECAR3 | DG73: ECAR2 | DI73: ECAR2 | DJ73: ECAR3 | DK73: ECAR3 | DL73: ECAR3 | DM73: ECAR999 | DN73: ECAR2 | DO73: ECAR2 | DP73: ECAR2 | DQ73: ECAR999 | DR73: ECAR4 | DX73: ECAR999 | DY73: ECAR2 | DZ73: ECAR2 | EB73: ECAR2 | EC73: ECAR999 | ED73: ECAR3 | EE73: ECAR2 | EF73: ECAR2 | EG73: ECAR3 | EH73: ECAR0 | EI73: ECAR0 | EJ73: ECAR0 | EK73: ECAR0 | EL73: ECAR0 | EM73: ECAR0 | EN73: ECAR0 | EO73: ECAR0 | EP73: ECAR0 | EQ73: ECAR0 | ER73: ECAR0 | ES73: ECAR0 | ET73: ECAR0 | EU73: ECAR0 | EV73: ECAR999 | EW73: ECAR1 | EX73: ECAR1 | EY73: ECAR1 | EZ73: ECAR1 | FA73: ECAR999 | FB73: ECAR2 | FC73: ECAR3 | FD73: ECAR3 | FE73: ECAR999 | FF73: ECAR3 | FG73: ECAR4 | FH73: ECAR3 | FI73: ECAR3 | FJ73: ECAR2 | FK73: ECAR999 | FL73: ECAR4 | FM73: ECAR2 | FN73: ECAR2 | FO73: ECAR2 | FP73: ECAR3 | FQ73: ECAR3 | FR73: ECAR999 | FS73: ECAR2 | FT73: ECAR2 | FU73: ECAR2 | FV73: ECAR2 | FW73: ECAR0
A74: Kuwait | B74: MENA | C74: No Answer Field | D74: 999 | E74: 999 | F74: 999 | G74: 999 | H74: 999 | I74: 999 | J74: 999 | K74: 999 | L74: 999 | M74: 999 | N74: 999 | O74: 999 | P74: 999 | Q74: 999 | R74: 999 | S74: 999 | T74: 999 | U74: 999 | V74: 999 | W74: 999 | X74: 999 | Y74: 999 | Z74: 999 | AA74: 999 | AB74: 999 | AC74: 999 | AD74: 999 | AE74: 999 | AF74: 999 | AG74: 999 | AH74: 999 | AI74: 999 | AJ74: 999 | AK74: 999 | AL74: 999 | AM74: 999 | AN74: 999 | AO74: 999 | AP74: 999 | AQ74: 999 | AR74: 999 | AS74: 999 | AT74: 999 | AU74: 999 | AV74: 999 | AW74: 999 | AX74: 999 | AY74: 999 | AZ74: 999 | BA74: 999 | BB74: 999 | BC74: 999 | BD74: 999 | BE74: 999 | BF74: 999 | BG74: 999 | BH74: 999 | BI74: 999 | BJ74: 999 | BK74: 999 | BL74: 999 | BM74: 999 | BN74: 999 | BO74: 999 | BP74: 999 | BQ74: 999 | BR74: 999 | BS74: 999 | BT74: 999 | BU74: 999 | BV74: 999 | BW74: 999 | BX74: 999 | BY74: 999 | BZ74: 999 | CA74: Not applicable | CB74: Not applicable | CC74: Not applicable | CD74: Not applicable | CE74: Not applicable | CF74: Not applicable | CG74: Not applicable | CH74: Not applicable | CI74: Not applicable | CJ74: Not applicable | CK74: Not applicable | CL74: 2.333333333 | CM74: 1 | CN74: 999 | CO74: 999 | CP74: 999 | CQ74: MENA999 | CR74: MENA999 | CS74: MENA999 | CT74: MENA999 | CU74: MENA999 | CV74: MENA999 | CW74: MENA999 | CX74: MENA999 | CY74: MENA999 | CZ74: MENA999 | DA74: MENA999 | DB74: MENA999 | DE74: MENA999 | DF74: MENA999 | DG74: MENA999 | DI74: MENA999 | DJ74: MENA999 | DK74: MENA999 | DL74: MENA999 | DM74: MENA999 | DN74: MENA999 | DO74: MENA999 | DP74: MENA999 | DQ74: MENA999 | DR74: MENA999 | DX74: MENA999 | DY74: MENA999 | DZ74: MENA999 | EB74: MENA999 | EC74: MENA999 | ED74: MENA999 | EE74: MENA999 | EF74: MENA999 | EG74: MENA999 | EH74: MENA999 | EI74: MENA999 | EJ74: MENA999 | EK74: MENA999 | EL74: MENA999 | EM74: MENA999 | EN74: MENA999 | EO74: MENA999 | EP74: MENA999 | EQ74: MENA999 | ER74: MENA999 | ES74: MENA999 | ET74: MENA999 | EU74: MENA999 | EV74: MENA999 | EW74: MENA999 | EX74: MENA999 | EY74: MENA999 | EZ74: MENA999 | FA74: MENA999 | FB74: MENA999 | FC74: MENA999 | FD74: MENA999 | FE74: MENA999 | FF74: MENA999 | FG74: MENA999 | FH74: MENA999 | FI74: MENA999 | FJ74: MENA999 | FK74: MENA999 | FL74: MENA999 | FM74: MENA999 | FN74: MENA999 | FO74: MENA999 | FP74: MENA999 | FQ74: MENA999 | FR74: MENA999 | FS74: MENA999 | FT74: MENA999 | FU74: MENA999 | FV74: MENA999 | FW74: MENA999
